{"text_format":"1","workbook":"xlsx","n_sheets":5,"sheets":["Millwall","Comparison","Sheet1","Sheet2","Sheet3"],"not_rendered":{"charts":1,"images":2,"macros":1,"external_links":5,"defined_names":14,"comments":0,"pivot_tables":0},"unopened":[],"bounds":{"document_bytes":16777216,"sheet_cells":100000,"rows_first":2000,"rows_last":500,"rows_between":2000,"halvings":0,"cell_chars":16384,"cell_head_chars":4096},"cells_cut":0,"cells_raw":0,"read":"whole","date_system":"1900"}

{"sheet":"Millwall","index":0,"n_rows":207,"n_cols":147,"rows_kept":207,"cut":false,"hidden":false,"merged":[[69,69,69,71],[69,73,69,75],[69,77,69,79],[65,64,65,98],[2,146,2,158],[2,68,2,71],[2,72,2,75],[4,66,4,67],[2,77,2,79]]}
[null,null,1,"Competition","Date",null,"Us & Them","Opponents",null,null,null,"Score","HT",null,null,null,null,null,null,null,null,null,null,"Att",null,"Pts","Pos","Goal Scorers",null,null,null,null,null,null,null,null,null,null,null,null,null,null,null,null,null,null,null,null,null,null,null,null,null,null,null,null,null,null,null,null,null,null,null,null,null,null,null,null,null,null,null,null,null,null,null,null,null,null,null,null,null,null,null,null,null,null,null,null,null,null,null,null,null,null,null,null,1,1282]
[null,null,null,null,null,null,null,null,null,null,null,null,null,null,null,null,null,null,null,null,null,null,null,null,null,null,null,null,null,null,null,null,null,null,null,null,null,null,null,null,null,"x"]
[null,null,null,null,null,null,null,null,null,null,null,null,"x",null,null,null,null,null,null,null,null,null,null,null,null,null,"x",null,null,null,null,null,null,null,null,null,null,null,null,null,null,"x",null,null,null,null,null,null,null,null,null,null,null,null,null,null,null,null,null,null,null,null,null,null,null,null,null,null,"All",null,null,null,"League",null,null,null,null,"FA Cup",null,null,null,null,null,null,null,null,null,null,null,null,null,null,null,null,null,null,null,null,null,null,null,null,null,null,null,null,null,null,null,null,null,null,null,null,null,null,null,null,null,null,null,null,null,null,null,null,null,null,null,null,null,null,null,null,null,null,null,null,null,null,null,null,null,null,null,null,"Millwall Progress Season 1964/65"]
[null,null,"Game","Competition","Date",null,"Us & Them","Opponents",null,null,null,"Score","HT",null,null,null,null,null,null,null,null,null,null,"Att","Away","Pts","Pos","Goal Scorers",null,null,null,null,"Game","Competition","Date",null,"Opponents",null,null,null,"Score",1,2,3,4,5,6,7,8,9,10,11,null,null,12,null,null,null,null,null,null,null,null,null,null,null,null,null,null,{"$f":"BQ55","v":"Max (47)"},null,null,null,{"$f":"BU55","v":"Max (42)"},null,null,null,{"$f":"BY55","v":"Max (5)"},null,null,null,null,null,null,null,null,null,null,null,null,null,null,null,null,null,null,null,null,1,2,3,4,5,6,7,8,9,10,11,null,11,12,13,14,null,16,17,18,null,null,null,null,null,null,null,null,null,null,null,null,null,null,null,null,null,null,null,null,null,null,"Opposition","Pts","Pos"]
[1,null,1,"Division 2","1929-08-31",null,"- -","Blackpool","(A)",null,null,"L 3-4","2-3",null,null,null,null,null,null,null,null,null,null,15000,null,0,14,"Cock, Phillips, Landells",{"$f":"E5","v":"1929-08-31"},null,1,null,{"$f":"C5","v":1},"Division 2","1929-08-31",null,"Blackpool","(A)",null,null,"L 3-4","Lansdale","Sweetman","Hill","Jones","Gomm","Graham","Chance","Landells","Cock","Phillips","Black",null,null,null,null,null,null,null,null,null,null,null,null,null,null,"Player      ",null,"Apps","-","-","Goals","Apps","-","-","Goals","Apps","-","-","Goals",null,null,null,null,null,null,null,null,null,null,null,null,null,null,null,null,null,null,"Wilson","Tyler","Pipe","Martin","Gomm","Graham","Corkindale","Hawkins","Cock","Forsyth","Wadsworth",null,null,null,null,null,null,null,null,null,null,null,null,null,null,null,null,null,null,null,null,null,null,null,null,null,null,null,null,null,null,null,"Blackpool (A) L 3-4",0,14]
[{"$f":"IF(A5=0,1,IF(A5=2,1,2))","v":2},null,2,"Division 2","1929-09-02",null,"12th v 14th","Tottenham","(H)",null,null,"L 2-5","1-1",null,null,null,null,null,null,null,null,null,null,22297,null,0,18,"Cock (2)","1929-09-02",null,{"$f":"IF(AE5=0,1,IF(AE5=2,1,2))","v":2},null,2,"Division 2","1929-09-02",null,"Tottenham","(H)",null,null,"L 2-5","Lansdale","Sweetman","Hill","Jones","Gomm","Graham","Chance","Landells","Cock","Phillips","Black",null,null,null,null,null,null,null,null,null,null,null,null,null,null,null,null,null,null,null,null,null,null,null,null,null,null,null,null,null,null,null,null,null,null,null,null,null,null,null,null,null,null,null,null,null,null,null,null,null,null,null,null,null,null,null,null,null,null,null,null,null,null,null,null,null,null,null,null,null,null,null,null,null,null,null,null,null,null,null,null,null,null,null,null,null,null,null,null,"Tottenham (H) L 2-5",0,18]
[1,null,3,"Division 2","1929-09-07",null,"18th v 20th","Bury","(H)",null,null,"L 2-4","2-1",null,null,null,null,null,null,null,null,null,null,18961,null,0,21,"Phillips, Cock","1929-09-07",null,1,null,3,"Division 2","1929-09-07",null,"Bury","(H)",null,null,"L 2-4","Wilson","Sweetman","Hill","Amos","Gomm","Graham","Chance","Landells","Cock","Phillips","Corkindale",null,null,null,null,null,null,null,null,null,null,null,null,1,null,{"$f":"CN7&\" \"&CO7","v":"A Amos"},null,{"$f":"BU7+BY7+CG7","v":2},"-","-",{"$f":"BX7+CB7","v":0},{"$f":"BR72","v":2},"-","-",0,{"$f":"BZ72","v":0},"-","-",0,null,null,{"$f":"IF(BU7=CF7,IF(BY7=CL7,\"OK\",\"Error\"),\"Error\")","v":"OK"},2,null,null,null,null,null,0,{"$f":"CM72","v":72},"A","Amos",1,7,null,"Amos","A","Wilson","Tyler","Pipe","Martin","Gomm","Graham","Corkindale","Hawkins","Cock","Forsyth","Wadsworth",null,null,null,null,null,null,null,null,null,null,null,null,null,null,null,null,null,null,null,null,null,null,null,null,null,null,null,null,null,null,null,"Bury (H) L 2-4",0,21]
[2,null,4,"Division 2","1929-09-14",null,"21st v 17th","Chelsea","(A)",null,null,"L 0-3","0-2",null,null,null,null,null,null,null,null,null,null,40000,null,0,21,"","1929-09-14",null,2,null,4,"Division 2","1929-09-14",null,"Chelsea","(A)",null,null,"L 0-3","Wilson","Hill","Pipe","Jones","Bryant","Graham","Chance","Landells","Cock","Phillips","Corkindale",null,null,null,null,null,null,null,null,null,null,null,null,{"$f":"IF(BM7=0,1,IF(BM7=2,1,2))","v":2},null,"A Barrett",null,1,"-","-",{"$f":"BX8+CB8","v":0},1,"-","-",0,0,"-","-",0,null,null,"OK",1,null,null,null,null,null,0,73,"A","Barrett",2,8,null,"Barrett","A",null,null,null,null,null,null,null,null,null,null,null,null,null,null,null,null,null,null,null,null,null,null,null,null,null,null,null,null,null,null,null,null,null,null,null,null,null,null,null,null,null,null,"Chelsea (A) L 0-3",0,21]
[1,null,5,"Division 2","1929-09-16",null,"21st v 17th","Bradford PA","(H)",null,null,"L 1-2","0-1",null,null,null,null,null,null,null,null,null,null,9143,null,0,21,"Poxton","1929-09-16",null,1,null,5,"Division 2","1929-09-16",null,"Bradford PA","(H)",null,null,"L 1-2","Wilson","Moran","Tyler","Graham","Bryant","Forsyth","Corkindale","Readman","Cock","Smith","Poxton",null,null,null,null,null,null,null,null,null,null,null,null,1,null,"A Black",null,2,"-","-",0,{"$f":"BR74","v":2},"-","-",{"$f":"BU74","v":0},{"$f":"BZ74","v":0},"-","-",{"$f":"CC74","v":0},null,null,"OK",2,null,null,null,null,null,0,74,"A","Black",3,9,null,"Black","A","No Scorer",null,null,null,null,null,null,null,null,null,null,null,null,null,null,null,null,null,null,null,null,null,null,null,null,null,null,null,null,null,null,null,null,null,null,null,null,null,null,null,null,null,"Bradford PA (H) L 1-2",0,21]
[2,null,6,"Division 2","1929-09-21",null,"21st v 20th","Nottm Forest","(H)",null,null,"D 2-2","2-2",null,null,null,null,null,null,null,null,null,null,22747,null,1,22,"Corkindale, Cock","1929-09-21",null,2,null,6,"Division 2","1929-09-21",null,"Nottm Forest","(H)",null,null,"D 2-2","Lansdale","Tyler","Pipe","Amos","Bryant","Forsyth","Chance","Landells","Cock","Readman","Corkindale",null,null,null,null,null,null,null,null,null,null,null,null,2,null,"W Bryant",null,10,"-","-",1,10,"-","-",1,0,"-","-",0,null,null,"OK",10,null,null,null,null,null,0,75,"W","Bryant",4,10,null,"Bryant","W","Own Goal",null,null,null,null,null,null,null,null,null,null,null,null,null,null,null,null,null,null,null,null,null,null,null,null,null,null,null,null,null,null,null,null,null,null,null,null,null,null,null,null,null,"Nottm Forest (H) D 2-2",1,22]
[1,null,7,"Division 2","1929-09-23",null,"22nd v 15th","Tottenham","(A)",null,null,"D 1-1","0-1",null,null,null,null,null,null,null,null,null,null,18000,null,2,21,"Chance","1929-09-23",null,1,null,7,"Division 2","1929-09-23",null,"Tottenham","(A)",null,null,"D 1-1","Lansdale","Tyler","Pipe","Martin","Gomm","Forsyth","Chance","Landells","Cock","Readman","Corkindale",null,null,null,null,null,null,null,null,null,null,null,null,1,null,"G Chance",null,19,"-","-",4,19,"-","-",4,0,"-","-",0,null,null,"OK",19,null,null,null,null,null,0,76,"G","Chance",5,11,null,"Chance","G","Amos","A",null,null,null,null,null,null,null,null,null,null,null,null,null,null,null,null,null,null,null,null,null,null,null,null,null,null,null,null,null,null,null,null,null,null,null,null,null,null,null,null,"Tottenham (A) D 1-1",2,21]
[2,null,8,"Division 2","1929-09-28",null,"21st v 1st","Oldham","(A)",null,null,"D 2-2","1-1",null,null,null,null,null,null,null,null,null,null,18000,null,3,20,"Martin, Cock","1929-09-28",null,2,null,8,"Division 2","1929-09-28",null,"Oldham","(A)",null,null,"D 2-2","Lansdale","Tyler","Pipe","Martin","Gomm","Forsyth","Chance","Landells","Cock","Readman","Corkindale",null,null,null,null,null,null,null,null,null,null,null,null,2,null,"J Cock",null,36,"-","-",17,31,"-","-",15,5,"-","-",2,null,null,"OK",31,null,null,null,null,null,5,77,"J","Cock",6,12,null,"Cock","J","Barrett","A",null,null,null,null,null,null,null,null,null,null,null,null,null,null,null,null,null,null,null,null,null,null,null,null,null,null,null,null,null,null,null,null,null,null,null,null,null,null,null,null,"Oldham (A) D 2-2",3,20]
[1,null,9,"Division 2","1929-10-05",null,"20th v 11th","Charlton","(H)",null,null,"D 1-1","1-1",null,null,null,null,null,null,null,null,null,null,32218,null,4,20,"Landells","1929-10-05",null,1,null,9,"Division 2","1929-10-05",null,"Charlton","(H)",null,null,"D 1-1","Lansdale","Tyler","Pipe","Martin","Bryant","Forsyth","Chance","Landells","Cock","Phillips","Corkindale",null,null,null,null,null,null,null,null,null,null,null,null,1,null,"W Corkindale",null,36,"-","-",7,31,"-","-",4,5,"-","-",3,null,null,"OK",31,null,null,null,null,null,5,78,"W","Corkindale",7,13,null,"Corkindale","W","Black","A",null,null,null,null,null,null,null,null,null,null,null,null,null,null,null,null,null,null,null,null,null,null,null,null,null,null,null,null,null,null,null,null,null,null,null,null,null,null,null,null,"Charlton (H) D 1-1",4,20]
[2,null,10,"Division 2","1929-10-12",null,"20th v 6th","Southampton","(H)",null,null,"D 1-1","1-0",null,null,null,null,null,null,null,null,null,null,20998,null,5,20,"Cock","1929-10-12",null,2,null,10,"Division 2","1929-10-12",null,"Southampton","(H)",null,null,"D 1-1","Lansdale","Tyler","Pipe","Martin","Gomm","Forsyth","Chance","Landells","Cock","Phillips","Corkindale",null,null,null,null,null,null,null,null,null,null,null,null,2,null,"J Forsyth",null,34,"-","-",7,29,"-","-",5,5,"-","-",2,null,null,"OK",29,null,null,null,null,null,5,79,"J","Forsyth",8,14,null,"Forsyth","J","Bryant","W",null,null,null,null,null,null,null,null,null,null,null,null,null,null,null,null,null,null,null,null,null,null,null,null,null,null,null,null,null,null,null,null,null,null,null,null,null,null,null,null,"Southampton (H) D 1-1",5,20]
[1,null,11,"Division 2","1929-10-19",null,"20th v 12th","Hull","(A)",null,null,"L 2-3","0-1",null,null,null,null,null,null,null,null,null,null,7000,null,5,21,"Woodards, Phillips","1929-10-19",null,1,null,11,"Division 2","1929-10-19",null,"Hull","(A)",null,null,"L 2-3","Lansdale","Tyler","Pipe","Graham","Gomm","Forsyth","Chance","Landells","Woodards","Phillips","Corkindale",null,null,null,null,null,null,null,null,null,null,null,null,1,null,"J Fort",null,1,"-","-",0,1,"-","-",0,0,"-","-",0,null,null,"OK",1,null,null,null,null,null,0,80,"J","Fort",9,15,null,"Fort","J","Chance","G",null,null,null,null,null,null,null,null,null,null,null,null,null,null,null,null,null,null,null,null,null,null,null,null,null,null,null,null,null,null,null,null,null,null,null,null,null,null,null,null,"Hull (A) L 2-3",5,21]
[2,null,12,"Division 2","1929-10-26",null,"21st v 4th","Stoke","(H)",null,null,"W 2-1","2-0",null,null,null,null,null,null,null,null,null,null,20377,null,7,20,"Woodards, Landells","1929-10-26",null,2,null,12,"Division 2","1929-10-26",null,"Stoke","(H)",null,null,"W 2-1","Lansdale","Tyler","Pipe","Graham","Gomm","Forsyth","Chance","Landells","Woodards","Phillips","Corkindale",null,null,null,null,null,null,null,null,null,null,null,null,2,null,"A Gomm",null,39,"-","-",1,34,"-","-",1,5,"-","-",0,null,null,"OK",34,null,null,null,null,null,5,81,"A","Gomm",10,16,null,"Gomm","A","Cock","J",null,null,null,null,null,null,null,null,null,null,null,null,null,null,null,null,null,null,null,null,null,null,null,null,null,null,null,null,null,null,null,null,null,null,null,null,null,null,null,null,"Stoke (H) W 2-1",7,20]
[1,null,13,"Division 2","1929-11-02",null,"20th v 3rd","Wolves","(A)",null,null,"D 1-1","0-1",null,null,null,null,null,null,null,null,null,null,15000,null,8,18,"Woodards","1929-11-02",null,1,null,13,"Division 2","1929-11-02",null,"Wolves","(A)",null,null,"D 1-1","Lansdale","Tyler","Pipe","Martin","Gomm","Graham","Chance","Landells","Woodards","Cock","Corkindale",null,null,null,null,null,null,null,null,null,null,null,null,1,null,"L Graham",null,35,"-","-",1,30,"-","-",1,5,"-","-",0,null,null,"OK",30,null,null,null,null,null,5,82,"L","Graham",11,17,null,"Graham","L","Corkindale","W",null,null,null,null,null,null,null,null,null,null,null,null,null,null,null,null,null,null,null,null,null,null,null,null,null,null,null,null,null,null,null,null,null,null,null,null,null,null,null,null,"Wolves (A) D 1-1",8,18]
[2,null,14,"Division 2","1929-11-09",null,"18th v 14th","Bradford City","(H)",null,null,"D 2-2","0-1",null,null,null,null,null,null,null,null,null,null,20702,null,9,19,"Chance, Landells","1929-11-09",null,2,null,14,"Division 2","1929-11-09",null,"Bradford City","(H)",null,null,"D 2-2","Lansdale","Tyler","Pipe","Martin","Gomm","Graham","Chance","Landells","Woodards","Cock","Corkindale",null,null,null,null,null,null,null,null,null,null,null,null,2,null,"W Harris",null,1,"-","-",0,1,"-","-",0,0,"-","-",0,null,null,"OK",1,null,null,null,null,null,0,83,"W","Harris",12,18,null,"Harris","W","Forsyth","J",null,null,null,null,null,null,null,null,null,null,null,null,null,null,null,null,null,null,null,null,null,null,null,null,null,null,null,null,null,null,null,null,null,null,null,null,null,null,null,null,"Bradford City (H) D 2-2",9,19]
[1,null,15,"Division 2","1929-11-16",null,"19th v 21st","Swansea","(A)",null,null,"L 1-3","1-2",null,null,null,null,null,null,null,null,null,null,10000,null,9,21,"Chance","1929-11-16",null,1,null,15,"Division 2","1929-11-16",null,"Swansea","(A)",null,null,"L 1-3","Lansdale","Sweetman","Pipe","Martin","Gomm","Graham","Chance","Landells","Woodards","Cock","Corkindale",null,null,null,null,null,null,null,null,null,null,null,null,1,null,"J Hawkins",null,7,"-","-",3,4,"-","-",1,3,"-","-",2,null,null,"OK",4,null,null,null,null,null,3,84,"J","Hawkins",13,19,null,"Hawkins","J","Fort","J",null,null,null,null,null,null,null,null,null,null,null,null,null,null,null,null,null,null,null,null,null,null,null,null,null,null,null,null,null,null,null,null,null,null,null,null,null,null,null,null,"Swansea (A) L 1-3",9,21]
[2,null,16,"Division 2","1929-11-23",null,"21st v 5th","Cardiff","(H)",null,null,"W 2-0","2-0",null,null,null,null,null,null,null,null,null,null,14208,null,11,19,"Rounsfull, Poxton","1929-11-23",null,2,null,16,"Division 2","1929-11-23",null,"Cardiff","(H)",null,null,"W 2-0","Lansdale","Sweetman","Pipe","Martin","Gomm","Graham","Wadsworth","Landells","Cock","Rounsfull","Poxton",null,null,null,null,null,null,null,null,null,null,null,null,2,null,"R Hill",null,9,"-","-",0,9,"-","-",0,0,"-","-",0,null,null,"OK",9,null,null,null,null,null,0,85,"R","Hill",14,20,null,"Hill","R","Gomm","A",null,null,null,null,null,null,null,null,null,null,null,null,null,null,null,null,null,null,null,null,null,null,null,null,null,null,null,null,null,null,null,null,null,null,null,null,null,null,null,null,"Cardiff (H) W 2-0",11,19]
[1,null,17,"Division 2","1929-11-30",null,"19th v 20th","Preston","(A)",null,null,"L 1-3","1-2",null,null,null,null,null,null,null,null,null,null,8000,null,11,20,"Cock","1929-11-30",null,1,null,17,"Division 2","1929-11-30",null,"Preston","(A)",null,null,"L 1-3","Lansdale","Sweetman","Pipe","Martin","Gomm","Page","Wadsworth","Landells","Cock","Rounsfull","Poxton",null,null,null,null,null,null,null,null,null,null,null,null,1,null,"J Horton",null,4,"-","-",2,4,"-","-",2,0,"-","-",0,null,null,"OK",4,null,null,null,null,null,0,86,"J","Horton",15,21,null,"Horton","J","Graham","L",null,null,null,null,null,null,null,null,null,null,null,null,null,null,null,null,null,null,null,null,null,null,null,null,null,null,null,null,null,null,null,null,null,null,null,null,null,null,null,null,"Preston (A) L 1-3",11,20]
[2,null,18,"Division 2","1929-12-07",null,"20th v 16th","Bristol C","(H)",null,null,"D 1-1","1-0",null,null,null,null,null,null,null,null,null,null,11800,null,12,21,"Gomm","1929-12-07",null,2,null,18,"Division 2","1929-12-07",null,"Bristol C","(H)",null,null,"D 1-1","Lansdale","Fort","Pipe","Martin","Gomm","Graham","Chance","Landells","Cock","Readman","Poxton",null,null,null,null,null,null,null,null,null,null,null,null,2,null,"V Jones",null,12,"-","-",0,12,"-","-",0,0,"-","-",0,null,null,"OK",12,null,null,null,null,null,0,87,"V","Jones",16,22,null,"Jones","V","Harris","W",null,null,null,null,null,null,null,null,null,null,null,null,null,null,null,null,null,null,null,null,null,null,null,null,null,null,null,null,null,null,null,null,null,null,null,null,null,null,null,null,"Bristol C (H) D 1-1",12,21]
[1,null,19,"Division 2","1929-12-14",null,"21st v 17th","Notts Co","(A)",null,null,"D 1-1","1-0",null,null,null,null,null,null,null,null,null,null,6000,null,13,20,"Forsyth","1929-12-14",null,1,null,19,"Division 2","1929-12-14",null,"Notts Co","(A)",null,null,"D 1-1","Lansdale","Sweetman","Pipe","Martin","Gomm","Graham","Chance","Landells","Forsyth","Phillips","Poxton",null,null,null,null,null,null,null,null,null,null,null,null,1,null,"J Landells",null,20,"-","-",4,19,"-","-",4,1,"-","-",0,null,null,"OK",19,null,null,null,null,null,1,88,"J","Landells",17,23,null,"Landells","J","Hawkins","J",null,null,null,null,null,null,null,null,null,null,null,null,null,null,null,null,null,null,null,null,null,null,null,null,null,null,null,null,null,null,null,null,null,null,null,null,null,null,null,null,"Notts Co (A) D 1-1",13,20]
[2,null,20,"Division 2","1929-12-21",null,"20th v 13th","Reading","(H)",null,null,"W 3-1","1-1",null,null,null,null,null,null,null,null,null,null,8508,null,15,18,"Phillips, Forsyth, Bryant","1929-12-21",null,2,null,20,"Division 2","1929-12-21",null,"Reading","(H)",null,null,"W 3-1","Lansdale","Hill","Pipe","Martin","Gomm","Graham","Chance","Bryant","Forsyth","Phillips","Poxton",null,null,null,null,null,null,null,null,null,null,null,null,2,null,"J Lansdale",null,28,"-","-",0,25,"-","-",0,3,"-","-",0,null,null,"OK",25,null,null,null,null,null,3,89,"J","Lansdale",18,24,null,"Lansdale","J","Hill","R",null,null,null,null,null,null,null,null,null,null,null,null,null,null,null,null,null,null,null,null,null,null,null,null,null,null,null,null,null,null,null,null,null,null,null,null,null,null,null,null,"Reading (H) W 3-1",15,18]
[1,null,21,"Division 2","1929-12-25",null,"18th v 10th","West Brom","(H)",null,null,"W 2-1","1-0",null,null,null,null,null,null,null,null,null,null,19388,null,17,17,"Chance, Graham","1929-12-25",null,1,null,21,"Division 2","1929-12-25",null,"West Brom","(H)",null,null,"W 2-1","Lansdale","Hill","Pipe","Martin","Gomm","Graham","Chance","Bryant","Forsyth","Phillips","Poxton",null,null,null,null,null,null,null,null,null,null,null,null,1,null,{"$f":"CN25&\" \"&CO25","v":"F Martin"},null,{"$f":"BU25+BY25+CG25","v":30},"-","-",{"$f":"BX25+CB25","v":1},{"$f":"BR90","v":25},"-","-",{"$f":"BU90","v":1},{"$f":"BZ90","v":5},"-","-",{"$f":"CC90","v":0},null,null,{"$f":"IF(BU25=CF25,IF(BY25=CL25,\"OK\",\"Error\"),\"Error\")","v":"OK"},25,null,null,null,null,null,5,90,"F","Martin",19,25,null,"Martin","F","Horton","J",null,null,null,null,null,null,null,null,null,null,null,null,null,null,null,null,null,null,null,null,null,null,null,null,null,null,null,null,null,null,null,null,null,null,null,null,null,null,null,null,"West Brom (H) W 2-1",17,17]
[2,null,22,"Division 2","1929-12-26",null,"17th v 12th","West Brom","(A)",null,null,"L 1-6","0-3",null,null,null,null,null,null,null,null,null,null,24032,null,17,20,"Forsyth","1929-12-26",null,2,null,22,"Division 2","1929-12-26",null,"West Brom","(A)",null,null,"L 1-6","Lansdale","Hill","Moran","Martin","Gomm","Graham","Chance","Bryant","Forsyth","Phillips","Poxton",null,null,null,null,null,null,null,null,null,null,null,null,2,null,"J Moran",null,2,"-","-",0,2,"-","-",0,0,"-","-",0,null,null,"OK",2,null,null,null,null,null,0,91,"J","Moran",20,26,null,"Moran","J","Jones","V",null,null,null,null,null,null,null,null,null,null,null,null,null,null,null,null,null,null,null,null,null,null,null,null,null,null,null,null,null,null,null,null,null,null,null,null,null,null,null,null,"West Brom (A) L 1-6",17,20]
[1,null,23,"Division 2","1929-12-28",null,"20th v 1st","Blackpool","(H)",null,null,"W 3-1","2-0",null,null,null,null,null,null,null,null,null,null,21745,null,19,18,"Corkindale (2 (1 pen)), Cock","1929-12-28",null,1,null,23,"Division 2","1929-12-28",null,"Blackpool","(H)",null,null,"W 3-1","Lansdale","Hill","Tyler","Martin","Gomm","Graham","Corkindale","Readman","Cock","Phillips","Poxton",null,null,null,null,null,null,null,null,null,null,null,null,1,null,"J Munro",null,5,"-","-",2,5,"-","-",2,0,"-","-",0,null,null,"OK",5,null,null,null,null,null,0,92,"J","Munro",21,27,null,"Munro","J","Landells","J",null,null,null,null,null,null,null,null,null,null,null,null,null,null,null,null,null,null,null,null,null,null,null,null,null,null,null,null,null,null,null,null,null,null,null,null,null,null,null,null,"Blackpool (H) W 3-1",19,18]
[2,null,24,"Division 2","1930-01-04",null,"18th v 7th","Bury","(A)",null,null,"L 1-5","1-2",null,null,null,null,null,null,null,null,null,null,12000,null,19,19,"Phillips","1930-01-04",null,2,null,24,"Division 2","1930-01-04",null,"Bury","(A)",null,null,"L 1-5","Lansdale","Hill","Tyler","Martin","Graham","Forsyth","Corkindale","Readman","Cock","Phillips","Poxton",null,null,null,null,null,null,null,null,null,null,null,null,2,null,"J Page",null,1,"-","-",0,1,"-","-",0,0,"-","-",0,null,null,"OK",1,null,null,null,null,null,0,93,"J","Page",22,28,null,"Page","J","Lansdale","J",null,null,null,null,null,null,null,null,null,null,null,null,null,null,null,null,null,null,null,null,null,null,null,null,null,null,null,null,null,null,null,null,null,null,null,null,null,null,null,null,"Bury (A) L 1-5",19,19]
[1,null,25,"FA Cup 3","1930-01-11",null,"- -","Corinthians","(A)#",null,null,"D 2-2","1-0",null,null,null,null,null,null,null,null,null,null,45000,null,"-","-","Forsyth, Phillips","1930-01-11",null,1,null,25,"FA Cup 3","1930-01-11",null,"Corinthians","(A)",null,null,"D 2-2","Lansdale","Tyler","Pipe","Martin","Gomm","Graham","Corkindale","Phillips","Cock","Forsyth","Poxton",null,null,null,null,null,null,null,null,null,null,null,null,1,null,"W Phillips",null,15,"-","-",6,14,"-","-",5,1,"-","-",1,null,null,"OK",14,null,null,null,null,null,1,94,"W","Phillips",23,29,null,"Phillips","W","Martin","F",null,null,null,null,null,null,null,null,null,null,null,null,null,null,null,null,null,null,null,null,null,null,null,null,null,null,null,null,null,null,null,null,null,null,null,null,null,null,null,null,"Chelsea (H) D 0-0",20,19]
[2,null,26,"FA Cup 3R","1930-01-15",null,"- -","Corinthians","(H)",null,null,"D 1-1 ǂ","0-1",null,null,null,null,null,null,null,null,null,null,32500,null,"-","-","Poxton",{"$f":"E33","v":"1930-01-25"},null,2,null,26,"FA Cup 3R","1930-01-15",null,"Corinthians","(H)",null,null,"D 1-1 ","Lansdale","Sweetman","Pipe","Martin","Gomm","Graham","Corkindale","Landells","Cock","Forsyth","Poxton",null,null,null,null,null,null,null,null,null,null,null,null,2,null,"J Pipe",null,38,"-","-",0,33,"-","-",0,5,"-","-",0,null,null,"OK",33,null,null,null,null,null,5,95,"J","Pipe",24,30,null,"Pipe","J","Moran","J",null,null,null,null,null,null,null,null,null,null,null,null,null,null,null,null,null,null,null,null,null,null,null,null,null,null,null,null,null,null,null,null,null,null,null,null,null,null,null,null,"Oldham (H) W 2-1",22,20]
[1,null,27,"Division 2","1930-01-18",null,"19th v 3rd","Chelsea","(H)",null,null,"D 0-0","0-0",null,null,null,null,null,null,null,null,null,null,31355,null,20,19,null,{"$f":"E31","v":"1930-01-18"},null,1,null,27,"Division 2","1930-01-18",null,"Chelsea","(H)",null,null,"D 0-0","Lansdale","Tyler","Pipe","Martin","Gomm","Graham","Corkindale","Bryant","Cock","Forsyth","Poxton",null,null,null,null,null,null,null,null,null,null,null,null,1,null,"J Poxton",null,26,"-","-",4,24,"-","-",3,2,"-","-",1,null,null,"OK",24,null,null,null,null,null,2,96,"J","Poxton",25,31,null,"Poxton","J","Munro","J",null,null,null,null,null,null,null,null,null,null,null,null,null,null,null,null,null,null,null,null,null,null,null,null,null,null,null,null,null,null,null,null,null,null,null,null,null,null,null,null,"Nottm Forest (A) D 1-1",23,19]
[2,null,28,"FA Cup 3 2R","1930-01-20",null,"- -","Corinthians","(N)¥",null,null,"W 5-1","1-1",null,null,null,null,null,null,null,null,null,null,58775,null,"-","-","Forsyth, Corkindale (2), Cock (2)",{"$f":"E35","v":"1930-02-05"},null,2,null,28,"FA Cup 3 2R","1930-01-20",null,"Corinthians","(N)",null,null,"W 5-1","Wilson","Tyler","Pipe","Martin","Gomm","Graham","Corkindale","Wadsworth","Cock","Forsyth","Hawkins",null,null,null,null,null,null,null,null,null,null,null,null,2,null,"J Readman",null,16,"-","-",3,16,"-","-",3,0,"-","-",0,null,null,"OK",16,null,null,null,null,null,0,97,"J","Readman",26,32,null,"Readman","J","Page","J",null,null,null,null,null,null,null,null,null,null,null,null,null,null,null,null,null,null,null,null,null,null,null,null,null,null,null,null,null,null,null,null,null,null,null,null,null,null,null,null,"Charlton (A) D 1-1",24,18]
[1,null,29,"FA Cup 4","1930-01-25",null,"- -","Doncaster Rovers","(H)",null,null,"W 4-0","1-0",null,null,null,null,null,null,null,null,null,null,30440,null,"-","-","Hawkins (2), Corkindale, Wadsworth",null,null,1,null,29,"FA Cup 4","1930-01-25",null,"Doncaster Rovers","(H)",null,null,"W 4-0","Wilson","Tyler","Pipe","Martin","Gomm","Graham","Corkindale","Hawkins","Cock","Forsyth","Wadsworth",null,null,null,null,null,null,null,null,null,null,null,null,1,null,"R Rounsfull",null,2,"-","-",1,2,"-","-",1,0,"-","-",0,null,null,"OK",2,null,null,null,null,null,0,98,"R","Rounsfull",27,33,null,"Rounsfull","R","Phillips","W",null,null,null,null,null,null,null,null,null,null,null,null,null,null,null,null,null,null,null,null,null,null,null,null,null,null,null,null,null,null,null,null,null,null,null,null,null,null,null,null,"Hull (H) D 0-0",25,18]
[2,null,30,"Division 2","1930-02-01",null,"19th v 1st","Oldham","(H)",null,null,"W 2-1","1-0",null,null,null,null,null,null,null,null,null,null,16685,null,22,20,"Cock (2)",{"$f":"E34","v":"1930-02-01"},null,2,null,30,"Division 2","1930-02-01",null,"Oldham","(H)",null,null,"W 2-1","Lansdale","Tyler","Pipe","Martin","Gomm","Graham","Corkindale","Hawkins","Cock","Forsyth","Wadsworth",null,null,null,null,null,null,null,null,null,null,null,null,2,null,{"$f":"CN34&\" \"&CO34","v":"S Smith"},null,{"$f":"BU34+BY34+CG34","v":1},"-","-",{"$f":"BX34+CB34","v":0},{"$f":"BR99","v":1},"-","-",{"$f":"BU99","v":0},{"$f":"BZ99","v":0},"-","-",{"$f":"CC99","v":0},null,null,{"$f":"IF(BU34=CF34,IF(BY34=CL34,\"OK\",\"Error\"),\"Error\")","v":"OK"},1,null,null,null,null,null,0,99,"S","Smith",28,34,null,"Smith","S","Pipe","J",null,null,null,null,null,null,null,null,null,null,null,null,null,null,null,null,null,null,null,null,null,null,null,null,null,null,null,null,null,null,null,null,null,null,null,null,null,null,null,null,"Stoke (A) L 0-1",25,19]
[1,null,31,"Division 2","1930-02-05",null,"20th v 13th","Nottm Forest","(A)",null,null,"D 1-1","0-1",null,null,null,null,null,null,null,null,null,null,8000,null,23,19,"Forsyth",{"$f":"E35","v":"1930-02-05"},null,1,null,31,"Division 2","1930-02-05",null,"Nottm Forest","(A)",null,null,"D 1-1","Lansdale","Tyler","Pipe","Martin","Gomm","Graham","Corkindale","Hawkins","Cock","Forsyth","Wadsworth",null,null,null,null,null,null,null,null,null,null,null,null,1,null,"S Sweetman",null,21,"-","-",0,20,"-","-",0,1,"-","-",0,null,null,"OK",20,null,null,null,null,null,1,100,"S","Sweetman",29,35,null,"Sweetman","S","Poxton","J",null,null,null,null,null,null,null,null,null,null,null,null,null,null,null,null,null,null,null,null,null,null,null,null,null,null,null,null,null,null,null,null,null,null,null,null,null,null,null,null,"Southampton (A) D 0-0",26,17]
[2,null,32,"Division 2","1930-02-08",null,"19th v 9th","Charlton","(A)",null,null,"D 1-1","0-1",null,null,null,null,null,null,null,null,null,null,35000,null,24,18,"Hawkins",{"$f":"E36","v":"1930-02-08"},null,2,null,32,"Division 2","1930-02-08",null,"Charlton","(A)",null,null,"D 1-1","Lansdale","Tyler","Pipe","Martin","Gomm","Graham","Corkindale","Hawkins","Cock","Forsyth","Wadsworth",null,null,null,null,null,null,null,null,null,null,null,null,2,null,"S Tyler",null,23,"-","-",0,19,"-","-",0,4,"-","-",0,null,null,"OK",19,null,null,null,null,null,4,101,"S","Tyler",30,36,null,"Tyler","S","Readman","J",null,null,null,null,null,null,null,null,null,null,null,null,null,null,null,null,null,null,null,null,null,null,null,null,null,null,null,null,null,null,null,null,null,null,null,null,null,null,null,null,"Wolves (H) W 4-0",28,15]
[1,null,33,"FA Cup 5","1930-02-15",null,"- -","West Ham Utd","(A)",null,null,"L 1-4","0-4",null,null,null,null,null,null,null,null,null,null,24000,null,"-","-","Wadsworth",null,null,1,null,33,"FA Cup 5","1930-02-15",null,"West Ham Utd","(A)",null,null,"L 1-4","Lansdale","Tyler","Pipe","Martin","Gomm","Graham","Corkindale","Hawkins","Cock","Forsyth","Wadsworth",null,null,null,null,null,null,null,null,null,null,null,null,1,null,"H Wadsworth",null,11,"-","-",2,{"$f":"BR102","v":8},"-","-",{"$f":"BU102","v":0},{"$f":"BZ102","v":3},"-","-",{"$f":"CC102","v":2},null,null,"OK",8,null,null,null,null,null,3,102,"H","Wadsworth",31,37,null,"Wadsworth","H","Rounsfull","R",null,null,null,null,null,null,null,null,null,null,null,null,null,null,null,null,null,null,null,null,null,null,null,null,null,null,null,null,null,null,null,null,null,null,null,null,null,null,null,null,"Bradford City (A) D 1-1",29,15]
[2,null,34,"Division 2","1930-02-22",null,"18th v 13th","Hull","(H)",null,null,"D 0-0","0-0",null,null,null,null,null,null,null,null,null,null,17544,null,25,18,null,{"$f":"E38","v":"1930-02-22"},null,2,null,34,"Division 2","1930-02-22",null,"Hull","(H)",null,null,"D 0-0","Wilson","Tyler","Pipe","Martin","Gomm","Graham","Corkindale","Hawkins","Cock","Forsyth","Wadsworth",null,null,null,null,null,null,null,null,null,null,null,null,2,null,"E Watkins",null,6,"-","-",1,6,"-","-",1,0,"-","-",0,null,null,"OK",6,null,null,null,null,null,0,103,"E","Watkins",32,38,null,"Watkins","E","Smith","S",null,null,null,null,null,null,null,null,null,null,null,null,null,null,null,null,null,null,null,null,null,null,null,null,null,null,null,null,null,null,null,null,null,null,null,null,null,null,null,null,"Swansea (H) L 0-2",29,15]
[1,null,35,"Division 2","1930-03-01",null,"18th v 13th","Stoke","(A)",null,null,"L 0-1","0-0",null,null,null,null,null,null,null,null,null,null,8000,null,25,19,null,"1930-03-01",null,1,null,35,"Division 2","1930-03-01",null,"Stoke","(A)",null,null,"L 0-1","Wilson","Sweetman","Pipe","Martin","Gomm","Graham","Corkindale","Watkins","Cock","Forsyth","Poxton",null,null,null,null,null,null,null,null,null,null,null,null,1,null,"W Wilson",null,19,"-","-",0,17,"-","-",0,2,"-","-",0,null,null,"OK",17,null,null,null,null,null,2,104,"W","Wilson",33,39,null,"Wilson","W","Sweetman","S",null,null,null,null,null,null,null,null,null,null,null,null,null,null,null,null,null,null,null,null,null,null,null,null,null,null,null,null,null,null,null,null,null,null,null,null,null,null,null,null,"Cardiff (A) L 1-3",29,19]
[2,null,36,"Division 2","1930-03-03",null,"19th v 8th","Southampton","(A)",null,null,"D 0-0","0-0",null,null,null,null,null,null,null,null,null,null,3000,null,26,17,"","1930-03-03",null,2,null,36,"Division 2","1930-03-03",null,"Southampton","(A)",null,null,"D 0-0","Wilson","Sweetman","Pipe","Jones","Gomm","Forsyth","Corkindale","Watkins","Cock","Readman","Poxton",null,null,null,null,null,null,null,null,null,null,null,null,2,null,"C Woodards",null,5,"-","-",3,5,"-","-",3,0,"-","-",0,null,null,"OK",5,null,null,null,null,null,0,105,"C","Woodards",34,40,null,"Woodards","C","Tyler","S",null,null,null,null,null,null,null,null,null,null,null,null,null,null,null,null,null,null,null,null,null,null,null,null,null,null,null,null,null,null,null,null,null,null,null,null,null,null,null,null,"Preston (H) W 2-0",31,15]
[1,null,37,"Division 2","1930-03-08",null,"17th v 6th","Wolves","(H)",null,null,"W 4-0","2-0",null,null,null,null,null,null,null,null,null,null,20084,null,28,15,"Munro, Corkindale (pen), Readman, Watkins","1930-03-08",null,1,null,37,"Division 2","1930-03-08",null,"Wolves","(H)",null,null,"W 4-0","Wilson","Sweetman","Pipe","Jones","Gomm","Forsyth","Corkindale","Watkins","Munro","Readman","Poxton",null,null,null,null,null,null,null,null,null,null,null,null,1,null," ",null,null,null,null,null,null,null,null,null,null,null,null,null,null,null,null,null,null,null,null,null,null,null,null,null,null,null,null,null,null,null,"Wadsworth","H",null,null,null,null,null,null,null,null,null,null,null,null,null,null,null,null,null,null,null,null,null,null,null,null,null,null,null,null,null,null,null,null,null,null,null,null,null,null,null,null,"Bristol C (A) L 0-1",31,18]
[2,null,38,"Division 2","1930-03-15",null,"15th v 19th","Bradford City","(A)",null,null,"D 1-1","0-0",null,null,null,null,null,null,null,null,null,null,7000,null,29,15,"Readman","1930-03-15",null,2,null,38,"Division 2","1930-03-15",null,"Bradford City","(A)",null,null,"D 1-1","Wilson","Sweetman","Pipe","Jones","Gomm","Forsyth","Corkindale","Watkins","Munro","Readman","Poxton",null,null,null,null,null,null,null,null,null,null,null,null,2,null,null,null,null,null,null,null,null,null,null,null,null,null,null,null,null,null,null,null,null,null,null,null,null,null,null,null,null,null,null,null,null,null,"Watkins","E",null,null,null,null,null,null,null,null,null,null,null,null,null,null,null,null,null,null,null,null,null,null,null,null,null,null,null,null,null,null,null,null,null,null,null,null,null,null,null,null,"Barnsley (H) W 2-1",33,16]
[1,null,39,"Division 2","1930-03-22",null,"15th v 21st","Swansea","(H)",null,null,"L 0-2","0-0",null,null,null,null,null,null,null,null,null,null,19937,null,29,15,"","1930-03-22",null,1,null,39,"Division 2","1930-03-22",null,"Swansea","(H)",null,null,"L 0-2","Wilson","Sweetman","Pipe","Jones","Gomm","Graham","Wadsworth","Watkins","Munro","Readman","Poxton",null,null,null,null,null,null,null,null,null,null,null,null,1,null,"Own Goals",null,null,null,null,{"$f":"BX43+CB43","v":0},null,null,null,{"$f":"BU111","v":0},null,null,null,{"$f":"CC111","v":0},null,null,null,null,null,null,null,null,null,null,null,null,null,null,null,null,null,null,"Wilson","W",null,null,null,null,null,null,null,null,null,null,null,null,null,null,null,null,null,null,null,null,null,null,null,null,null,null,null,null,null,null,null,null,null,null,null,null,null,null,null,null,"Notts Co (H) W 2-0",35,14]
[2,null,40,"Division 2","1930-03-29",null,"15th v 6th","Cardiff","(A)",null,null,"L 1-3","0-3",null,null,null,null,null,null,null,null,null,null,12000,null,29,19,"Cock","1930-03-29",null,2,null,40,"Division 2","1930-03-29",null,"Cardiff","(A)",null,null,"L 1-3","Wilson","Sweetman","Pipe","Martin","Gomm","Forsyth","Wadsworth","Watkins","Cock","Readman","Poxton",null,null,null,null,null,null,null,null,null,null,null,null,{"$f":"IF(BM43=0,1,IF(BM43=2,1,2))","v":2},null,null,null,null,null,null,null,null,null,null,null,null,null,null,null,null,null,null,null,null,null,null,null,null,null,null,null,null,null,null,null,null,null,"Woodards","C",null,null,null,null,null,null,null,null,null,null,null,null,null,null,null,null,null,null,null,null,null,null,null,null,null,null,null,null,null,null,null,null,null,null,null,null,null,null,null,null,"Barnsley (A) W 2-1",37,14]
[1,null,41,"Division 2","1930-04-05",null,"19th v 16th","Preston","(H)",null,null,"W 2-0","2-0",null,null,null,null,null,null,null,null,null,null,14746,null,31,15,"Cock, Horton","1930-04-05",null,1,null,41,"Division 2","1930-04-05",null,"Preston","(H)",null,null,"W 2-0","Wilson","Sweetman","Pipe","Martin","Gomm","Graham","Corkindale","Horton","Cock","Forsyth","Poxton",null,null,null,null,null,null,null,null,null,null,null,null,{"$f":"IF(BM44=0,1,IF(BM44=2,1,2))","v":1},null,{"$f":"CN42&\" \"&CO42","v":" "},null,null,null,null,null,null,null,null,null,null,null,null,null,null,null,null,null,null,null,null,null,null,null,null,null,null,null,null,null,null,null,null,null,null,null,null,null,null,null,null,null,null,null,null,null,null,null,null,null,null,null,null,null,null,null,null,null,null,null,null,null,null,null,null,null,null,null,null,null,null,null,null,null,"Reading (A) W 1-0",39,13]
[2,null,42,"Division 2","1930-04-12",null,"15th v 22nd","Bristol C","(A)",null,null,"L 0-1","0-0",null,null,null,null,null,null,null,null,null,null,8000,null,31,18,"","1930-04-12",null,2,null,42,"Division 2","1930-04-12",null,"Bristol C","(A)",null,null,"L 0-1","Wilson","Sweetman","Pipe","Martin","Readman","Graham","Corkindale","Horton","Cock","Forsyth","Poxton",null,null,null,null,null,null,null,null,null,null,null,null,null,null,null,null,null,null,null,null,null,null,null,null,null,null,null,null,null,null,null,null,null,null,null,null,null,null,null,null,null,null,null,null,null,null,null,null,null,null,null,null,null,null,null,null,null,null,null,null,null,null,null,null,null,null,null,null,null,null,null,null,null,null,null,null,null,null,null,null,null,null,null,null,null,null,null,null,"Bradford PA (A) L 0-6",39,14]
[1,null,43,"Division 2","1930-04-18",null,"18th v 19th","Barnsley","(H)",null,null,"W 2-1","2-0",null,null,null,null,null,null,null,null,null,null,18913,null,33,16,"Forsyth, Poxton","1930-04-18",null,1,null,43,"Division 2","1930-04-18",null,"Barnsley","(H)",null,null,"W 2-1","Wilson","Sweetman","Pipe","Jones","Bryant","Graham","Corkindale","Horton","Cock","Forsyth","Poxton",null,null,null,null,null,null,null,null,null,null,null,null,null,null,null,null,null,null,null,null,null,null,null,null,null,null,null,null,null,null,null,{"$f":"42*11","v":462},null,null,null,null,null,{"$f":"11*5","v":55}]
[2,null,44,"Division 2","1930-04-19",null,"16th v 17th","Notts Co","(H)",null,null,"W 2-0","1-0",null,null,null,null,null,null,null,null,null,null,10029,null,35,14,"Horton, Cock","1930-04-19",null,2,null,44,"Division 2","1930-04-19",null,"Notts Co","(H)",null,null,"W 2-0","Wilson","Sweetman","Pipe","Jones","Bryant","Graham","Corkindale","Horton","Cock","Forsyth","Poxton",null,null,null,null,null,null,null,null,null,null,null,null,null,null,null,null,null,null,null,null,null,null,null,null,null,null,null,null,null,null,null,{"$f":"SUM(CF7:CF40)","v":462},null,null,null,null,null,{"$f":"SUM(CL7:CL40)","v":55}]
[1,null,45,"Division 2","1930-04-21",null,"14th v 19th","Barnsley","(A)",null,null,"W 2-1","0-1",null,null,null,null,null,null,null,null,null,null,8000,null,37,14,"Munro, Readman","1930-04-21",null,1,null,45,"Division 2","1930-04-21",null,"Barnsley","(A)",null,null,"W 2-1","Wilson","Sweetman","Pipe","Jones","Gomm","Forsyth","Corkindale","Harris","Munro","Readman","Poxton",null,null,null,null,null,null,null,null,null,null,null,null,null,null,null,null,{"$f":"SUM(BQ7:BQ45)/11","v":47},null,null,null,{"$f":"SUM(BU7:BU45)/11","v":42},null,null,null,{"$f":"SUM(BY7:BY45)/11","v":5}]
[2,null,46,"Division 2","1930-04-26",null,"14th v 17th","Reading","(A)",null,null,"W 1-0","1-0",null,null,null,null,null,null,null,null,null,null,8000,null,39,13,"Cock","1930-04-26",null,2,null,46,"Division 2","1930-04-26",null,"Reading","(A)",null,null,"W 1-0","Wilson","Sweetman","Tyler","Jones","Gomm","Graham","Corkindale","Readman","Cock","Munro","Poxton",null,null,null,null,null,null,null,null,null,null,null,null,null,null,{"$f":"CN46&\" \"&CO46","v":" "}]
[1,null,47,"Division 2","1930-05-03",null,"13th v 4th","Bradford PA","(A)",null,null,"L 0-6","0-2",null,null,null,null,null,null,null,null,null,null,20000,null,39,14,null,"1930-05-03",null,1,null,47,"Division 2","1930-05-03",null,"Bradford PA","(A)",null,null,"L 0-6","Wilson","Sweetman","Tyler","Jones","Gomm","Barrett","Corkindale","Landells","Readman","Forsyth","Poxton",null,null,null,null,null,null,null,null,null,null,null,null,null,null," ",null,null,null,null,null,null,null,null,null,null,null,null,null,null,null,null,null,null,null,null,null,null,null,null,null,null,null,null,null,null,null,null,null,null,null,null,null,null,null,null,null,null,null,null,null,null,null,null,null,null,null,null,null,null,null,null,null,null,null,null,null,null,null,null,null,null,null,null,null,null,null,null,null,"End of Season"]
[2,null,null,null,null,null,null,null,null,null,null,null,null,null,null,null,null,null,null,null,null,null,null,null,null,null,null,null,null,null,{"$f":"IF(AE51=0,1,IF(AE51=2,1,2))","v":2},null,null,null,null,null,null,null,null,null,null,null,null,null,null,null,null,null,null,null,null,null,null,null,null,null,null,null,null,null,null,null,null,null,null,null," "]
[{"$f":"IF(A52=0,1,IF(A52=2,1,2))","v":1},null,null,null,"# Played at the Crystal Palace, ¥ Played at Stamford Bridge, ǂ after Extra Time score at 90 mins 1-1",null,null,null,null,null,null,null,null,null,null,null,null,null,null,null,null,null,null,null,null,null,null,null,null,null,1,null,null,null,null,null,null,null,null,null,null,null,null,null,null,null,null,null,null,null,null,null,null,null,null,null,null,null,null,null,null,null,null,null,null,null," "]
[null,null,null,null,null,null,null,null,null,null,null,null,null,null,null,null,null,null,null,null,null,null,null,null,null,null,null,null,null,null,null,null,null,null,null,null,null,null,null,null,null,null,null,null,null,null,null,null,null,null,null,null,null,null,null,null,null,null,null,null,null,null,null,null,null,null," "]
[null,null,null,null,null,null,null,null,null,null,null,null,null,null,null,null,null,null,null,null,null,null,null,null,null,null,null,null,null,null,null,null,null,null,null,null,null,null,null,null,null,null,null,null,null,null,null,null,null,null,null,null,null,null,null,null,null,null,null,null,null,null,null,null,null,null," ",null,{"$f":"\"Max (\"&BO63&\")\"","v":"Max (47)"},null,null,null,{"$f":"\"Max (\"&BO59&\")\"","v":"Max (42)"},null,null,null,{"$f":"\"Max (\"&BO60&\")\"","v":"Max (5)"},null,null,null,{"$f":"\"Max (\"&BO61&\")\"","v":"Max (0)"},null,null,null,null,{"$f":"\"Max (\"&BO133&\")\"","v":"Max ()"}]
[]
[]
[null,null,null,null,null,null,null,null,null,null,null,null,null,null,null,null,null,null,null,null,null,null,null,null,null,null,null,null,null,null,null,null,null,null,null,null,null,null,null,null,null,null,null,null,null,null,null,null,null,null,null,null,null,null,null,null,null,null,null,null,null,null,null,null,null,null,null,null,null,null,null,null,null,null,null,null,null,null,null,null,null,null,null,null,null,null,null,null,null,null,null,null,null,null,null,null,null,null,null,null,null,null,null,null,null,null,null,null,null,null,null,null,null,null,null,null,null,null,{"$f":"4/18","v":0.22222222222222221}]
[null,null,null,null,null,null,null,null,null,null,null,null,null,null,null,null,null,null,null,null,null,null,null,null,null,null,null,null,null,null,null,null,null,null,null,null,null,null,null,null,null,null,null,null,null,null,null,null,null,null,null,null,null,null,null,null,null,null,null,null,null,null,null,null,null,null,{"$f":"SUMIF(AH78:AH149,BQ59,BE78:BE149)","v":42},null,"Division 2*"]
[null,null,null,null,null,null,null,null,null,null,null,null,null,null,null,null,null,null,null,null,null,null,null,null,null,null,null,null,null,null,{"$f":"IF(#REF!=0,1,IF(#REF!=2,1,2))","v":{"$error":"#REF!"}},null,null,null,null,null,null,null,null,null,null,null,null,null,null,null,null,null,null,null,null,null,null,null,null,null,null,null,null,null,null,null,null,null,null,null,5,null,"FA Cup*"]
[{"$f":"IF(A60=0,1,IF(A60=2,1,2))","v":1},null,null,null,null,null,null,null,null,null,null,null,null,null,null,null,null,null,null,null,null,null,null,null,null,null,null,null,{"$f":"IF(AC60=0,1,IF(AC60=2,1,2))","v":1},null,null,null,null,null,null,null,null,null,null,null,null,null,null,null,null,null,null,null,null,null,null,null,null,null,null,null,null,null,null,null,null,null,null,null,null,null,{"$f":"SUMIF(AH78:AH150,BQ61,BE78:BE150)","v":0},null,"League Cup*",null,null,null,null,null,null,{"$f":"42*11","v":462}]
[{"$f":"IF(#REF!=0,1,IF(#REF!=2,1,2))","v":{"$error":"#REF!"}}]
[{"$error":"#REF!"},null,null,null,null,null,null,null,null,null,null,null,null,null,null,null,null,null,null,null,null,null,null,null,null,null,null,null,null,null,null,null,null,null,null,null,null,null,null,null,null,null,null,null,null,null,null,null,null,null,null,null,null,null,null,null,null,null,null,null,null,null,null,null,null,null,{"$f":"SUM(BO59:BO62)","v":47}]
[{"$error":"#REF!"},null,null,null,null,null,null,null,null,null,null,null,null,null,null,null,null,null,null,null,null,null,null,null,null,null,null,null,null,null,null,null,null,null,null,null,null,null,null,null,null,null,null,null,null,null,null,null,null,null,null,null,null,null,null,null,null,null,null,null,null,null,null,null,null,null,null,null,null,null,null,null,null,null,null,{"$f":"SUM(BX7:BX43)","v":57},null,null,null,{"$f":"SUM(CB7:CB26)","v":9},null,null,null,{"$f":"SUM(CF7:CF48)","v":1386},null,null,null,{"$f":"SUM(CJ7:CJ48)","v":0}]
[]
[null,null,null,null,null,null,null,null,null,null,null,null,null,null,null,null,null,null,null,null,null,null,null,null,null,null,null,"Av Attendance League Games Only"]
[null,null,null,null,null,null,null,null,null,null,null,null,null,null,null,null,null,null,null,null,null,null,null,null,null,null,null,{"$f":"COUNTIFS($I$5:$I$55,AC67,$D$5:$D$55,$D$5,$X$5:$X$55,\">0\")","v":21},"(H)"]
[null,null,null,null,null,null,null,null,null,null,null,null,null,null,null,null,null,null,null,null,null,null,null,null,null,null,null,{"$f":"SUMIFS($X$5:$X$55,$I$5:$I$55,AC68,$D$5:$D$55,$D$5)","v":392385},"(H)"]
[null,null,null,null,null,null,null,null,null,null,null,null,null,null,null,null,null,null,null,null,null,null,null,null,null,null,null,{"$f":"AB68/AB67","v":18685}]
[null,null,null,null,null,null,null,null,null,null,null,null,null,null,null,null,null,null,null,null,null,null,null,null,null,null,null,null,null,null,null,null,null,null,null,null,null,null,null,null,null,null,null,null,null,null,null,null,null,null,null,null,null,null,null,null,null,null,null,null,null,null,null,null,null,null,null,null,null,"League",null,null,null,"League Cup",null,null,null,"FA Cup"]
[null,null,null,null,null,null,null,null,null,null,null,null,null,null,null,null,null,null,null,null,null,null,null,null,null,null,null,null,null,null,null,null,null,null,null,null,null,null,null,null,null,null,null,null,null,null,null,null,null,null,null,null,null,null,null,null,null,null,null,null,null,null,null,null,null,null,null,null,null,"P","Sub","NPS","Gls","P","Sub","NPS","Gls","P","Sub","NPS","Gls"]
[null,null,null,null,null,null,null,null,null,null,null,null,null,null,null,null,null,null,null,null,null,null,null,null,null,null,null,"Av Attendance All Home Games",null,null,null,null,null,null,null,null,null,null,null,null,null,null,null,null,null,null,null,null,null,null,null,null,null,null,null,null,null,null,null,null,null,null,1,1,{"$f":"BP72&\" (**\"","v":"Amos (**"},null,{"$f":"BP72&\"**\"","v":"Amos**"},{"$f":"CS7","v":"Amos"},null,{"$f":"COUNTIF(LeagueStarts,$BP72)","v":2},{"$f":"COUNTIF(LeagueSubs,$BM72)","v":0},{"$f":"COUNTIF(LeagueSubs,$BP72)","v":0},{"$f":"COUNTIF($CZ$76:$DI$125,BO72)","v":0},{"$f":"COUNTIF($AP$126:$AZ$134,$BP72)","v":0},{"$f":"COUNTIF($BC$126:$BC$134,$BM72)","v":0},{"$f":"COUNTIF($BC$128:$BI$131,$BP72)","v":0},{"$f":"COUNTIF($CZ$149:$DI$159,BO72)","v":0},{"$f":"COUNTIF($AP$136:$AZ$142,$BP72)","v":0},{"$f":"COUNTIF($BC$136:$BC$142,$BM72)","v":0},{"$f":"COUNTIF($BC$133:$BI$137,$BP72)","v":0},{"$f":"COUNTIF($CZ$134:$DI$144,BO72)","v":0},null,null,null,null,null,null,null,null,null,{"$f":"ROW(CL72)","v":72},null,{"$f":"CN7","v":"A"},"Amos",null,{"$f":"CO72&\" \"&CP72","v":"A Amos"}]
[null,null,null,null,null,null,null,null,null,null,null,null,null,null,null,null,null,null,null,null,null,null,null,null,null,null,null,{"$f":"COUNTIF(I5:I53,AC73)","v":23},"(H)",null,null,null,null,null,null,null,null,null,null,null,null,null,null,null,null,null,null,null,null,null,null,null,null,null,null,null,null,null,null,null,null,null,1,2,"Barrett (**",null,"Barrett**",{"$f":"CS8","v":"Barrett"},null,1,0,{"$f":"COUNTIF(LeagueSubs,$BP73)","v":0},0,0,0,0,{"$f":"COUNTIF($CZ$149:$DI$159,BO73)","v":0},0,0,0,0,null,null,null,null,null,null,null,null,null,73,null,"A","Barrett",null,{"$f":"CO73&\" \"&CP73","v":"A Barrett"}]
[null,null,null,null,null,null,null,null,null,null,null,null,null,null,null,null,null,null,null,null,null,null,null,null,null,null,null,{"$f":"SUMIF(I5:I53,AC74,X5:X53)","v":455325},"(H)",null,null,null,null,null,null,null,null,null,null,null,null,null,null,null,null,null,null,null,null,null,null,null,null,null,null,null,null,null,null,null,null,null,1,3,"Black (**",null,"Black**","Black",null,2,0,0,0,0,0,0,{"$f":"COUNTIF($CZ$149:$DI$159,BO74)","v":0},0,0,0,0,null,null,null,null,null,null,null,null,null,74,null,"A","Black",null,{"$f":"CO74&\" \"&CP74","v":"A Black"},null,null,null,null,null,null,null,"Goals League"]
[null,null,null,null,null,null,null,null,null,null,null,null,null,null,null,null,null,null,null,null,null,null,null,null,null,null,null,{"$f":"AB74/AB73","v":19796.739130434784},null,null,null,null,null,null,null,null,null,null,null,null,null,null,null,null,null,null,null,null,null,null,null,null,null,null,null,null,null,null,null,null,null,null,1,4,"Bryant (**",null,"Bryant**","Bryant",null,10,0,0,1,0,0,0,0,0,0,0,0,null,null,null,null,null,null,null,null,null,75,null,{"$f":"CN10","v":"W"},{"$f":"CO10","v":"Bryant"},null,"W Bryant",null,null,null,null,null,null,null,1,2,3,4,5,6,7,8,7,8,9]
[null,null,null,null,null,null,null,null,null,null,null,null,null,null,null,null,null,null,null,null,null,null,null,null,null,null,null,null,null,null,null,null,null,null,null,null,null,null,null,null,null,"x",null,null,null,null,null,null,null,null,null,null,null,null,null,null,null,null,null,null,null,null,1,5,"Chance (**",null,"Chance**","Chance",null,19,0,0,4,0,0,0,0,0,0,0,0,null,null,null,null,null,null,null,null,null,76,null,"G","Chance",null,"G Chance"]
[null,null,null,null,null,null,null,null,null,null,null,null,null,null,null,null,null,null,null,null,null,null,null,null,null,null,null,null,null,null,null,null,"Game","Competition","Date",null,"Opponents",null,null,null,"Score",1,2,3,4,5,6,7,8,9,10,11,null,null,12,null,null,null,null,null,null,null,1,6,"Cock (**",null,"Cock**","Cock",null,31,0,0,15,0,0,0,0,5,0,0,2,null,null,null,null,null,null,null,null,null,77,null,"J","Cock",null,"J Cock",null,null,null,1,{"$f":"AK78","v":"Blackpool"},{"$f":"AL78","v":"(A)"},{"$f":"AO78","v":"L 3-4"},"Cock","Phillips","Landells",null,null,null,null,null,null,null,null,"Cock, Phillips, Landells",null,null,null,null,{"$f":"IF(CZ77=\"\",\"\",CZ77)","v":"Cock"},{"$f":"IF(DA77=\"\",\"\",DA77)","v":"Phillips"},{"$f":"IF(DB77=\"\",\"\",DB77)","v":"Landells"},{"$f":"IF(DC77=\"\",\"\",DC77)","v":""},{"$f":"IF(DD77=\"\",\"\",DD77)","v":""},{"$f":"IF(DE77=\"\",\"\",DE77)","v":""},{"$f":"IF(DP77<>\"\",\",\",\"\")","v":","},{"$f":"IF(DQ77<>\"\",\",\",\"\")","v":","},{"$f":"IF(DR77<>\"\",\",\",\"\")","v":","},{"$f":"IF(DS77<>\"\",\",\",\"\")","v":""},{"$f":"IF(DT77<>\"\",\",\",\"\")","v":""},{"$f":"CONCATENATE(DP77,DV77,DQ77,DW77,DR77,DX77,DS77,DY77,DT77,DZ77,DU77)","v":"Cock,Phillips,Landells,"}]
[null,null,null,null,null,null,null,null,null,null,null,null,null,null,null,null,null,null,null,null,null,null,null,null,null,null,null,null,null,null,1,null,1,"Division 2","1929-08-31",null,"Blackpool","(A)",null,null,"L 3-4","Lansdale","Sweetman","Hill","Jones","Gomm","Graham","Chance","Landells","Cock","Phillips","Black",null,null,null,null,1,null,null,null,null,null,1,7,"Corkindale (**",null,"Corkindale**","Corkindale",null,31,0,0,4,0,0,0,0,5,0,0,3,null,null,null,null,null,null,null,null,null,78,null,"W","Corkindale",null,"W Corkindale",null,null,null,{"$f":"IF(CV77=0,1,IF(CV77=2,1,2))","v":2},{"$f":"AK79","v":"Tottenham"},{"$f":"AL79","v":"(H)"},{"$f":"AO79","v":"L 2-5"},"Cock","Cock",null,null,null,null,null,null,null,null,null,"Cock (2)",null,null,null,null,"Cock","Cock","","","","",",",",","","","","Cock,Cock,"]
[null,null,null,null,null,null,null,null,null,null,null,null,null,null,null,null,null,null,null,null,null,null,null,null,null,null,null,null,null,null,{"$f":"IF(AE78=0,1,IF(AE78=2,1,2))","v":2},null,2,"Division 2","1929-09-02",null,"Tottenham","(H)",null,null,"L 2-5","Lansdale","Sweetman","Hill","Jones","Gomm","Graham","Chance","Landells","Cock","Phillips","Black",null,null,null,null,1,null,null,null,null,null,1,8,"Forsyth (**",null,"Forsyth**","Forsyth",null,29,0,0,5,0,0,0,0,5,0,0,2,null,null,null,null,null,null,null,null,null,79,null,"J","Forsyth",null,"J Forsyth",null,null,null,1,"Bury","(H)","L 2-4","Phillips","Cock",null,null,null,null,null,null,null,null,null,"Phillips, Cock",null,null,null,null,"Phillips","Cock","","","","",",",",","","","","Phillips,Cock,"]
[null,null,null,null,null,null,null,null,null,null,null,null,null,null,null,null,null,null,null,null,null,null,null,null,null,null,null,null,null,null,1,null,3,"Division 2","1929-09-07",null,"Bury","(H)",null,null,"L 2-4","Wilson","Sweetman","Hill","Amos","Gomm","Graham","Chance","Landells","Cock","Phillips","Corkindale",null,null,null,null,1,null,null,null,null,null,1,9,"Fort (**",null,"Fort**","Fort",null,1,0,0,0,0,0,0,0,0,0,0,0,null,null,null,null,null,null,null,null,null,80,null,"J","Fort",null,"J Fort",null,null,null,2,"Chelsea","(A)","L 0-3","No Scorer",null,null,null,null,null,null,null,null,null,null,"No Scorer",null,null,null,null,"No Scorer","","","","","",",","","","","","No Scorer,"]
[null,null,null,null,null,null,null,null,null,null,null,null,null,null,null,null,null,null,null,null,null,null,null,null,null,null,null,null,null,null,2,null,4,"Division 2","1929-09-14",null,"Chelsea","(A)",null,null,"L 0-3","Wilson","Hill","Pipe","Jones","Bryant","Graham","Chance","Landells","Cock","Phillips","Corkindale",null,null,null,null,1,null,null,null,null,null,1,10,"Gomm (**",null,"Gomm**","Gomm",null,34,0,{"$f":"COUNTIF(LeagueSubs,$BP81)","v":0},1,0,0,0,0,5,0,0,0,null,null,null,null,null,null,null,null,null,81,null,"A","Gomm",null,"A Gomm",null,null,null,1,"Bradford PA","(H)","L 1-2","Poxton",null,null,null,null,null,null,null,null,null,null,"Poxton",null,null,null,null,"Poxton","","","","","",",","","","","","Poxton,"]
[null,null,null,null,null,null,null,null,null,null,null,null,null,null,null,null,null,null,null,null,null,null,null,null,null,null,null,null,null,null,1,null,5,"Division 2","1929-09-16",null,"Bradford PA","(H)",null,null,"L 1-2","Wilson","Moran","Tyler","Graham","Bryant","Forsyth","Corkindale","Readman","Cock","Smith","Poxton",null,null,null,null,1,null,null,null,null,null,1,11,"Graham (**",null,"Graham**","Graham",null,30,0,0,1,0,0,0,0,5,0,0,0,null,null,null,null,null,null,null,null,null,82,null,"L","Graham",null,"L Graham",null,null,null,2,"Nottm Forest","(H)","D 2-2","Corkindale","Cock",null,null,null,null,null,null,null,null,null,"Corkindale, Cock",null,null,null,null,"Corkindale","Cock","","","","",",",",","","","","Corkindale,Cock,"]
[null,null,null,null,null,null,null,null,null,null,null,null,null,null,null,null,null,null,null,null,null,null,null,null,null,null,null,null,null,null,2,null,6,"Division 2","1929-09-21",null,"Nottm Forest","(H)",null,null,"D 2-2","Lansdale","Tyler","Pipe","Amos","Bryant","Forsyth","Chance","Landells","Cock","Readman","Corkindale",null,null,null,null,1,null,null,null,null,null,1,12,"Harris (**",null,"Harris**","Harris",null,1,0,0,0,0,0,0,0,0,0,0,0,null,null,null,null,null,null,null,null,null,83,null,"W","Harris",null,"W Harris",null,null,null,1,"Tottenham","(A)","D 1-1","Chance",null,null,null,null,null,null,null,null,null,null,"Chance",null,null,null,null,"Chance","","","","","",",","","","","","Chance,"]
[null,null,null,null,null,null,null,null,null,null,null,null,null,null,null,null,null,null,null,null,null,null,null,null,null,null,null,null,null,null,1,null,7,"Division 2","1929-09-23",null,"Tottenham","(A)",null,null,"D 1-1","Lansdale","Tyler","Pipe","Martin","Gomm","Forsyth","Chance","Landells","Cock","Readman","Corkindale",null,null,null,null,1,null,null,null,null,null,1,13,"Hawkins (**",null,"Hawkins**","Hawkins",null,4,0,0,1,0,0,0,0,3,0,0,2,null,null,null,null,null,null,null,null,null,84,null,"J","Hawkins",null,"J Hawkins",null,null,null,2,"Oldham","(A)","D 2-2","Martin","Cock",null,null,null,null,null,null,null,null,null,"Martin, Cock",null,null,null,null,"Martin","Cock","","","","",",",",","","","","Martin,Cock,"]
[null,null,null,null,null,null,null,null,null,null,null,null,null,null,null,null,null,null,null,null,null,null,null,null,null,null,null,null,null,null,2,null,8,"Division 2","1929-09-28",null,"Oldham","(A)",null,null,"D 2-2","Lansdale","Tyler","Pipe","Martin","Gomm","Forsyth","Chance","Landells","Cock","Readman","Corkindale",null,null,null,null,1,null,null,null,null,null,1,14,"Hill (**",null,"Hill**","Hill",null,9,0,0,0,0,0,0,0,0,0,0,0,null,null,null,null,null,null,null,null,null,85,null,"R","Hill",null,"R Hill",null,null,null,1,"Charlton","(H)","D 1-1","Landells",null,null,null,null,null,null,null,null,null,null,"Landells",null,null,null,null,"Landells","","","","","",",","","","","","Landells,"]
[null,null,null,null,{"$f":"E93&\"-\"&G93","v":"0-4"},null,null,null,null,null,null,null,null,null,null,null,null,null,null,null,null,null,null,null,null,null,null,null,null,null,1,null,9,"Division 2","1929-10-05",null,"Charlton","(H)",null,null,"D 1-1","Lansdale","Tyler","Pipe","Martin","Bryant","Forsyth","Chance","Landells","Cock","Phillips","Corkindale",null,null,null,null,1,null,null,null,null,null,1,15,"Horton (**",null,"Horton**","Horton",null,4,0,0,2,0,0,0,0,0,0,0,0,null,null,null,null,null,null,null,null,null,86,null,"J","Horton",null,"J Horton",null,null,null,2,"Southampton","(H)","D 1-1","Cock",null,null,null,null,null,null,null,null,null,null,"Cock",null,null,null,null,"Cock","","","","","",",","","","","","Cock,"]
[null,null,null,null,null,null,null,null,null,null,null,null,null,null,null,null,null,null,null,null,null,null,null,null,null,null,null,null,null,null,2,null,10,"Division 2","1929-10-12",null,"Southampton","(H)",null,null,"D 1-1","Lansdale","Tyler","Pipe","Martin","Gomm","Forsyth","Chance","Landells","Cock","Phillips","Corkindale",null,null,null,null,1,null,null,null,null,null,1,16,"Jones (**",null,"Jones**","Jones",null,12,0,0,0,0,0,0,0,0,0,0,0,null,null,null,null,null,null,null,null,null,87,null,"V","Jones",null,"V Jones",null,null,null,1,"Hull","(A)","L 2-3","Woodards","Phillips",null,null,null,null,null,null,null,null,null,"Woodards, Phillips",null,null,null,null,"Woodards","Phillips","","","","",",",",","","","","Woodards,Phillips,"]
[null,null,null,null,null,null,null,null,null,null,null,null,null,null,null,null,null,null,null,null,null,null,null,null,null,null,null,null,null,null,1,null,11,"Division 2","1929-10-19",null,"Hull","(A)",null,null,"L 2-3","Lansdale","Tyler","Pipe","Graham","Gomm","Forsyth","Chance","Landells","Woodards","Phillips","Corkindale",null,null,null,null,1,null,null,null,null,null,1,17,"Landells (**",null,"Landells**","Landells",null,19,0,0,4,0,0,0,0,1,0,0,0,null,null,null,null,null,null,null,null,null,88,null,"J","Landells",null,"J Landells",null,null,null,2,"Stoke","(H)","W 2-1","Woodards","Landells",null,null,null,null,null,null,null,null,null,"Woodards, Landells",null,null,null,null,"Woodards","Landells","","","","",",",",","","","","Woodards,Landells,"]
[null,null,null,null,null,null,null,null,null,null,null,null,null,null,null,null,null,null,null,null,null,null,null,null,null,null,null,null,null,null,2,null,12,"Division 2","1929-10-26",null,"Stoke","(H)",null,null,"W 2-1","Lansdale","Tyler","Pipe","Graham","Gomm","Forsyth","Chance","Landells","Woodards","Phillips","Corkindale",null,null,null,null,1,null,null,null,null,null,1,18,"Lansdale (**",null,"Lansdale**","Lansdale",null,25,0,0,0,0,0,0,0,3,0,0,0,null,null,null,null,null,null,null,null,null,89,null,{"$f":"CN24","v":"J"},{"$f":"CO24","v":"Lansdale"},null,{"$f":"CO89&\" \"&CP89","v":"J Lansdale"},null,null,null,1,"Wolves","(A)","D 1-1","Woodards",null,null,null,null,null,null,null,null,null,null,"Woodards",null,null,null,null,"Woodards","","","","","",",","","","","","Woodards,"]
[null,null,null,null,null,null,null,null,null,null,null,null,null,null,null,null,null,null,null,null,null,null,null,null,null,null,null,null,null,null,1,null,13,"Division 2","1929-11-02",null,"Wolves","(A)",null,null,"D 1-1","Lansdale","Tyler","Pipe","Martin","Gomm","Graham","Chance","Landells","Woodards","Cock","Corkindale",null,null,null,null,1,null,null,null,null,null,1,19,{"$f":"BP90&\" (**\"","v":"Martin (**"},null,{"$f":"BP90&\"**\"","v":"Martin**"},"Martin",null,25,0,0,{"$f":"COUNTIF($CZ$76:$DI$125,BO90)","v":1},0,0,0,{"$f":"COUNTIF($CZ$149:$DI$159,BO90)","v":0},5,0,0,{"$f":"COUNTIF($CZ$134:$DI$144,BO90)","v":0},null,null,null,null,null,null,null,null,null,90,null,"F","Martin",null,"F Martin",null,null,null,2,"Bradford City","(H)","D 2-2","Chance","Landells",null,null,null,null,null,null,null,null,null,"Chance, Landells",null,null,null,null,"Chance","Landells","","","","",",",",","","","","Chance,Landells,"]
[null,null,null,null,null,null,null,null,null,null,null,null,null,null,null,null,null,null,null,null,null,null,null,null,null,null,null,null,null,null,2,null,14,"Division 2","1929-11-09",null,"Bradford City","(H)",null,null,"D 2-2","Lansdale","Tyler","Pipe","Martin","Gomm","Graham","Chance","Landells","Woodards","Cock","Corkindale",null,null,null,null,1,null,null,null,null,null,1,20,"Moran (**",null,"Moran**","Moran",null,2,0,0,0,0,0,0,0,0,0,0,0,null,null,null,null,null,null,null,null,null,91,null,"J","Moran",null,"J Moran",null,null,null,1,"Swansea","(A)","L 1-3","Chance",null,null,null,null,null,null,null,null,null,null,"Chance",null,null,null,null,"Chance","","","","","",",","","","","","Chance,"]
[null,null,null,null,null,null,null,null,null,null,null,null,null,null,null,null,null,null,null,null,null,null,null,null,null,null,null,null,null,null,1,null,15,"Division 2","1929-11-16",null,"Swansea","(A)",null,null,"L 1-3","Lansdale","Sweetman","Pipe","Martin","Gomm","Graham","Chance","Landells","Woodards","Cock","Corkindale",null,null,null,null,1,null,null,null,null,null,1,21,"Munro (**",null,"Munro**","Munro",null,5,0,0,2,0,0,0,0,0,0,0,0,null,null,null,null,null,null,null,null,null,92,null,"J","Munro",null,"J Munro",null,null,null,2,"Cardiff","(H)","W 2-0","Rounsfull","Poxton",null,null,null,null,null,null,null,null,null,"Rounsfull, Poxton",null,null,null,null,"Rounsfull","Poxton","","","","",",",",","","","","Rounsfull,Poxton,"]
[null,null,null,null,0,null,4,null,null,null,null,null,null,null,null,null,null,null,null,null,null,null,null,null,null,null,null,null,null,null,2,null,16,"Division 2","1929-11-23",null,"Cardiff","(H)",null,null,"W 2-0","Lansdale","Sweetman","Pipe","Martin","Gomm","Graham","Wadsworth","Landells","Cock","Rounsfull","Poxton",null,null,null,null,1,null,null,null,null,null,1,22,"Page (**",null,"Page**","Page",null,1,0,0,0,0,0,0,0,0,0,0,0,null,null,null,null,null,null,null,null,null,93,null,"J","Page",null,"J Page",null,null,null,1,"Preston","(A)","L 1-3","Cock",null,null,null,null,null,null,null,null,null,null,"Cock",null,null,null,null,"Cock","","","","","",",","","","","","Cock,"]
[null,null,null,null,null,null,null,null,null,null,null,null,null,null,null,null,null,null,null,null,null,null,null,null,null,null,null,null,null,null,1,null,17,"Division 2","1929-11-30",null,"Preston","(A)",null,null,"L 1-3","Lansdale","Sweetman","Pipe","Martin","Gomm","Page","Wadsworth","Landells","Cock","Rounsfull","Poxton",null,null,null,null,1,null,null,null,null,null,1,23,"Phillips (**",null,"Phillips**","Phillips",null,14,0,0,5,0,0,0,0,1,0,0,1,null,null,null,null,null,null,null,null,null,94,null,"W","Phillips",null,"W Phillips",null,null,null,2,"Bristol C","(H)","D 1-1","Gomm",null,null,null,null,null,null,null,null,null,null,"Gomm",null,null,null,null,"Gomm","","","","","",",","","","","","Gomm,"]
[null,null,null,null,null,null,null,null,null,null,null,null,null,null,null,null,null,null,null,null,null,null,null,null,null,null,null,null,null,null,2,null,18,"Division 2","1929-12-07",null,"Bristol C","(H)",null,null,"D 1-1","Lansdale","Fort","Pipe","Martin","Gomm","Graham","Chance","Landells","Cock","Readman","Poxton",null,null,null,null,1,null,null,null,null,null,1,24,"Pipe (**",null,"Pipe**","Pipe",null,33,0,0,0,0,0,0,0,5,0,0,0,null,null,null,null,null,null,null,null,null,95,null,"J","Pipe",null,"J Pipe",null,null,null,1,"Notts Co","(A)","D 1-1","Forsyth",null,null,null,null,null,null,null,null,null,null,"Forsyth",null,null,null,null,"Forsyth","","","","","",",","","","","","Forsyth,"]
[null,null,null,null,null,null,null,null,null,null,null,null,null,null,null,null,null,null,null,null,null,null,null,null,null,null,null,null,null,null,1,null,19,"Division 2","1929-12-14",null,"Notts Co","(A)",null,null,"D 1-1","Lansdale","Sweetman","Pipe","Martin","Gomm","Graham","Chance","Landells","Forsyth","Phillips","Poxton",null,null,null,null,1,null,null,null,null,null,1,25,"Poxton (**",null,"Poxton**","Poxton",null,24,0,0,3,0,0,0,0,2,0,0,1,null,null,null,null,null,null,null,null,null,96,null,"J","Poxton",null,"J Poxton",null,null,null,2,"Reading","(H)","W 3-1","Phillips","Forsyth","Bryant",null,null,null,null,null,null,null,null,"Phillips, Forsyth, Bryant",null,null,null,null,"Phillips","Forsyth","Bryant","","","",",",",",",","","","Phillips,Forsyth,Bryant,"]
[null,null,null,null,null,null,null,null,null,null,null,null,null,null,null,null,null,null,null,null,null,null,null,null,null,null,null,null,null,null,2,null,20,"Division 2","1929-12-21",null,"Reading","(H)",null,null,"W 3-1","Lansdale","Hill","Pipe","Martin","Gomm","Graham","Chance","Bryant","Forsyth","Phillips","Poxton",null,null,null,null,1,null,null,null,null,null,1,26,"Readman (**",null,"Readman**","Readman",null,16,0,0,3,0,0,0,0,0,0,0,0,null,null,null,null,null,null,null,null,null,97,null,"J","Readman",null,"J Readman",null,null,null,1,"West Brom","(H)","W 2-1","Chance","Graham",null,null,null,null,null,null,null,null,null,"Chance, Graham",null,null,null,null,"Chance","Graham","","","","",",",",","","","","Chance,Graham,"]
[null,null,null,null,null,null,null,null,null,null,null,null,null,null,null,null,null,null,null,null,null,null,null,null,null,null,null,null,null,null,1,null,21,"Division 2","1929-12-25",null,"West Brom","(H)",null,null,"W 2-1","Lansdale","Hill","Pipe","Martin","Gomm","Graham","Chance","Bryant","Forsyth","Phillips","Poxton",null,null,null,null,1,null,null,null,null,null,1,27,"Rounsfull (**",null,"Rounsfull**","Rounsfull",null,2,0,0,1,0,0,0,0,0,0,0,0,null,null,null,null,null,null,null,null,null,98,null,"R","Rounsfull",null,"R Rounsfull",null,null,null,2,"West Brom","(A)","L 1-6","Forsyth",null,null,null,null,null,null,null,null,null,null,"Forsyth",null,null,null,null,"Forsyth","","","","","",",","","","","","Forsyth,"]
[null,null,null,null,null,null,null,null,null,null,null,null,null,null,null,null,null,null,null,null,null,null,null,null,null,null,null,null,null,null,2,null,22,"Division 2","1929-12-26",null,"West Brom","(A)",null,null,"L 1-6","Lansdale","Hill","Moran","Martin","Gomm","Graham","Chance","Bryant","Forsyth","Phillips","Poxton",null,null,null,null,1,null,null,null,null,null,1,28,{"$f":"BP99&\" (**\"","v":"Smith (**"},null,{"$f":"BP99&\"**\"","v":"Smith**"},"Smith",null,1,0,0,{"$f":"COUNTIF($CZ$76:$DI$125,BO99)","v":0},0,0,0,{"$f":"COUNTIF($CZ$149:$DI$159,BO99)","v":0},0,0,0,{"$f":"COUNTIF($CZ$134:$DI$144,BO99)","v":0},null,null,null,null,null,null,null,null,null,99,null,{"$f":"CN34","v":"S"},{"$f":"CO34","v":"Smith"},null,{"$f":"CO99&\" \"&CP99","v":"S Smith"},null,null,null,1,"Blackpool","(H)","W 3-1","Corkindale","Corkindale (pen)","Cock",null,null,null,null,null,null,null,null,"Corkindale, Corkindale (pen), Cock",null,null,null,null,"Corkindale","Corkindale (pen)","Cock","","","",",",",",",","","","Corkindale,Corkindale (pen),Cock,"]
[null,null,null,null,null,null,null,null,null,null,null,null,null,null,null,null,null,null,null,null,null,null,null,null,null,null,null,null,null,null,1,null,23,"Division 2","1929-12-28",null,"Blackpool","(H)",null,null,"W 3-1","Lansdale","Hill","Tyler","Martin","Gomm","Graham","Corkindale","Readman","Cock","Phillips","Poxton",null,null,null,null,1,null,null,null,null,null,1,29,"Sweetman (**",null,"Sweetman**","Sweetman",null,20,0,0,0,0,0,0,0,1,0,0,0,null,null,null,null,null,null,null,null,null,100,null,"S","Sweetman",null,"S Sweetman",null,null,null,2,"Bury","(A)","L 1-5","Phillips",null,null,null,null,null,null,null,null,null,null,"Phillips",null,null,null,null,"Phillips","","","","","",",","","","","","Phillips,"]
[null,null,null,null,null,null,null,null,null,null,null,null,null,null,null,null,null,null,null,null,null,null,null,null,null,null,null,null,null,null,2,null,24,"Division 2","1930-01-04",null,"Bury","(A)",null,null,"L 1-5","Lansdale","Hill","Tyler","Martin","Graham","Forsyth","Corkindale","Readman","Cock","Phillips","Poxton",null,null,null,null,1,null,null,null,null,null,1,30,"Tyler (**",null,"Tyler**","Tyler",null,19,0,0,0,0,0,0,0,4,0,0,0,null,null,null,null,null,null,null,null,null,101,null,"S","Tyler",null,"S Tyler",null,null,null,1,"Chelsea","(H)","D 0-0","No Scorer",null,null,null,null,null,null,null,null,null,null,"No Scorer",null,null,null,null,"No Scorer","","","","","",",","","","","","No Scorer,"]
[null,null,null,null,null,null,null,null,null,null,null,null,null,null,null,null,null,null,null,null,null,null,null,null,null,null,null,null,null,null,1,null,25,"Division 2","1930-01-18",null,"Chelsea","(H)",null,null,"D 0-0","Lansdale","Tyler","Pipe","Martin","Gomm","Graham","Corkindale","Bryant","Cock","Forsyth","Poxton",null,null,null,null,1,null,null,null,null,null,1,31,"Wadsworth (**",null,"Wadsworth**","Wadsworth",null,8,0,0,0,0,0,0,0,3,0,0,2,null,null,null,null,null,null,null,null,null,102,null,"H","Wadsworth",null,"H Wadsworth",null,null,null,2,"Oldham","(H)","W 2-1","Cock","Cock",null,null,null,null,null,null,null,null,null,"Cock (2)",null,null,null,null,"Cock","Cock","","","","",",",",","","","","Cock,Cock,"]
[null,null,null,null,null,null,null,null,null,null,null,null,null,null,null,null,null,null,null,null,null,null,null,null,null,null,null,null,null,null,2,null,26,"Division 2","1930-02-01",null,"Oldham","(H)",null,null,"W 2-1","Lansdale","Tyler","Pipe","Martin","Gomm","Graham","Corkindale","Hawkins","Cock","Forsyth","Wadsworth",null,null,null,null,1,null,null,null,null,null,1,32,"Watkins (**",null,"Watkins**","Watkins",null,6,0,0,1,0,0,0,0,0,0,0,0,null,null,null,null,null,null,null,null,null,103,null,"E","Watkins",null,"E Watkins",null,null,null,1,"Nottm Forest","(A)","D 1-1","Forsyth",null,null,null,null,null,null,null,null,null,null,"Forsyth",null,null,null,null,"Forsyth","","","","","",",","","","","","Forsyth,"]
[null,null,null,null,null,null,null,null,null,null,null,null,null,null,null,null,null,null,null,null,null,null,null,null,null,null,null,null,null,null,1,null,27,"Division 2","1930-02-05",null,"Nottm Forest","(A)",null,null,"D 1-1","Lansdale","Tyler","Pipe","Martin","Gomm","Graham","Corkindale","Hawkins","Cock","Forsyth","Wadsworth",null,null,null,null,1,null,null,null,null,null,1,33,"Wilson (**",null,"Wilson**","Wilson",null,17,0,0,0,0,0,0,0,2,0,0,0,null,null,null,null,null,null,null,null,null,104,null,"W","Wilson",null,"W Wilson",null,null,null,2,"Charlton","(A)","D 1-1","Hawkins",null,null,null,null,null,null,null,null,null,null,"Hawkins",null,null,null,null,"Hawkins","","","","","",",","","","","","Hawkins,"]
[null,null,null,null,null,null,null,null,null,null,null,null,null,null,null,null,null,null,null,null,null,null,null,null,null,null,null,null,null,null,2,null,28,"Division 2","1930-02-08",null,"Charlton","(A)",null,null,"D 1-1","Lansdale","Tyler","Pipe","Martin","Gomm","Graham","Corkindale","Hawkins","Cock","Forsyth","Wadsworth",null,null,null,null,1,null,null,null,null,null,1,34,"Woodards (**",null,"Woodards**","Woodards",null,5,0,0,3,0,0,0,0,0,0,0,0,null,null,null,null,null,null,null,null,null,105,null,"C","Woodards",null,"C Woodards",null,null,null,1,"Hull","(H)","D 0-0","No Scorer",null,null,null,null,null,null,null,null,null,null,"No Scorer",null,null,null,null,"No Scorer","","","","","",",","","","","","No Scorer,"]
[null,null,null,null,null,null,null,null,null,null,null,null,null,null,null,null,null,null,null,null,null,null,null,null,null,null,null,null,null,null,1,null,29,"Division 2","1930-02-22",null,"Hull","(H)",null,null,"D 0-0","Wilson","Tyler","Pipe","Martin","Gomm","Graham","Corkindale","Hawkins","Cock","Forsyth","Wadsworth",null,null,null,null,1,null,null,null,null,null,1,35,null,null,null,null,null,null,null,null,null,null,null,null,null,null,null,null,null,null,null,null,null,null,null,null,null,null,null,null,null,null,null,null,null,null,null,2,"Stoke","(A)","L 0-1","No Scorer",null,null,null,null,null,null,null,null,null,null,"No Scorer",null,null,null,null,"No Scorer","","","","","",",","","","","","No Scorer,"]
[null,null,null,null,null,null,null,null,null,null,null,null,null,null,null,null,null,null,null,null,null,null,null,null,null,null,null,null,null,null,2,null,30,"Division 2","1930-03-01",null,"Stoke","(A)",null,null,"L 0-1","Wilson","Sweetman","Pipe","Martin","Gomm","Graham","Corkindale","Watkins","Cock","Forsyth","Poxton",null,null,null,null,1,null,null,null,null,null,1,36,null,null,null,null,null,null,null,null,null,null,null,null,null,null,null,null,null,null,null,null,null,null,null,null,null,null,null,null,null,null,null,null,null,null,null,1,"Southampton","(A)","D 0-0","No Scorer",null,null,null,null,null,null,null,null,null,null,"No Scorer",null,null,null,null,"No Scorer","","","","","",",","","","","","No Scorer,"]
[null,null,null,null,null,null,null,null,null,null,null,null,null,null,null,null,null,null,null,null,null,null,null,null,null,null,null,null,null,null,1,null,31,"Division 2","1930-03-03",null,"Southampton","(A)",null,null,"D 0-0","Wilson","Sweetman","Pipe","Jones","Gomm","Forsyth","Corkindale","Watkins","Cock","Readman","Poxton",null,null,null,null,1,null,null,null,null,null,1,37,null,null,null,null,null,null,null,null,null,null,null,null,null,null,null,null,null,null,null,null,null,null,null,null,null,null,null,null,null,null,null,null,null,null,null,2,"Wolves","(H)","W 4-0","Munro","Corkindale (pen)","Readman","Watkins",null,null,null,null,null,null,null,"Munro, Corkindale (pen), Readman, Watkins",null,null,null,null,"Munro","Corkindale (pen)","Readman","Watkins","","",",",",",",",",","","Munro,Corkindale (pen),Readman,Watkins,"]
[null,null,null,null,null,null,null,null,null,null,null,null,null,null,null,null,null,null,null,null,null,null,null,null,null,null,null,null,null,null,2,null,32,"Division 2","1930-03-08",null,"Wolves","(H)",null,null,"W 4-0","Wilson","Sweetman","Pipe","Jones","Gomm","Forsyth","Corkindale","Watkins","Munro","Readman","Poxton",null,null,null,null,1,null,null,null,null,null,1,38,null,null,null,null,null,null,null,null,null,null,null,null,null,null,null,null,null,null,null,null,null,null,null,null,null,null,null,null,null,null,null,null,null,null,null,1,"Bradford City","(A)","D 1-1","Readman",null,null,null,null,null,null,null,null,null,null,"Readman",null,null,null,null,{"$f":"IF(CZ109=\"\",\"\",CZ109)","v":"Readman"},{"$f":"IF(DA109=\"\",\"\",DA109)","v":""},{"$f":"IF(DB109=\"\",\"\",DB109)","v":""},{"$f":"IF(DC109=\"\",\"\",DC109)","v":""},{"$f":"IF(DD109=\"\",\"\",DD109)","v":""},{"$f":"IF(DE109=\"\",\"\",DE109)","v":""},",","","","","","Readman,"]
[null,null,null,null,null,null,null,null,null,null,null,null,null,null,null,null,null,null,null,null,null,null,null,null,null,null,null,null,null,null,1,null,33,"Division 2","1930-03-15",null,"Bradford City","(A)",null,null,"D 1-1","Wilson","Sweetman","Pipe","Jones","Gomm","Forsyth","Corkindale","Watkins","Munro","Readman","Poxton",null,null,null,null,1,null,null,null,null,null,1,39,null,null,null,null,null,null,null,null,null,null,null,null,null,null,null,null,null,null,null,null,null,null,null,null,null,null,null,null,null,null,null,null,null,null,null,2,"Swansea","(H)","L 0-2","No Scorer",null,null,null,null,null,null,null,null,null,null,"No Scorer",null,null,null,null,"No Scorer","","","","","",",","","","","","No Scorer,"]
[null,null,null,null,null,null,null,null,null,null,null,null,null,null,null,null,null,null,null,null,null,null,null,null,null,null,null,null,null,null,2,null,34,"Division 2","1930-03-22",null,"Swansea","(H)",null,null,"L 0-2","Wilson","Sweetman","Pipe","Jones","Gomm","Graham","Wadsworth","Watkins","Munro","Readman","Poxton",null,null,null,null,1,null,null,null,null,null,1,40,null,null,{"$f":"BP111&\"**\"","v":"Own Goal**"},"Own Goal",null,null,null,null,{"$f":"COUNTIF($CZ$76:$DI$125,BO111)","v":0},null,null,null,{"$f":"COUNTIF($CZ$149:$DI$159,BO111)","v":0},null,null,null,{"$f":"COUNTIF($CZ$134:$DI$144,BP111)","v":0},null,null,null,null,null,null,null,null,null,null,null,null,null,null,null,null,null,null,1,"Cardiff","(A)","L 1-3","Cock",null,null,null,null,null,null,null,null,null,null,"Cock",null,null,null,null,"Cock","","","","","",",","","","","","Cock,"]
[null,null,null,null,null,null,null,null,null,null,null,null,null,null,null,null,null,null,null,null,null,null,null,null,null,null,null,null,null,null,1,null,35,"Division 2","1930-03-29",null,"Cardiff","(A)",null,null,"L 1-3","Wilson","Sweetman","Pipe","Martin","Gomm","Forsyth","Wadsworth","Watkins","Cock","Readman","Poxton",null,null,null,null,1,null,null,null,null,null,1,41,null,null,null,null,null,null,null,null,null,null,null,null,null,null,null,null,null,null,null,null,null,null,null,null,null,null,null,null,null,null,null,null,null,null,null,2,"Preston","(H)","W 2-0","Cock","Horton",null,null,null,null,null,null,null,null,null,"Cock, Horton",null,null,null,null,"Cock","Horton","","","","",",",",","","","","Cock,Horton,"]
[null,null,null,null,null,null,null,null,null,null,null,null,null,null,null,null,null,null,null,null,null,null,null,null,null,null,null,null,null,null,2,null,36,"Division 2","1930-04-05",null,"Preston","(H)",null,null,"W 2-0","Wilson","Sweetman","Pipe","Martin","Gomm","Graham","Corkindale","Horton","Cock","Forsyth","Poxton",null,null,null,null,1,null,null,null,null,null,1,null,null,null,null,null,null,null,null,null,null,null,null,null,null,null,null,null,null,null,null,null,null,null,null,null,null,null,null,null,null,null,null,null,null,null,null,1,"Bristol C","(A)","L 0-1","No Scorer",null,null,null,null,null,null,null,null,null,null,"No Scorer",null,null,null,null,"No Scorer","","","","","",{"$f":"IF(DP113<>\"\",\",\",\"\")","v":","},{"$f":"IF(DQ113<>\"\",\",\",\"\")","v":""},{"$f":"IF(DR113<>\"\",\",\",\"\")","v":""},{"$f":"IF(DS113<>\"\",\",\",\"\")","v":""},{"$f":"IF(DT113<>\"\",\",\",\"\")","v":""},{"$f":"CONCATENATE(DP113,DV113,DQ113,DW113,DR113,DX113,DS113,DY113,DT113,DZ113,DU113)","v":"No Scorer,"}]
[null,null,null,null,null,null,null,null,null,null,null,null,null,null,null,null,null,null,null,null,null,null,null,null,null,null,null,null,null,null,1,null,37,"Division 2","1930-04-12",null,"Bristol C","(A)",null,null,"L 0-1","Wilson","Sweetman","Pipe","Martin","Readman","Graham","Corkindale","Horton","Cock","Forsyth","Poxton",null,null,null,null,1,null,null,null,null,null,1,null,null,null,null,"Check",null,{"$f":"SUM(BR72:BR97)","v":384},null,null,{"$f":"SUM(BU72:BU111)","v":57},null,null,null,{"$f":"SUM(BY72:BY111)","v":0},null,null,null,{"$f":"SUM(CC72:CC111)","v":13},null,null,null,null,null,null,null,null,null,null,null,null,null,null,null,null,null,null,2,"Barnsley","(H)","W 2-1","Forsyth","Poxton",null,null,null,null,null,null,null,null,null,"Forsyth, Poxton",null,null,null,null,"Forsyth","Poxton","","","","",",",",","","","","Forsyth,Poxton,"]
[null,null,null,null,null,null,null,null,null,null,null,null,null,null,null,null,null,null,null,null,null,null,null,null,null,null,null,null,null,null,2,null,38,"Division 2","1930-04-18",null,"Barnsley","(H)",null,null,"W 2-1","Wilson","Sweetman","Pipe","Jones","Bryant","Graham","Corkindale","Horton","Cock","Forsyth","Poxton",null,null,null,null,1,null,null,null,null,null,1,null,null,null,null,null,null,null,null,null,null,null,null,null,null,null,null,null,null,null,null,null,null,null,null,null,null,null,null,null,null,null,null,null,null,null,null,1,"Notts Co","(H)","W 2-0","Horton","Cock",null,null,null,null,null,null,null,null,null,"Horton, Cock",null,null,null,null,"Horton","Cock","","","","",",",",","","","","Horton,Cock,"]
[null,null,null,null,null,null,null,null,null,null,null,null,null,null,null,null,null,null,null,null,null,null,null,null,null,null,null,null,null,null,1,null,39,"Division 2","1930-04-19",null,"Notts Co","(H)",null,null,"W 2-0","Wilson","Sweetman","Pipe","Jones","Bryant","Graham","Corkindale","Horton","Cock","Forsyth","Poxton",null,null,null,null,1,null,null,null,null,null,1,null,null,null,null,null,null,{"$f":"42*11","v":462},null,null,{"$f":"SUM(O5:O51)","v":0},null,null,null,null,null,null,null,{"$f":"SUM(O5:O51)-BU116","v":0},null,null,null,null,null,null,null,null,null,null,null,null,null,null,null,null,null,null,2,"Barnsley","(A)","W 2-1","Munro","Readman",null,null,null,null,null,null,null,null,null,"Munro, Readman",null,null,null,null,"Munro","Readman","","","","",",",",","","","","Munro,Readman,"]
[null,null,null,null,null,null,null,null,null,null,null,null,null,null,null,null,null,null,null,null,null,null,null,null,null,null,null,null,null,null,2,null,40,"Division 2","1930-04-21",null,"Barnsley","(A)",null,null,"W 2-1","Wilson","Sweetman","Pipe","Jones","Gomm","Forsyth","Corkindale","Harris","Munro","Readman","Poxton",null,null,null,null,1,null,null,null,null,null,1,null,null,null,null,null,null,null,null,null,null,null,null,null,null,null,null,null,null,null,null,null,null,null,null,null,null,null,null,null,null,null,null,null,null,null,null,1,"Reading","(A)","W 1-0","Cock",null,null,null,null,null,null,null,null,null,null,"Cock",null,null,null,null,"Cock","","","","","",",","","","","","Cock,"]
[null,null,null,null,null,null,null,null,null,null,null,null,null,null,null,null,null,null,null,null,null,null,null,null,null,null,null,null,null,null,1,null,41,"Division 2","1930-04-26",null,"Reading","(A)",null,null,"W 1-0","Wilson","Sweetman","Tyler","Jones","Gomm","Graham","Corkindale","Readman","Cock","Munro","Poxton",null,null,null,null,1,null,null,null,null,null,null,null,null,null,null,"Errors in A Complete History",null,null,null,null,null,null,null,null,null,null,null,null,null,null,null,null,null,null,null,null,null,null,null,null,null,null,null,null,null,null,null,2,"Bradford PA","(A)","L 0-6","No Scorer",null,null,null,null,null,null,null,null,null,null,"No Scorer",null,null,null,null,"No Scorer","","","","","",",","","","","","No Scorer,"]
[null,null,null,null,null,null,null,null,null,null,null,null,null,null,null,null,null,null,null,null,null,null,null,null,null,null,null,null,null,null,2,null,42,"Division 2","1930-05-03",null,"Bradford PA","(A)",null,null,"L 0-6","Wilson","Sweetman","Tyler","Jones","Gomm","Barrett","Corkindale","Landells","Readman","Forsyth","Poxton",null,null,null,null,1,null,null,null,null,null,null,null,null,null,null,"1) Landsdale rather than Wilson v West Ham (A) FA Cup 4 Nr 1 Shirt 15th Feb 1930",null,null,null,null,null,null,null,null,null,null,null,null,null,null,null,null,null,null,null,null,null,null,null,null,null,null,null,null,null,null,null,1,null,null,null,"x",null,null,null,null,null,null,null,null,null,null,"x",null,null,null,null,"x","","","","","",",","","","","","x,"]
[null,null,null,null,null,null,null,null,null,null,null,null,null,null,null,null,null,null,null,null,null,null,null,null,null,null,null,null,null,null,1,null,null,null,null,null,null,null,null,null,null,null,null,null,null,null,null,null,null,null,null,null,null,null,null,null,null,null,null,null,null,null,null,null,null,null,null,"2) Phillips rather than Landells v West Brom (H) Nr 10 Shirt 25th December 1929",null,null,null,null,null,null,null,null,null,null,null,null,null,null,null,null,null,null,null,null,null,null,null,null,null,null,null,null,null,null,null,2,null,null,null,"x",null,null,null,null,null,null,null,null,null,null,"x",null,null,null,null,"x","","","","","",",","","","","","x,"]
[null,null,null,null,null,null,null,null,null,null,null,null,null,null,null,null,null,null,null,null,null,null,null,null,null,null,null,null,null,null,2,null,null,null,null,null,null,null,null,null,null,null,null,null,null,null,null,null,null,null,null,null,null,null,null,null,null,null,null,null,null,null,null,null,null,null,null,null,null,null,null,null,null,null,null,null,null,null,null,null,null,null,null,null,null,null,null,null,null,null,null,null,null,null,null,null,null,null,null,1,null,null,null,"x",null,null,null,null,null,null,null,null,null,null,"x",null,null,null,null,"x","","","","","",{"$f":"IF(DP121<>\"\",\",\",\"\")","v":","},"","","","",{"$f":"CONCATENATE(DP121,DV121,DQ121,DW121,DR121,DX121,DS121,DY121,DT121,DZ121,DU121)","v":"x,"}]
[null,null,null,null,null,null,null,null,null,null,null,null,null,null,null,null,null,null,null,null,null,null,null,null,null,null,null,null,null,null,1,null,null,null,null,null,null,null,null,null,null,null,null,null,null,null,null,null,null,null,null,null,null,null,null,null,null,null,null,null,null,null,null,null,null,null,null,null,null,null,null,null,null,null,null,null,null,null,null,null,null,null,null,null,null,null,null,null,null,null,null,null,null,null,null,null,null,null,null,2,null,null,null,"x",null,null,null,null,null,null,null,null,null,null,"x",null,null,null,null,"x","","","","","",",","","","","",{"$f":"CONCATENATE(DP122,DV122,DQ122,DW122,DR122,DX122,DS122,DY122,DT122,DZ122,DU122)","v":"x,"}]
[null,null,null,null,null,null,null,null,null,null,null,null,null,null,null,null,null,null,null,null,null,null,null,null,null,null,null,null,null,null,2,null,null,null,null,null,null,null,null,null,null,null,null,null,null,null,null,null,null,null,null,null,null,null,null,null,null,null,null,null,null,null,null,null,null,null,null,null,null,null,null,null,null,null,null,null,null,null,null,null,null,null,null,null,null,null,null,null,null,null,null,null,null,null,null,null,null,null,null,1,null,null,null,"x",null,null,null,null,null,null,null,null,null,null,"x",null,null,null,null,"x","","","","","",",","","","","",{"$f":"CONCATENATE(DP123,DV123,DQ123,DW123,DR123,DX123,DS123,DY123,DT123,DZ123,DU123)","v":"x,"}]
[null,null,null,null,null,null,null,null,null,null,null,null,null,null,null,null,null,null,null,null,null,null,null,null,null,null,null,null,null,null,1,null,null,null,null,null,null,null,null,null,null,null,null,null,null,null,null,null,null,null,null,null,null,null,null,null,null,null,null,null,null,null,null,null,null,null,null,null,null,null,null,null,null,null,null,null,null,null,null,null,null,null,null,null,null,null,null,null,null,null,null,null,null,null,null,null,null,null,null,2,null,null,null,"x",null,null,null,null,null,null,null,null,null,null,"x",null,null,null,null,"x","","","","","",",","","","","",{"$f":"CONCATENATE(DP124,DV124,DQ124,DW124,DR124,DX124,DS124,DY124,DT124,DZ124,DU124)","v":"x,"}]
[null,null,null,null,null,null,null,null,null,null,null,null,null,null,null,null,null,null,null,null,null,null,null,null,null,null,null,null,null,null,2,null,null,null,null,null,null,null,null,null,null,null,null,null,null,null,null,null,null,null,null,null,null,null,null,null,null,null,null,null,null,null,null,null,null,null,null,null,null,null,null,null,null,null,null,null,null,null,null,null,null,null,null,null,null,null,null,null,null,null,null,null,null,null,null,null,null,null,null,1,null,null,null,"x",null,null,null,null,null,null,null,null,null,null,"x",null,null,null,null,"x","","","","","",",","","","","",{"$f":"CONCATENATE(DP125,DV125,DQ125,DW125,DR125,DX125,DS125,DY125,DT125,DZ125,DU125)","v":"x,"}]
[null,null,null,null,null,null,null,null,null,null,null,null,null,null,null,null,null,null,null,null,null,null,null,null,null,null,null,null,null,null,1,null,1,"League Cup",null,null,null,null,null,null,null,null,null,null,null,null,null,null,null,null,null,null,null,null,null,null,null,null,null,null,null,null,null,null,null,null,null,null,null,null,null,null,null,null,null,null,null,null,null,null,null,null,null,null,null,null,null,null,null,null,null,null,null,null,null,null,null,null,null,null,null,null,null,"x",null,null,null,null,null,null,null,null,null,null,"x"]
[null,null,null,null,null,null,null,null,null,null,null,null,null,null,null,null,null,null,null,null,null,null,null,null,null,null,null,null,null,null,2,null,null,null,null,null,null,null,null,null,null,null,null,null,null,null,null,null,null,null,null,null,null,null,null,null,null,null,null,null,null,null,null,null,null,null,null,null,null,null,null,null,null,null,null,null,null,null,null,null,null,null,null,null,null,null,null,null,null,null,null,null,null,null,null,null,null,null,null,null,null,null,null,"x",null,null,null,null,null,null,null,null,null,null,"x"]
[null,null,null,null,null,null,null,null,null,null,null,null,null,null,null,null,null,null,null,null,null,null,null,null,null,null,null,null,null,null,1,null,null,null,null,null,null,null,null,null,null,null,null,null,null,null,null,null,null,null,null,null,null,null,null,null,null,null,null,null,null,null,null,null,null,null,null,null,null,null,null,null,null,null,null,null,null,null,null,null,null,null,null,null,null,null,null,null,null,null,null,null,null,null,null,null,null,null,null,null,null,null,null,"x",null,null,null,null,null,null,null,null,null,null,"x"]
[null,null,null,null,null,null,null,null,null,null,null,null,null,null,null,null,null,null,null,null,null,null,null,null,null,null,null,null,null,null,2,null,null,null,null,null,null,null,null,null,null,null,null,null,null,null,null,null,null,null,null,null,null,null,null,null,null,null,null,null,null,null,null,null,null,null,null,null,null,null,null,null,null,null,null,null,null,null,null,null,null,null,null,null,null,null,null,null,null,null,null,null,null,null,null,{"$f":"CP130&\" \"&BP126","v":" "},null,null,null,null,null,null,null,"x",null,null,null,null,null,null,null,null,null,null,"x"]
[null,null,null,null,null,null,null,null,null,null,null,null,null,null,null,null,null,null,null,null,null,null,null,null,null,null,null,null,null,null,1,null,null,null,null,null,null,null,null,null,null,null,null,null,null,null,null,null,null,null,null,null,null,null,null,null,null,null,null,null,null,null,null,null,null,null,null,null,null,null,null,null,null,null,null,null,null,null,null,null,null,null,null,null,null,null,null,null,null,null,null,null,null,null,null,null,null,null,null,null,null,null,null,"x",null,null,null,null,null,null,null,null,null,null,"x"]
[null,null,null,null,null,null,null,null,null,null,null,null,null,null,null,null,null,null,null,null,null,null,null,null,null,null,null,null,null,null,2,null,null,null,null,null,null,null,null,null,null,null,null,null,null,null,null,null,null,null,null,null,null,null,null,null,null,null,null,null,null,null,null,null,null,null,null,null,null,null,null,null,null,null,null,null,null,null,null,null,null,null,null,null,null,null,null,null,null,null,null,null,null,null,null,null,null,null,null,null,null,null,null,"Goals FA Cup",null,null,null,null,null,null,null,null,null,null,"Goals FA Cup"]
[null,null,null,null,null,null,null,null,null,null,null,null,null,null,null,null,null,null,null,null,null,null,null,null,null,null,null,null,null,null,1,null,null,null,null,null,null,null,null,null,null,null,null,null,null,null,null,null,null,null,null,null,null,null,null,null,null,null,null,null,null,null,null,null,null,null,null,null,null,null,null,null,null,null,null,null,null,null,null,null,null,null,null,null,null,null,null,null,null,null,null,null,null,null,null,null,null,null,null,null,null,null,null,1,2,3,4,5,6,7,8,7,8,9,"1, 2, 3, 4, 5, 6, 7, 8, 9"]
[null,null,null,null,null,null,null,null,null,null,null,null,null,null,null,null,null,null,null,null,null,null,null,null,null,null,null,null,null,null,2,null,null,null,null,null,null,null,null,null,null,null,null,null,null,null,null,null,null,null,null,null,null,null,null,null,null,null,null,null,null,null,null,null,null,null,null,null,null,null,null,null,null,null,null,null,null,null,null,null,null,null,null,null,null,null,null,null,null,null,null,null,null,null,null,null,null,null,null,null,null,null,null,"x",null,null,null,null,null,null,null,null,null,null,"x"]
[null,null,null,null,null,null,null,null,null,null,null,null,null,null,null,null,null,null,null,null,null,null,null,null,null,null,null,null,null,null,1,null,null,null,null,null,null,null,null,null,null,null,null,null,null,null,null,null,null,null,null,null,null,null,null,null,null,null,null,null,null,null,null,null,null,null,null,null,null,null,null,null,null,null,null,null,null,null,null,null,null,null,null,null,null,null,null,null,null,null,null,null,null,null,null,null,null,null,null,{"$f":"IF(CV133=0,1,IF(CV133=2,1,2))","v":1},{"$f":"AK136","v":"Corinthians"},"(A)",{"$f":"AO136","v":"D 2-2"},"Forsyth","Phillips",null,null,null,null,null,null,null,null,null,"Forsyth, Phillips",null,null,null,null,{"$f":"IF(CZ134=\"\",\"\",CZ134)","v":"Forsyth"},"Phillips","","","","","","",{"$f":"IF(DR134<>\"\",\",\",\"\")","v":""},{"$f":"IF(DS134<>\"\",\",\",\"\")","v":""},{"$f":"IF(DT134<>\"\",\",\",\"\")","v":""},{"$f":"CONCATENATE(DP134,DV134,DQ134,DW134,DR134,DX134,DS134,DY134,DT134,DZ134,DU134)","v":"ForsythPhillips"}]
[null,null,null,null,null,null,null,null,null,null,null,null,null,null,null,null,null,null,null,null,null,null,null,null,null,null,null,null,null,null,2,null,null,null,null,null,null,null,null,null,null,null,null,null,null,null,null,null,null,null,null,null,null,null,null,null,null,null,null,null,null,null,null,null,null,null,null,null,null,null,null,null,null,null,null,null,null,null,null,null,null,null,null,null,null,null,null,null,null,null,null,null,null,null,null,null,null,null,null,2,"Corinthians","(H)","D 1-1 ","Poxton",null,null,null,null,null,null,null,null,null,null,"Poxton",null,null,null,null,{"$f":"IF(CZ135=\"\",\"\",CZ135)","v":"Poxton"},{"$f":"IF(DA135=\"\",\"\",DA135)","v":""},{"$f":"IF(DB135=\"\",\"\",DB135)","v":""},{"$f":"IF(DC135=\"\",\"\",DC135)","v":""},{"$f":"IF(DD135=\"\",\"\",DD135)","v":""},{"$f":"IF(DE135=\"\",\"\",DE135)","v":""},"","",{"$f":"IF(DR135<>\"\",\",\",\"\")","v":""},{"$f":"IF(DS135<>\"\",\",\",\"\")","v":""},{"$f":"IF(DT135<>\"\",\",\",\"\")","v":""},{"$f":"CONCATENATE(DP135,DV135,DQ135,DW135,DR135,DX135,DS135,DY135,DT135,DZ135,DU135)","v":"Poxton"}]
[null,null,null,null,null,null,null,null,null,null,null,null,null,null,null,null,null,null,null,null,null,null,null,null,null,null,null,null,null,null,1,null,1,"FA Cup 3","1930-01-11",null,"Corinthians","(A)",null,null,"D 2-2","Lansdale","Tyler","Pipe","Martin","Gomm","Graham","Corkindale","Phillips","Cock","Forsyth","Poxton",null,null,null,null,1,null,null,null,null,null,null,null,null,null,null,null,null,null,null,null,null,null,null,null,null,null,null,null,null,null,null,null,null,null,null,null,null,null,null,null,null,null,null,null,null,null,null,1,"Corinthians","(N)","W 5-1","Forsyth","Corkindale","Corkindale","Cock","Cock",null,null,null,null,null,null,"Forsyth, Corkindale (2), Cock (2)",null,null,null,null,"Forsyth","Corkindale","Corkindale","Cock","Cock","","","",",",",",",","ForsythCorkindaleCorkindale,Cock,Cock,"]
[null,null,null,null,null,null,null,null,null,null,null,null,null,null,null,null,null,null,null,null,null,null,null,null,null,null,null,null,null,null,2,null,2,"FA Cup 3R","1930-01-15",null,"Corinthians","(H)",null,null,"D 1-1 ","Lansdale","Sweetman","Pipe","Martin","Gomm","Graham","Corkindale","Landells","Cock","Forsyth","Poxton",null,null,null,null,null,null,null,null,null,null,null,null,null,null,null,null,null,null,null,null,null,null,null,null,null,null,null,null,null,null,null,null,null,null,null,null,null,null,null,null,null,null,null,null,null,null,null,2,"Doncaster Rovers","(H)","W 4-0","Hawkins","Hawkins","Corkindale","Wadsworth",null,null,null,null,null,null,null,"Hawkins (2), Corkindale, Wadsworth",null,null,null,null,"Hawkins","Hawkins","Corkindale","Wadsworth","","","","",",",",","","HawkinsHawkinsCorkindale,Wadsworth,"]
[null,null,null,null,null,null,null,null,null,null,null,null,null,null,null,null,null,null,null,null,null,null,null,null,null,null,null,null,null,null,1,null,3,"FA Cup 3 2R","1930-01-20",null,"Corinthians","(N)",null,null,"W 5-1","Wilson","Tyler","Pipe","Martin","Gomm","Graham","Corkindale","Wadsworth","Cock","Forsyth","Hawkins",null,null,null,null,null,null,null,null,null,null,null,null,null,null,null,null,null,null,null,null,null,null,null,null,null,null,null,null,null,null,null,null,null,null,null,null,null,null,null,null,null,null,null,null,null,null,null,1,"West Ham Utd","(A)","L 1-4","Wadsworth",null,null,null,null,null,null,null,null,null,null,"Wadsworth",null,null,null,null,"Wadsworth","","","","","","","","","","","Wadsworth"]
[null,null,null,null,null,null,null,null,null,null,null,null,null,null,null,null,null,null,null,null,null,null,null,null,null,null,null,null,null,null,2,null,4,"FA Cup 4","1930-01-25",null,"Doncaster Rovers","(H)",null,null,"W 4-0","Wilson","Tyler","Pipe","Martin","Gomm","Graham","Corkindale","Hawkins","Cock","Forsyth","Wadsworth",null,null,null,null,null,null,null,null,null,null,null,null,null,null,null,null,null,null,null,null,null,null,null,null,null,null,null,null,null,null,null,null,null,null,null,null,null,null,null,null,null,null,null,null,null,null,null,2,0,0,0,null,null,null,null,null,null,null,null,null,null,null,null,null,null,null,null,"","","","","","","","","","","",""]
[null,null,null,null,null,null,null,null,null,null,null,null,null,null,null,null,null,null,null,null,null,null,null,null,null,null,null,null,null,null,1,null,5,"FA Cup 5","1930-02-15",null,"West Ham Utd","(A)",null,null,"L 1-4","Lansdale","Tyler","Pipe","Martin","Gomm","Graham","Corkindale","Hawkins","Cock","Forsyth","Wadsworth",null,null,null,null,null,null,null,null,null,null,null,null,null,null,null,null,null,null,null,null,null,null,null,null,null,null,null,null,null,null,null,null,null,null,null,null,null,null,null,null,null,null,null,null,null,null,null,1,0,0,0,null,null,null,null,null,null,null,null,null,null,null,null,null,null,null,null,"","","","","","","","","","","",""]
[null,null,null,null,null,null,null,null,null,null,null,null,null,null,null,null,null,null,null,null,null,null,null,null,null,null,null,null,null,null,2,null,null,null,null,null,null,null,null,null,null,null,null,null,null,null,null,null,null,null,null,null,null,null,null,null,null,null,null,null,null,null,null,null,null,null,null,null,null,null,null,null,null,null,null,null,null,null,null,null,null,null,null,null,null,null,null,null,null,null,null,null,null,null,null,null,null,null,null,2]
[null,null,null,null,null,null,null,null,null,null,null,null,null,null,null,null,null,null,null,null,null,null,null,null,null,null,null,null,null,null,1,null,null,null,null,null,null,null,null,null,null,null,null,null,null,null,null,null,null,null,null,null,null,null,null,null,null,null,null,null,null,null,null,null,null,null,null,null,null,null,null,null,null,null,null,null,null,null,null,null,null,null,null,null,null,null,null,null,null,null,null,null,null,null,null,null,null,null,null,1]
[null,null,null,null,null,null,null,null,null,null,null,null,null,null,null,null,null,null,null,null,null,null,null,null,null,null,null,null,null,null,{"$f":"IF(AE142=0,1,IF(AE142=2,1,2))","v":2},null,null,null,null,null,null,null,null,null,null,null,null,null,null,null,null,null,null,null,null,null,null,null,null,null,null,null,null,null,null,null,null,null,null,null,null,null,null,null,null,null,null,null,null,null,null,null,null,null,null,null,null,null,null,null,null,null,null,null,null,null,null,null,null,null,null,null,null,2]
[null,null,null,null,null,null,null,null,null,null,null,null,null,null,null,null,null,null,null,null,null,null,null,null,null,null,null,null,null,null,1,null,null,null,null,null,null,null,null,null,null,null,null,null,null,null,null,null,null,null,null,null,null,null,null,null,null,null,null,null,null,null,null,null,null,null,null,null,null,null,null,null,null,null,null,null,null,null,null,null,null,null,null,null,null,null,null,null,null,null,null,null,null,null,null,null,null,null,null,null,null,null,null,"x",null,null,null,null,null,null,null,null,null,null,"x"]
[null,null,null,null,null,null,null,null,null,null,null,null,null,null,null,null,null,null,null,null,null,null,null,null,null,null,null,null,null,null,2,null,null,null,null,null,null,null,null,null,null,null,null,null,null,null,null,null,null,null,null,null,null,null,null,null,null,null,null,null,null,null,null,null,null,null,null,null,null,null,null,null,null,null,null,null,null,null,null,null,null,null,null,null,null,null,null,null,null,null,null,null,null,null,null,null,null,null,null,null,null,null,null,"x",null,null,null,null,null,null,null,null,null,null,"x",null,null,null,null,{"$f":"IF(CZ149=\"\",\"\",CZ149)","v":""},"","","","","",{"$f":"IF(DP145<>\"\",\",\",\"\")","v":""},"","","","",{"$f":"CONCATENATE(DP145,DV145,DQ145,DW145,DR145,DX145,DS145,DY145,DT145,DZ145,DU145)","v":""}]
[null,null,null,null,null,null,null,null,null,null,null,null,null,null,null,null,null,null,null,null,null,null,null,null,null,null,null,null,null,null,1,null,null,null,null,null,null,null,null,null,null,null,null,null,null,null,null,null,null,null,null,null,null,null,null,null,null,null,null,null,null,null,null,null,null,null,null,null,null,null,null,null,null,null,null,null,null,null,null,null,null,null,null,null,null,null,null,null,null,null,null,null,null,null,null,null,null,null,null,null,null,null,null,"League Cup Goals",null,null,null,null,null,null,null,null,null,null,"League Cup Goals",null,null,null,null,"","","","","","","","","","","",{"$f":"CONCATENATE(DP146,DV146,DQ146,DW146,DR146,DX146,DS146,DY146,DT146,DZ146,DU146)","v":""}]
[null,null,null,null,null,null,null,null,null,null,null,null,null,null,null,null,null,null,null,null,null,null,null,null,null,null,null,null,null,null,2,null,null,null,null,null,null,null,null,null,null,null,null,null,null,null,null,null,null,null,null,null,null,null,null,null,null,null,null,null,null,null,null,null,null,null,null,null,null,null,null,null,null,null,null,null,null,null,null,null,null,null,null,null,null,null,null,null,null,null,null,null,null,null,null,null,null,null,null,null,null,null,null,1,2,3,4,5,6,7,8,7,8,9,"1, 2, 3, 4, 5, 6, 7, 8, 9",null,null,null,null,"","","","","","","","","","","",{"$f":"CONCATENATE(DP147,DV147,DQ147,DW147,DR147,DX147,DS147,DY147,DT147,DZ147,DU147)","v":""}]
[null,null,null,null,null,null,null,null,null,null,null,null,null,null,null,null,null,null,null,null,null,null,null,null,null,null,null,null,null,null,1,null,null,null,null,null,null,null,null,null,null,null,null,null,null,null,null,null,null,null,null,null,null,null,null,null,null,null,null,null,null,null,null,null,null,null,null,null,null,null,null,null,null,null,null,null,null,null,null,null,null,null,null,null,null,null,null,null,null,null,null,null,null,null,null,null,null,null,null,null,null,null,null,"x",null,null,null,null,null,null,null,null,null,null,"x",null,null,null,null,"","","","","","","","","","","",{"$f":"CONCATENATE(DP148,DV148,DQ148,DW148,DR148,DX148,DS148,DY148,DT148,DZ148,DU148)","v":""}]
[null,null,null,null,null,null,null,null,null,null,null,null,null,null,null,null,null,null,null,null,null,null,null,null,null,null,null,null,null,null,null,null,null,null,null,null,null,null,null,null,null,null,null,null,null,null,null,null,null,null,null,null,null,null,null,null,null,null,null,null,null,null,null,null,null,null,null,null,null,null,null,null,null,null,null,null,null,null,null,null,null,null,null,null,null,null,null,null,null,null,null,null,null,null,null,null,null,null,null,{"$f":"IF(CV148=0,1,IF(CV148=2,1,2))","v":1}]
[null,null,null,null,null,null,null,null,null,null,null,null,null,null,null,null,null,null,null,null,null,null,null,null,null,null,null,null,null,null,null,null,null,null,null,null,null,null,null,null,null,null,null,null,null,null,null,null,null,null,null,null,null,null,null,null,null,null,null,null,null,null,null,null,null,null,null,null,null,null,null,null,null,null,null,null,null,null,null,null,null,null,null,null,null,null,null,null,null,null,null,null,null,null,null,null,null,null,null,2]
[null,null,null,null,null,null,null,null,null,null,null,null,null,null,null,null,null,null,null,null,null,null,null,null,null,null,null,null,null,null,null,null,null,null,null,null,null,null,null,null,null,null,null,null,null,null,null,null,null,null,null,null,null,null,null,null,null,null,null,null,null,null,null,null,null,null,null,null,null,null,null,null,null,null,null,null,null,null,null,null,null,null,null,null,null,null,null,null,null,null,null,null,null,null,null,null,null,null,null,1]
[null,null,null,null,null,null,null,null,null,null,null,null,null,null,null,null,null,null,null,null,null,null,null,null,null,null,null,null,null,null,null,null,null,null,null,null,null,null,null,null,null,null,null,null,null,null,null,null,null,null,null,null,null,null,null,null,null,null,null,null,null,null,null,null,null,null,null,null,null,null,null,null,null,null,null,null,null,null,null,null,null,null,null,null,null,null,null,null,null,null,null,null,null,null,null,null,null,null,null,2]
[null,null,null,null,null,null,null,null,null,null,null,null,null,null,null,null,null,null,null,null,null,null,null,null,null,null,null,null,null,null,null,null,null,null,null,null,null,null,null,null,null,null,null,null,null,null,null,null,null,null,null,null,null,null,null,null,null,null,null,null,null,null,null,null,null,null,null,null,null,null,null,null,null,null,null,null,null,null,null,null,null,null,null,null,null,null,null,null,null,null,null,null,null,null,null,null,null,null,null,1]
[null,null,null,null,null,null,null,null,null,null,null,null,null,null,null,null,null,null,null,null,null,null,null,null,null,null,null,null,null,null,null,null,null,null,null,null,null,null,null,null,null,null,null,null,null,null,null,null,null,null,null,null,null,null,null,null,null,null,null,null,null,null,null,null,null,null,null,null,null,null,null,null,null,null,null,null,null,null,null,null,null,null,null,null,null,null,null,null,null,null,null,null,null,null,null,null,null,null,null,2]
[null,null,null,null,null,null,null,null,null,null,null,null,null,null,null,null,null,null,null,null,null,null,null,null,null,null,null,null,null,null,null,null,null,null,null,null,null,null,null,null,null,null,null,null,null,null,null,null,null,null,null,null,null,null,null,null,null,null,null,null,null,null,null,null,null,null,null,null,null,null,null,null,null,null,null,null,null,null,null,null,null,null,null,null,null,null,null,null,null,null,null,null,null,null,null,null,null,null,null,1]
[null,null,null,null,null,null,null,null,null,null,null,null,null,null,null,null,null,null,null,null,null,null,null,null,null,null,null,null,null,null,null,null,null,null,null,null,null,null,null,null,null,null,null,null,null,null,null,null,null,null,null,null,null,null,null,null,null,null,null,null,null,null,null,null,null,null,null,null,null,null,null,null,null,null,null,null,null,null,null,null,null,null,null,null,null,null,null,null,null,null,null,null,null,null,null,null,null,null,null,2]
[null,null,null,null,null,null,null,null,null,null,null,null,null,null,null,null,null,null,null,null,null,null,null,null,null,null,null,null,null,null,null,null,null,null,null,null,null,null,null,null,null,null,null,null,null,null,null,null,null,null,null,null,null,null,null,null,null,null,null,null,null,null,null,null,null,null,null,null,null,null,null,null,null,null,null,null,null,null,null,null,null,null,null,null,null,null,null,null,null,null,null,null,null,null,null,null,null,null,null,1]
[null,null,null,null,null,null,null,null,null,null,null,null,null,null,null,null,null,null,null,null,null,null,null,null,null,null,null,null,null,null,null,null,null,null,null,null,null,null,null,null,null,null,null,null,null,null,null,null,null,null,null,null,null,null,null,null,null,null,null,null,null,null,null,null,null,null,null,null,null,null,null,null,null,null,null,null,null,null,null,null,null,null,null,null,null,null,null,null,null,null,null,null,null,null,null,null,null,null,null,2]
[]
[]
[null,null,null,null,null,null,null,null,null,null,null,null,null,null,null,null,null,null,null,null,null,null,null,null,null,null,null,null,null,null,null,null,null,null,null,null,null,null,null,null,null,null,null,null,null,null,null,null,null,null,null,null,null,null,null,null,null,null,null,null,null,null,null,null,null,null,null,null,null,null,null,null,null,null,null,null,null,null,null,null,null,null,null,null,null,null,null,null,null,null,null,null,null,null,null,null,null,null,null,"1929-08-31","Blackpool","(A)","L 3-4","Cock","Phillips","Landells"]
[null,null,null,null,null,null,null,null,null,null,null,null,null,null,null,null,null,null,null,null,null,null,null,null,null,null,null,null,null,null,null,null,null,null,null,null,null,null,null,null,null,null,null,null,null,null,null,null,null,null,null,null,null,null,null,null,null,null,null,null,null,null,null,null,null,null,null,null,null,null,null,null,null,null,null,null,null,null,null,null,null,null,null,null,null,null,null,null,null,null,null,null,null,null,null,null,null,null,null,"1929-09-02","Tottenham","(H)","L 2-5","Cock","Cock"]
[null,null,null,null,null,null,null,null,null,null,null,null,null,null,null,null,null,null,null,null,null,null,null,null,null,null,null,null,null,null,null,null,null,null,null,null,null,null,null,null,null,null,null,null,null,null,null,null,null,null,null,null,null,null,null,null,null,null,null,null,null,null,null,null,null,null,null,null,null,null,null,null,null,null,null,null,null,null,null,null,null,null,null,null,null,null,null,null,null,null,null,null,null,null,null,null,null,null,null,"1929-09-07","Bury","(H)","L 2-4","Phillips","Cock"]
[null,null,null,null,null,null,null,null,null,null,null,null,null,null,null,null,null,null,null,null,null,null,null,null,null,null,null,null,null,null,null,null,null,null,null,null,null,null,null,null,null,null,null,null,null,null,null,null,null,null,null,null,null,null,null,null,null,null,null,null,null,null,null,null,null,null,null,null,null,null,null,null,null,null,null,null,null,null,null,null,null,null,null,null,null,null,null,null,null,null,null,null,null,null,null,null,null,null,null,"1929-09-14","Chelsea","(A)","L 0-3"]
[null,null,null,null,null,null,null,null,null,null,null,null,null,null,null,null,null,null,null,null,null,null,null,null,null,null,null,null,null,null,null,null,null,null,null,null,null,null,null,null,null,null,null,null,null,null,null,null,null,null,null,null,null,null,null,null,null,null,null,null,null,null,null,null,null,null,null,null,null,null,null,null,null,null,null,null,null,null,null,null,null,null,null,null,null,null,null,null,null,null,null,null,null,null,null,null,null,null,null,"1929-09-16","Bradford PA","(H)","L 1-2","Poxton"]
[null,null,null,null,null,null,null,null,null,null,null,null,null,null,null,null,null,null,null,null,null,null,null,null,null,null,null,null,null,null,null,null,null,null,null,null,null,null,null,null,null,null,null,null,null,null,null,null,null,null,null,null,null,null,null,null,null,null,null,null,null,null,null,null,null,null,null,null,null,null,null,null,null,null,null,null,null,null,null,null,null,null,null,null,null,null,null,null,null,null,null,null,null,null,null,null,null,null,null,"1929-09-21","Nottm Forest","(H)","D 2-2","Corkindale","Cock"]
[null,null,null,null,null,null,null,null,null,null,null,null,null,null,null,null,null,null,null,null,null,null,null,null,null,null,null,null,null,null,null,null,null,null,null,null,null,null,null,null,null,null,null,null,null,null,null,null,null,null,null,null,null,null,null,null,null,null,null,null,null,null,null,null,null,null,null,null,null,null,null,null,null,null,null,null,null,null,null,null,null,null,null,null,null,null,null,null,null,null,null,null,null,null,null,null,null,null,null,"1929-09-23","Tottenham","(A)","D 1-1","Chance"]
[null,null,null,null,null,null,null,null,null,null,null,null,null,null,null,null,null,null,null,null,null,null,null,null,null,null,null,null,null,null,null,null,null,null,null,null,null,null,null,null,null,null,null,null,null,null,null,null,null,null,null,null,null,null,null,null,null,null,null,null,null,null,null,null,null,null,null,null,null,null,null,null,null,null,null,null,null,null,null,null,null,null,null,null,null,null,null,null,null,null,null,null,null,null,null,null,null,null,null,"1929-09-28","Oldham","(A)","D 2-2","Martin","Cock"]
[null,null,null,null,null,null,null,null,null,null,null,null,null,null,null,null,null,null,null,null,null,null,null,null,null,null,null,null,null,null,null,null,null,null,null,null,null,null,null,null,null,null,null,null,null,null,null,null,null,null,null,null,null,null,null,null,null,null,null,null,null,null,null,null,null,null,null,null,null,null,null,null,null,null,null,null,null,null,null,null,null,null,null,null,null,null,null,null,null,null,null,null,null,null,null,null,null,null,null,"1929-10-05","Charlton","(H)","D 1-1","Landells"]
[null,null,null,null,null,null,null,null,null,null,null,null,null,null,null,null,null,null,null,null,null,null,null,null,null,null,null,null,null,null,null,null,null,null,null,null,null,null,null,null,null,null,null,null,null,null,null,null,null,null,null,null,null,null,null,null,null,null,null,null,null,null,null,null,null,null,null,null,null,null,null,null,null,null,null,null,null,null,null,null,null,null,null,null,null,null,null,null,null,null,null,null,null,null,null,null,null,null,null,"1929-10-12","Southampton","(H)","D 1-1","Cock"]
[null,null,null,null,null,null,null,null,null,null,null,null,null,null,null,null,null,null,null,null,null,null,null,null,null,null,null,null,null,null,null,null,null,null,null,null,null,null,null,null,null,null,null,null,null,null,null,null,null,null,null,null,null,null,null,null,null,null,null,null,null,null,null,null,null,null,null,null,null,null,null,null,null,null,null,null,null,null,null,null,null,null,null,null,null,null,null,null,null,null,null,null,null,null,null,null,null,null,null,"1929-10-19","Hull","(A)","L 2-3","Woodards","Phillips"]
[null,null,null,null,null,null,null,null,null,null,null,null,null,null,null,null,null,null,null,null,null,null,null,null,null,null,null,null,null,null,null,null,null,null,null,null,null,null,null,null,null,null,null,null,null,null,null,null,null,null,null,null,null,null,null,null,null,null,null,null,null,null,null,null,null,null,null,null,null,null,null,null,null,null,null,null,null,null,null,null,null,null,null,null,null,null,null,null,null,null,null,null,null,null,null,null,null,null,null,"1929-10-26","Stoke","(H)","W 2-1","Woodards","Landells"]
[null,null,null,null,null,null,null,null,null,null,null,null,null,null,null,null,null,null,null,null,null,null,null,null,null,null,null,null,null,null,null,null,null,null,null,null,null,null,null,null,null,null,null,null,null,null,null,null,null,null,null,null,null,null,null,null,null,null,null,null,null,null,null,null,null,null,null,null,null,null,null,null,null,null,null,null,null,null,null,null,null,null,null,null,null,null,null,null,null,null,null,null,null,null,null,null,null,null,null,"1929-11-02","Wolves","(A)","D 1-1","Woodards"]
[null,null,null,null,null,null,null,null,null,null,null,null,null,null,null,null,null,null,null,null,null,null,null,null,null,null,null,null,null,null,null,null,null,null,null,null,null,null,null,null,null,null,null,null,null,null,null,null,null,null,null,null,null,null,null,null,null,null,null,null,null,null,null,null,null,null,null,null,null,null,null,null,null,null,null,null,null,null,null,null,null,null,null,null,null,null,null,null,null,null,null,null,null,null,null,null,null,null,null,"1929-11-09","Bradford City","(H)","D 2-2","Chance","Landells"]
[null,null,null,null,null,null,null,null,null,null,null,null,null,null,null,null,null,null,null,null,null,null,null,null,null,null,null,null,null,null,null,null,null,null,null,null,null,null,null,null,null,null,null,null,null,null,null,null,null,null,null,null,null,null,null,null,null,null,null,null,null,null,null,null,null,null,null,null,null,null,null,null,null,null,null,null,null,null,null,null,null,null,null,null,null,null,null,null,null,null,null,null,null,null,null,null,null,null,null,"1929-11-16","Swansea","(A)","L 1-3","Chance"]
[null,null,null,null,null,null,null,null,null,null,null,null,null,null,null,null,null,null,null,null,null,null,null,null,null,null,null,null,null,null,null,null,null,null,null,null,null,null,null,null,null,null,null,null,null,null,null,null,null,null,null,null,null,null,null,null,null,null,null,null,null,null,null,null,null,null,null,null,null,null,null,null,null,null,null,null,null,null,null,null,null,null,null,null,null,null,null,null,null,null,null,null,null,null,null,null,null,null,null,"1929-11-23","Cardiff","(H)","W 2-0","Rounsfull","Poxton"]
[null,null,null,null,null,null,null,null,null,null,null,null,null,null,null,null,null,null,null,null,null,null,null,null,null,null,null,null,null,null,null,null,null,null,null,null,null,null,null,null,null,null,null,null,null,null,null,null,null,null,null,null,null,null,null,null,null,null,null,null,null,null,null,null,null,null,null,null,null,null,null,null,null,null,null,null,null,null,null,null,null,null,null,null,null,null,null,null,null,null,null,null,null,null,null,null,null,null,null,"1929-11-30","Preston","(A)","L 1-3","Cock"]
[null,null,null,null,null,null,null,null,null,null,null,null,null,null,null,null,null,null,null,null,null,null,null,null,null,null,null,null,null,null,null,null,null,null,null,null,null,null,null,null,null,null,null,null,null,null,null,null,null,null,null,null,null,null,null,null,null,null,null,null,null,null,null,null,null,null,null,null,null,null,null,null,null,null,null,null,null,null,null,null,null,null,null,null,null,null,null,null,null,null,null,null,null,null,null,null,null,null,null,"1929-12-07","Bristol C","(H)","D 1-1","Gomm"]
[null,null,null,null,null,null,null,null,null,null,null,null,null,null,null,null,null,null,null,null,null,null,null,null,null,null,null,null,null,null,null,null,null,null,null,null,null,null,null,null,null,null,null,null,null,null,null,null,null,null,null,null,null,null,null,null,null,null,null,null,null,null,null,null,null,null,null,null,null,null,null,null,null,null,null,null,null,null,null,null,null,null,null,null,null,null,null,null,null,null,null,null,null,null,null,null,null,null,null,"1929-12-14","Notts Co","(A)","D 1-1","Forsyth"]
[null,null,null,null,null,null,null,null,null,null,null,null,null,null,null,null,null,null,null,null,null,null,null,null,null,null,null,null,null,null,null,null,null,null,null,null,null,null,null,null,null,null,null,null,null,null,null,null,null,null,null,null,null,null,null,null,null,null,null,null,null,null,null,null,null,null,null,null,null,null,null,null,null,null,null,null,null,null,null,null,null,null,null,null,null,null,null,null,null,null,null,null,null,null,null,null,null,null,null,"1929-12-21","Reading","(H)","W 3-1","Phillips","Forsyth","Bryant"]
[null,null,null,null,null,null,null,null,null,null,null,null,null,null,null,null,null,null,null,null,null,null,null,null,null,null,null,null,null,null,null,null,null,null,null,null,null,null,null,null,null,null,null,null,null,null,null,null,null,null,null,null,null,null,null,null,null,null,null,null,null,null,null,null,null,null,null,null,null,null,null,null,null,null,null,null,null,null,null,null,null,null,null,null,null,null,null,null,null,null,null,null,null,null,null,null,null,null,null,"1929-12-25","West Brom","(H)","W 2-1","Chance","Graham"]
[null,null,null,null,null,null,null,null,null,null,null,null,null,null,null,null,null,null,null,null,null,null,null,null,null,null,null,null,null,null,null,null,null,null,null,null,null,null,null,null,null,null,null,null,null,null,null,null,null,null,null,null,null,null,null,null,null,null,null,null,null,null,null,null,null,null,null,null,null,null,null,null,null,null,null,null,null,null,null,null,null,null,null,null,null,null,null,null,null,null,null,null,null,null,null,null,null,null,null,"1929-12-26","West Brom","(A)","L 1-6","Forsyth"]
[null,null,null,null,null,null,null,null,null,null,null,null,null,null,null,null,null,null,null,null,null,null,null,null,null,null,null,null,null,null,null,null,null,null,null,null,null,null,null,null,null,null,null,null,null,null,null,null,null,null,null,null,null,null,null,null,null,null,null,null,null,null,null,null,null,null,null,null,null,null,null,null,null,null,null,null,null,null,null,null,null,null,null,null,null,null,null,null,null,null,null,null,null,null,null,null,null,null,null,"1929-12-28","Blackpool","(H)","W 3-1","Corkindale","Corkindale","Cock"]
[null,null,null,null,null,null,null,null,null,null,null,null,null,null,null,null,null,null,null,null,null,null,null,null,null,null,null,null,null,null,null,null,null,null,null,null,null,null,null,null,null,null,null,null,null,null,null,null,null,null,null,null,null,null,null,null,null,null,null,null,null,null,null,null,null,null,null,null,null,null,null,null,null,null,null,null,null,null,null,null,null,null,null,null,null,null,null,null,null,null,null,null,null,null,null,null,null,null,null,"1930-01-04","Bury","(A)","L 1-5","Phillips"]
[null,null,null,null,null,null,null,null,null,null,null,null,null,null,null,null,null,null,null,null,null,null,null,null,null,null,null,null,null,null,null,null,null,null,null,null,null,null,null,null,null,null,null,null,null,null,null,null,null,null,null,null,null,null,null,null,null,null,null,null,null,null,null,null,null,null,null,null,null,null,null,null,null,null,null,null,null,null,null,null,null,null,null,null,null,null,null,null,null,null,null,null,null,null,null,null,null,null,null,"1930-01-11","Corinthians","(A)","D 2-2","Forsyth","Phillips"]
[null,null,null,null,null,null,null,null,null,null,null,null,null,null,null,null,null,null,null,null,null,null,null,null,null,null,null,null,null,null,null,null,null,null,null,null,null,null,null,null,null,null,null,null,null,null,null,null,null,null,null,null,null,null,null,null,null,null,null,null,null,null,null,null,null,null,null,null,null,null,null,null,null,null,null,null,null,null,null,null,null,null,null,null,null,null,null,null,null,null,null,null,null,null,null,null,null,null,null,"1930-01-15","Corinthians","(H)","D 1-1 ","Poxton"]
[null,null,null,null,null,null,null,null,null,null,null,null,null,null,null,null,null,null,null,null,null,null,null,null,null,null,null,null,null,null,null,null,null,null,null,null,null,null,null,null,null,null,null,null,null,null,null,null,null,null,null,null,null,null,null,null,null,null,null,null,null,null,null,null,null,null,null,null,null,null,null,null,null,null,null,null,null,null,null,null,null,null,null,null,null,null,null,null,null,null,null,null,null,null,null,null,null,null,null,"1930-01-18","Chelsea","(H)","D 0-0"]
[null,null,null,null,null,null,null,null,null,null,null,null,null,null,null,null,null,null,null,null,null,null,null,null,null,null,null,null,null,null,null,null,null,null,null,null,null,null,null,null,null,null,null,null,null,null,null,null,null,null,null,null,null,null,null,null,null,null,null,null,null,null,null,null,null,null,null,null,null,null,null,null,null,null,null,null,null,null,null,null,null,null,null,null,null,null,null,null,null,null,null,null,null,null,null,null,null,null,null,"1930-01-20","Corinthians","(N)","W 5-1","Forsyth","Corkindale","Corkindale","Cock","Cock"]
[null,null,null,null,null,null,null,null,null,null,null,null,null,null,null,null,null,null,null,null,null,null,null,null,null,null,null,null,null,null,null,null,null,null,null,null,null,null,null,null,null,null,null,null,null,null,null,null,null,null,null,null,null,null,null,null,null,null,null,null,null,null,null,null,null,null,null,null,null,null,null,null,null,null,null,null,null,null,null,null,null,null,null,null,null,null,null,null,null,null,null,null,null,null,null,null,null,null,null,"1930-01-25","Doncaster Rovers","(H)","W 4-0","Hawkins","Hawkins","Corkindale","Wadsworth"]
[null,null,null,null,null,null,null,null,null,null,null,null,null,null,null,null,null,null,null,null,null,null,null,null,null,null,null,null,null,null,null,null,null,null,null,null,null,null,null,null,null,null,null,null,null,null,null,null,null,null,null,null,null,null,null,null,null,null,null,null,null,null,null,null,null,null,null,null,null,null,null,null,null,null,null,null,null,null,null,null,null,null,null,null,null,null,null,null,null,null,null,null,null,null,null,null,null,null,null,"1930-02-01","Oldham","(H)","W 2-1","Cock","Cock"]
[null,null,null,null,null,null,null,null,null,null,null,null,null,null,null,null,null,null,null,null,null,null,null,null,null,null,null,null,null,null,null,null,null,null,null,null,null,null,null,null,null,null,null,null,null,null,null,null,null,null,null,null,null,null,null,null,null,null,null,null,null,null,null,null,null,null,null,null,null,null,null,null,null,null,null,null,null,null,null,null,null,null,null,null,null,null,null,null,null,null,null,null,null,null,null,null,null,null,null,"1930-02-05","Nottm Forest","(A)","D 1-1","Forsyth"]
[null,null,null,null,null,null,null,null,null,null,null,null,null,null,null,null,null,null,null,null,null,null,null,null,null,null,null,null,null,null,null,null,null,null,null,null,null,null,null,null,null,null,null,null,null,null,null,null,null,null,null,null,null,null,null,null,null,null,null,null,null,null,null,null,null,null,null,null,null,null,null,null,null,null,null,null,null,null,null,null,null,null,null,null,null,null,null,null,null,null,null,null,null,null,null,null,null,null,null,"1930-02-08","Charlton","(A)","D 1-1","Hawkins"]
[null,null,null,null,null,null,null,null,null,null,null,null,null,null,null,null,null,null,null,null,null,null,null,null,null,null,null,null,null,null,null,null,null,null,null,null,null,null,null,null,null,null,null,null,null,null,null,null,null,null,null,null,null,null,null,null,null,null,null,null,null,null,null,null,null,null,null,null,null,null,null,null,null,null,null,null,null,null,null,null,null,null,null,null,null,null,null,null,null,null,null,null,null,null,null,null,null,null,null,"1930-02-15","West Ham Utd","(A)","L 1-4","Wadsworth"]
[null,null,null,null,null,null,null,null,null,null,null,null,null,null,null,null,null,null,null,null,null,null,null,null,null,null,null,null,null,null,null,null,null,null,null,null,null,null,null,null,null,null,null,null,null,null,null,null,null,null,null,null,null,null,null,null,null,null,null,null,null,null,null,null,null,null,null,null,null,null,null,null,null,null,null,null,null,null,null,null,null,null,null,null,null,null,null,null,null,null,null,null,null,null,null,null,null,null,null,"1930-02-22","Hull","(H)","D 0-0"]
[null,null,null,null,null,null,null,null,null,null,null,null,null,null,null,null,null,null,null,null,null,null,null,null,null,null,null,null,null,null,null,null,null,null,null,null,null,null,null,null,null,null,null,null,null,null,null,null,null,null,null,null,null,null,null,null,null,null,null,null,null,null,null,null,null,null,null,null,null,null,null,null,null,null,null,null,null,null,null,null,null,null,null,null,null,null,null,null,null,null,null,null,null,null,null,null,null,null,null,"1930-03-01","Stoke","(A)","L 0-1"]
[null,null,null,null,null,null,null,null,null,null,null,null,null,null,null,null,null,null,null,null,null,null,null,null,null,null,null,null,null,null,null,null,null,null,null,null,null,null,null,null,null,null,null,null,null,null,null,null,null,null,null,null,null,null,null,null,null,null,null,null,null,null,null,null,null,null,null,null,null,null,null,null,null,null,null,null,null,null,null,null,null,null,null,null,null,null,null,null,null,null,null,null,null,null,null,null,null,null,null,"1930-03-03","Southampton","(A)","D 0-0"]
[null,null,null,null,null,null,null,null,null,null,null,null,null,null,null,null,null,null,null,null,null,null,null,null,null,null,null,null,null,null,null,null,null,null,null,null,null,null,null,null,null,null,null,null,null,null,null,null,null,null,null,null,null,null,null,null,null,null,null,null,null,null,null,null,null,null,null,null,null,null,null,null,null,null,null,null,null,null,null,null,null,null,null,null,null,null,null,null,null,null,null,null,null,null,null,null,null,null,null,"1930-03-08","Wolves","(H)","W 4-0","Munro","Corkindale","Readman","Watkins"]
[null,null,null,null,null,null,null,null,null,null,null,null,null,null,null,null,null,null,null,null,null,null,null,null,null,null,null,null,null,null,null,null,null,null,null,null,null,null,null,null,null,null,null,null,null,null,null,null,null,null,null,null,null,null,null,null,null,null,null,null,null,null,null,null,null,null,null,null,null,null,null,null,null,null,null,null,null,null,null,null,null,null,null,null,null,null,null,null,null,null,null,null,null,null,null,null,null,null,null,"1930-03-15","Bradford City","(A)","D 1-1","Readman"]
[null,null,null,null,null,null,null,null,null,null,null,null,null,null,null,null,null,null,null,null,null,null,null,null,null,null,null,null,null,null,null,null,null,null,null,null,null,null,null,null,null,null,null,null,null,null,null,null,null,null,null,null,null,null,null,null,null,null,null,null,null,null,null,null,null,null,null,null,null,null,null,null,null,null,null,null,null,null,null,null,null,null,null,null,null,null,null,null,null,null,null,null,null,null,null,null,null,null,null,"1930-03-22","Swansea","(H)","L 0-2"]
[null,null,null,null,null,null,null,null,null,null,null,null,null,null,null,null,null,null,null,null,null,null,null,null,null,null,null,null,null,null,null,null,null,null,null,null,null,null,null,null,null,null,null,null,null,null,null,null,null,null,null,null,null,null,null,null,null,null,null,null,null,null,null,null,null,null,null,null,null,null,null,null,null,null,null,null,null,null,null,null,null,null,null,null,null,null,null,null,null,null,null,null,null,null,null,null,null,null,null,"1930-03-29","Cardiff","(A)","L 1-3","Cock"]
[null,null,null,null,null,null,null,null,null,null,null,null,null,null,null,null,null,null,null,null,null,null,null,null,null,null,null,null,null,null,null,null,null,null,null,null,null,null,null,null,null,null,null,null,null,null,null,null,null,null,null,null,null,null,null,null,null,null,null,null,null,null,null,null,null,null,null,null,null,null,null,null,null,null,null,null,null,null,null,null,null,null,null,null,null,null,null,null,null,null,null,null,null,null,null,null,null,null,null,"1930-04-05","Preston","(H)","W 2-0","Cock","Horton"]
[null,null,null,null,null,null,null,null,null,null,null,null,null,null,null,null,null,null,null,null,null,null,null,null,null,null,null,null,null,null,null,null,null,null,null,null,null,null,null,null,null,null,null,null,null,null,null,null,null,null,null,null,null,null,null,null,null,null,null,null,null,null,null,null,null,null,null,null,null,null,null,null,null,null,null,null,null,null,null,null,null,null,null,null,null,null,null,null,null,null,null,null,null,null,null,null,null,null,null,"1930-04-12","Bristol C","(A)","L 0-1"]
[null,null,null,null,null,null,null,null,null,null,null,null,null,null,null,null,null,null,null,null,null,null,null,null,null,null,null,null,null,null,null,null,null,null,null,null,null,null,null,null,null,null,null,null,null,null,null,null,null,null,null,null,null,null,null,null,null,null,null,null,null,null,null,null,null,null,null,null,null,null,null,null,null,null,null,null,null,null,null,null,null,null,null,null,null,null,null,null,null,null,null,null,null,null,null,null,null,null,null,"1930-04-18","Barnsley","(H)","W 2-1","Forsyth","Poxton"]
[null,null,null,null,null,null,null,null,null,null,null,null,null,null,null,null,null,null,null,null,null,null,null,null,null,null,null,null,null,null,null,null,null,null,null,null,null,null,null,null,null,null,null,null,null,null,null,null,null,null,null,null,null,null,null,null,null,null,null,null,null,null,null,null,null,null,null,null,null,null,null,null,null,null,null,null,null,null,null,null,null,null,null,null,null,null,null,null,null,null,null,null,null,null,null,null,null,null,null,"1930-04-19","Notts Co","(H)","W 2-0","Horton","Cock"]
[null,null,null,null,null,null,null,null,null,null,null,null,null,null,null,null,null,null,null,null,null,null,null,null,null,null,null,null,null,null,null,null,null,null,null,null,null,null,null,null,null,null,null,null,null,null,null,null,null,null,null,null,null,null,null,null,null,null,null,null,null,null,null,null,null,null,null,null,null,null,null,null,null,null,null,null,null,null,null,null,null,null,null,null,null,null,null,null,null,null,null,null,null,null,null,null,null,null,null,"1930-04-21","Barnsley","(A)","W 2-1","Munro","Readman"]
[null,null,null,null,null,null,null,null,null,null,null,null,null,null,null,null,null,null,null,null,null,null,null,null,null,null,null,null,null,null,null,null,null,null,null,null,null,null,null,null,null,null,null,null,null,null,null,null,null,null,null,null,null,null,null,null,null,null,null,null,null,null,null,null,null,null,null,null,null,null,null,null,null,null,null,null,null,null,null,null,null,null,null,null,null,null,null,null,null,null,null,null,null,null,null,null,null,null,null,"1930-04-26","Reading","(A)","W 1-0","Cock"]
[null,null,null,null,null,null,null,null,null,null,null,null,null,null,null,null,null,null,null,null,null,null,null,null,null,null,null,null,null,null,null,null,null,null,null,null,null,null,null,null,null,null,null,null,null,null,null,null,null,null,null,null,null,null,null,null,null,null,null,null,null,null,null,null,null,null,null,null,null,null,null,null,null,null,null,null,null,null,null,null,null,null,null,null,null,null,null,null,null,null,null,null,null,null,null,null,null,null,null,"1930-05-03","Bradford PA","(A)","L 0-6"]

{"sheet":"Comparison","index":1,"n_rows":175,"n_cols":44,"rows_kept":175,"cut":false,"hidden":false,"merged":[]}
[]
[]
["Formulas",null,null,null,null,"Date",null,"Opponents","Venue / Result",null,{"$f":"Millwall!$BP$72","v":"Amos"},{"$f":"Millwall!$BP$73","v":"Barrett"},{"$f":"Millwall!$BP$74","v":"Black"},{"$f":"Millwall!$BP$75","v":"Bryant"},{"$f":"Millwall!$BP$76","v":"Chance"},{"$f":"Millwall!$BP$77","v":"Cock"},{"$f":"Millwall!$BP$78","v":"Corkindale"},{"$f":"Millwall!$BP$79","v":"Forsyth"},{"$f":"Millwall!$BP$80","v":"Fort"},{"$f":"Millwall!$BP$81","v":"Gomm"},{"$f":"Millwall!$BP$82","v":"Graham"},{"$f":"Millwall!$BP$83","v":"Harris"},{"$f":"Millwall!$BP$84","v":"Hawkins"},{"$f":"Millwall!$BP$85","v":"Hill"},{"$f":"Millwall!$BP$86","v":"Horton"},{"$f":"Millwall!$BP$87","v":"Jones"},{"$f":"Millwall!$BP$88","v":"Landells"},{"$f":"Millwall!$BP$89","v":"Lansdale"},{"$f":"Millwall!$BP$90","v":"Martin"},{"$f":"Millwall!$BP$91","v":"Moran"},{"$f":"Millwall!$BP$92","v":"Munro"},{"$f":"Millwall!$BP$93","v":"Page"},{"$f":"Millwall!$BP$94","v":"Phillips"},{"$f":"Millwall!$BP$95","v":"Pipe"},{"$f":"Millwall!$BP$96","v":"Poxton"},{"$f":"Millwall!$BP$97","v":"Readman"},{"$f":"Millwall!$BP$98","v":"Rounsfull"},{"$f":"Millwall!$BP$99","v":"Smith"},{"$f":"Millwall!$BP$100","v":"Sweetman"},{"$f":"Millwall!$BP$101","v":"Tyler"},{"$f":"Millwall!$BP$102","v":"Wadsworth"},{"$f":"Millwall!$BP$103","v":"Watkins"},{"$f":"Millwall!$BP$104","v":"Wilson"},{"$f":"Millwall!$BP$105","v":"Woodards"}]
[null,null,null,1,null,{"$f":"Millwall!AI78","v":"1929-08-31"},null,{"$f":"Millwall!AK78","v":"Blackpool"},{"$f":"Millwall!AL78","v":"(A)"},{"$f":"Millwall!AO78","v":"L 3-4"},{"$f":"MATCH(K$3,Millwall!$AP78:$AZ78,0)","v":{"$error":"#N/A"}},{"$f":"MATCH(L$3,Millwall!$AP78:$AZ78,0)","v":{"$error":"#N/A"}},{"$f":"MATCH(M$3,Millwall!$AP78:$AZ78,0)","v":11},{"$f":"MATCH(N$3,Millwall!$AP78:$AZ78,0)","v":{"$error":"#N/A"}},{"$f":"MATCH(O$3,Millwall!$AP78:$AZ78,0)","v":7},{"$f":"MATCH(P$3,Millwall!$AP78:$AZ78,0)","v":9},{"$f":"MATCH(Q$3,Millwall!$AP78:$AZ78,0)","v":{"$error":"#N/A"}},{"$f":"MATCH(R$3,Millwall!$AP78:$AZ78,0)","v":{"$error":"#N/A"}},{"$f":"MATCH(S$3,Millwall!$AP78:$AZ78,0)","v":{"$error":"#N/A"}},{"$f":"MATCH(T$3,Millwall!$AP78:$AZ78,0)","v":5},{"$f":"MATCH(U$3,Millwall!$AP78:$AZ78,0)","v":6},{"$f":"MATCH(V$3,Millwall!$AP78:$AZ78,0)","v":{"$error":"#N/A"}},{"$f":"MATCH(W$3,Millwall!$AP78:$AZ78,0)","v":{"$error":"#N/A"}},{"$f":"MATCH(X$3,Millwall!$AP78:$AZ78,0)","v":3},{"$f":"MATCH(Y$3,Millwall!$AP78:$AZ78,0)","v":{"$error":"#N/A"}},{"$f":"MATCH(Z$3,Millwall!$AP78:$AZ78,0)","v":4},{"$f":"MATCH(AA$3,Millwall!$AP78:$AZ78,0)","v":8},{"$f":"MATCH(AB$3,Millwall!$AP78:$AZ78,0)","v":1},{"$f":"MATCH(AC$3,Millwall!$AP78:$AZ78,0)","v":{"$error":"#N/A"}},{"$f":"MATCH(AD$3,Millwall!$AP78:$AZ78,0)","v":{"$error":"#N/A"}},{"$f":"MATCH(AE$3,Millwall!$AP78:$AZ78,0)","v":{"$error":"#N/A"}},{"$f":"MATCH(AF$3,Millwall!$AP78:$AZ78,0)","v":{"$error":"#N/A"}},{"$f":"MATCH(AG$3,Millwall!$AP78:$AZ78,0)","v":10},{"$f":"MATCH(AH$3,Millwall!$AP78:$AZ78,0)","v":{"$error":"#N/A"}},{"$f":"MATCH(AI$3,Millwall!$AP78:$AZ78,0)","v":{"$error":"#N/A"}},{"$f":"MATCH(AJ$3,Millwall!$AP78:$AZ78,0)","v":{"$error":"#N/A"}},{"$f":"MATCH(AK$3,Millwall!$AP78:$AZ78,0)","v":{"$error":"#N/A"}},{"$f":"MATCH(AL$3,Millwall!$AP78:$AZ78,0)","v":{"$error":"#N/A"}},{"$f":"MATCH(AM$3,Millwall!$AP78:$AZ78,0)","v":2},{"$f":"MATCH(AN$3,Millwall!$AP78:$AZ78,0)","v":{"$error":"#N/A"}},{"$f":"MATCH(AO$3,Millwall!$AP78:$AZ78,0)","v":{"$error":"#N/A"}},{"$f":"MATCH(AP$3,Millwall!$AP78:$AZ78,0)","v":{"$error":"#N/A"}},{"$f":"MATCH(AQ$3,Millwall!$AP78:$AZ78,0)","v":{"$error":"#N/A"}},{"$f":"MATCH(AR$3,Millwall!$AP78:$AZ78,0)","v":{"$error":"#N/A"}}]
[null,null,null,2,null,{"$f":"Millwall!AI79","v":"1929-09-02"},null,{"$f":"Millwall!AK79","v":"Tottenham"},{"$f":"Millwall!AL79","v":"(H)"},{"$f":"Millwall!AO79","v":"L 2-5"},{"$f":"MATCH(K$3,Millwall!$AP79:$AZ79,0)","v":{"$error":"#N/A"}},{"$f":"MATCH(L$3,Millwall!$AP79:$AZ79,0)","v":{"$error":"#N/A"}},{"$f":"MATCH(M$3,Millwall!$AP79:$AZ79,0)","v":11},{"$f":"MATCH(N$3,Millwall!$AP79:$AZ79,0)","v":{"$error":"#N/A"}},{"$f":"MATCH(O$3,Millwall!$AP79:$AZ79,0)","v":7},{"$f":"MATCH(P$3,Millwall!$AP79:$AZ79,0)","v":9},{"$f":"MATCH(Q$3,Millwall!$AP79:$AZ79,0)","v":{"$error":"#N/A"}},{"$f":"MATCH(R$3,Millwall!$AP79:$AZ79,0)","v":{"$error":"#N/A"}},{"$f":"MATCH(S$3,Millwall!$AP79:$AZ79,0)","v":{"$error":"#N/A"}},{"$f":"MATCH(T$3,Millwall!$AP79:$AZ79,0)","v":5},{"$f":"MATCH(U$3,Millwall!$AP79:$AZ79,0)","v":6},{"$f":"MATCH(V$3,Millwall!$AP79:$AZ79,0)","v":{"$error":"#N/A"}},{"$f":"MATCH(W$3,Millwall!$AP79:$AZ79,0)","v":{"$error":"#N/A"}},{"$f":"MATCH(X$3,Millwall!$AP79:$AZ79,0)","v":3},{"$f":"MATCH(Y$3,Millwall!$AP79:$AZ79,0)","v":{"$error":"#N/A"}},{"$f":"MATCH(Z$3,Millwall!$AP79:$AZ79,0)","v":4},{"$f":"MATCH(AA$3,Millwall!$AP79:$AZ79,0)","v":8},{"$f":"MATCH(AB$3,Millwall!$AP79:$AZ79,0)","v":1},{"$f":"MATCH(AC$3,Millwall!$AP79:$AZ79,0)","v":{"$error":"#N/A"}},{"$f":"MATCH(AD$3,Millwall!$AP79:$AZ79,0)","v":{"$error":"#N/A"}},{"$f":"MATCH(AE$3,Millwall!$AP79:$AZ79,0)","v":{"$error":"#N/A"}},{"$f":"MATCH(AF$3,Millwall!$AP79:$AZ79,0)","v":{"$error":"#N/A"}},{"$f":"MATCH(AG$3,Millwall!$AP79:$AZ79,0)","v":10},{"$f":"MATCH(AH$3,Millwall!$AP79:$AZ79,0)","v":{"$error":"#N/A"}},{"$f":"MATCH(AI$3,Millwall!$AP79:$AZ79,0)","v":{"$error":"#N/A"}},{"$f":"MATCH(AJ$3,Millwall!$AP79:$AZ79,0)","v":{"$error":"#N/A"}},{"$f":"MATCH(AK$3,Millwall!$AP79:$AZ79,0)","v":{"$error":"#N/A"}},{"$f":"MATCH(AL$3,Millwall!$AP79:$AZ79,0)","v":{"$error":"#N/A"}},{"$f":"MATCH(AM$3,Millwall!$AP79:$AZ79,0)","v":2},{"$f":"MATCH(AN$3,Millwall!$AP79:$AZ79,0)","v":{"$error":"#N/A"}},{"$f":"MATCH(AO$3,Millwall!$AP79:$AZ79,0)","v":{"$error":"#N/A"}},{"$f":"MATCH(AP$3,Millwall!$AP79:$AZ79,0)","v":{"$error":"#N/A"}},{"$f":"MATCH(AQ$3,Millwall!$AP79:$AZ79,0)","v":{"$error":"#N/A"}},{"$f":"MATCH(AR$3,Millwall!$AP79:$AZ79,0)","v":{"$error":"#N/A"}}]
[null,null,null,3,null,{"$f":"Millwall!AI80","v":"1929-09-07"},null,{"$f":"Millwall!AK80","v":"Bury"},{"$f":"Millwall!AL80","v":"(H)"},{"$f":"Millwall!AO80","v":"L 2-4"},{"$f":"MATCH(K$3,Millwall!$AP80:$AZ80,0)","v":4},{"$f":"MATCH(L$3,Millwall!$AP80:$AZ80,0)","v":{"$error":"#N/A"}},{"$f":"MATCH(M$3,Millwall!$AP80:$AZ80,0)","v":{"$error":"#N/A"}},{"$f":"MATCH(N$3,Millwall!$AP80:$AZ80,0)","v":{"$error":"#N/A"}},{"$f":"MATCH(O$3,Millwall!$AP80:$AZ80,0)","v":7},{"$f":"MATCH(P$3,Millwall!$AP80:$AZ80,0)","v":9},{"$f":"MATCH(Q$3,Millwall!$AP80:$AZ80,0)","v":11},{"$f":"MATCH(R$3,Millwall!$AP80:$AZ80,0)","v":{"$error":"#N/A"}},{"$f":"MATCH(S$3,Millwall!$AP80:$AZ80,0)","v":{"$error":"#N/A"}},{"$f":"MATCH(T$3,Millwall!$AP80:$AZ80,0)","v":5},{"$f":"MATCH(U$3,Millwall!$AP80:$AZ80,0)","v":6},{"$f":"MATCH(V$3,Millwall!$AP80:$AZ80,0)","v":{"$error":"#N/A"}},{"$f":"MATCH(W$3,Millwall!$AP80:$AZ80,0)","v":{"$error":"#N/A"}},{"$f":"MATCH(X$3,Millwall!$AP80:$AZ80,0)","v":3},{"$f":"MATCH(Y$3,Millwall!$AP80:$AZ80,0)","v":{"$error":"#N/A"}},{"$f":"MATCH(Z$3,Millwall!$AP80:$AZ80,0)","v":{"$error":"#N/A"}},{"$f":"MATCH(AA$3,Millwall!$AP80:$AZ80,0)","v":8},{"$f":"MATCH(AB$3,Millwall!$AP80:$AZ80,0)","v":{"$error":"#N/A"}},{"$f":"MATCH(AC$3,Millwall!$AP80:$AZ80,0)","v":{"$error":"#N/A"}},{"$f":"MATCH(AD$3,Millwall!$AP80:$AZ80,0)","v":{"$error":"#N/A"}},{"$f":"MATCH(AE$3,Millwall!$AP80:$AZ80,0)","v":{"$error":"#N/A"}},{"$f":"MATCH(AF$3,Millwall!$AP80:$AZ80,0)","v":{"$error":"#N/A"}},{"$f":"MATCH(AG$3,Millwall!$AP80:$AZ80,0)","v":10},{"$f":"MATCH(AH$3,Millwall!$AP80:$AZ80,0)","v":{"$error":"#N/A"}},{"$f":"MATCH(AI$3,Millwall!$AP80:$AZ80,0)","v":{"$error":"#N/A"}},{"$f":"MATCH(AJ$3,Millwall!$AP80:$AZ80,0)","v":{"$error":"#N/A"}},{"$f":"MATCH(AK$3,Millwall!$AP80:$AZ80,0)","v":{"$error":"#N/A"}},{"$f":"MATCH(AL$3,Millwall!$AP80:$AZ80,0)","v":{"$error":"#N/A"}},{"$f":"MATCH(AM$3,Millwall!$AP80:$AZ80,0)","v":2},{"$f":"MATCH(AN$3,Millwall!$AP80:$AZ80,0)","v":{"$error":"#N/A"}},{"$f":"MATCH(AO$3,Millwall!$AP80:$AZ80,0)","v":{"$error":"#N/A"}},{"$f":"MATCH(AP$3,Millwall!$AP80:$AZ80,0)","v":{"$error":"#N/A"}},{"$f":"MATCH(AQ$3,Millwall!$AP80:$AZ80,0)","v":1},{"$f":"MATCH(AR$3,Millwall!$AP80:$AZ80,0)","v":{"$error":"#N/A"}}]
[null,null,null,4,null,{"$f":"Millwall!AI81","v":"1929-09-14"},null,{"$f":"Millwall!AK81","v":"Chelsea"},{"$f":"Millwall!AL81","v":"(A)"},{"$f":"Millwall!AO81","v":"L 0-3"},{"$f":"MATCH(K$3,Millwall!$AP81:$AZ81,0)","v":{"$error":"#N/A"}},{"$f":"MATCH(L$3,Millwall!$AP81:$AZ81,0)","v":{"$error":"#N/A"}},{"$f":"MATCH(M$3,Millwall!$AP81:$AZ81,0)","v":{"$error":"#N/A"}},{"$f":"MATCH(N$3,Millwall!$AP81:$AZ81,0)","v":5},{"$f":"MATCH(O$3,Millwall!$AP81:$AZ81,0)","v":7},{"$f":"MATCH(P$3,Millwall!$AP81:$AZ81,0)","v":9},{"$f":"MATCH(Q$3,Millwall!$AP81:$AZ81,0)","v":11},{"$f":"MATCH(R$3,Millwall!$AP81:$AZ81,0)","v":{"$error":"#N/A"}},{"$f":"MATCH(S$3,Millwall!$AP81:$AZ81,0)","v":{"$error":"#N/A"}},{"$f":"MATCH(T$3,Millwall!$AP81:$AZ81,0)","v":{"$error":"#N/A"}},{"$f":"MATCH(U$3,Millwall!$AP81:$AZ81,0)","v":6},{"$f":"MATCH(V$3,Millwall!$AP81:$AZ81,0)","v":{"$error":"#N/A"}},{"$f":"MATCH(W$3,Millwall!$AP81:$AZ81,0)","v":{"$error":"#N/A"}},{"$f":"MATCH(X$3,Millwall!$AP81:$AZ81,0)","v":2},{"$f":"MATCH(Y$3,Millwall!$AP81:$AZ81,0)","v":{"$error":"#N/A"}},{"$f":"MATCH(Z$3,Millwall!$AP81:$AZ81,0)","v":4},{"$f":"MATCH(AA$3,Millwall!$AP81:$AZ81,0)","v":8},{"$f":"MATCH(AB$3,Millwall!$AP81:$AZ81,0)","v":{"$error":"#N/A"}},{"$f":"MATCH(AC$3,Millwall!$AP81:$AZ81,0)","v":{"$error":"#N/A"}},{"$f":"MATCH(AD$3,Millwall!$AP81:$AZ81,0)","v":{"$error":"#N/A"}},{"$f":"MATCH(AE$3,Millwall!$AP81:$AZ81,0)","v":{"$error":"#N/A"}},{"$f":"MATCH(AF$3,Millwall!$AP81:$AZ81,0)","v":{"$error":"#N/A"}},{"$f":"MATCH(AG$3,Millwall!$AP81:$AZ81,0)","v":10},{"$f":"MATCH(AH$3,Millwall!$AP81:$AZ81,0)","v":3},{"$f":"MATCH(AI$3,Millwall!$AP81:$AZ81,0)","v":{"$error":"#N/A"}},{"$f":"MATCH(AJ$3,Millwall!$AP81:$AZ81,0)","v":{"$error":"#N/A"}},{"$f":"MATCH(AK$3,Millwall!$AP81:$AZ81,0)","v":{"$error":"#N/A"}},{"$f":"MATCH(AL$3,Millwall!$AP81:$AZ81,0)","v":{"$error":"#N/A"}},{"$f":"MATCH(AM$3,Millwall!$AP81:$AZ81,0)","v":{"$error":"#N/A"}},{"$f":"MATCH(AN$3,Millwall!$AP81:$AZ81,0)","v":{"$error":"#N/A"}},{"$f":"MATCH(AO$3,Millwall!$AP81:$AZ81,0)","v":{"$error":"#N/A"}},{"$f":"MATCH(AP$3,Millwall!$AP81:$AZ81,0)","v":{"$error":"#N/A"}},{"$f":"MATCH(AQ$3,Millwall!$AP81:$AZ81,0)","v":1},{"$f":"MATCH(AR$3,Millwall!$AP81:$AZ81,0)","v":{"$error":"#N/A"}}]
[null,null,null,5,null,{"$f":"Millwall!AI82","v":"1929-09-16"},null,{"$f":"Millwall!AK82","v":"Bradford PA"},{"$f":"Millwall!AL82","v":"(H)"},{"$f":"Millwall!AO82","v":"L 1-2"},{"$f":"MATCH(K$3,Millwall!$AP82:$AZ82,0)","v":{"$error":"#N/A"}},{"$f":"MATCH(L$3,Millwall!$AP82:$AZ82,0)","v":{"$error":"#N/A"}},{"$f":"MATCH(M$3,Millwall!$AP82:$AZ82,0)","v":{"$error":"#N/A"}},{"$f":"MATCH(N$3,Millwall!$AP82:$AZ82,0)","v":5},{"$f":"MATCH(O$3,Millwall!$AP82:$AZ82,0)","v":{"$error":"#N/A"}},{"$f":"MATCH(P$3,Millwall!$AP82:$AZ82,0)","v":9},{"$f":"MATCH(Q$3,Millwall!$AP82:$AZ82,0)","v":7},{"$f":"MATCH(R$3,Millwall!$AP82:$AZ82,0)","v":6},{"$f":"MATCH(S$3,Millwall!$AP82:$AZ82,0)","v":{"$error":"#N/A"}},{"$f":"MATCH(T$3,Millwall!$AP82:$AZ82,0)","v":{"$error":"#N/A"}},{"$f":"MATCH(U$3,Millwall!$AP82:$AZ82,0)","v":4},{"$f":"MATCH(V$3,Millwall!$AP82:$AZ82,0)","v":{"$error":"#N/A"}},{"$f":"MATCH(W$3,Millwall!$AP82:$AZ82,0)","v":{"$error":"#N/A"}},{"$f":"MATCH(X$3,Millwall!$AP82:$AZ82,0)","v":{"$error":"#N/A"}},{"$f":"MATCH(Y$3,Millwall!$AP82:$AZ82,0)","v":{"$error":"#N/A"}},{"$f":"MATCH(Z$3,Millwall!$AP82:$AZ82,0)","v":{"$error":"#N/A"}},{"$f":"MATCH(AA$3,Millwall!$AP82:$AZ82,0)","v":{"$error":"#N/A"}},{"$f":"MATCH(AB$3,Millwall!$AP82:$AZ82,0)","v":{"$error":"#N/A"}},{"$f":"MATCH(AC$3,Millwall!$AP82:$AZ82,0)","v":{"$error":"#N/A"}},{"$f":"MATCH(AD$3,Millwall!$AP82:$AZ82,0)","v":2},{"$f":"MATCH(AE$3,Millwall!$AP82:$AZ82,0)","v":{"$error":"#N/A"}},{"$f":"MATCH(AF$3,Millwall!$AP82:$AZ82,0)","v":{"$error":"#N/A"}},{"$f":"MATCH(AG$3,Millwall!$AP82:$AZ82,0)","v":{"$error":"#N/A"}},{"$f":"MATCH(AH$3,Millwall!$AP82:$AZ82,0)","v":{"$error":"#N/A"}},{"$f":"MATCH(AI$3,Millwall!$AP82:$AZ82,0)","v":11},{"$f":"MATCH(AJ$3,Millwall!$AP82:$AZ82,0)","v":8},{"$f":"MATCH(AK$3,Millwall!$AP82:$AZ82,0)","v":{"$error":"#N/A"}},{"$f":"MATCH(AL$3,Millwall!$AP82:$AZ82,0)","v":10},{"$f":"MATCH(AM$3,Millwall!$AP82:$AZ82,0)","v":{"$error":"#N/A"}},{"$f":"MATCH(AN$3,Millwall!$AP82:$AZ82,0)","v":3},{"$f":"MATCH(AO$3,Millwall!$AP82:$AZ82,0)","v":{"$error":"#N/A"}},{"$f":"MATCH(AP$3,Millwall!$AP82:$AZ82,0)","v":{"$error":"#N/A"}},{"$f":"MATCH(AQ$3,Millwall!$AP82:$AZ82,0)","v":1},{"$f":"MATCH(AR$3,Millwall!$AP82:$AZ82,0)","v":{"$error":"#N/A"}}]
[null,null,null,6,null,{"$f":"Millwall!AI83","v":"1929-09-21"},null,{"$f":"Millwall!AK83","v":"Nottm Forest"},{"$f":"Millwall!AL83","v":"(H)"},{"$f":"Millwall!AO83","v":"D 2-2"},{"$f":"MATCH(K$3,Millwall!$AP83:$AZ83,0)","v":4},{"$f":"MATCH(L$3,Millwall!$AP83:$AZ83,0)","v":{"$error":"#N/A"}},{"$f":"MATCH(M$3,Millwall!$AP83:$AZ83,0)","v":{"$error":"#N/A"}},{"$f":"MATCH(N$3,Millwall!$AP83:$AZ83,0)","v":5},{"$f":"MATCH(O$3,Millwall!$AP83:$AZ83,0)","v":7},{"$f":"MATCH(P$3,Millwall!$AP83:$AZ83,0)","v":9},{"$f":"MATCH(Q$3,Millwall!$AP83:$AZ83,0)","v":11},{"$f":"MATCH(R$3,Millwall!$AP83:$AZ83,0)","v":6},{"$f":"MATCH(S$3,Millwall!$AP83:$AZ83,0)","v":{"$error":"#N/A"}},{"$f":"MATCH(T$3,Millwall!$AP83:$AZ83,0)","v":{"$error":"#N/A"}},{"$f":"MATCH(U$3,Millwall!$AP83:$AZ83,0)","v":{"$error":"#N/A"}},{"$f":"MATCH(V$3,Millwall!$AP83:$AZ83,0)","v":{"$error":"#N/A"}},{"$f":"MATCH(W$3,Millwall!$AP83:$AZ83,0)","v":{"$error":"#N/A"}},{"$f":"MATCH(X$3,Millwall!$AP83:$AZ83,0)","v":{"$error":"#N/A"}},{"$f":"MATCH(Y$3,Millwall!$AP83:$AZ83,0)","v":{"$error":"#N/A"}},{"$f":"MATCH(Z$3,Millwall!$AP83:$AZ83,0)","v":{"$error":"#N/A"}},{"$f":"MATCH(AA$3,Millwall!$AP83:$AZ83,0)","v":8},{"$f":"MATCH(AB$3,Millwall!$AP83:$AZ83,0)","v":1},{"$f":"MATCH(AC$3,Millwall!$AP83:$AZ83,0)","v":{"$error":"#N/A"}},{"$f":"MATCH(AD$3,Millwall!$AP83:$AZ83,0)","v":{"$error":"#N/A"}},{"$f":"MATCH(AE$3,Millwall!$AP83:$AZ83,0)","v":{"$error":"#N/A"}},{"$f":"MATCH(AF$3,Millwall!$AP83:$AZ83,0)","v":{"$error":"#N/A"}},{"$f":"MATCH(AG$3,Millwall!$AP83:$AZ83,0)","v":{"$error":"#N/A"}},{"$f":"MATCH(AH$3,Millwall!$AP83:$AZ83,0)","v":3},{"$f":"MATCH(AI$3,Millwall!$AP83:$AZ83,0)","v":{"$error":"#N/A"}},{"$f":"MATCH(AJ$3,Millwall!$AP83:$AZ83,0)","v":10},{"$f":"MATCH(AK$3,Millwall!$AP83:$AZ83,0)","v":{"$error":"#N/A"}},{"$f":"MATCH(AL$3,Millwall!$AP83:$AZ83,0)","v":{"$error":"#N/A"}},{"$f":"MATCH(AM$3,Millwall!$AP83:$AZ83,0)","v":{"$error":"#N/A"}},{"$f":"MATCH(AN$3,Millwall!$AP83:$AZ83,0)","v":2},{"$f":"MATCH(AO$3,Millwall!$AP83:$AZ83,0)","v":{"$error":"#N/A"}},{"$f":"MATCH(AP$3,Millwall!$AP83:$AZ83,0)","v":{"$error":"#N/A"}},{"$f":"MATCH(AQ$3,Millwall!$AP83:$AZ83,0)","v":{"$error":"#N/A"}},{"$f":"MATCH(AR$3,Millwall!$AP83:$AZ83,0)","v":{"$error":"#N/A"}}]
[null,null,null,7,null,{"$f":"Millwall!AI84","v":"1929-09-23"},null,{"$f":"Millwall!AK84","v":"Tottenham"},{"$f":"Millwall!AL84","v":"(A)"},{"$f":"Millwall!AO84","v":"D 1-1"},{"$f":"MATCH(K$3,Millwall!$AP84:$AZ84,0)","v":{"$error":"#N/A"}},{"$f":"MATCH(L$3,Millwall!$AP84:$AZ84,0)","v":{"$error":"#N/A"}},{"$f":"MATCH(M$3,Millwall!$AP84:$AZ84,0)","v":{"$error":"#N/A"}},{"$f":"MATCH(N$3,Millwall!$AP84:$AZ84,0)","v":{"$error":"#N/A"}},{"$f":"MATCH(O$3,Millwall!$AP84:$AZ84,0)","v":7},{"$f":"MATCH(P$3,Millwall!$AP84:$AZ84,0)","v":9},{"$f":"MATCH(Q$3,Millwall!$AP84:$AZ84,0)","v":11},{"$f":"MATCH(R$3,Millwall!$AP84:$AZ84,0)","v":6},{"$f":"MATCH(S$3,Millwall!$AP84:$AZ84,0)","v":{"$error":"#N/A"}},{"$f":"MATCH(T$3,Millwall!$AP84:$AZ84,0)","v":5},{"$f":"MATCH(U$3,Millwall!$AP84:$AZ84,0)","v":{"$error":"#N/A"}},{"$f":"MATCH(V$3,Millwall!$AP84:$AZ84,0)","v":{"$error":"#N/A"}},{"$f":"MATCH(W$3,Millwall!$AP84:$AZ84,0)","v":{"$error":"#N/A"}},{"$f":"MATCH(X$3,Millwall!$AP84:$AZ84,0)","v":{"$error":"#N/A"}},{"$f":"MATCH(Y$3,Millwall!$AP84:$AZ84,0)","v":{"$error":"#N/A"}},{"$f":"MATCH(Z$3,Millwall!$AP84:$AZ84,0)","v":{"$error":"#N/A"}},{"$f":"MATCH(AA$3,Millwall!$AP84:$AZ84,0)","v":8},{"$f":"MATCH(AB$3,Millwall!$AP84:$AZ84,0)","v":1},{"$f":"MATCH(AC$3,Millwall!$AP84:$AZ84,0)","v":4},{"$f":"MATCH(AD$3,Millwall!$AP84:$AZ84,0)","v":{"$error":"#N/A"}},{"$f":"MATCH(AE$3,Millwall!$AP84:$AZ84,0)","v":{"$error":"#N/A"}},{"$f":"MATCH(AF$3,Millwall!$AP84:$AZ84,0)","v":{"$error":"#N/A"}},{"$f":"MATCH(AG$3,Millwall!$AP84:$AZ84,0)","v":{"$error":"#N/A"}},{"$f":"MATCH(AH$3,Millwall!$AP84:$AZ84,0)","v":3},{"$f":"MATCH(AI$3,Millwall!$AP84:$AZ84,0)","v":{"$error":"#N/A"}},{"$f":"MATCH(AJ$3,Millwall!$AP84:$AZ84,0)","v":10},{"$f":"MATCH(AK$3,Millwall!$AP84:$AZ84,0)","v":{"$error":"#N/A"}},{"$f":"MATCH(AL$3,Millwall!$AP84:$AZ84,0)","v":{"$error":"#N/A"}},{"$f":"MATCH(AM$3,Millwall!$AP84:$AZ84,0)","v":{"$error":"#N/A"}},{"$f":"MATCH(AN$3,Millwall!$AP84:$AZ84,0)","v":2},{"$f":"MATCH(AO$3,Millwall!$AP84:$AZ84,0)","v":{"$error":"#N/A"}},{"$f":"MATCH(AP$3,Millwall!$AP84:$AZ84,0)","v":{"$error":"#N/A"}},{"$f":"MATCH(AQ$3,Millwall!$AP84:$AZ84,0)","v":{"$error":"#N/A"}},{"$f":"MATCH(AR$3,Millwall!$AP84:$AZ84,0)","v":{"$error":"#N/A"}}]
[null,null,null,8,null,{"$f":"Millwall!AI85","v":"1929-09-28"},null,{"$f":"Millwall!AK85","v":"Oldham"},{"$f":"Millwall!AL85","v":"(A)"},{"$f":"Millwall!AO85","v":"D 2-2"},{"$f":"MATCH(K$3,Millwall!$AP85:$AZ85,0)","v":{"$error":"#N/A"}},{"$f":"MATCH(L$3,Millwall!$AP85:$AZ85,0)","v":{"$error":"#N/A"}},{"$f":"MATCH(M$3,Millwall!$AP85:$AZ85,0)","v":{"$error":"#N/A"}},{"$f":"MATCH(N$3,Millwall!$AP85:$AZ85,0)","v":{"$error":"#N/A"}},{"$f":"MATCH(O$3,Millwall!$AP85:$AZ85,0)","v":7},{"$f":"MATCH(P$3,Millwall!$AP85:$AZ85,0)","v":9},{"$f":"MATCH(Q$3,Millwall!$AP85:$AZ85,0)","v":11},{"$f":"MATCH(R$3,Millwall!$AP85:$AZ85,0)","v":6},{"$f":"MATCH(S$3,Millwall!$AP85:$AZ85,0)","v":{"$error":"#N/A"}},{"$f":"MATCH(T$3,Millwall!$AP85:$AZ85,0)","v":5},{"$f":"MATCH(U$3,Millwall!$AP85:$AZ85,0)","v":{"$error":"#N/A"}},{"$f":"MATCH(V$3,Millwall!$AP85:$AZ85,0)","v":{"$error":"#N/A"}},{"$f":"MATCH(W$3,Millwall!$AP85:$AZ85,0)","v":{"$error":"#N/A"}},{"$f":"MATCH(X$3,Millwall!$AP85:$AZ85,0)","v":{"$error":"#N/A"}},{"$f":"MATCH(Y$3,Millwall!$AP85:$AZ85,0)","v":{"$error":"#N/A"}},{"$f":"MATCH(Z$3,Millwall!$AP85:$AZ85,0)","v":{"$error":"#N/A"}},{"$f":"MATCH(AA$3,Millwall!$AP85:$AZ85,0)","v":8},{"$f":"MATCH(AB$3,Millwall!$AP85:$AZ85,0)","v":1},{"$f":"MATCH(AC$3,Millwall!$AP85:$AZ85,0)","v":4},{"$f":"MATCH(AD$3,Millwall!$AP85:$AZ85,0)","v":{"$error":"#N/A"}},{"$f":"MATCH(AE$3,Millwall!$AP85:$AZ85,0)","v":{"$error":"#N/A"}},{"$f":"MATCH(AF$3,Millwall!$AP85:$AZ85,0)","v":{"$error":"#N/A"}},{"$f":"MATCH(AG$3,Millwall!$AP85:$AZ85,0)","v":{"$error":"#N/A"}},{"$f":"MATCH(AH$3,Millwall!$AP85:$AZ85,0)","v":3},{"$f":"MATCH(AI$3,Millwall!$AP85:$AZ85,0)","v":{"$error":"#N/A"}},{"$f":"MATCH(AJ$3,Millwall!$AP85:$AZ85,0)","v":10},{"$f":"MATCH(AK$3,Millwall!$AP85:$AZ85,0)","v":{"$error":"#N/A"}},{"$f":"MATCH(AL$3,Millwall!$AP85:$AZ85,0)","v":{"$error":"#N/A"}},{"$f":"MATCH(AM$3,Millwall!$AP85:$AZ85,0)","v":{"$error":"#N/A"}},{"$f":"MATCH(AN$3,Millwall!$AP85:$AZ85,0)","v":2},{"$f":"MATCH(AO$3,Millwall!$AP85:$AZ85,0)","v":{"$error":"#N/A"}},{"$f":"MATCH(AP$3,Millwall!$AP85:$AZ85,0)","v":{"$error":"#N/A"}},{"$f":"MATCH(AQ$3,Millwall!$AP85:$AZ85,0)","v":{"$error":"#N/A"}},{"$f":"MATCH(AR$3,Millwall!$AP85:$AZ85,0)","v":{"$error":"#N/A"}}]
[null,null,null,9,null,{"$f":"Millwall!AI86","v":"1929-10-05"},null,{"$f":"Millwall!AK86","v":"Charlton"},{"$f":"Millwall!AL86","v":"(H)"},{"$f":"Millwall!AO86","v":"D 1-1"},{"$f":"MATCH(K$3,Millwall!$AP86:$AZ86,0)","v":{"$error":"#N/A"}},{"$f":"MATCH(L$3,Millwall!$AP86:$AZ86,0)","v":{"$error":"#N/A"}},{"$f":"MATCH(M$3,Millwall!$AP86:$AZ86,0)","v":{"$error":"#N/A"}},{"$f":"MATCH(N$3,Millwall!$AP86:$AZ86,0)","v":5},{"$f":"MATCH(O$3,Millwall!$AP86:$AZ86,0)","v":7},{"$f":"MATCH(P$3,Millwall!$AP86:$AZ86,0)","v":9},{"$f":"MATCH(Q$3,Millwall!$AP86:$AZ86,0)","v":11},{"$f":"MATCH(R$3,Millwall!$AP86:$AZ86,0)","v":6},{"$f":"MATCH(S$3,Millwall!$AP86:$AZ86,0)","v":{"$error":"#N/A"}},{"$f":"MATCH(T$3,Millwall!$AP86:$AZ86,0)","v":{"$error":"#N/A"}},{"$f":"MATCH(U$3,Millwall!$AP86:$AZ86,0)","v":{"$error":"#N/A"}},{"$f":"MATCH(V$3,Millwall!$AP86:$AZ86,0)","v":{"$error":"#N/A"}},{"$f":"MATCH(W$3,Millwall!$AP86:$AZ86,0)","v":{"$error":"#N/A"}},{"$f":"MATCH(X$3,Millwall!$AP86:$AZ86,0)","v":{"$error":"#N/A"}},{"$f":"MATCH(Y$3,Millwall!$AP86:$AZ86,0)","v":{"$error":"#N/A"}},{"$f":"MATCH(Z$3,Millwall!$AP86:$AZ86,0)","v":{"$error":"#N/A"}},{"$f":"MATCH(AA$3,Millwall!$AP86:$AZ86,0)","v":8},{"$f":"MATCH(AB$3,Millwall!$AP86:$AZ86,0)","v":1},{"$f":"MATCH(AC$3,Millwall!$AP86:$AZ86,0)","v":4},{"$f":"MATCH(AD$3,Millwall!$AP86:$AZ86,0)","v":{"$error":"#N/A"}},{"$f":"MATCH(AE$3,Millwall!$AP86:$AZ86,0)","v":{"$error":"#N/A"}},{"$f":"MATCH(AF$3,Millwall!$AP86:$AZ86,0)","v":{"$error":"#N/A"}},{"$f":"MATCH(AG$3,Millwall!$AP86:$AZ86,0)","v":10},{"$f":"MATCH(AH$3,Millwall!$AP86:$AZ86,0)","v":3},{"$f":"MATCH(AI$3,Millwall!$AP86:$AZ86,0)","v":{"$error":"#N/A"}},{"$f":"MATCH(AJ$3,Millwall!$AP86:$AZ86,0)","v":{"$error":"#N/A"}},{"$f":"MATCH(AK$3,Millwall!$AP86:$AZ86,0)","v":{"$error":"#N/A"}},{"$f":"MATCH(AL$3,Millwall!$AP86:$AZ86,0)","v":{"$error":"#N/A"}},{"$f":"MATCH(AM$3,Millwall!$AP86:$AZ86,0)","v":{"$error":"#N/A"}},{"$f":"MATCH(AN$3,Millwall!$AP86:$AZ86,0)","v":2},{"$f":"MATCH(AO$3,Millwall!$AP86:$AZ86,0)","v":{"$error":"#N/A"}},{"$f":"MATCH(AP$3,Millwall!$AP86:$AZ86,0)","v":{"$error":"#N/A"}},{"$f":"MATCH(AQ$3,Millwall!$AP86:$AZ86,0)","v":{"$error":"#N/A"}},{"$f":"MATCH(AR$3,Millwall!$AP86:$AZ86,0)","v":{"$error":"#N/A"}}]
[null,null,null,10,null,{"$f":"Millwall!AI87","v":"1929-10-12"},null,{"$f":"Millwall!AK87","v":"Southampton"},{"$f":"Millwall!AL87","v":"(H)"},{"$f":"Millwall!AO87","v":"D 1-1"},{"$f":"MATCH(K$3,Millwall!$AP87:$AZ87,0)","v":{"$error":"#N/A"}},{"$f":"MATCH(L$3,Millwall!$AP87:$AZ87,0)","v":{"$error":"#N/A"}},{"$f":"MATCH(M$3,Millwall!$AP87:$AZ87,0)","v":{"$error":"#N/A"}},{"$f":"MATCH(N$3,Millwall!$AP87:$AZ87,0)","v":{"$error":"#N/A"}},{"$f":"MATCH(O$3,Millwall!$AP87:$AZ87,0)","v":7},{"$f":"MATCH(P$3,Millwall!$AP87:$AZ87,0)","v":9},{"$f":"MATCH(Q$3,Millwall!$AP87:$AZ87,0)","v":11},{"$f":"MATCH(R$3,Millwall!$AP87:$AZ87,0)","v":6},{"$f":"MATCH(S$3,Millwall!$AP87:$AZ87,0)","v":{"$error":"#N/A"}},{"$f":"MATCH(T$3,Millwall!$AP87:$AZ87,0)","v":5},{"$f":"MATCH(U$3,Millwall!$AP87:$AZ87,0)","v":{"$error":"#N/A"}},{"$f":"MATCH(V$3,Millwall!$AP87:$AZ87,0)","v":{"$error":"#N/A"}},{"$f":"MATCH(W$3,Millwall!$AP87:$AZ87,0)","v":{"$error":"#N/A"}},{"$f":"MATCH(X$3,Millwall!$AP87:$AZ87,0)","v":{"$error":"#N/A"}},{"$f":"MATCH(Y$3,Millwall!$AP87:$AZ87,0)","v":{"$error":"#N/A"}},{"$f":"MATCH(Z$3,Millwall!$AP87:$AZ87,0)","v":{"$error":"#N/A"}},{"$f":"MATCH(AA$3,Millwall!$AP87:$AZ87,0)","v":8},{"$f":"MATCH(AB$3,Millwall!$AP87:$AZ87,0)","v":1},{"$f":"MATCH(AC$3,Millwall!$AP87:$AZ87,0)","v":4},{"$f":"MATCH(AD$3,Millwall!$AP87:$AZ87,0)","v":{"$error":"#N/A"}},{"$f":"MATCH(AE$3,Millwall!$AP87:$AZ87,0)","v":{"$error":"#N/A"}},{"$f":"MATCH(AF$3,Millwall!$AP87:$AZ87,0)","v":{"$error":"#N/A"}},{"$f":"MATCH(AG$3,Millwall!$AP87:$AZ87,0)","v":10},{"$f":"MATCH(AH$3,Millwall!$AP87:$AZ87,0)","v":3},{"$f":"MATCH(AI$3,Millwall!$AP87:$AZ87,0)","v":{"$error":"#N/A"}},{"$f":"MATCH(AJ$3,Millwall!$AP87:$AZ87,0)","v":{"$error":"#N/A"}},{"$f":"MATCH(AK$3,Millwall!$AP87:$AZ87,0)","v":{"$error":"#N/A"}},{"$f":"MATCH(AL$3,Millwall!$AP87:$AZ87,0)","v":{"$error":"#N/A"}},{"$f":"MATCH(AM$3,Millwall!$AP87:$AZ87,0)","v":{"$error":"#N/A"}},{"$f":"MATCH(AN$3,Millwall!$AP87:$AZ87,0)","v":2},{"$f":"MATCH(AO$3,Millwall!$AP87:$AZ87,0)","v":{"$error":"#N/A"}},{"$f":"MATCH(AP$3,Millwall!$AP87:$AZ87,0)","v":{"$error":"#N/A"}},{"$f":"MATCH(AQ$3,Millwall!$AP87:$AZ87,0)","v":{"$error":"#N/A"}},{"$f":"MATCH(AR$3,Millwall!$AP87:$AZ87,0)","v":{"$error":"#N/A"}}]
[null,null,null,11,null,{"$f":"Millwall!AI88","v":"1929-10-19"},null,{"$f":"Millwall!AK88","v":"Hull"},{"$f":"Millwall!AL88","v":"(A)"},{"$f":"Millwall!AO88","v":"L 2-3"},{"$f":"MATCH(K$3,Millwall!$AP88:$AZ88,0)","v":{"$error":"#N/A"}},{"$f":"MATCH(L$3,Millwall!$AP88:$AZ88,0)","v":{"$error":"#N/A"}},{"$f":"MATCH(M$3,Millwall!$AP88:$AZ88,0)","v":{"$error":"#N/A"}},{"$f":"MATCH(N$3,Millwall!$AP88:$AZ88,0)","v":{"$error":"#N/A"}},{"$f":"MATCH(O$3,Millwall!$AP88:$AZ88,0)","v":7},{"$f":"MATCH(P$3,Millwall!$AP88:$AZ88,0)","v":{"$error":"#N/A"}},{"$f":"MATCH(Q$3,Millwall!$AP88:$AZ88,0)","v":11},{"$f":"MATCH(R$3,Millwall!$AP88:$AZ88,0)","v":6},{"$f":"MATCH(S$3,Millwall!$AP88:$AZ88,0)","v":{"$error":"#N/A"}},{"$f":"MATCH(T$3,Millwall!$AP88:$AZ88,0)","v":5},{"$f":"MATCH(U$3,Millwall!$AP88:$AZ88,0)","v":4},{"$f":"MATCH(V$3,Millwall!$AP88:$AZ88,0)","v":{"$error":"#N/A"}},{"$f":"MATCH(W$3,Millwall!$AP88:$AZ88,0)","v":{"$error":"#N/A"}},{"$f":"MATCH(X$3,Millwall!$AP88:$AZ88,0)","v":{"$error":"#N/A"}},{"$f":"MATCH(Y$3,Millwall!$AP88:$AZ88,0)","v":{"$error":"#N/A"}},{"$f":"MATCH(Z$3,Millwall!$AP88:$AZ88,0)","v":{"$error":"#N/A"}},{"$f":"MATCH(AA$3,Millwall!$AP88:$AZ88,0)","v":8},{"$f":"MATCH(AB$3,Millwall!$AP88:$AZ88,0)","v":1},{"$f":"MATCH(AC$3,Millwall!$AP88:$AZ88,0)","v":{"$error":"#N/A"}},{"$f":"MATCH(AD$3,Millwall!$AP88:$AZ88,0)","v":{"$error":"#N/A"}},{"$f":"MATCH(AE$3,Millwall!$AP88:$AZ88,0)","v":{"$error":"#N/A"}},{"$f":"MATCH(AF$3,Millwall!$AP88:$AZ88,0)","v":{"$error":"#N/A"}},{"$f":"MATCH(AG$3,Millwall!$AP88:$AZ88,0)","v":10},{"$f":"MATCH(AH$3,Millwall!$AP88:$AZ88,0)","v":3},{"$f":"MATCH(AI$3,Millwall!$AP88:$AZ88,0)","v":{"$error":"#N/A"}},{"$f":"MATCH(AJ$3,Millwall!$AP88:$AZ88,0)","v":{"$error":"#N/A"}},{"$f":"MATCH(AK$3,Millwall!$AP88:$AZ88,0)","v":{"$error":"#N/A"}},{"$f":"MATCH(AL$3,Millwall!$AP88:$AZ88,0)","v":{"$error":"#N/A"}},{"$f":"MATCH(AM$3,Millwall!$AP88:$AZ88,0)","v":{"$error":"#N/A"}},{"$f":"MATCH(AN$3,Millwall!$AP88:$AZ88,0)","v":2},{"$f":"MATCH(AO$3,Millwall!$AP88:$AZ88,0)","v":{"$error":"#N/A"}},{"$f":"MATCH(AP$3,Millwall!$AP88:$AZ88,0)","v":{"$error":"#N/A"}},{"$f":"MATCH(AQ$3,Millwall!$AP88:$AZ88,0)","v":{"$error":"#N/A"}},{"$f":"MATCH(AR$3,Millwall!$AP88:$AZ88,0)","v":9}]
[null,null,null,12,null,{"$f":"Millwall!AI89","v":"1929-10-26"},null,{"$f":"Millwall!AK89","v":"Stoke"},{"$f":"Millwall!AL89","v":"(H)"},{"$f":"Millwall!AO89","v":"W 2-1"},{"$f":"MATCH(K$3,Millwall!$AP89:$AZ89,0)","v":{"$error":"#N/A"}},{"$f":"MATCH(L$3,Millwall!$AP89:$AZ89,0)","v":{"$error":"#N/A"}},{"$f":"MATCH(M$3,Millwall!$AP89:$AZ89,0)","v":{"$error":"#N/A"}},{"$f":"MATCH(N$3,Millwall!$AP89:$AZ89,0)","v":{"$error":"#N/A"}},{"$f":"MATCH(O$3,Millwall!$AP89:$AZ89,0)","v":7},{"$f":"MATCH(P$3,Millwall!$AP89:$AZ89,0)","v":{"$error":"#N/A"}},{"$f":"MATCH(Q$3,Millwall!$AP89:$AZ89,0)","v":11},{"$f":"MATCH(R$3,Millwall!$AP89:$AZ89,0)","v":6},{"$f":"MATCH(S$3,Millwall!$AP89:$AZ89,0)","v":{"$error":"#N/A"}},{"$f":"MATCH(T$3,Millwall!$AP89:$AZ89,0)","v":5},{"$f":"MATCH(U$3,Millwall!$AP89:$AZ89,0)","v":4},{"$f":"MATCH(V$3,Millwall!$AP89:$AZ89,0)","v":{"$error":"#N/A"}},{"$f":"MATCH(W$3,Millwall!$AP89:$AZ89,0)","v":{"$error":"#N/A"}},{"$f":"MATCH(X$3,Millwall!$AP89:$AZ89,0)","v":{"$error":"#N/A"}},{"$f":"MATCH(Y$3,Millwall!$AP89:$AZ89,0)","v":{"$error":"#N/A"}},{"$f":"MATCH(Z$3,Millwall!$AP89:$AZ89,0)","v":{"$error":"#N/A"}},{"$f":"MATCH(AA$3,Millwall!$AP89:$AZ89,0)","v":8},{"$f":"MATCH(AB$3,Millwall!$AP89:$AZ89,0)","v":1},{"$f":"MATCH(AC$3,Millwall!$AP89:$AZ89,0)","v":{"$error":"#N/A"}},{"$f":"MATCH(AD$3,Millwall!$AP89:$AZ89,0)","v":{"$error":"#N/A"}},{"$f":"MATCH(AE$3,Millwall!$AP89:$AZ89,0)","v":{"$error":"#N/A"}},{"$f":"MATCH(AF$3,Millwall!$AP89:$AZ89,0)","v":{"$error":"#N/A"}},{"$f":"MATCH(AG$3,Millwall!$AP89:$AZ89,0)","v":10},{"$f":"MATCH(AH$3,Millwall!$AP89:$AZ89,0)","v":3},{"$f":"MATCH(AI$3,Millwall!$AP89:$AZ89,0)","v":{"$error":"#N/A"}},{"$f":"MATCH(AJ$3,Millwall!$AP89:$AZ89,0)","v":{"$error":"#N/A"}},{"$f":"MATCH(AK$3,Millwall!$AP89:$AZ89,0)","v":{"$error":"#N/A"}},{"$f":"MATCH(AL$3,Millwall!$AP89:$AZ89,0)","v":{"$error":"#N/A"}},{"$f":"MATCH(AM$3,Millwall!$AP89:$AZ89,0)","v":{"$error":"#N/A"}},{"$f":"MATCH(AN$3,Millwall!$AP89:$AZ89,0)","v":2},{"$f":"MATCH(AO$3,Millwall!$AP89:$AZ89,0)","v":{"$error":"#N/A"}},{"$f":"MATCH(AP$3,Millwall!$AP89:$AZ89,0)","v":{"$error":"#N/A"}},{"$f":"MATCH(AQ$3,Millwall!$AP89:$AZ89,0)","v":{"$error":"#N/A"}},{"$f":"MATCH(AR$3,Millwall!$AP89:$AZ89,0)","v":9}]
[null,null,null,13,null,{"$f":"Millwall!AI90","v":"1929-11-02"},null,{"$f":"Millwall!AK90","v":"Wolves"},{"$f":"Millwall!AL90","v":"(A)"},{"$f":"Millwall!AO90","v":"D 1-1"},{"$f":"MATCH(K$3,Millwall!$AP90:$AZ90,0)","v":{"$error":"#N/A"}},{"$f":"MATCH(L$3,Millwall!$AP90:$AZ90,0)","v":{"$error":"#N/A"}},{"$f":"MATCH(M$3,Millwall!$AP90:$AZ90,0)","v":{"$error":"#N/A"}},{"$f":"MATCH(N$3,Millwall!$AP90:$AZ90,0)","v":{"$error":"#N/A"}},{"$f":"MATCH(O$3,Millwall!$AP90:$AZ90,0)","v":7},{"$f":"MATCH(P$3,Millwall!$AP90:$AZ90,0)","v":10},{"$f":"MATCH(Q$3,Millwall!$AP90:$AZ90,0)","v":11},{"$f":"MATCH(R$3,Millwall!$AP90:$AZ90,0)","v":{"$error":"#N/A"}},{"$f":"MATCH(S$3,Millwall!$AP90:$AZ90,0)","v":{"$error":"#N/A"}},{"$f":"MATCH(T$3,Millwall!$AP90:$AZ90,0)","v":5},{"$f":"MATCH(U$3,Millwall!$AP90:$AZ90,0)","v":6},{"$f":"MATCH(V$3,Millwall!$AP90:$AZ90,0)","v":{"$error":"#N/A"}},{"$f":"MATCH(W$3,Millwall!$AP90:$AZ90,0)","v":{"$error":"#N/A"}},{"$f":"MATCH(X$3,Millwall!$AP90:$AZ90,0)","v":{"$error":"#N/A"}},{"$f":"MATCH(Y$3,Millwall!$AP90:$AZ90,0)","v":{"$error":"#N/A"}},{"$f":"MATCH(Z$3,Millwall!$AP90:$AZ90,0)","v":{"$error":"#N/A"}},{"$f":"MATCH(AA$3,Millwall!$AP90:$AZ90,0)","v":8},{"$f":"MATCH(AB$3,Millwall!$AP90:$AZ90,0)","v":1},{"$f":"MATCH(AC$3,Millwall!$AP90:$AZ90,0)","v":4},{"$f":"MATCH(AD$3,Millwall!$AP90:$AZ90,0)","v":{"$error":"#N/A"}},{"$f":"MATCH(AE$3,Millwall!$AP90:$AZ90,0)","v":{"$error":"#N/A"}},{"$f":"MATCH(AF$3,Millwall!$AP90:$AZ90,0)","v":{"$error":"#N/A"}},{"$f":"MATCH(AG$3,Millwall!$AP90:$AZ90,0)","v":{"$error":"#N/A"}},{"$f":"MATCH(AH$3,Millwall!$AP90:$AZ90,0)","v":3},{"$f":"MATCH(AI$3,Millwall!$AP90:$AZ90,0)","v":{"$error":"#N/A"}},{"$f":"MATCH(AJ$3,Millwall!$AP90:$AZ90,0)","v":{"$error":"#N/A"}},{"$f":"MATCH(AK$3,Millwall!$AP90:$AZ90,0)","v":{"$error":"#N/A"}},{"$f":"MATCH(AL$3,Millwall!$AP90:$AZ90,0)","v":{"$error":"#N/A"}},{"$f":"MATCH(AM$3,Millwall!$AP90:$AZ90,0)","v":{"$error":"#N/A"}},{"$f":"MATCH(AN$3,Millwall!$AP90:$AZ90,0)","v":2},{"$f":"MATCH(AO$3,Millwall!$AP90:$AZ90,0)","v":{"$error":"#N/A"}},{"$f":"MATCH(AP$3,Millwall!$AP90:$AZ90,0)","v":{"$error":"#N/A"}},{"$f":"MATCH(AQ$3,Millwall!$AP90:$AZ90,0)","v":{"$error":"#N/A"}},{"$f":"MATCH(AR$3,Millwall!$AP90:$AZ90,0)","v":9}]
[null,null,null,14,null,{"$f":"Millwall!AI91","v":"1929-11-09"},null,{"$f":"Millwall!AK91","v":"Bradford City"},{"$f":"Millwall!AL91","v":"(H)"},{"$f":"Millwall!AO91","v":"D 2-2"},{"$f":"MATCH(K$3,Millwall!$AP91:$AZ91,0)","v":{"$error":"#N/A"}},{"$f":"MATCH(L$3,Millwall!$AP91:$AZ91,0)","v":{"$error":"#N/A"}},{"$f":"MATCH(M$3,Millwall!$AP91:$AZ91,0)","v":{"$error":"#N/A"}},{"$f":"MATCH(N$3,Millwall!$AP91:$AZ91,0)","v":{"$error":"#N/A"}},{"$f":"MATCH(O$3,Millwall!$AP91:$AZ91,0)","v":7},{"$f":"MATCH(P$3,Millwall!$AP91:$AZ91,0)","v":10},{"$f":"MATCH(Q$3,Millwall!$AP91:$AZ91,0)","v":11},{"$f":"MATCH(R$3,Millwall!$AP91:$AZ91,0)","v":{"$error":"#N/A"}},{"$f":"MATCH(S$3,Millwall!$AP91:$AZ91,0)","v":{"$error":"#N/A"}},{"$f":"MATCH(T$3,Millwall!$AP91:$AZ91,0)","v":5},{"$f":"MATCH(U$3,Millwall!$AP91:$AZ91,0)","v":6},{"$f":"MATCH(V$3,Millwall!$AP91:$AZ91,0)","v":{"$error":"#N/A"}},{"$f":"MATCH(W$3,Millwall!$AP91:$AZ91,0)","v":{"$error":"#N/A"}},{"$f":"MATCH(X$3,Millwall!$AP91:$AZ91,0)","v":{"$error":"#N/A"}},{"$f":"MATCH(Y$3,Millwall!$AP91:$AZ91,0)","v":{"$error":"#N/A"}},{"$f":"MATCH(Z$3,Millwall!$AP91:$AZ91,0)","v":{"$error":"#N/A"}},{"$f":"MATCH(AA$3,Millwall!$AP91:$AZ91,0)","v":8},{"$f":"MATCH(AB$3,Millwall!$AP91:$AZ91,0)","v":1},{"$f":"MATCH(AC$3,Millwall!$AP91:$AZ91,0)","v":4},{"$f":"MATCH(AD$3,Millwall!$AP91:$AZ91,0)","v":{"$error":"#N/A"}},{"$f":"MATCH(AE$3,Millwall!$AP91:$AZ91,0)","v":{"$error":"#N/A"}},{"$f":"MATCH(AF$3,Millwall!$AP91:$AZ91,0)","v":{"$error":"#N/A"}},{"$f":"MATCH(AG$3,Millwall!$AP91:$AZ91,0)","v":{"$error":"#N/A"}},{"$f":"MATCH(AH$3,Millwall!$AP91:$AZ91,0)","v":3},{"$f":"MATCH(AI$3,Millwall!$AP91:$AZ91,0)","v":{"$error":"#N/A"}},{"$f":"MATCH(AJ$3,Millwall!$AP91:$AZ91,0)","v":{"$error":"#N/A"}},{"$f":"MATCH(AK$3,Millwall!$AP91:$AZ91,0)","v":{"$error":"#N/A"}},{"$f":"MATCH(AL$3,Millwall!$AP91:$AZ91,0)","v":{"$error":"#N/A"}},{"$f":"MATCH(AM$3,Millwall!$AP91:$AZ91,0)","v":{"$error":"#N/A"}},{"$f":"MATCH(AN$3,Millwall!$AP91:$AZ91,0)","v":2},{"$f":"MATCH(AO$3,Millwall!$AP91:$AZ91,0)","v":{"$error":"#N/A"}},{"$f":"MATCH(AP$3,Millwall!$AP91:$AZ91,0)","v":{"$error":"#N/A"}},{"$f":"MATCH(AQ$3,Millwall!$AP91:$AZ91,0)","v":{"$error":"#N/A"}},{"$f":"MATCH(AR$3,Millwall!$AP91:$AZ91,0)","v":9}]
[null,null,null,15,null,{"$f":"Millwall!AI92","v":"1929-11-16"},null,{"$f":"Millwall!AK92","v":"Swansea"},{"$f":"Millwall!AL92","v":"(A)"},{"$f":"Millwall!AO92","v":"L 1-3"},{"$f":"MATCH(K$3,Millwall!$AP92:$AZ92,0)","v":{"$error":"#N/A"}},{"$f":"MATCH(L$3,Millwall!$AP92:$AZ92,0)","v":{"$error":"#N/A"}},{"$f":"MATCH(M$3,Millwall!$AP92:$AZ92,0)","v":{"$error":"#N/A"}},{"$f":"MATCH(N$3,Millwall!$AP92:$AZ92,0)","v":{"$error":"#N/A"}},{"$f":"MATCH(O$3,Millwall!$AP92:$AZ92,0)","v":7},{"$f":"MATCH(P$3,Millwall!$AP92:$AZ92,0)","v":10},{"$f":"MATCH(Q$3,Millwall!$AP92:$AZ92,0)","v":11},{"$f":"MATCH(R$3,Millwall!$AP92:$AZ92,0)","v":{"$error":"#N/A"}},{"$f":"MATCH(S$3,Millwall!$AP92:$AZ92,0)","v":{"$error":"#N/A"}},{"$f":"MATCH(T$3,Millwall!$AP92:$AZ92,0)","v":5},{"$f":"MATCH(U$3,Millwall!$AP92:$AZ92,0)","v":6},{"$f":"MATCH(V$3,Millwall!$AP92:$AZ92,0)","v":{"$error":"#N/A"}},{"$f":"MATCH(W$3,Millwall!$AP92:$AZ92,0)","v":{"$error":"#N/A"}},{"$f":"MATCH(X$3,Millwall!$AP92:$AZ92,0)","v":{"$error":"#N/A"}},{"$f":"MATCH(Y$3,Millwall!$AP92:$AZ92,0)","v":{"$error":"#N/A"}},{"$f":"MATCH(Z$3,Millwall!$AP92:$AZ92,0)","v":{"$error":"#N/A"}},{"$f":"MATCH(AA$3,Millwall!$AP92:$AZ92,0)","v":8},{"$f":"MATCH(AB$3,Millwall!$AP92:$AZ92,0)","v":1},{"$f":"MATCH(AC$3,Millwall!$AP92:$AZ92,0)","v":4},{"$f":"MATCH(AD$3,Millwall!$AP92:$AZ92,0)","v":{"$error":"#N/A"}},{"$f":"MATCH(AE$3,Millwall!$AP92:$AZ92,0)","v":{"$error":"#N/A"}},{"$f":"MATCH(AF$3,Millwall!$AP92:$AZ92,0)","v":{"$error":"#N/A"}},{"$f":"MATCH(AG$3,Millwall!$AP92:$AZ92,0)","v":{"$error":"#N/A"}},{"$f":"MATCH(AH$3,Millwall!$AP92:$AZ92,0)","v":3},{"$f":"MATCH(AI$3,Millwall!$AP92:$AZ92,0)","v":{"$error":"#N/A"}},{"$f":"MATCH(AJ$3,Millwall!$AP92:$AZ92,0)","v":{"$error":"#N/A"}},{"$f":"MATCH(AK$3,Millwall!$AP92:$AZ92,0)","v":{"$error":"#N/A"}},{"$f":"MATCH(AL$3,Millwall!$AP92:$AZ92,0)","v":{"$error":"#N/A"}},{"$f":"MATCH(AM$3,Millwall!$AP92:$AZ92,0)","v":2},{"$f":"MATCH(AN$3,Millwall!$AP92:$AZ92,0)","v":{"$error":"#N/A"}},{"$f":"MATCH(AO$3,Millwall!$AP92:$AZ92,0)","v":{"$error":"#N/A"}},{"$f":"MATCH(AP$3,Millwall!$AP92:$AZ92,0)","v":{"$error":"#N/A"}},{"$f":"MATCH(AQ$3,Millwall!$AP92:$AZ92,0)","v":{"$error":"#N/A"}},{"$f":"MATCH(AR$3,Millwall!$AP92:$AZ92,0)","v":9}]
[null,null,null,16,null,{"$f":"Millwall!AI93","v":"1929-11-23"},null,{"$f":"Millwall!AK93","v":"Cardiff"},{"$f":"Millwall!AL93","v":"(H)"},{"$f":"Millwall!AO93","v":"W 2-0"},{"$f":"MATCH(K$3,Millwall!$AP93:$AZ93,0)","v":{"$error":"#N/A"}},{"$f":"MATCH(L$3,Millwall!$AP93:$AZ93,0)","v":{"$error":"#N/A"}},{"$f":"MATCH(M$3,Millwall!$AP93:$AZ93,0)","v":{"$error":"#N/A"}},{"$f":"MATCH(N$3,Millwall!$AP93:$AZ93,0)","v":{"$error":"#N/A"}},{"$f":"MATCH(O$3,Millwall!$AP93:$AZ93,0)","v":{"$error":"#N/A"}},{"$f":"MATCH(P$3,Millwall!$AP93:$AZ93,0)","v":9},{"$f":"MATCH(Q$3,Millwall!$AP93:$AZ93,0)","v":{"$error":"#N/A"}},{"$f":"MATCH(R$3,Millwall!$AP93:$AZ93,0)","v":{"$error":"#N/A"}},{"$f":"MATCH(S$3,Millwall!$AP93:$AZ93,0)","v":{"$error":"#N/A"}},{"$f":"MATCH(T$3,Millwall!$AP93:$AZ93,0)","v":5},{"$f":"MATCH(U$3,Millwall!$AP93:$AZ93,0)","v":6},{"$f":"MATCH(V$3,Millwall!$AP93:$AZ93,0)","v":{"$error":"#N/A"}},{"$f":"MATCH(W$3,Millwall!$AP93:$AZ93,0)","v":{"$error":"#N/A"}},{"$f":"MATCH(X$3,Millwall!$AP93:$AZ93,0)","v":{"$error":"#N/A"}},{"$f":"MATCH(Y$3,Millwall!$AP93:$AZ93,0)","v":{"$error":"#N/A"}},{"$f":"MATCH(Z$3,Millwall!$AP93:$AZ93,0)","v":{"$error":"#N/A"}},{"$f":"MATCH(AA$3,Millwall!$AP93:$AZ93,0)","v":8},{"$f":"MATCH(AB$3,Millwall!$AP93:$AZ93,0)","v":1},{"$f":"MATCH(AC$3,Millwall!$AP93:$AZ93,0)","v":4},{"$f":"MATCH(AD$3,Millwall!$AP93:$AZ93,0)","v":{"$error":"#N/A"}},{"$f":"MATCH(AE$3,Millwall!$AP93:$AZ93,0)","v":{"$error":"#N/A"}},{"$f":"MATCH(AF$3,Millwall!$AP93:$AZ93,0)","v":{"$error":"#N/A"}},{"$f":"MATCH(AG$3,Millwall!$AP93:$AZ93,0)","v":{"$error":"#N/A"}},{"$f":"MATCH(AH$3,Millwall!$AP93:$AZ93,0)","v":3},{"$f":"MATCH(AI$3,Millwall!$AP93:$AZ93,0)","v":11},{"$f":"MATCH(AJ$3,Millwall!$AP93:$AZ93,0)","v":{"$error":"#N/A"}},{"$f":"MATCH(AK$3,Millwall!$AP93:$AZ93,0)","v":10},{"$f":"MATCH(AL$3,Millwall!$AP93:$AZ93,0)","v":{"$error":"#N/A"}},{"$f":"MATCH(AM$3,Millwall!$AP93:$AZ93,0)","v":2},{"$f":"MATCH(AN$3,Millwall!$AP93:$AZ93,0)","v":{"$error":"#N/A"}},{"$f":"MATCH(AO$3,Millwall!$AP93:$AZ93,0)","v":7},{"$f":"MATCH(AP$3,Millwall!$AP93:$AZ93,0)","v":{"$error":"#N/A"}},{"$f":"MATCH(AQ$3,Millwall!$AP93:$AZ93,0)","v":{"$error":"#N/A"}},{"$f":"MATCH(AR$3,Millwall!$AP93:$AZ93,0)","v":{"$error":"#N/A"}}]
[null,null,null,17,null,{"$f":"Millwall!AI94","v":"1929-11-30"},null,{"$f":"Millwall!AK94","v":"Preston"},{"$f":"Millwall!AL94","v":"(A)"},{"$f":"Millwall!AO94","v":"L 1-3"},{"$f":"MATCH(K$3,Millwall!$AP94:$AZ94,0)","v":{"$error":"#N/A"}},{"$f":"MATCH(L$3,Millwall!$AP94:$AZ94,0)","v":{"$error":"#N/A"}},{"$f":"MATCH(M$3,Millwall!$AP94:$AZ94,0)","v":{"$error":"#N/A"}},{"$f":"MATCH(N$3,Millwall!$AP94:$AZ94,0)","v":{"$error":"#N/A"}},{"$f":"MATCH(O$3,Millwall!$AP94:$AZ94,0)","v":{"$error":"#N/A"}},{"$f":"MATCH(P$3,Millwall!$AP94:$AZ94,0)","v":9},{"$f":"MATCH(Q$3,Millwall!$AP94:$AZ94,0)","v":{"$error":"#N/A"}},{"$f":"MATCH(R$3,Millwall!$AP94:$AZ94,0)","v":{"$error":"#N/A"}},{"$f":"MATCH(S$3,Millwall!$AP94:$AZ94,0)","v":{"$error":"#N/A"}},{"$f":"MATCH(T$3,Millwall!$AP94:$AZ94,0)","v":5},{"$f":"MATCH(U$3,Millwall!$AP94:$AZ94,0)","v":{"$error":"#N/A"}},{"$f":"MATCH(V$3,Millwall!$AP94:$AZ94,0)","v":{"$error":"#N/A"}},{"$f":"MATCH(W$3,Millwall!$AP94:$AZ94,0)","v":{"$error":"#N/A"}},{"$f":"MATCH(X$3,Millwall!$AP94:$AZ94,0)","v":{"$error":"#N/A"}},{"$f":"MATCH(Y$3,Millwall!$AP94:$AZ94,0)","v":{"$error":"#N/A"}},{"$f":"MATCH(Z$3,Millwall!$AP94:$AZ94,0)","v":{"$error":"#N/A"}},{"$f":"MATCH(AA$3,Millwall!$AP94:$AZ94,0)","v":8},{"$f":"MATCH(AB$3,Millwall!$AP94:$AZ94,0)","v":1},{"$f":"MATCH(AC$3,Millwall!$AP94:$AZ94,0)","v":4},{"$f":"MATCH(AD$3,Millwall!$AP94:$AZ94,0)","v":{"$error":"#N/A"}},{"$f":"MATCH(AE$3,Millwall!$AP94:$AZ94,0)","v":{"$error":"#N/A"}},{"$f":"MATCH(AF$3,Millwall!$AP94:$AZ94,0)","v":6},{"$f":"MATCH(AG$3,Millwall!$AP94:$AZ94,0)","v":{"$error":"#N/A"}},{"$f":"MATCH(AH$3,Millwall!$AP94:$AZ94,0)","v":3},{"$f":"MATCH(AI$3,Millwall!$AP94:$AZ94,0)","v":11},{"$f":"MATCH(AJ$3,Millwall!$AP94:$AZ94,0)","v":{"$error":"#N/A"}},{"$f":"MATCH(AK$3,Millwall!$AP94:$AZ94,0)","v":10},{"$f":"MATCH(AL$3,Millwall!$AP94:$AZ94,0)","v":{"$error":"#N/A"}},{"$f":"MATCH(AM$3,Millwall!$AP94:$AZ94,0)","v":2},{"$f":"MATCH(AN$3,Millwall!$AP94:$AZ94,0)","v":{"$error":"#N/A"}},{"$f":"MATCH(AO$3,Millwall!$AP94:$AZ94,0)","v":7},{"$f":"MATCH(AP$3,Millwall!$AP94:$AZ94,0)","v":{"$error":"#N/A"}},{"$f":"MATCH(AQ$3,Millwall!$AP94:$AZ94,0)","v":{"$error":"#N/A"}},{"$f":"MATCH(AR$3,Millwall!$AP94:$AZ94,0)","v":{"$error":"#N/A"}}]
[null,null,null,18,null,{"$f":"Millwall!AI95","v":"1929-12-07"},null,{"$f":"Millwall!AK95","v":"Bristol C"},{"$f":"Millwall!AL95","v":"(H)"},{"$f":"Millwall!AO95","v":"D 1-1"},{"$f":"MATCH(K$3,Millwall!$AP95:$AZ95,0)","v":{"$error":"#N/A"}},{"$f":"MATCH(L$3,Millwall!$AP95:$AZ95,0)","v":{"$error":"#N/A"}},{"$f":"MATCH(M$3,Millwall!$AP95:$AZ95,0)","v":{"$error":"#N/A"}},{"$f":"MATCH(N$3,Millwall!$AP95:$AZ95,0)","v":{"$error":"#N/A"}},{"$f":"MATCH(O$3,Millwall!$AP95:$AZ95,0)","v":7},{"$f":"MATCH(P$3,Millwall!$AP95:$AZ95,0)","v":9},{"$f":"MATCH(Q$3,Millwall!$AP95:$AZ95,0)","v":{"$error":"#N/A"}},{"$f":"MATCH(R$3,Millwall!$AP95:$AZ95,0)","v":{"$error":"#N/A"}},{"$f":"MATCH(S$3,Millwall!$AP95:$AZ95,0)","v":2},{"$f":"MATCH(T$3,Millwall!$AP95:$AZ95,0)","v":5},{"$f":"MATCH(U$3,Millwall!$AP95:$AZ95,0)","v":6},{"$f":"MATCH(V$3,Millwall!$AP95:$AZ95,0)","v":{"$error":"#N/A"}},{"$f":"MATCH(W$3,Millwall!$AP95:$AZ95,0)","v":{"$error":"#N/A"}},{"$f":"MATCH(X$3,Millwall!$AP95:$AZ95,0)","v":{"$error":"#N/A"}},{"$f":"MATCH(Y$3,Millwall!$AP95:$AZ95,0)","v":{"$error":"#N/A"}},{"$f":"MATCH(Z$3,Millwall!$AP95:$AZ95,0)","v":{"$error":"#N/A"}},{"$f":"MATCH(AA$3,Millwall!$AP95:$AZ95,0)","v":8},{"$f":"MATCH(AB$3,Millwall!$AP95:$AZ95,0)","v":1},{"$f":"MATCH(AC$3,Millwall!$AP95:$AZ95,0)","v":4},{"$f":"MATCH(AD$3,Millwall!$AP95:$AZ95,0)","v":{"$error":"#N/A"}},{"$f":"MATCH(AE$3,Millwall!$AP95:$AZ95,0)","v":{"$error":"#N/A"}},{"$f":"MATCH(AF$3,Millwall!$AP95:$AZ95,0)","v":{"$error":"#N/A"}},{"$f":"MATCH(AG$3,Millwall!$AP95:$AZ95,0)","v":{"$error":"#N/A"}},{"$f":"MATCH(AH$3,Millwall!$AP95:$AZ95,0)","v":3},{"$f":"MATCH(AI$3,Millwall!$AP95:$AZ95,0)","v":11},{"$f":"MATCH(AJ$3,Millwall!$AP95:$AZ95,0)","v":10},{"$f":"MATCH(AK$3,Millwall!$AP95:$AZ95,0)","v":{"$error":"#N/A"}},{"$f":"MATCH(AL$3,Millwall!$AP95:$AZ95,0)","v":{"$error":"#N/A"}},{"$f":"MATCH(AM$3,Millwall!$AP95:$AZ95,0)","v":{"$error":"#N/A"}},{"$f":"MATCH(AN$3,Millwall!$AP95:$AZ95,0)","v":{"$error":"#N/A"}},{"$f":"MATCH(AO$3,Millwall!$AP95:$AZ95,0)","v":{"$error":"#N/A"}},{"$f":"MATCH(AP$3,Millwall!$AP95:$AZ95,0)","v":{"$error":"#N/A"}},{"$f":"MATCH(AQ$3,Millwall!$AP95:$AZ95,0)","v":{"$error":"#N/A"}},{"$f":"MATCH(AR$3,Millwall!$AP95:$AZ95,0)","v":{"$error":"#N/A"}}]
[null,null,null,19,null,{"$f":"Millwall!AI96","v":"1929-12-14"},null,{"$f":"Millwall!AK96","v":"Notts Co"},{"$f":"Millwall!AL96","v":"(A)"},{"$f":"Millwall!AO96","v":"D 1-1"},{"$f":"MATCH(K$3,Millwall!$AP96:$AZ96,0)","v":{"$error":"#N/A"}},{"$f":"MATCH(L$3,Millwall!$AP96:$AZ96,0)","v":{"$error":"#N/A"}},{"$f":"MATCH(M$3,Millwall!$AP96:$AZ96,0)","v":{"$error":"#N/A"}},{"$f":"MATCH(N$3,Millwall!$AP96:$AZ96,0)","v":{"$error":"#N/A"}},{"$f":"MATCH(O$3,Millwall!$AP96:$AZ96,0)","v":7},{"$f":"MATCH(P$3,Millwall!$AP96:$AZ96,0)","v":{"$error":"#N/A"}},{"$f":"MATCH(Q$3,Millwall!$AP96:$AZ96,0)","v":{"$error":"#N/A"}},{"$f":"MATCH(R$3,Millwall!$AP96:$AZ96,0)","v":9},{"$f":"MATCH(S$3,Millwall!$AP96:$AZ96,0)","v":{"$error":"#N/A"}},{"$f":"MATCH(T$3,Millwall!$AP96:$AZ96,0)","v":5},{"$f":"MATCH(U$3,Millwall!$AP96:$AZ96,0)","v":6},{"$f":"MATCH(V$3,Millwall!$AP96:$AZ96,0)","v":{"$error":"#N/A"}},{"$f":"MATCH(W$3,Millwall!$AP96:$AZ96,0)","v":{"$error":"#N/A"}},{"$f":"MATCH(X$3,Millwall!$AP96:$AZ96,0)","v":{"$error":"#N/A"}},{"$f":"MATCH(Y$3,Millwall!$AP96:$AZ96,0)","v":{"$error":"#N/A"}},{"$f":"MATCH(Z$3,Millwall!$AP96:$AZ96,0)","v":{"$error":"#N/A"}},{"$f":"MATCH(AA$3,Millwall!$AP96:$AZ96,0)","v":8},{"$f":"MATCH(AB$3,Millwall!$AP96:$AZ96,0)","v":1},{"$f":"MATCH(AC$3,Millwall!$AP96:$AZ96,0)","v":4},{"$f":"MATCH(AD$3,Millwall!$AP96:$AZ96,0)","v":{"$error":"#N/A"}},{"$f":"MATCH(AE$3,Millwall!$AP96:$AZ96,0)","v":{"$error":"#N/A"}},{"$f":"MATCH(AF$3,Millwall!$AP96:$AZ96,0)","v":{"$error":"#N/A"}},{"$f":"MATCH(AG$3,Millwall!$AP96:$AZ96,0)","v":10},{"$f":"MATCH(AH$3,Millwall!$AP96:$AZ96,0)","v":3},{"$f":"MATCH(AI$3,Millwall!$AP96:$AZ96,0)","v":11},{"$f":"MATCH(AJ$3,Millwall!$AP96:$AZ96,0)","v":{"$error":"#N/A"}},{"$f":"MATCH(AK$3,Millwall!$AP96:$AZ96,0)","v":{"$error":"#N/A"}},{"$f":"MATCH(AL$3,Millwall!$AP96:$AZ96,0)","v":{"$error":"#N/A"}},{"$f":"MATCH(AM$3,Millwall!$AP96:$AZ96,0)","v":2},{"$f":"MATCH(AN$3,Millwall!$AP96:$AZ96,0)","v":{"$error":"#N/A"}},{"$f":"MATCH(AO$3,Millwall!$AP96:$AZ96,0)","v":{"$error":"#N/A"}},{"$f":"MATCH(AP$3,Millwall!$AP96:$AZ96,0)","v":{"$error":"#N/A"}},{"$f":"MATCH(AQ$3,Millwall!$AP96:$AZ96,0)","v":{"$error":"#N/A"}},{"$f":"MATCH(AR$3,Millwall!$AP96:$AZ96,0)","v":{"$error":"#N/A"}}]
[null,null,null,20,null,{"$f":"Millwall!AI97","v":"1929-12-21"},null,{"$f":"Millwall!AK97","v":"Reading"},{"$f":"Millwall!AL97","v":"(H)"},{"$f":"Millwall!AO97","v":"W 3-1"},{"$f":"MATCH(K$3,Millwall!$AP97:$AZ97,0)","v":{"$error":"#N/A"}},{"$f":"MATCH(L$3,Millwall!$AP97:$AZ97,0)","v":{"$error":"#N/A"}},{"$f":"MATCH(M$3,Millwall!$AP97:$AZ97,0)","v":{"$error":"#N/A"}},{"$f":"MATCH(N$3,Millwall!$AP97:$AZ97,0)","v":8},{"$f":"MATCH(O$3,Millwall!$AP97:$AZ97,0)","v":7},{"$f":"MATCH(P$3,Millwall!$AP97:$AZ97,0)","v":{"$error":"#N/A"}},{"$f":"MATCH(Q$3,Millwall!$AP97:$AZ97,0)","v":{"$error":"#N/A"}},{"$f":"MATCH(R$3,Millwall!$AP97:$AZ97,0)","v":9},{"$f":"MATCH(S$3,Millwall!$AP97:$AZ97,0)","v":{"$error":"#N/A"}},{"$f":"MATCH(T$3,Millwall!$AP97:$AZ97,0)","v":5},{"$f":"MATCH(U$3,Millwall!$AP97:$AZ97,0)","v":6},{"$f":"MATCH(V$3,Millwall!$AP97:$AZ97,0)","v":{"$error":"#N/A"}},{"$f":"MATCH(W$3,Millwall!$AP97:$AZ97,0)","v":{"$error":"#N/A"}},{"$f":"MATCH(X$3,Millwall!$AP97:$AZ97,0)","v":2},{"$f":"MATCH(Y$3,Millwall!$AP97:$AZ97,0)","v":{"$error":"#N/A"}},{"$f":"MATCH(Z$3,Millwall!$AP97:$AZ97,0)","v":{"$error":"#N/A"}},{"$f":"MATCH(AA$3,Millwall!$AP97:$AZ97,0)","v":{"$error":"#N/A"}},{"$f":"MATCH(AB$3,Millwall!$AP97:$AZ97,0)","v":1},{"$f":"MATCH(AC$3,Millwall!$AP97:$AZ97,0)","v":4},{"$f":"MATCH(AD$3,Millwall!$AP97:$AZ97,0)","v":{"$error":"#N/A"}},{"$f":"MATCH(AE$3,Millwall!$AP97:$AZ97,0)","v":{"$error":"#N/A"}},{"$f":"MATCH(AF$3,Millwall!$AP97:$AZ97,0)","v":{"$error":"#N/A"}},{"$f":"MATCH(AG$3,Millwall!$AP97:$AZ97,0)","v":10},{"$f":"MATCH(AH$3,Millwall!$AP97:$AZ97,0)","v":3},{"$f":"MATCH(AI$3,Millwall!$AP97:$AZ97,0)","v":11},{"$f":"MATCH(AJ$3,Millwall!$AP97:$AZ97,0)","v":{"$error":"#N/A"}},{"$f":"MATCH(AK$3,Millwall!$AP97:$AZ97,0)","v":{"$error":"#N/A"}},{"$f":"MATCH(AL$3,Millwall!$AP97:$AZ97,0)","v":{"$error":"#N/A"}},{"$f":"MATCH(AM$3,Millwall!$AP97:$AZ97,0)","v":{"$error":"#N/A"}},{"$f":"MATCH(AN$3,Millwall!$AP97:$AZ97,0)","v":{"$error":"#N/A"}},{"$f":"MATCH(AO$3,Millwall!$AP97:$AZ97,0)","v":{"$error":"#N/A"}},{"$f":"MATCH(AP$3,Millwall!$AP97:$AZ97,0)","v":{"$error":"#N/A"}},{"$f":"MATCH(AQ$3,Millwall!$AP97:$AZ97,0)","v":{"$error":"#N/A"}},{"$f":"MATCH(AR$3,Millwall!$AP97:$AZ97,0)","v":{"$error":"#N/A"}}]
[null,null,null,21,null,{"$f":"Millwall!AI98","v":"1929-12-25"},null,{"$f":"Millwall!AK98","v":"West Brom"},{"$f":"Millwall!AL98","v":"(H)"},{"$f":"Millwall!AO98","v":"W 2-1"},{"$f":"MATCH(K$3,Millwall!$AP98:$AZ98,0)","v":{"$error":"#N/A"}},{"$f":"MATCH(L$3,Millwall!$AP98:$AZ98,0)","v":{"$error":"#N/A"}},{"$f":"MATCH(M$3,Millwall!$AP98:$AZ98,0)","v":{"$error":"#N/A"}},{"$f":"MATCH(N$3,Millwall!$AP98:$AZ98,0)","v":8},{"$f":"MATCH(O$3,Millwall!$AP98:$AZ98,0)","v":7},{"$f":"MATCH(P$3,Millwall!$AP98:$AZ98,0)","v":{"$error":"#N/A"}},{"$f":"MATCH(Q$3,Millwall!$AP98:$AZ98,0)","v":{"$error":"#N/A"}},{"$f":"MATCH(R$3,Millwall!$AP98:$AZ98,0)","v":9},{"$f":"MATCH(S$3,Millwall!$AP98:$AZ98,0)","v":{"$error":"#N/A"}},{"$f":"MATCH(T$3,Millwall!$AP98:$AZ98,0)","v":5},{"$f":"MATCH(U$3,Millwall!$AP98:$AZ98,0)","v":6},{"$f":"MATCH(V$3,Millwall!$AP98:$AZ98,0)","v":{"$error":"#N/A"}},{"$f":"MATCH(W$3,Millwall!$AP98:$AZ98,0)","v":{"$error":"#N/A"}},{"$f":"MATCH(X$3,Millwall!$AP98:$AZ98,0)","v":2},{"$f":"MATCH(Y$3,Millwall!$AP98:$AZ98,0)","v":{"$error":"#N/A"}},{"$f":"MATCH(Z$3,Millwall!$AP98:$AZ98,0)","v":{"$error":"#N/A"}},{"$f":"MATCH(AA$3,Millwall!$AP98:$AZ98,0)","v":{"$error":"#N/A"}},{"$f":"MATCH(AB$3,Millwall!$AP98:$AZ98,0)","v":1},{"$f":"MATCH(AC$3,Millwall!$AP98:$AZ98,0)","v":4},{"$f":"MATCH(AD$3,Millwall!$AP98:$AZ98,0)","v":{"$error":"#N/A"}},{"$f":"MATCH(AE$3,Millwall!$AP98:$AZ98,0)","v":{"$error":"#N/A"}},{"$f":"MATCH(AF$3,Millwall!$AP98:$AZ98,0)","v":{"$error":"#N/A"}},{"$f":"MATCH(AG$3,Millwall!$AP98:$AZ98,0)","v":10},{"$f":"MATCH(AH$3,Millwall!$AP98:$AZ98,0)","v":3},{"$f":"MATCH(AI$3,Millwall!$AP98:$AZ98,0)","v":11},{"$f":"MATCH(AJ$3,Millwall!$AP98:$AZ98,0)","v":{"$error":"#N/A"}},{"$f":"MATCH(AK$3,Millwall!$AP98:$AZ98,0)","v":{"$error":"#N/A"}},{"$f":"MATCH(AL$3,Millwall!$AP98:$AZ98,0)","v":{"$error":"#N/A"}},{"$f":"MATCH(AM$3,Millwall!$AP98:$AZ98,0)","v":{"$error":"#N/A"}},{"$f":"MATCH(AN$3,Millwall!$AP98:$AZ98,0)","v":{"$error":"#N/A"}},{"$f":"MATCH(AO$3,Millwall!$AP98:$AZ98,0)","v":{"$error":"#N/A"}},{"$f":"MATCH(AP$3,Millwall!$AP98:$AZ98,0)","v":{"$error":"#N/A"}},{"$f":"MATCH(AQ$3,Millwall!$AP98:$AZ98,0)","v":{"$error":"#N/A"}},{"$f":"MATCH(AR$3,Millwall!$AP98:$AZ98,0)","v":{"$error":"#N/A"}}]
[null,null,null,22,null,{"$f":"Millwall!AI99","v":"1929-12-26"},null,{"$f":"Millwall!AK99","v":"West Brom"},{"$f":"Millwall!AL99","v":"(A)"},{"$f":"Millwall!AO99","v":"L 1-6"},{"$f":"MATCH(K$3,Millwall!$AP99:$AZ99,0)","v":{"$error":"#N/A"}},{"$f":"MATCH(L$3,Millwall!$AP99:$AZ99,0)","v":{"$error":"#N/A"}},{"$f":"MATCH(M$3,Millwall!$AP99:$AZ99,0)","v":{"$error":"#N/A"}},{"$f":"MATCH(N$3,Millwall!$AP99:$AZ99,0)","v":8},{"$f":"MATCH(O$3,Millwall!$AP99:$AZ99,0)","v":7},{"$f":"MATCH(P$3,Millwall!$AP99:$AZ99,0)","v":{"$error":"#N/A"}},{"$f":"MATCH(Q$3,Millwall!$AP99:$AZ99,0)","v":{"$error":"#N/A"}},{"$f":"MATCH(R$3,Millwall!$AP99:$AZ99,0)","v":9},{"$f":"MATCH(S$3,Millwall!$AP99:$AZ99,0)","v":{"$error":"#N/A"}},{"$f":"MATCH(T$3,Millwall!$AP99:$AZ99,0)","v":5},{"$f":"MATCH(U$3,Millwall!$AP99:$AZ99,0)","v":6},{"$f":"MATCH(V$3,Millwall!$AP99:$AZ99,0)","v":{"$error":"#N/A"}},{"$f":"MATCH(W$3,Millwall!$AP99:$AZ99,0)","v":{"$error":"#N/A"}},{"$f":"MATCH(X$3,Millwall!$AP99:$AZ99,0)","v":2},{"$f":"MATCH(Y$3,Millwall!$AP99:$AZ99,0)","v":{"$error":"#N/A"}},{"$f":"MATCH(Z$3,Millwall!$AP99:$AZ99,0)","v":{"$error":"#N/A"}},{"$f":"MATCH(AA$3,Millwall!$AP99:$AZ99,0)","v":{"$error":"#N/A"}},{"$f":"MATCH(AB$3,Millwall!$AP99:$AZ99,0)","v":1},{"$f":"MATCH(AC$3,Millwall!$AP99:$AZ99,0)","v":4},{"$f":"MATCH(AD$3,Millwall!$AP99:$AZ99,0)","v":3},{"$f":"MATCH(AE$3,Millwall!$AP99:$AZ99,0)","v":{"$error":"#N/A"}},{"$f":"MATCH(AF$3,Millwall!$AP99:$AZ99,0)","v":{"$error":"#N/A"}},{"$f":"MATCH(AG$3,Millwall!$AP99:$AZ99,0)","v":10},{"$f":"MATCH(AH$3,Millwall!$AP99:$AZ99,0)","v":{"$error":"#N/A"}},{"$f":"MATCH(AI$3,Millwall!$AP99:$AZ99,0)","v":11},{"$f":"MATCH(AJ$3,Millwall!$AP99:$AZ99,0)","v":{"$error":"#N/A"}},{"$f":"MATCH(AK$3,Millwall!$AP99:$AZ99,0)","v":{"$error":"#N/A"}},{"$f":"MATCH(AL$3,Millwall!$AP99:$AZ99,0)","v":{"$error":"#N/A"}},{"$f":"MATCH(AM$3,Millwall!$AP99:$AZ99,0)","v":{"$error":"#N/A"}},{"$f":"MATCH(AN$3,Millwall!$AP99:$AZ99,0)","v":{"$error":"#N/A"}},{"$f":"MATCH(AO$3,Millwall!$AP99:$AZ99,0)","v":{"$error":"#N/A"}},{"$f":"MATCH(AP$3,Millwall!$AP99:$AZ99,0)","v":{"$error":"#N/A"}},{"$f":"MATCH(AQ$3,Millwall!$AP99:$AZ99,0)","v":{"$error":"#N/A"}},{"$f":"MATCH(AR$3,Millwall!$AP99:$AZ99,0)","v":{"$error":"#N/A"}}]
[null,null,null,23,null,{"$f":"Millwall!AI100","v":"1929-12-28"},null,{"$f":"Millwall!AK100","v":"Blackpool"},{"$f":"Millwall!AL100","v":"(H)"},{"$f":"Millwall!AO100","v":"W 3-1"},{"$f":"MATCH(K$3,Millwall!$AP100:$AZ100,0)","v":{"$error":"#N/A"}},{"$f":"MATCH(L$3,Millwall!$AP100:$AZ100,0)","v":{"$error":"#N/A"}},{"$f":"MATCH(M$3,Millwall!$AP100:$AZ100,0)","v":{"$error":"#N/A"}},{"$f":"MATCH(N$3,Millwall!$AP100:$AZ100,0)","v":{"$error":"#N/A"}},{"$f":"MATCH(O$3,Millwall!$AP100:$AZ100,0)","v":{"$error":"#N/A"}},{"$f":"MATCH(P$3,Millwall!$AP100:$AZ100,0)","v":9},{"$f":"MATCH(Q$3,Millwall!$AP100:$AZ100,0)","v":7},{"$f":"MATCH(R$3,Millwall!$AP100:$AZ100,0)","v":{"$error":"#N/A"}},{"$f":"MATCH(S$3,Millwall!$AP100:$AZ100,0)","v":{"$error":"#N/A"}},{"$f":"MATCH(T$3,Millwall!$AP100:$AZ100,0)","v":5},{"$f":"MATCH(U$3,Millwall!$AP100:$AZ100,0)","v":6},{"$f":"MATCH(V$3,Millwall!$AP100:$AZ100,0)","v":{"$error":"#N/A"}},{"$f":"MATCH(W$3,Millwall!$AP100:$AZ100,0)","v":{"$error":"#N/A"}},{"$f":"MATCH(X$3,Millwall!$AP100:$AZ100,0)","v":2},{"$f":"MATCH(Y$3,Millwall!$AP100:$AZ100,0)","v":{"$error":"#N/A"}},{"$f":"MATCH(Z$3,Millwall!$AP100:$AZ100,0)","v":{"$error":"#N/A"}},{"$f":"MATCH(AA$3,Millwall!$AP100:$AZ100,0)","v":{"$error":"#N/A"}},{"$f":"MATCH(AB$3,Millwall!$AP100:$AZ100,0)","v":1},{"$f":"MATCH(AC$3,Millwall!$AP100:$AZ100,0)","v":4},{"$f":"MATCH(AD$3,Millwall!$AP100:$AZ100,0)","v":{"$error":"#N/A"}},{"$f":"MATCH(AE$3,Millwall!$AP100:$AZ100,0)","v":{"$error":"#N/A"}},{"$f":"MATCH(AF$3,Millwall!$AP100:$AZ100,0)","v":{"$error":"#N/A"}},{"$f":"MATCH(AG$3,Millwall!$AP100:$AZ100,0)","v":10},{"$f":"MATCH(AH$3,Millwall!$AP100:$AZ100,0)","v":{"$error":"#N/A"}},{"$f":"MATCH(AI$3,Millwall!$AP100:$AZ100,0)","v":11},{"$f":"MATCH(AJ$3,Millwall!$AP100:$AZ100,0)","v":8},{"$f":"MATCH(AK$3,Millwall!$AP100:$AZ100,0)","v":{"$error":"#N/A"}},{"$f":"MATCH(AL$3,Millwall!$AP100:$AZ100,0)","v":{"$error":"#N/A"}},{"$f":"MATCH(AM$3,Millwall!$AP100:$AZ100,0)","v":{"$error":"#N/A"}},{"$f":"MATCH(AN$3,Millwall!$AP100:$AZ100,0)","v":3},{"$f":"MATCH(AO$3,Millwall!$AP100:$AZ100,0)","v":{"$error":"#N/A"}},{"$f":"MATCH(AP$3,Millwall!$AP100:$AZ100,0)","v":{"$error":"#N/A"}},{"$f":"MATCH(AQ$3,Millwall!$AP100:$AZ100,0)","v":{"$error":"#N/A"}},{"$f":"MATCH(AR$3,Millwall!$AP100:$AZ100,0)","v":{"$error":"#N/A"}}]
[null,null,null,24,null,{"$f":"Millwall!AI101","v":"1930-01-04"},null,{"$f":"Millwall!AK101","v":"Bury"},{"$f":"Millwall!AL101","v":"(A)"},{"$f":"Millwall!AO101","v":"L 1-5"},{"$f":"MATCH(K$3,Millwall!$AP101:$AZ101,0)","v":{"$error":"#N/A"}},{"$f":"MATCH(L$3,Millwall!$AP101:$AZ101,0)","v":{"$error":"#N/A"}},{"$f":"MATCH(M$3,Millwall!$AP101:$AZ101,0)","v":{"$error":"#N/A"}},{"$f":"MATCH(N$3,Millwall!$AP101:$AZ101,0)","v":{"$error":"#N/A"}},{"$f":"MATCH(O$3,Millwall!$AP101:$AZ101,0)","v":{"$error":"#N/A"}},{"$f":"MATCH(P$3,Millwall!$AP101:$AZ101,0)","v":9},{"$f":"MATCH(Q$3,Millwall!$AP101:$AZ101,0)","v":7},{"$f":"MATCH(R$3,Millwall!$AP101:$AZ101,0)","v":6},{"$f":"MATCH(S$3,Millwall!$AP101:$AZ101,0)","v":{"$error":"#N/A"}},{"$f":"MATCH(T$3,Millwall!$AP101:$AZ101,0)","v":{"$error":"#N/A"}},{"$f":"MATCH(U$3,Millwall!$AP101:$AZ101,0)","v":5},{"$f":"MATCH(V$3,Millwall!$AP101:$AZ101,0)","v":{"$error":"#N/A"}},{"$f":"MATCH(W$3,Millwall!$AP101:$AZ101,0)","v":{"$error":"#N/A"}},{"$f":"MATCH(X$3,Millwall!$AP101:$AZ101,0)","v":2},{"$f":"MATCH(Y$3,Millwall!$AP101:$AZ101,0)","v":{"$error":"#N/A"}},{"$f":"MATCH(Z$3,Millwall!$AP101:$AZ101,0)","v":{"$error":"#N/A"}},{"$f":"MATCH(AA$3,Millwall!$AP101:$AZ101,0)","v":{"$error":"#N/A"}},{"$f":"MATCH(AB$3,Millwall!$AP101:$AZ101,0)","v":1},{"$f":"MATCH(AC$3,Millwall!$AP101:$AZ101,0)","v":4},{"$f":"MATCH(AD$3,Millwall!$AP101:$AZ101,0)","v":{"$error":"#N/A"}},{"$f":"MATCH(AE$3,Millwall!$AP101:$AZ101,0)","v":{"$error":"#N/A"}},{"$f":"MATCH(AF$3,Millwall!$AP101:$AZ101,0)","v":{"$error":"#N/A"}},{"$f":"MATCH(AG$3,Millwall!$AP101:$AZ101,0)","v":10},{"$f":"MATCH(AH$3,Millwall!$AP101:$AZ101,0)","v":{"$error":"#N/A"}},{"$f":"MATCH(AI$3,Millwall!$AP101:$AZ101,0)","v":11},{"$f":"MATCH(AJ$3,Millwall!$AP101:$AZ101,0)","v":8},{"$f":"MATCH(AK$3,Millwall!$AP101:$AZ101,0)","v":{"$error":"#N/A"}},{"$f":"MATCH(AL$3,Millwall!$AP101:$AZ101,0)","v":{"$error":"#N/A"}},{"$f":"MATCH(AM$3,Millwall!$AP101:$AZ101,0)","v":{"$error":"#N/A"}},{"$f":"MATCH(AN$3,Millwall!$AP101:$AZ101,0)","v":3},{"$f":"MATCH(AO$3,Millwall!$AP101:$AZ101,0)","v":{"$error":"#N/A"}},{"$f":"MATCH(AP$3,Millwall!$AP101:$AZ101,0)","v":{"$error":"#N/A"}},{"$f":"MATCH(AQ$3,Millwall!$AP101:$AZ101,0)","v":{"$error":"#N/A"}},{"$f":"MATCH(AR$3,Millwall!$AP101:$AZ101,0)","v":{"$error":"#N/A"}}]
[null,null,null,25,null,{"$f":"Millwall!AI102","v":"1930-01-18"},null,{"$f":"Millwall!AK102","v":"Chelsea"},{"$f":"Millwall!AL102","v":"(H)"},{"$f":"Millwall!AO102","v":"D 0-0"},{"$f":"MATCH(K$3,Millwall!$AP102:$AZ102,0)","v":{"$error":"#N/A"}},{"$f":"MATCH(L$3,Millwall!$AP102:$AZ102,0)","v":{"$error":"#N/A"}},{"$f":"MATCH(M$3,Millwall!$AP102:$AZ102,0)","v":{"$error":"#N/A"}},{"$f":"MATCH(N$3,Millwall!$AP102:$AZ102,0)","v":8},{"$f":"MATCH(O$3,Millwall!$AP102:$AZ102,0)","v":{"$error":"#N/A"}},{"$f":"MATCH(P$3,Millwall!$AP102:$AZ102,0)","v":9},{"$f":"MATCH(Q$3,Millwall!$AP102:$AZ102,0)","v":7},{"$f":"MATCH(R$3,Millwall!$AP102:$AZ102,0)","v":10},{"$f":"MATCH(S$3,Millwall!$AP102:$AZ102,0)","v":{"$error":"#N/A"}},{"$f":"MATCH(T$3,Millwall!$AP102:$AZ102,0)","v":5},{"$f":"MATCH(U$3,Millwall!$AP102:$AZ102,0)","v":6},{"$f":"MATCH(V$3,Millwall!$AP102:$AZ102,0)","v":{"$error":"#N/A"}},{"$f":"MATCH(W$3,Millwall!$AP102:$AZ102,0)","v":{"$error":"#N/A"}},{"$f":"MATCH(X$3,Millwall!$AP102:$AZ102,0)","v":{"$error":"#N/A"}},{"$f":"MATCH(Y$3,Millwall!$AP102:$AZ102,0)","v":{"$error":"#N/A"}},{"$f":"MATCH(Z$3,Millwall!$AP102:$AZ102,0)","v":{"$error":"#N/A"}},{"$f":"MATCH(AA$3,Millwall!$AP102:$AZ102,0)","v":{"$error":"#N/A"}},{"$f":"MATCH(AB$3,Millwall!$AP102:$AZ102,0)","v":1},{"$f":"MATCH(AC$3,Millwall!$AP102:$AZ102,0)","v":4},{"$f":"MATCH(AD$3,Millwall!$AP102:$AZ102,0)","v":{"$error":"#N/A"}},{"$f":"MATCH(AE$3,Millwall!$AP102:$AZ102,0)","v":{"$error":"#N/A"}},{"$f":"MATCH(AF$3,Millwall!$AP102:$AZ102,0)","v":{"$error":"#N/A"}},{"$f":"MATCH(AG$3,Millwall!$AP102:$AZ102,0)","v":{"$error":"#N/A"}},{"$f":"MATCH(AH$3,Millwall!$AP102:$AZ102,0)","v":3},{"$f":"MATCH(AI$3,Millwall!$AP102:$AZ102,0)","v":11},{"$f":"MATCH(AJ$3,Millwall!$AP102:$AZ102,0)","v":{"$error":"#N/A"}},{"$f":"MATCH(AK$3,Millwall!$AP102:$AZ102,0)","v":{"$error":"#N/A"}},{"$f":"MATCH(AL$3,Millwall!$AP102:$AZ102,0)","v":{"$error":"#N/A"}},{"$f":"MATCH(AM$3,Millwall!$AP102:$AZ102,0)","v":{"$error":"#N/A"}},{"$f":"MATCH(AN$3,Millwall!$AP102:$AZ102,0)","v":2},{"$f":"MATCH(AO$3,Millwall!$AP102:$AZ102,0)","v":{"$error":"#N/A"}},{"$f":"MATCH(AP$3,Millwall!$AP102:$AZ102,0)","v":{"$error":"#N/A"}},{"$f":"MATCH(AQ$3,Millwall!$AP102:$AZ102,0)","v":{"$error":"#N/A"}},{"$f":"MATCH(AR$3,Millwall!$AP102:$AZ102,0)","v":{"$error":"#N/A"}}]
[null,null,null,26,null,{"$f":"Millwall!AI103","v":"1930-02-01"},null,{"$f":"Millwall!AK103","v":"Oldham"},{"$f":"Millwall!AL103","v":"(H)"},{"$f":"Millwall!AO103","v":"W 2-1"},{"$f":"MATCH(K$3,Millwall!$AP103:$AZ103,0)","v":{"$error":"#N/A"}},{"$f":"MATCH(L$3,Millwall!$AP103:$AZ103,0)","v":{"$error":"#N/A"}},{"$f":"MATCH(M$3,Millwall!$AP103:$AZ103,0)","v":{"$error":"#N/A"}},{"$f":"MATCH(N$3,Millwall!$AP103:$AZ103,0)","v":{"$error":"#N/A"}},{"$f":"MATCH(O$3,Millwall!$AP103:$AZ103,0)","v":{"$error":"#N/A"}},{"$f":"MATCH(P$3,Millwall!$AP103:$AZ103,0)","v":9},{"$f":"MATCH(Q$3,Millwall!$AP103:$AZ103,0)","v":7},{"$f":"MATCH(R$3,Millwall!$AP103:$AZ103,0)","v":10},{"$f":"MATCH(S$3,Millwall!$AP103:$AZ103,0)","v":{"$error":"#N/A"}},{"$f":"MATCH(T$3,Millwall!$AP103:$AZ103,0)","v":5},{"$f":"MATCH(U$3,Millwall!$AP103:$AZ103,0)","v":6},{"$f":"MATCH(V$3,Millwall!$AP103:$AZ103,0)","v":{"$error":"#N/A"}},{"$f":"MATCH(W$3,Millwall!$AP103:$AZ103,0)","v":8},{"$f":"MATCH(X$3,Millwall!$AP103:$AZ103,0)","v":{"$error":"#N/A"}},{"$f":"MATCH(Y$3,Millwall!$AP103:$AZ103,0)","v":{"$error":"#N/A"}},{"$f":"MATCH(Z$3,Millwall!$AP103:$AZ103,0)","v":{"$error":"#N/A"}},{"$f":"MATCH(AA$3,Millwall!$AP103:$AZ103,0)","v":{"$error":"#N/A"}},{"$f":"MATCH(AB$3,Millwall!$AP103:$AZ103,0)","v":1},{"$f":"MATCH(AC$3,Millwall!$AP103:$AZ103,0)","v":4},{"$f":"MATCH(AD$3,Millwall!$AP103:$AZ103,0)","v":{"$error":"#N/A"}},{"$f":"MATCH(AE$3,Millwall!$AP103:$AZ103,0)","v":{"$error":"#N/A"}},{"$f":"MATCH(AF$3,Millwall!$AP103:$AZ103,0)","v":{"$error":"#N/A"}},{"$f":"MATCH(AG$3,Millwall!$AP103:$AZ103,0)","v":{"$error":"#N/A"}},{"$f":"MATCH(AH$3,Millwall!$AP103:$AZ103,0)","v":3},{"$f":"MATCH(AI$3,Millwall!$AP103:$AZ103,0)","v":{"$error":"#N/A"}},{"$f":"MATCH(AJ$3,Millwall!$AP103:$AZ103,0)","v":{"$error":"#N/A"}},{"$f":"MATCH(AK$3,Millwall!$AP103:$AZ103,0)","v":{"$error":"#N/A"}},{"$f":"MATCH(AL$3,Millwall!$AP103:$AZ103,0)","v":{"$error":"#N/A"}},{"$f":"MATCH(AM$3,Millwall!$AP103:$AZ103,0)","v":{"$error":"#N/A"}},{"$f":"MATCH(AN$3,Millwall!$AP103:$AZ103,0)","v":2},{"$f":"MATCH(AO$3,Millwall!$AP103:$AZ103,0)","v":11},{"$f":"MATCH(AP$3,Millwall!$AP103:$AZ103,0)","v":{"$error":"#N/A"}},{"$f":"MATCH(AQ$3,Millwall!$AP103:$AZ103,0)","v":{"$error":"#N/A"}},{"$f":"MATCH(AR$3,Millwall!$AP103:$AZ103,0)","v":{"$error":"#N/A"}}]
[null,null,null,27,null,{"$f":"Millwall!AI104","v":"1930-02-05"},null,{"$f":"Millwall!AK104","v":"Nottm Forest"},{"$f":"Millwall!AL104","v":"(A)"},{"$f":"Millwall!AO104","v":"D 1-1"},{"$f":"MATCH(K$3,Millwall!$AP104:$AZ104,0)","v":{"$error":"#N/A"}},{"$f":"MATCH(L$3,Millwall!$AP104:$AZ104,0)","v":{"$error":"#N/A"}},{"$f":"MATCH(M$3,Millwall!$AP104:$AZ104,0)","v":{"$error":"#N/A"}},{"$f":"MATCH(N$3,Millwall!$AP104:$AZ104,0)","v":{"$error":"#N/A"}},{"$f":"MATCH(O$3,Millwall!$AP104:$AZ104,0)","v":{"$error":"#N/A"}},{"$f":"MATCH(P$3,Millwall!$AP104:$AZ104,0)","v":9},{"$f":"MATCH(Q$3,Millwall!$AP104:$AZ104,0)","v":7},{"$f":"MATCH(R$3,Millwall!$AP104:$AZ104,0)","v":10},{"$f":"MATCH(S$3,Millwall!$AP104:$AZ104,0)","v":{"$error":"#N/A"}},{"$f":"MATCH(T$3,Millwall!$AP104:$AZ104,0)","v":5},{"$f":"MATCH(U$3,Millwall!$AP104:$AZ104,0)","v":6},{"$f":"MATCH(V$3,Millwall!$AP104:$AZ104,0)","v":{"$error":"#N/A"}},{"$f":"MATCH(W$3,Millwall!$AP104:$AZ104,0)","v":8},{"$f":"MATCH(X$3,Millwall!$AP104:$AZ104,0)","v":{"$error":"#N/A"}},{"$f":"MATCH(Y$3,Millwall!$AP104:$AZ104,0)","v":{"$error":"#N/A"}},{"$f":"MATCH(Z$3,Millwall!$AP104:$AZ104,0)","v":{"$error":"#N/A"}},{"$f":"MATCH(AA$3,Millwall!$AP104:$AZ104,0)","v":{"$error":"#N/A"}},{"$f":"MATCH(AB$3,Millwall!$AP104:$AZ104,0)","v":1},{"$f":"MATCH(AC$3,Millwall!$AP104:$AZ104,0)","v":4},{"$f":"MATCH(AD$3,Millwall!$AP104:$AZ104,0)","v":{"$error":"#N/A"}},{"$f":"MATCH(AE$3,Millwall!$AP104:$AZ104,0)","v":{"$error":"#N/A"}},{"$f":"MATCH(AF$3,Millwall!$AP104:$AZ104,0)","v":{"$error":"#N/A"}},{"$f":"MATCH(AG$3,Millwall!$AP104:$AZ104,0)","v":{"$error":"#N/A"}},{"$f":"MATCH(AH$3,Millwall!$AP104:$AZ104,0)","v":3},{"$f":"MATCH(AI$3,Millwall!$AP104:$AZ104,0)","v":{"$error":"#N/A"}},{"$f":"MATCH(AJ$3,Millwall!$AP104:$AZ104,0)","v":{"$error":"#N/A"}},{"$f":"MATCH(AK$3,Millwall!$AP104:$AZ104,0)","v":{"$error":"#N/A"}},{"$f":"MATCH(AL$3,Millwall!$AP104:$AZ104,0)","v":{"$error":"#N/A"}},{"$f":"MATCH(AM$3,Millwall!$AP104:$AZ104,0)","v":{"$error":"#N/A"}},{"$f":"MATCH(AN$3,Millwall!$AP104:$AZ104,0)","v":2},{"$f":"MATCH(AO$3,Millwall!$AP104:$AZ104,0)","v":11},{"$f":"MATCH(AP$3,Millwall!$AP104:$AZ104,0)","v":{"$error":"#N/A"}},{"$f":"MATCH(AQ$3,Millwall!$AP104:$AZ104,0)","v":{"$error":"#N/A"}},{"$f":"MATCH(AR$3,Millwall!$AP104:$AZ104,0)","v":{"$error":"#N/A"}}]
[null,null,null,28,null,{"$f":"Millwall!AI105","v":"1930-02-08"},null,{"$f":"Millwall!AK105","v":"Charlton"},{"$f":"Millwall!AL105","v":"(A)"},{"$f":"Millwall!AO105","v":"D 1-1"},{"$f":"MATCH(K$3,Millwall!$AP105:$AZ105,0)","v":{"$error":"#N/A"}},{"$f":"MATCH(L$3,Millwall!$AP105:$AZ105,0)","v":{"$error":"#N/A"}},{"$f":"MATCH(M$3,Millwall!$AP105:$AZ105,0)","v":{"$error":"#N/A"}},{"$f":"MATCH(N$3,Millwall!$AP105:$AZ105,0)","v":{"$error":"#N/A"}},{"$f":"MATCH(O$3,Millwall!$AP105:$AZ105,0)","v":{"$error":"#N/A"}},{"$f":"MATCH(P$3,Millwall!$AP105:$AZ105,0)","v":9},{"$f":"MATCH(Q$3,Millwall!$AP105:$AZ105,0)","v":7},{"$f":"MATCH(R$3,Millwall!$AP105:$AZ105,0)","v":10},{"$f":"MATCH(S$3,Millwall!$AP105:$AZ105,0)","v":{"$error":"#N/A"}},{"$f":"MATCH(T$3,Millwall!$AP105:$AZ105,0)","v":5},{"$f":"MATCH(U$3,Millwall!$AP105:$AZ105,0)","v":6},{"$f":"MATCH(V$3,Millwall!$AP105:$AZ105,0)","v":{"$error":"#N/A"}},{"$f":"MATCH(W$3,Millwall!$AP105:$AZ105,0)","v":8},{"$f":"MATCH(X$3,Millwall!$AP105:$AZ105,0)","v":{"$error":"#N/A"}},{"$f":"MATCH(Y$3,Millwall!$AP105:$AZ105,0)","v":{"$error":"#N/A"}},{"$f":"MATCH(Z$3,Millwall!$AP105:$AZ105,0)","v":{"$error":"#N/A"}},{"$f":"MATCH(AA$3,Millwall!$AP105:$AZ105,0)","v":{"$error":"#N/A"}},{"$f":"MATCH(AB$3,Millwall!$AP105:$AZ105,0)","v":1},{"$f":"MATCH(AC$3,Millwall!$AP105:$AZ105,0)","v":4},{"$f":"MATCH(AD$3,Millwall!$AP105:$AZ105,0)","v":{"$error":"#N/A"}},{"$f":"MATCH(AE$3,Millwall!$AP105:$AZ105,0)","v":{"$error":"#N/A"}},{"$f":"MATCH(AF$3,Millwall!$AP105:$AZ105,0)","v":{"$error":"#N/A"}},{"$f":"MATCH(AG$3,Millwall!$AP105:$AZ105,0)","v":{"$error":"#N/A"}},{"$f":"MATCH(AH$3,Millwall!$AP105:$AZ105,0)","v":3},{"$f":"MATCH(AI$3,Millwall!$AP105:$AZ105,0)","v":{"$error":"#N/A"}},{"$f":"MATCH(AJ$3,Millwall!$AP105:$AZ105,0)","v":{"$error":"#N/A"}},{"$f":"MATCH(AK$3,Millwall!$AP105:$AZ105,0)","v":{"$error":"#N/A"}},{"$f":"MATCH(AL$3,Millwall!$AP105:$AZ105,0)","v":{"$error":"#N/A"}},{"$f":"MATCH(AM$3,Millwall!$AP105:$AZ105,0)","v":{"$error":"#N/A"}},{"$f":"MATCH(AN$3,Millwall!$AP105:$AZ105,0)","v":2},{"$f":"MATCH(AO$3,Millwall!$AP105:$AZ105,0)","v":11},{"$f":"MATCH(AP$3,Millwall!$AP105:$AZ105,0)","v":{"$error":"#N/A"}},{"$f":"MATCH(AQ$3,Millwall!$AP105:$AZ105,0)","v":{"$error":"#N/A"}},{"$f":"MATCH(AR$3,Millwall!$AP105:$AZ105,0)","v":{"$error":"#N/A"}}]
[null,null,null,29,null,{"$f":"Millwall!AI106","v":"1930-02-22"},null,{"$f":"Millwall!AK106","v":"Hull"},{"$f":"Millwall!AL106","v":"(H)"},{"$f":"Millwall!AO106","v":"D 0-0"},{"$f":"MATCH(K$3,Millwall!$AP106:$AZ106,0)","v":{"$error":"#N/A"}},{"$f":"MATCH(L$3,Millwall!$AP106:$AZ106,0)","v":{"$error":"#N/A"}},{"$f":"MATCH(M$3,Millwall!$AP106:$AZ106,0)","v":{"$error":"#N/A"}},{"$f":"MATCH(N$3,Millwall!$AP106:$AZ106,0)","v":{"$error":"#N/A"}},{"$f":"MATCH(O$3,Millwall!$AP106:$AZ106,0)","v":{"$error":"#N/A"}},{"$f":"MATCH(P$3,Millwall!$AP106:$AZ106,0)","v":9},{"$f":"MATCH(Q$3,Millwall!$AP106:$AZ106,0)","v":7},{"$f":"MATCH(R$3,Millwall!$AP106:$AZ106,0)","v":10},{"$f":"MATCH(S$3,Millwall!$AP106:$AZ106,0)","v":{"$error":"#N/A"}},{"$f":"MATCH(T$3,Millwall!$AP106:$AZ106,0)","v":5},{"$f":"MATCH(U$3,Millwall!$AP106:$AZ106,0)","v":6},{"$f":"MATCH(V$3,Millwall!$AP106:$AZ106,0)","v":{"$error":"#N/A"}},{"$f":"MATCH(W$3,Millwall!$AP106:$AZ106,0)","v":8},{"$f":"MATCH(X$3,Millwall!$AP106:$AZ106,0)","v":{"$error":"#N/A"}},{"$f":"MATCH(Y$3,Millwall!$AP106:$AZ106,0)","v":{"$error":"#N/A"}},{"$f":"MATCH(Z$3,Millwall!$AP106:$AZ106,0)","v":{"$error":"#N/A"}},{"$f":"MATCH(AA$3,Millwall!$AP106:$AZ106,0)","v":{"$error":"#N/A"}},{"$f":"MATCH(AB$3,Millwall!$AP106:$AZ106,0)","v":{"$error":"#N/A"}},{"$f":"MATCH(AC$3,Millwall!$AP106:$AZ106,0)","v":4},{"$f":"MATCH(AD$3,Millwall!$AP106:$AZ106,0)","v":{"$error":"#N/A"}},{"$f":"MATCH(AE$3,Millwall!$AP106:$AZ106,0)","v":{"$error":"#N/A"}},{"$f":"MATCH(AF$3,Millwall!$AP106:$AZ106,0)","v":{"$error":"#N/A"}},{"$f":"MATCH(AG$3,Millwall!$AP106:$AZ106,0)","v":{"$error":"#N/A"}},{"$f":"MATCH(AH$3,Millwall!$AP106:$AZ106,0)","v":3},{"$f":"MATCH(AI$3,Millwall!$AP106:$AZ106,0)","v":{"$error":"#N/A"}},{"$f":"MATCH(AJ$3,Millwall!$AP106:$AZ106,0)","v":{"$error":"#N/A"}},{"$f":"MATCH(AK$3,Millwall!$AP106:$AZ106,0)","v":{"$error":"#N/A"}},{"$f":"MATCH(AL$3,Millwall!$AP106:$AZ106,0)","v":{"$error":"#N/A"}},{"$f":"MATCH(AM$3,Millwall!$AP106:$AZ106,0)","v":{"$error":"#N/A"}},{"$f":"MATCH(AN$3,Millwall!$AP106:$AZ106,0)","v":2},{"$f":"MATCH(AO$3,Millwall!$AP106:$AZ106,0)","v":11},{"$f":"MATCH(AP$3,Millwall!$AP106:$AZ106,0)","v":{"$error":"#N/A"}},{"$f":"MATCH(AQ$3,Millwall!$AP106:$AZ106,0)","v":1},{"$f":"MATCH(AR$3,Millwall!$AP106:$AZ106,0)","v":{"$error":"#N/A"}}]
[null,null,null,30,null,{"$f":"Millwall!AI107","v":"1930-03-01"},null,{"$f":"Millwall!AK107","v":"Stoke"},{"$f":"Millwall!AL107","v":"(A)"},{"$f":"Millwall!AO107","v":"L 0-1"},{"$f":"MATCH(K$3,Millwall!$AP107:$AZ107,0)","v":{"$error":"#N/A"}},{"$f":"MATCH(L$3,Millwall!$AP107:$AZ107,0)","v":{"$error":"#N/A"}},{"$f":"MATCH(M$3,Millwall!$AP107:$AZ107,0)","v":{"$error":"#N/A"}},{"$f":"MATCH(N$3,Millwall!$AP107:$AZ107,0)","v":{"$error":"#N/A"}},{"$f":"MATCH(O$3,Millwall!$AP107:$AZ107,0)","v":{"$error":"#N/A"}},{"$f":"MATCH(P$3,Millwall!$AP107:$AZ107,0)","v":9},{"$f":"MATCH(Q$3,Millwall!$AP107:$AZ107,0)","v":7},{"$f":"MATCH(R$3,Millwall!$AP107:$AZ107,0)","v":10},{"$f":"MATCH(S$3,Millwall!$AP107:$AZ107,0)","v":{"$error":"#N/A"}},{"$f":"MATCH(T$3,Millwall!$AP107:$AZ107,0)","v":5},{"$f":"MATCH(U$3,Millwall!$AP107:$AZ107,0)","v":6},{"$f":"MATCH(V$3,Millwall!$AP107:$AZ107,0)","v":{"$error":"#N/A"}},{"$f":"MATCH(W$3,Millwall!$AP107:$AZ107,0)","v":{"$error":"#N/A"}},{"$f":"MATCH(X$3,Millwall!$AP107:$AZ107,0)","v":{"$error":"#N/A"}},{"$f":"MATCH(Y$3,Millwall!$AP107:$AZ107,0)","v":{"$error":"#N/A"}},{"$f":"MATCH(Z$3,Millwall!$AP107:$AZ107,0)","v":{"$error":"#N/A"}},{"$f":"MATCH(AA$3,Millwall!$AP107:$AZ107,0)","v":{"$error":"#N/A"}},{"$f":"MATCH(AB$3,Millwall!$AP107:$AZ107,0)","v":{"$error":"#N/A"}},{"$f":"MATCH(AC$3,Millwall!$AP107:$AZ107,0)","v":4},{"$f":"MATCH(AD$3,Millwall!$AP107:$AZ107,0)","v":{"$error":"#N/A"}},{"$f":"MATCH(AE$3,Millwall!$AP107:$AZ107,0)","v":{"$error":"#N/A"}},{"$f":"MATCH(AF$3,Millwall!$AP107:$AZ107,0)","v":{"$error":"#N/A"}},{"$f":"MATCH(AG$3,Millwall!$AP107:$AZ107,0)","v":{"$error":"#N/A"}},{"$f":"MATCH(AH$3,Millwall!$AP107:$AZ107,0)","v":3},{"$f":"MATCH(AI$3,Millwall!$AP107:$AZ107,0)","v":11},{"$f":"MATCH(AJ$3,Millwall!$AP107:$AZ107,0)","v":{"$error":"#N/A"}},{"$f":"MATCH(AK$3,Millwall!$AP107:$AZ107,0)","v":{"$error":"#N/A"}},{"$f":"MATCH(AL$3,Millwall!$AP107:$AZ107,0)","v":{"$error":"#N/A"}},{"$f":"MATCH(AM$3,Millwall!$AP107:$AZ107,0)","v":2},{"$f":"MATCH(AN$3,Millwall!$AP107:$AZ107,0)","v":{"$error":"#N/A"}},{"$f":"MATCH(AO$3,Millwall!$AP107:$AZ107,0)","v":{"$error":"#N/A"}},{"$f":"MATCH(AP$3,Millwall!$AP107:$AZ107,0)","v":8},{"$f":"MATCH(AQ$3,Millwall!$AP107:$AZ107,0)","v":1},{"$f":"MATCH(AR$3,Millwall!$AP107:$AZ107,0)","v":{"$error":"#N/A"}}]
[null,null,null,31,null,{"$f":"Millwall!AI108","v":"1930-03-03"},null,{"$f":"Millwall!AK108","v":"Southampton"},{"$f":"Millwall!AL108","v":"(A)"},{"$f":"Millwall!AO108","v":"D 0-0"},{"$f":"MATCH(K$3,Millwall!$AP108:$AZ108,0)","v":{"$error":"#N/A"}},{"$f":"MATCH(L$3,Millwall!$AP108:$AZ108,0)","v":{"$error":"#N/A"}},{"$f":"MATCH(M$3,Millwall!$AP108:$AZ108,0)","v":{"$error":"#N/A"}},{"$f":"MATCH(N$3,Millwall!$AP108:$AZ108,0)","v":{"$error":"#N/A"}},{"$f":"MATCH(O$3,Millwall!$AP108:$AZ108,0)","v":{"$error":"#N/A"}},{"$f":"MATCH(P$3,Millwall!$AP108:$AZ108,0)","v":9},{"$f":"MATCH(Q$3,Millwall!$AP108:$AZ108,0)","v":7},{"$f":"MATCH(R$3,Millwall!$AP108:$AZ108,0)","v":6},{"$f":"MATCH(S$3,Millwall!$AP108:$AZ108,0)","v":{"$error":"#N/A"}},{"$f":"MATCH(T$3,Millwall!$AP108:$AZ108,0)","v":5},{"$f":"MATCH(U$3,Millwall!$AP108:$AZ108,0)","v":{"$error":"#N/A"}},{"$f":"MATCH(V$3,Millwall!$AP108:$AZ108,0)","v":{"$error":"#N/A"}},{"$f":"MATCH(W$3,Millwall!$AP108:$AZ108,0)","v":{"$error":"#N/A"}},{"$f":"MATCH(X$3,Millwall!$AP108:$AZ108,0)","v":{"$error":"#N/A"}},{"$f":"MATCH(Y$3,Millwall!$AP108:$AZ108,0)","v":{"$error":"#N/A"}},{"$f":"MATCH(Z$3,Millwall!$AP108:$AZ108,0)","v":4},{"$f":"MATCH(AA$3,Millwall!$AP108:$AZ108,0)","v":{"$error":"#N/A"}},{"$f":"MATCH(AB$3,Millwall!$AP108:$AZ108,0)","v":{"$error":"#N/A"}},{"$f":"MATCH(AC$3,Millwall!$AP108:$AZ108,0)","v":{"$error":"#N/A"}},{"$f":"MATCH(AD$3,Millwall!$AP108:$AZ108,0)","v":{"$error":"#N/A"}},{"$f":"MATCH(AE$3,Millwall!$AP108:$AZ108,0)","v":{"$error":"#N/A"}},{"$f":"MATCH(AF$3,Millwall!$AP108:$AZ108,0)","v":{"$error":"#N/A"}},{"$f":"MATCH(AG$3,Millwall!$AP108:$AZ108,0)","v":{"$error":"#N/A"}},{"$f":"MATCH(AH$3,Millwall!$AP108:$AZ108,0)","v":3},{"$f":"MATCH(AI$3,Millwall!$AP108:$AZ108,0)","v":11},{"$f":"MATCH(AJ$3,Millwall!$AP108:$AZ108,0)","v":10},{"$f":"MATCH(AK$3,Millwall!$AP108:$AZ108,0)","v":{"$error":"#N/A"}},{"$f":"MATCH(AL$3,Millwall!$AP108:$AZ108,0)","v":{"$error":"#N/A"}},{"$f":"MATCH(AM$3,Millwall!$AP108:$AZ108,0)","v":2},{"$f":"MATCH(AN$3,Millwall!$AP108:$AZ108,0)","v":{"$error":"#N/A"}},{"$f":"MATCH(AO$3,Millwall!$AP108:$AZ108,0)","v":{"$error":"#N/A"}},{"$f":"MATCH(AP$3,Millwall!$AP108:$AZ108,0)","v":8},{"$f":"MATCH(AQ$3,Millwall!$AP108:$AZ108,0)","v":1},{"$f":"MATCH(AR$3,Millwall!$AP108:$AZ108,0)","v":{"$error":"#N/A"}}]
[null,null,null,32,null,{"$f":"Millwall!AI109","v":"1930-03-08"},null,{"$f":"Millwall!AK109","v":"Wolves"},{"$f":"Millwall!AL109","v":"(H)"},{"$f":"Millwall!AO109","v":"W 4-0"},{"$f":"MATCH(K$3,Millwall!$AP109:$AZ109,0)","v":{"$error":"#N/A"}},{"$f":"MATCH(L$3,Millwall!$AP109:$AZ109,0)","v":{"$error":"#N/A"}},{"$f":"MATCH(M$3,Millwall!$AP109:$AZ109,0)","v":{"$error":"#N/A"}},{"$f":"MATCH(N$3,Millwall!$AP109:$AZ109,0)","v":{"$error":"#N/A"}},{"$f":"MATCH(O$3,Millwall!$AP109:$AZ109,0)","v":{"$error":"#N/A"}},{"$f":"MATCH(P$3,Millwall!$AP109:$AZ109,0)","v":{"$error":"#N/A"}},{"$f":"MATCH(Q$3,Millwall!$AP109:$AZ109,0)","v":7},{"$f":"MATCH(R$3,Millwall!$AP109:$AZ109,0)","v":6},{"$f":"MATCH(S$3,Millwall!$AP109:$AZ109,0)","v":{"$error":"#N/A"}},{"$f":"MATCH(T$3,Millwall!$AP109:$AZ109,0)","v":5},{"$f":"MATCH(U$3,Millwall!$AP109:$AZ109,0)","v":{"$error":"#N/A"}},{"$f":"MATCH(V$3,Millwall!$AP109:$AZ109,0)","v":{"$error":"#N/A"}},{"$f":"MATCH(W$3,Millwall!$AP109:$AZ109,0)","v":{"$error":"#N/A"}},{"$f":"MATCH(X$3,Millwall!$AP109:$AZ109,0)","v":{"$error":"#N/A"}},{"$f":"MATCH(Y$3,Millwall!$AP109:$AZ109,0)","v":{"$error":"#N/A"}},{"$f":"MATCH(Z$3,Millwall!$AP109:$AZ109,0)","v":4},{"$f":"MATCH(AA$3,Millwall!$AP109:$AZ109,0)","v":{"$error":"#N/A"}},{"$f":"MATCH(AB$3,Millwall!$AP109:$AZ109,0)","v":{"$error":"#N/A"}},{"$f":"MATCH(AC$3,Millwall!$AP109:$AZ109,0)","v":{"$error":"#N/A"}},{"$f":"MATCH(AD$3,Millwall!$AP109:$AZ109,0)","v":{"$error":"#N/A"}},{"$f":"MATCH(AE$3,Millwall!$AP109:$AZ109,0)","v":9},{"$f":"MATCH(AF$3,Millwall!$AP109:$AZ109,0)","v":{"$error":"#N/A"}},{"$f":"MATCH(AG$3,Millwall!$AP109:$AZ109,0)","v":{"$error":"#N/A"}},{"$f":"MATCH(AH$3,Millwall!$AP109:$AZ109,0)","v":3},{"$f":"MATCH(AI$3,Millwall!$AP109:$AZ109,0)","v":11},{"$f":"MATCH(AJ$3,Millwall!$AP109:$AZ109,0)","v":10},{"$f":"MATCH(AK$3,Millwall!$AP109:$AZ109,0)","v":{"$error":"#N/A"}},{"$f":"MATCH(AL$3,Millwall!$AP109:$AZ109,0)","v":{"$error":"#N/A"}},{"$f":"MATCH(AM$3,Millwall!$AP109:$AZ109,0)","v":2},{"$f":"MATCH(AN$3,Millwall!$AP109:$AZ109,0)","v":{"$error":"#N/A"}},{"$f":"MATCH(AO$3,Millwall!$AP109:$AZ109,0)","v":{"$error":"#N/A"}},{"$f":"MATCH(AP$3,Millwall!$AP109:$AZ109,0)","v":8},{"$f":"MATCH(AQ$3,Millwall!$AP109:$AZ109,0)","v":1},{"$f":"MATCH(AR$3,Millwall!$AP109:$AZ109,0)","v":{"$error":"#N/A"}}]
[null,null,null,33,null,{"$f":"Millwall!AI110","v":"1930-03-15"},null,{"$f":"Millwall!AK110","v":"Bradford City"},{"$f":"Millwall!AL110","v":"(A)"},{"$f":"Millwall!AO110","v":"D 1-1"},{"$f":"MATCH(K$3,Millwall!$AP110:$AZ110,0)","v":{"$error":"#N/A"}},{"$f":"MATCH(L$3,Millwall!$AP110:$AZ110,0)","v":{"$error":"#N/A"}},{"$f":"MATCH(M$3,Millwall!$AP110:$AZ110,0)","v":{"$error":"#N/A"}},{"$f":"MATCH(N$3,Millwall!$AP110:$AZ110,0)","v":{"$error":"#N/A"}},{"$f":"MATCH(O$3,Millwall!$AP110:$AZ110,0)","v":{"$error":"#N/A"}},{"$f":"MATCH(P$3,Millwall!$AP110:$AZ110,0)","v":{"$error":"#N/A"}},{"$f":"MATCH(Q$3,Millwall!$AP110:$AZ110,0)","v":7},{"$f":"MATCH(R$3,Millwall!$AP110:$AZ110,0)","v":6},{"$f":"MATCH(S$3,Millwall!$AP110:$AZ110,0)","v":{"$error":"#N/A"}},{"$f":"MATCH(T$3,Millwall!$AP110:$AZ110,0)","v":5},{"$f":"MATCH(U$3,Millwall!$AP110:$AZ110,0)","v":{"$error":"#N/A"}},{"$f":"MATCH(V$3,Millwall!$AP110:$AZ110,0)","v":{"$error":"#N/A"}},{"$f":"MATCH(W$3,Millwall!$AP110:$AZ110,0)","v":{"$error":"#N/A"}},{"$f":"MATCH(X$3,Millwall!$AP110:$AZ110,0)","v":{"$error":"#N/A"}},{"$f":"MATCH(Y$3,Millwall!$AP110:$AZ110,0)","v":{"$error":"#N/A"}},{"$f":"MATCH(Z$3,Millwall!$AP110:$AZ110,0)","v":4},{"$f":"MATCH(AA$3,Millwall!$AP110:$AZ110,0)","v":{"$error":"#N/A"}},{"$f":"MATCH(AB$3,Millwall!$AP110:$AZ110,0)","v":{"$error":"#N/A"}},{"$f":"MATCH(AC$3,Millwall!$AP110:$AZ110,0)","v":{"$error":"#N/A"}},{"$f":"MATCH(AD$3,Millwall!$AP110:$AZ110,0)","v":{"$error":"#N/A"}},{"$f":"MATCH(AE$3,Millwall!$AP110:$AZ110,0)","v":9},{"$f":"MATCH(AF$3,Millwall!$AP110:$AZ110,0)","v":{"$error":"#N/A"}},{"$f":"MATCH(AG$3,Millwall!$AP110:$AZ110,0)","v":{"$error":"#N/A"}},{"$f":"MATCH(AH$3,Millwall!$AP110:$AZ110,0)","v":3},{"$f":"MATCH(AI$3,Millwall!$AP110:$AZ110,0)","v":11},{"$f":"MATCH(AJ$3,Millwall!$AP110:$AZ110,0)","v":10},{"$f":"MATCH(AK$3,Millwall!$AP110:$AZ110,0)","v":{"$error":"#N/A"}},{"$f":"MATCH(AL$3,Millwall!$AP110:$AZ110,0)","v":{"$error":"#N/A"}},{"$f":"MATCH(AM$3,Millwall!$AP110:$AZ110,0)","v":2},{"$f":"MATCH(AN$3,Millwall!$AP110:$AZ110,0)","v":{"$error":"#N/A"}},{"$f":"MATCH(AO$3,Millwall!$AP110:$AZ110,0)","v":{"$error":"#N/A"}},{"$f":"MATCH(AP$3,Millwall!$AP110:$AZ110,0)","v":8},{"$f":"MATCH(AQ$3,Millwall!$AP110:$AZ110,0)","v":1},{"$f":"MATCH(AR$3,Millwall!$AP110:$AZ110,0)","v":{"$error":"#N/A"}}]
[null,null,null,34,null,{"$f":"Millwall!AI111","v":"1930-03-22"},null,{"$f":"Millwall!AK111","v":"Swansea"},{"$f":"Millwall!AL111","v":"(H)"},{"$f":"Millwall!AO111","v":"L 0-2"},{"$f":"MATCH(K$3,Millwall!$AP111:$AZ111,0)","v":{"$error":"#N/A"}},{"$f":"MATCH(L$3,Millwall!$AP111:$AZ111,0)","v":{"$error":"#N/A"}},{"$f":"MATCH(M$3,Millwall!$AP111:$AZ111,0)","v":{"$error":"#N/A"}},{"$f":"MATCH(N$3,Millwall!$AP111:$AZ111,0)","v":{"$error":"#N/A"}},{"$f":"MATCH(O$3,Millwall!$AP111:$AZ111,0)","v":{"$error":"#N/A"}},{"$f":"MATCH(P$3,Millwall!$AP111:$AZ111,0)","v":{"$error":"#N/A"}},{"$f":"MATCH(Q$3,Millwall!$AP111:$AZ111,0)","v":{"$error":"#N/A"}},{"$f":"MATCH(R$3,Millwall!$AP111:$AZ111,0)","v":{"$error":"#N/A"}},{"$f":"MATCH(S$3,Millwall!$AP111:$AZ111,0)","v":{"$error":"#N/A"}},{"$f":"MATCH(T$3,Millwall!$AP111:$AZ111,0)","v":5},{"$f":"MATCH(U$3,Millwall!$AP111:$AZ111,0)","v":6},{"$f":"MATCH(V$3,Millwall!$AP111:$AZ111,0)","v":{"$error":"#N/A"}},{"$f":"MATCH(W$3,Millwall!$AP111:$AZ111,0)","v":{"$error":"#N/A"}},{"$f":"MATCH(X$3,Millwall!$AP111:$AZ111,0)","v":{"$error":"#N/A"}},{"$f":"MATCH(Y$3,Millwall!$AP111:$AZ111,0)","v":{"$error":"#N/A"}},{"$f":"MATCH(Z$3,Millwall!$AP111:$AZ111,0)","v":4},{"$f":"MATCH(AA$3,Millwall!$AP111:$AZ111,0)","v":{"$error":"#N/A"}},{"$f":"MATCH(AB$3,Millwall!$AP111:$AZ111,0)","v":{"$error":"#N/A"}},{"$f":"MATCH(AC$3,Millwall!$AP111:$AZ111,0)","v":{"$error":"#N/A"}},{"$f":"MATCH(AD$3,Millwall!$AP111:$AZ111,0)","v":{"$error":"#N/A"}},{"$f":"MATCH(AE$3,Millwall!$AP111:$AZ111,0)","v":9},{"$f":"MATCH(AF$3,Millwall!$AP111:$AZ111,0)","v":{"$error":"#N/A"}},{"$f":"MATCH(AG$3,Millwall!$AP111:$AZ111,0)","v":{"$error":"#N/A"}},{"$f":"MATCH(AH$3,Millwall!$AP111:$AZ111,0)","v":3},{"$f":"MATCH(AI$3,Millwall!$AP111:$AZ111,0)","v":11},{"$f":"MATCH(AJ$3,Millwall!$AP111:$AZ111,0)","v":10},{"$f":"MATCH(AK$3,Millwall!$AP111:$AZ111,0)","v":{"$error":"#N/A"}},{"$f":"MATCH(AL$3,Millwall!$AP111:$AZ111,0)","v":{"$error":"#N/A"}},{"$f":"MATCH(AM$3,Millwall!$AP111:$AZ111,0)","v":2},{"$f":"MATCH(AN$3,Millwall!$AP111:$AZ111,0)","v":{"$error":"#N/A"}},{"$f":"MATCH(AO$3,Millwall!$AP111:$AZ111,0)","v":7},{"$f":"MATCH(AP$3,Millwall!$AP111:$AZ111,0)","v":8},{"$f":"MATCH(AQ$3,Millwall!$AP111:$AZ111,0)","v":1},{"$f":"MATCH(AR$3,Millwall!$AP111:$AZ111,0)","v":{"$error":"#N/A"}}]
[null,null,null,35,null,{"$f":"Millwall!AI112","v":"1930-03-29"},null,{"$f":"Millwall!AK112","v":"Cardiff"},{"$f":"Millwall!AL112","v":"(A)"},{"$f":"Millwall!AO112","v":"L 1-3"},{"$f":"MATCH(K$3,Millwall!$AP112:$AZ112,0)","v":{"$error":"#N/A"}},{"$f":"MATCH(L$3,Millwall!$AP112:$AZ112,0)","v":{"$error":"#N/A"}},{"$f":"MATCH(M$3,Millwall!$AP112:$AZ112,0)","v":{"$error":"#N/A"}},{"$f":"MATCH(N$3,Millwall!$AP112:$AZ112,0)","v":{"$error":"#N/A"}},{"$f":"MATCH(O$3,Millwall!$AP112:$AZ112,0)","v":{"$error":"#N/A"}},{"$f":"MATCH(P$3,Millwall!$AP112:$AZ112,0)","v":9},{"$f":"MATCH(Q$3,Millwall!$AP112:$AZ112,0)","v":{"$error":"#N/A"}},{"$f":"MATCH(R$3,Millwall!$AP112:$AZ112,0)","v":6},{"$f":"MATCH(S$3,Millwall!$AP112:$AZ112,0)","v":{"$error":"#N/A"}},{"$f":"MATCH(T$3,Millwall!$AP112:$AZ112,0)","v":5},{"$f":"MATCH(U$3,Millwall!$AP112:$AZ112,0)","v":{"$error":"#N/A"}},{"$f":"MATCH(V$3,Millwall!$AP112:$AZ112,0)","v":{"$error":"#N/A"}},{"$f":"MATCH(W$3,Millwall!$AP112:$AZ112,0)","v":{"$error":"#N/A"}},{"$f":"MATCH(X$3,Millwall!$AP112:$AZ112,0)","v":{"$error":"#N/A"}},{"$f":"MATCH(Y$3,Millwall!$AP112:$AZ112,0)","v":{"$error":"#N/A"}},{"$f":"MATCH(Z$3,Millwall!$AP112:$AZ112,0)","v":{"$error":"#N/A"}},{"$f":"MATCH(AA$3,Millwall!$AP112:$AZ112,0)","v":{"$error":"#N/A"}},{"$f":"MATCH(AB$3,Millwall!$AP112:$AZ112,0)","v":{"$error":"#N/A"}},{"$f":"MATCH(AC$3,Millwall!$AP112:$AZ112,0)","v":4},{"$f":"MATCH(AD$3,Millwall!$AP112:$AZ112,0)","v":{"$error":"#N/A"}},{"$f":"MATCH(AE$3,Millwall!$AP112:$AZ112,0)","v":{"$error":"#N/A"}},{"$f":"MATCH(AF$3,Millwall!$AP112:$AZ112,0)","v":{"$error":"#N/A"}},{"$f":"MATCH(AG$3,Millwall!$AP112:$AZ112,0)","v":{"$error":"#N/A"}},{"$f":"MATCH(AH$3,Millwall!$AP112:$AZ112,0)","v":3},{"$f":"MATCH(AI$3,Millwall!$AP112:$AZ112,0)","v":11},{"$f":"MATCH(AJ$3,Millwall!$AP112:$AZ112,0)","v":10},{"$f":"MATCH(AK$3,Millwall!$AP112:$AZ112,0)","v":{"$error":"#N/A"}},{"$f":"MATCH(AL$3,Millwall!$AP112:$AZ112,0)","v":{"$error":"#N/A"}},{"$f":"MATCH(AM$3,Millwall!$AP112:$AZ112,0)","v":2},{"$f":"MATCH(AN$3,Millwall!$AP112:$AZ112,0)","v":{"$error":"#N/A"}},{"$f":"MATCH(AO$3,Millwall!$AP112:$AZ112,0)","v":7},{"$f":"MATCH(AP$3,Millwall!$AP112:$AZ112,0)","v":8},{"$f":"MATCH(AQ$3,Millwall!$AP112:$AZ112,0)","v":1},{"$f":"MATCH(AR$3,Millwall!$AP112:$AZ112,0)","v":{"$error":"#N/A"}}]
[null,null,null,36,null,{"$f":"Millwall!AI113","v":"1930-04-05"},null,{"$f":"Millwall!AK113","v":"Preston"},{"$f":"Millwall!AL113","v":"(H)"},{"$f":"Millwall!AO113","v":"W 2-0"},{"$f":"MATCH(K$3,Millwall!$AP113:$AZ113,0)","v":{"$error":"#N/A"}},{"$f":"MATCH(L$3,Millwall!$AP113:$AZ113,0)","v":{"$error":"#N/A"}},{"$f":"MATCH(M$3,Millwall!$AP113:$AZ113,0)","v":{"$error":"#N/A"}},{"$f":"MATCH(N$3,Millwall!$AP113:$AZ113,0)","v":{"$error":"#N/A"}},{"$f":"MATCH(O$3,Millwall!$AP113:$AZ113,0)","v":{"$error":"#N/A"}},{"$f":"MATCH(P$3,Millwall!$AP113:$AZ113,0)","v":9},{"$f":"MATCH(Q$3,Millwall!$AP113:$AZ113,0)","v":7},{"$f":"MATCH(R$3,Millwall!$AP113:$AZ113,0)","v":10},{"$f":"MATCH(S$3,Millwall!$AP113:$AZ113,0)","v":{"$error":"#N/A"}},{"$f":"MATCH(T$3,Millwall!$AP113:$AZ113,0)","v":5},{"$f":"MATCH(U$3,Millwall!$AP113:$AZ113,0)","v":6},{"$f":"MATCH(V$3,Millwall!$AP113:$AZ113,0)","v":{"$error":"#N/A"}},{"$f":"MATCH(W$3,Millwall!$AP113:$AZ113,0)","v":{"$error":"#N/A"}},{"$f":"MATCH(X$3,Millwall!$AP113:$AZ113,0)","v":{"$error":"#N/A"}},{"$f":"MATCH(Y$3,Millwall!$AP113:$AZ113,0)","v":8},{"$f":"MATCH(Z$3,Millwall!$AP113:$AZ113,0)","v":{"$error":"#N/A"}},{"$f":"MATCH(AA$3,Millwall!$AP113:$AZ113,0)","v":{"$error":"#N/A"}},{"$f":"MATCH(AB$3,Millwall!$AP113:$AZ113,0)","v":{"$error":"#N/A"}},{"$f":"MATCH(AC$3,Millwall!$AP113:$AZ113,0)","v":4},{"$f":"MATCH(AD$3,Millwall!$AP113:$AZ113,0)","v":{"$error":"#N/A"}},{"$f":"MATCH(AE$3,Millwall!$AP113:$AZ113,0)","v":{"$error":"#N/A"}},{"$f":"MATCH(AF$3,Millwall!$AP113:$AZ113,0)","v":{"$error":"#N/A"}},{"$f":"MATCH(AG$3,Millwall!$AP113:$AZ113,0)","v":{"$error":"#N/A"}},{"$f":"MATCH(AH$3,Millwall!$AP113:$AZ113,0)","v":3},{"$f":"MATCH(AI$3,Millwall!$AP113:$AZ113,0)","v":11},{"$f":"MATCH(AJ$3,Millwall!$AP113:$AZ113,0)","v":{"$error":"#N/A"}},{"$f":"MATCH(AK$3,Millwall!$AP113:$AZ113,0)","v":{"$error":"#N/A"}},{"$f":"MATCH(AL$3,Millwall!$AP113:$AZ113,0)","v":{"$error":"#N/A"}},{"$f":"MATCH(AM$3,Millwall!$AP113:$AZ113,0)","v":2},{"$f":"MATCH(AN$3,Millwall!$AP113:$AZ113,0)","v":{"$error":"#N/A"}},{"$f":"MATCH(AO$3,Millwall!$AP113:$AZ113,0)","v":{"$error":"#N/A"}},{"$f":"MATCH(AP$3,Millwall!$AP113:$AZ113,0)","v":{"$error":"#N/A"}},{"$f":"MATCH(AQ$3,Millwall!$AP113:$AZ113,0)","v":1},{"$f":"MATCH(AR$3,Millwall!$AP113:$AZ113,0)","v":{"$error":"#N/A"}}]
[null,null,null,37,null,{"$f":"Millwall!AI114","v":"1930-04-12"},null,{"$f":"Millwall!AK114","v":"Bristol C"},{"$f":"Millwall!AL114","v":"(A)"},{"$f":"Millwall!AO114","v":"L 0-1"},{"$f":"MATCH(K$3,Millwall!$AP114:$AZ114,0)","v":{"$error":"#N/A"}},{"$f":"MATCH(L$3,Millwall!$AP114:$AZ114,0)","v":{"$error":"#N/A"}},{"$f":"MATCH(M$3,Millwall!$AP114:$AZ114,0)","v":{"$error":"#N/A"}},{"$f":"MATCH(N$3,Millwall!$AP114:$AZ114,0)","v":{"$error":"#N/A"}},{"$f":"MATCH(O$3,Millwall!$AP114:$AZ114,0)","v":{"$error":"#N/A"}},{"$f":"MATCH(P$3,Millwall!$AP114:$AZ114,0)","v":9},{"$f":"MATCH(Q$3,Millwall!$AP114:$AZ114,0)","v":7},{"$f":"MATCH(R$3,Millwall!$AP114:$AZ114,0)","v":10},{"$f":"MATCH(S$3,Millwall!$AP114:$AZ114,0)","v":{"$error":"#N/A"}},{"$f":"MATCH(T$3,Millwall!$AP114:$AZ114,0)","v":{"$error":"#N/A"}},{"$f":"MATCH(U$3,Millwall!$AP114:$AZ114,0)","v":6},{"$f":"MATCH(V$3,Millwall!$AP114:$AZ114,0)","v":{"$error":"#N/A"}},{"$f":"MATCH(W$3,Millwall!$AP114:$AZ114,0)","v":{"$error":"#N/A"}},{"$f":"MATCH(X$3,Millwall!$AP114:$AZ114,0)","v":{"$error":"#N/A"}},{"$f":"MATCH(Y$3,Millwall!$AP114:$AZ114,0)","v":8},{"$f":"MATCH(Z$3,Millwall!$AP114:$AZ114,0)","v":{"$error":"#N/A"}},{"$f":"MATCH(AA$3,Millwall!$AP114:$AZ114,0)","v":{"$error":"#N/A"}},{"$f":"MATCH(AB$3,Millwall!$AP114:$AZ114,0)","v":{"$error":"#N/A"}},{"$f":"MATCH(AC$3,Millwall!$AP114:$AZ114,0)","v":4},{"$f":"MATCH(AD$3,Millwall!$AP114:$AZ114,0)","v":{"$error":"#N/A"}},{"$f":"MATCH(AE$3,Millwall!$AP114:$AZ114,0)","v":{"$error":"#N/A"}},{"$f":"MATCH(AF$3,Millwall!$AP114:$AZ114,0)","v":{"$error":"#N/A"}},{"$f":"MATCH(AG$3,Millwall!$AP114:$AZ114,0)","v":{"$error":"#N/A"}},{"$f":"MATCH(AH$3,Millwall!$AP114:$AZ114,0)","v":3},{"$f":"MATCH(AI$3,Millwall!$AP114:$AZ114,0)","v":11},{"$f":"MATCH(AJ$3,Millwall!$AP114:$AZ114,0)","v":5},{"$f":"MATCH(AK$3,Millwall!$AP114:$AZ114,0)","v":{"$error":"#N/A"}},{"$f":"MATCH(AL$3,Millwall!$AP114:$AZ114,0)","v":{"$error":"#N/A"}},{"$f":"MATCH(AM$3,Millwall!$AP114:$AZ114,0)","v":2},{"$f":"MATCH(AN$3,Millwall!$AP114:$AZ114,0)","v":{"$error":"#N/A"}},{"$f":"MATCH(AO$3,Millwall!$AP114:$AZ114,0)","v":{"$error":"#N/A"}},{"$f":"MATCH(AP$3,Millwall!$AP114:$AZ114,0)","v":{"$error":"#N/A"}},{"$f":"MATCH(AQ$3,Millwall!$AP114:$AZ114,0)","v":1},{"$f":"MATCH(AR$3,Millwall!$AP114:$AZ114,0)","v":{"$error":"#N/A"}}]
[null,null,null,38,null,{"$f":"Millwall!AI115","v":"1930-04-18"},null,{"$f":"Millwall!AK115","v":"Barnsley"},{"$f":"Millwall!AL115","v":"(H)"},{"$f":"Millwall!AO115","v":"W 2-1"},{"$f":"MATCH(K$3,Millwall!$AP115:$AZ115,0)","v":{"$error":"#N/A"}},{"$f":"MATCH(L$3,Millwall!$AP115:$AZ115,0)","v":{"$error":"#N/A"}},{"$f":"MATCH(M$3,Millwall!$AP115:$AZ115,0)","v":{"$error":"#N/A"}},{"$f":"MATCH(N$3,Millwall!$AP115:$AZ115,0)","v":5},{"$f":"MATCH(O$3,Millwall!$AP115:$AZ115,0)","v":{"$error":"#N/A"}},{"$f":"MATCH(P$3,Millwall!$AP115:$AZ115,0)","v":9},{"$f":"MATCH(Q$3,Millwall!$AP115:$AZ115,0)","v":7},{"$f":"MATCH(R$3,Millwall!$AP115:$AZ115,0)","v":10},{"$f":"MATCH(S$3,Millwall!$AP115:$AZ115,0)","v":{"$error":"#N/A"}},{"$f":"MATCH(T$3,Millwall!$AP115:$AZ115,0)","v":{"$error":"#N/A"}},{"$f":"MATCH(U$3,Millwall!$AP115:$AZ115,0)","v":6},{"$f":"MATCH(V$3,Millwall!$AP115:$AZ115,0)","v":{"$error":"#N/A"}},{"$f":"MATCH(W$3,Millwall!$AP115:$AZ115,0)","v":{"$error":"#N/A"}},{"$f":"MATCH(X$3,Millwall!$AP115:$AZ115,0)","v":{"$error":"#N/A"}},{"$f":"MATCH(Y$3,Millwall!$AP115:$AZ115,0)","v":8},{"$f":"MATCH(Z$3,Millwall!$AP115:$AZ115,0)","v":4},{"$f":"MATCH(AA$3,Millwall!$AP115:$AZ115,0)","v":{"$error":"#N/A"}},{"$f":"MATCH(AB$3,Millwall!$AP115:$AZ115,0)","v":{"$error":"#N/A"}},{"$f":"MATCH(AC$3,Millwall!$AP115:$AZ115,0)","v":{"$error":"#N/A"}},{"$f":"MATCH(AD$3,Millwall!$AP115:$AZ115,0)","v":{"$error":"#N/A"}},{"$f":"MATCH(AE$3,Millwall!$AP115:$AZ115,0)","v":{"$error":"#N/A"}},{"$f":"MATCH(AF$3,Millwall!$AP115:$AZ115,0)","v":{"$error":"#N/A"}},{"$f":"MATCH(AG$3,Millwall!$AP115:$AZ115,0)","v":{"$error":"#N/A"}},{"$f":"MATCH(AH$3,Millwall!$AP115:$AZ115,0)","v":3},{"$f":"MATCH(AI$3,Millwall!$AP115:$AZ115,0)","v":11},{"$f":"MATCH(AJ$3,Millwall!$AP115:$AZ115,0)","v":{"$error":"#N/A"}},{"$f":"MATCH(AK$3,Millwall!$AP115:$AZ115,0)","v":{"$error":"#N/A"}},{"$f":"MATCH(AL$3,Millwall!$AP115:$AZ115,0)","v":{"$error":"#N/A"}},{"$f":"MATCH(AM$3,Millwall!$AP115:$AZ115,0)","v":2},{"$f":"MATCH(AN$3,Millwall!$AP115:$AZ115,0)","v":{"$error":"#N/A"}},{"$f":"MATCH(AO$3,Millwall!$AP115:$AZ115,0)","v":{"$error":"#N/A"}},{"$f":"MATCH(AP$3,Millwall!$AP115:$AZ115,0)","v":{"$error":"#N/A"}},{"$f":"MATCH(AQ$3,Millwall!$AP115:$AZ115,0)","v":1},{"$f":"MATCH(AR$3,Millwall!$AP115:$AZ115,0)","v":{"$error":"#N/A"}}]
[null,null,null,39,null,{"$f":"Millwall!AI116","v":"1930-04-19"},null,{"$f":"Millwall!AK116","v":"Notts Co"},{"$f":"Millwall!AL116","v":"(H)"},{"$f":"Millwall!AO116","v":"W 2-0"},{"$f":"MATCH(K$3,Millwall!$AP116:$AZ116,0)","v":{"$error":"#N/A"}},{"$f":"MATCH(L$3,Millwall!$AP116:$AZ116,0)","v":{"$error":"#N/A"}},{"$f":"MATCH(M$3,Millwall!$AP116:$AZ116,0)","v":{"$error":"#N/A"}},{"$f":"MATCH(N$3,Millwall!$AP116:$AZ116,0)","v":5},{"$f":"MATCH(O$3,Millwall!$AP116:$AZ116,0)","v":{"$error":"#N/A"}},{"$f":"MATCH(P$3,Millwall!$AP116:$AZ116,0)","v":9},{"$f":"MATCH(Q$3,Millwall!$AP116:$AZ116,0)","v":7},{"$f":"MATCH(R$3,Millwall!$AP116:$AZ116,0)","v":10},{"$f":"MATCH(S$3,Millwall!$AP116:$AZ116,0)","v":{"$error":"#N/A"}},{"$f":"MATCH(T$3,Millwall!$AP116:$AZ116,0)","v":{"$error":"#N/A"}},{"$f":"MATCH(U$3,Millwall!$AP116:$AZ116,0)","v":6},{"$f":"MATCH(V$3,Millwall!$AP116:$AZ116,0)","v":{"$error":"#N/A"}},{"$f":"MATCH(W$3,Millwall!$AP116:$AZ116,0)","v":{"$error":"#N/A"}},{"$f":"MATCH(X$3,Millwall!$AP116:$AZ116,0)","v":{"$error":"#N/A"}},{"$f":"MATCH(Y$3,Millwall!$AP116:$AZ116,0)","v":8},{"$f":"MATCH(Z$3,Millwall!$AP116:$AZ116,0)","v":4},{"$f":"MATCH(AA$3,Millwall!$AP116:$AZ116,0)","v":{"$error":"#N/A"}},{"$f":"MATCH(AB$3,Millwall!$AP116:$AZ116,0)","v":{"$error":"#N/A"}},{"$f":"MATCH(AC$3,Millwall!$AP116:$AZ116,0)","v":{"$error":"#N/A"}},{"$f":"MATCH(AD$3,Millwall!$AP116:$AZ116,0)","v":{"$error":"#N/A"}},{"$f":"MATCH(AE$3,Millwall!$AP116:$AZ116,0)","v":{"$error":"#N/A"}},{"$f":"MATCH(AF$3,Millwall!$AP116:$AZ116,0)","v":{"$error":"#N/A"}},{"$f":"MATCH(AG$3,Millwall!$AP116:$AZ116,0)","v":{"$error":"#N/A"}},{"$f":"MATCH(AH$3,Millwall!$AP116:$AZ116,0)","v":3},{"$f":"MATCH(AI$3,Millwall!$AP116:$AZ116,0)","v":11},{"$f":"MATCH(AJ$3,Millwall!$AP116:$AZ116,0)","v":{"$error":"#N/A"}},{"$f":"MATCH(AK$3,Millwall!$AP116:$AZ116,0)","v":{"$error":"#N/A"}},{"$f":"MATCH(AL$3,Millwall!$AP116:$AZ116,0)","v":{"$error":"#N/A"}},{"$f":"MATCH(AM$3,Millwall!$AP116:$AZ116,0)","v":2},{"$f":"MATCH(AN$3,Millwall!$AP116:$AZ116,0)","v":{"$error":"#N/A"}},{"$f":"MATCH(AO$3,Millwall!$AP116:$AZ116,0)","v":{"$error":"#N/A"}},{"$f":"MATCH(AP$3,Millwall!$AP116:$AZ116,0)","v":{"$error":"#N/A"}},{"$f":"MATCH(AQ$3,Millwall!$AP116:$AZ116,0)","v":1},{"$f":"MATCH(AR$3,Millwall!$AP116:$AZ116,0)","v":{"$error":"#N/A"}}]
[null,null,null,40,null,{"$f":"Millwall!AI117","v":"1930-04-21"},null,{"$f":"Millwall!AK117","v":"Barnsley"},{"$f":"Millwall!AL117","v":"(A)"},{"$f":"Millwall!AO117","v":"W 2-1"},{"$f":"MATCH(K$3,Millwall!$AP117:$AZ117,0)","v":{"$error":"#N/A"}},{"$f":"MATCH(L$3,Millwall!$AP117:$AZ117,0)","v":{"$error":"#N/A"}},{"$f":"MATCH(M$3,Millwall!$AP117:$AZ117,0)","v":{"$error":"#N/A"}},{"$f":"MATCH(N$3,Millwall!$AP117:$AZ117,0)","v":{"$error":"#N/A"}},{"$f":"MATCH(O$3,Millwall!$AP117:$AZ117,0)","v":{"$error":"#N/A"}},{"$f":"MATCH(P$3,Millwall!$AP117:$AZ117,0)","v":{"$error":"#N/A"}},{"$f":"MATCH(Q$3,Millwall!$AP117:$AZ117,0)","v":7},{"$f":"MATCH(R$3,Millwall!$AP117:$AZ117,0)","v":6},{"$f":"MATCH(S$3,Millwall!$AP117:$AZ117,0)","v":{"$error":"#N/A"}},{"$f":"MATCH(T$3,Millwall!$AP117:$AZ117,0)","v":5},{"$f":"MATCH(U$3,Millwall!$AP117:$AZ117,0)","v":{"$error":"#N/A"}},{"$f":"MATCH(V$3,Millwall!$AP117:$AZ117,0)","v":8},{"$f":"MATCH(W$3,Millwall!$AP117:$AZ117,0)","v":{"$error":"#N/A"}},{"$f":"MATCH(X$3,Millwall!$AP117:$AZ117,0)","v":{"$error":"#N/A"}},{"$f":"MATCH(Y$3,Millwall!$AP117:$AZ117,0)","v":{"$error":"#N/A"}},{"$f":"MATCH(Z$3,Millwall!$AP117:$AZ117,0)","v":4},{"$f":"MATCH(AA$3,Millwall!$AP117:$AZ117,0)","v":{"$error":"#N/A"}},{"$f":"MATCH(AB$3,Millwall!$AP117:$AZ117,0)","v":{"$error":"#N/A"}},{"$f":"MATCH(AC$3,Millwall!$AP117:$AZ117,0)","v":{"$error":"#N/A"}},{"$f":"MATCH(AD$3,Millwall!$AP117:$AZ117,0)","v":{"$error":"#N/A"}},{"$f":"MATCH(AE$3,Millwall!$AP117:$AZ117,0)","v":9},{"$f":"MATCH(AF$3,Millwall!$AP117:$AZ117,0)","v":{"$error":"#N/A"}},{"$f":"MATCH(AG$3,Millwall!$AP117:$AZ117,0)","v":{"$error":"#N/A"}},{"$f":"MATCH(AH$3,Millwall!$AP117:$AZ117,0)","v":3},{"$f":"MATCH(AI$3,Millwall!$AP117:$AZ117,0)","v":11},{"$f":"MATCH(AJ$3,Millwall!$AP117:$AZ117,0)","v":10},{"$f":"MATCH(AK$3,Millwall!$AP117:$AZ117,0)","v":{"$error":"#N/A"}},{"$f":"MATCH(AL$3,Millwall!$AP117:$AZ117,0)","v":{"$error":"#N/A"}},{"$f":"MATCH(AM$3,Millwall!$AP117:$AZ117,0)","v":2},{"$f":"MATCH(AN$3,Millwall!$AP117:$AZ117,0)","v":{"$error":"#N/A"}},{"$f":"MATCH(AO$3,Millwall!$AP117:$AZ117,0)","v":{"$error":"#N/A"}},{"$f":"MATCH(AP$3,Millwall!$AP117:$AZ117,0)","v":{"$error":"#N/A"}},{"$f":"MATCH(AQ$3,Millwall!$AP117:$AZ117,0)","v":1},{"$f":"MATCH(AR$3,Millwall!$AP117:$AZ117,0)","v":{"$error":"#N/A"}}]
[null,null,null,41,null,{"$f":"Millwall!AI118","v":"1930-04-26"},null,{"$f":"Millwall!AK118","v":"Reading"},{"$f":"Millwall!AL118","v":"(A)"},{"$f":"Millwall!AO118","v":"W 1-0"},{"$f":"MATCH(K$3,Millwall!$AP118:$AZ118,0)","v":{"$error":"#N/A"}},{"$f":"MATCH(L$3,Millwall!$AP118:$AZ118,0)","v":{"$error":"#N/A"}},{"$f":"MATCH(M$3,Millwall!$AP118:$AZ118,0)","v":{"$error":"#N/A"}},{"$f":"MATCH(N$3,Millwall!$AP118:$AZ118,0)","v":{"$error":"#N/A"}},{"$f":"MATCH(O$3,Millwall!$AP118:$AZ118,0)","v":{"$error":"#N/A"}},{"$f":"MATCH(P$3,Millwall!$AP118:$AZ118,0)","v":9},{"$f":"MATCH(Q$3,Millwall!$AP118:$AZ118,0)","v":7},{"$f":"MATCH(R$3,Millwall!$AP118:$AZ118,0)","v":{"$error":"#N/A"}},{"$f":"MATCH(S$3,Millwall!$AP118:$AZ118,0)","v":{"$error":"#N/A"}},{"$f":"MATCH(T$3,Millwall!$AP118:$AZ118,0)","v":5},{"$f":"MATCH(U$3,Millwall!$AP118:$AZ118,0)","v":6},{"$f":"MATCH(V$3,Millwall!$AP118:$AZ118,0)","v":{"$error":"#N/A"}},{"$f":"MATCH(W$3,Millwall!$AP118:$AZ118,0)","v":{"$error":"#N/A"}},{"$f":"MATCH(X$3,Millwall!$AP118:$AZ118,0)","v":{"$error":"#N/A"}},{"$f":"MATCH(Y$3,Millwall!$AP118:$AZ118,0)","v":{"$error":"#N/A"}},{"$f":"MATCH(Z$3,Millwall!$AP118:$AZ118,0)","v":4},{"$f":"MATCH(AA$3,Millwall!$AP118:$AZ118,0)","v":{"$error":"#N/A"}},{"$f":"MATCH(AB$3,Millwall!$AP118:$AZ118,0)","v":{"$error":"#N/A"}},{"$f":"MATCH(AC$3,Millwall!$AP118:$AZ118,0)","v":{"$error":"#N/A"}},{"$f":"MATCH(AD$3,Millwall!$AP118:$AZ118,0)","v":{"$error":"#N/A"}},{"$f":"MATCH(AE$3,Millwall!$AP118:$AZ118,0)","v":10},{"$f":"MATCH(AF$3,Millwall!$AP118:$AZ118,0)","v":{"$error":"#N/A"}},{"$f":"MATCH(AG$3,Millwall!$AP118:$AZ118,0)","v":{"$error":"#N/A"}},{"$f":"MATCH(AH$3,Millwall!$AP118:$AZ118,0)","v":{"$error":"#N/A"}},{"$f":"MATCH(AI$3,Millwall!$AP118:$AZ118,0)","v":11},{"$f":"MATCH(AJ$3,Millwall!$AP118:$AZ118,0)","v":8},{"$f":"MATCH(AK$3,Millwall!$AP118:$AZ118,0)","v":{"$error":"#N/A"}},{"$f":"MATCH(AL$3,Millwall!$AP118:$AZ118,0)","v":{"$error":"#N/A"}},{"$f":"MATCH(AM$3,Millwall!$AP118:$AZ118,0)","v":2},{"$f":"MATCH(AN$3,Millwall!$AP118:$AZ118,0)","v":3},{"$f":"MATCH(AO$3,Millwall!$AP118:$AZ118,0)","v":{"$error":"#N/A"}},{"$f":"MATCH(AP$3,Millwall!$AP118:$AZ118,0)","v":{"$error":"#N/A"}},{"$f":"MATCH(AQ$3,Millwall!$AP118:$AZ118,0)","v":1},{"$f":"MATCH(AR$3,Millwall!$AP118:$AZ118,0)","v":{"$error":"#N/A"}}]
[null,null,null,42,null,{"$f":"Millwall!AI119","v":"1930-05-03"},null,{"$f":"Millwall!AK119","v":"Bradford PA"},{"$f":"Millwall!AL119","v":"(A)"},{"$f":"Millwall!AO119","v":"L 0-6"},{"$f":"MATCH(K$3,Millwall!$AP119:$AZ119,0)","v":{"$error":"#N/A"}},{"$f":"MATCH(L$3,Millwall!$AP119:$AZ119,0)","v":6},{"$f":"MATCH(M$3,Millwall!$AP119:$AZ119,0)","v":{"$error":"#N/A"}},{"$f":"MATCH(N$3,Millwall!$AP119:$AZ119,0)","v":{"$error":"#N/A"}},{"$f":"MATCH(O$3,Millwall!$AP119:$AZ119,0)","v":{"$error":"#N/A"}},{"$f":"MATCH(P$3,Millwall!$AP119:$AZ119,0)","v":{"$error":"#N/A"}},{"$f":"MATCH(Q$3,Millwall!$AP119:$AZ119,0)","v":7},{"$f":"MATCH(R$3,Millwall!$AP119:$AZ119,0)","v":10},{"$f":"MATCH(S$3,Millwall!$AP119:$AZ119,0)","v":{"$error":"#N/A"}},{"$f":"MATCH(T$3,Millwall!$AP119:$AZ119,0)","v":5},{"$f":"MATCH(U$3,Millwall!$AP119:$AZ119,0)","v":{"$error":"#N/A"}},{"$f":"MATCH(V$3,Millwall!$AP119:$AZ119,0)","v":{"$error":"#N/A"}},{"$f":"MATCH(W$3,Millwall!$AP119:$AZ119,0)","v":{"$error":"#N/A"}},{"$f":"MATCH(X$3,Millwall!$AP119:$AZ119,0)","v":{"$error":"#N/A"}},{"$f":"MATCH(Y$3,Millwall!$AP119:$AZ119,0)","v":{"$error":"#N/A"}},{"$f":"MATCH(Z$3,Millwall!$AP119:$AZ119,0)","v":4},{"$f":"MATCH(AA$3,Millwall!$AP119:$AZ119,0)","v":8},{"$f":"MATCH(AB$3,Millwall!$AP119:$AZ119,0)","v":{"$error":"#N/A"}},{"$f":"MATCH(AC$3,Millwall!$AP119:$AZ119,0)","v":{"$error":"#N/A"}},{"$f":"MATCH(AD$3,Millwall!$AP119:$AZ119,0)","v":{"$error":"#N/A"}},{"$f":"MATCH(AE$3,Millwall!$AP119:$AZ119,0)","v":{"$error":"#N/A"}},{"$f":"MATCH(AF$3,Millwall!$AP119:$AZ119,0)","v":{"$error":"#N/A"}},{"$f":"MATCH(AG$3,Millwall!$AP119:$AZ119,0)","v":{"$error":"#N/A"}},{"$f":"MATCH(AH$3,Millwall!$AP119:$AZ119,0)","v":{"$error":"#N/A"}},{"$f":"MATCH(AI$3,Millwall!$AP119:$AZ119,0)","v":11},{"$f":"MATCH(AJ$3,Millwall!$AP119:$AZ119,0)","v":9},{"$f":"MATCH(AK$3,Millwall!$AP119:$AZ119,0)","v":{"$error":"#N/A"}},{"$f":"MATCH(AL$3,Millwall!$AP119:$AZ119,0)","v":{"$error":"#N/A"}},{"$f":"MATCH(AM$3,Millwall!$AP119:$AZ119,0)","v":2},{"$f":"MATCH(AN$3,Millwall!$AP119:$AZ119,0)","v":3},{"$f":"MATCH(AO$3,Millwall!$AP119:$AZ119,0)","v":{"$error":"#N/A"}},{"$f":"MATCH(AP$3,Millwall!$AP119:$AZ119,0)","v":{"$error":"#N/A"}},{"$f":"MATCH(AQ$3,Millwall!$AP119:$AZ119,0)","v":1},{"$f":"MATCH(AR$3,Millwall!$AP119:$AZ119,0)","v":{"$error":"#N/A"}}]
[]
[null,null,null,null,null,null,null,null,null,"Total League Apperances",{"$f":"COUNT(K4:K45)","v":2},1,2,10,19,31,31,29,1,34,30,1,4,9,4,12,19,25,25,2,5,1,14,33,24,16,2,1,{"$f":"COUNT(AM4:AM45)","v":20},19,8,6,17,5]
[null,null,null,null,null,null,null,null,null,"Goals",{"$f":"Millwall!$BX$7","v":0},{"$f":"Millwall!$BX$8","v":0},{"$f":"Millwall!$BX$9","v":0},{"$f":"Millwall!$BX$10","v":1},{"$f":"Millwall!$BX$11","v":4},{"$f":"Millwall!$BX$12","v":15},{"$f":"Millwall!$BX$13","v":4},{"$f":"Millwall!$BX$14","v":5},{"$f":"Millwall!$BX$15","v":0},{"$f":"Millwall!$BX$16","v":1},{"$f":"Millwall!$BX$17","v":1},{"$f":"Millwall!$BX$18","v":0},{"$f":"Millwall!$BX$19","v":1},{"$f":"Millwall!$BX$20","v":0},{"$f":"Millwall!$BX$21","v":2},{"$f":"Millwall!$BX$22","v":0},{"$f":"Millwall!$BX$23","v":4},{"$f":"Millwall!$BX$24","v":0},{"$f":"Millwall!$BX$25","v":1},{"$f":"Millwall!$BX$26","v":0},{"$f":"Millwall!$BX$27","v":2},{"$f":"Millwall!$BX$28","v":0},{"$f":"Millwall!$BX$29","v":5},{"$f":"Millwall!$BX$30","v":0},{"$f":"Millwall!$BX$31","v":3},{"$f":"Millwall!$BX$32","v":3},{"$f":"Millwall!$BX$33","v":1},{"$f":"Millwall!$BX$34","v":0},{"$f":"Millwall!$BX$35","v":0},{"$f":"Millwall!$BX$36","v":0},{"$f":"Millwall!$BX$37","v":0},{"$f":"Millwall!$BX$38","v":1},{"$f":"Millwall!$BX$39","v":0},{"$f":"Millwall!$BX$40","v":3}]
[null,null,null,null,null,null,null,"FA Cup"]
[null,null,null,3,null,{"$f":"Millwall!AI136","v":"1930-01-11"},null,{"$f":"Millwall!AK136","v":"Corinthians"},{"$f":"Millwall!AL136","v":"(A)"},{"$f":"Millwall!AO136","v":"D 2-2"},{"$f":"MATCH(K$3,Millwall!$AP136:$AZ136,0)","v":{"$error":"#N/A"}},{"$f":"MATCH(L$3,Millwall!$AP136:$AZ136,0)","v":{"$error":"#N/A"}},{"$f":"MATCH(M$3,Millwall!$AP136:$AZ136,0)","v":{"$error":"#N/A"}},{"$f":"MATCH(N$3,Millwall!$AP136:$AZ136,0)","v":{"$error":"#N/A"}},{"$f":"MATCH(O$3,Millwall!$AP136:$AZ136,0)","v":{"$error":"#N/A"}},{"$f":"MATCH(P$3,Millwall!$AP136:$AZ136,0)","v":9},{"$f":"MATCH(Q$3,Millwall!$AP136:$AZ136,0)","v":7},{"$f":"MATCH(R$3,Millwall!$AP136:$AZ136,0)","v":10},{"$f":"MATCH(S$3,Millwall!$AP136:$AZ136,0)","v":{"$error":"#N/A"}},{"$f":"MATCH(T$3,Millwall!$AP136:$AZ136,0)","v":5},{"$f":"MATCH(U$3,Millwall!$AP136:$AZ136,0)","v":6},{"$f":"MATCH(V$3,Millwall!$AP136:$AZ136,0)","v":{"$error":"#N/A"}},{"$f":"MATCH(W$3,Millwall!$AP136:$AZ136,0)","v":{"$error":"#N/A"}},{"$f":"MATCH(X$3,Millwall!$AP136:$AZ136,0)","v":{"$error":"#N/A"}},{"$f":"MATCH(Y$3,Millwall!$AP136:$AZ136,0)","v":{"$error":"#N/A"}},{"$f":"MATCH(Z$3,Millwall!$AP136:$AZ136,0)","v":{"$error":"#N/A"}},{"$f":"MATCH(AA$3,Millwall!$AP136:$AZ136,0)","v":{"$error":"#N/A"}},{"$f":"MATCH(AB$3,Millwall!$AP136:$AZ136,0)","v":1},{"$f":"MATCH(AC$3,Millwall!$AP136:$AZ136,0)","v":4},{"$f":"MATCH(AD$3,Millwall!$AP136:$AZ136,0)","v":{"$error":"#N/A"}},{"$f":"MATCH(AE$3,Millwall!$AP136:$AZ136,0)","v":{"$error":"#N/A"}},{"$f":"MATCH(AF$3,Millwall!$AP136:$AZ136,0)","v":{"$error":"#N/A"}},{"$f":"MATCH(AG$3,Millwall!$AP136:$AZ136,0)","v":8},{"$f":"MATCH(AH$3,Millwall!$AP136:$AZ136,0)","v":3},{"$f":"MATCH(AI$3,Millwall!$AP136:$AZ136,0)","v":11},{"$f":"MATCH(AJ$3,Millwall!$AP136:$AZ136,0)","v":{"$error":"#N/A"}},{"$f":"MATCH(AK$3,Millwall!$AP136:$AZ136,0)","v":{"$error":"#N/A"}},{"$f":"MATCH(AL$3,Millwall!$AP136:$AZ136,0)","v":{"$error":"#N/A"}},{"$f":"MATCH(AM$3,Millwall!$AP136:$AZ136,0)","v":{"$error":"#N/A"}},{"$f":"MATCH(AN$3,Millwall!$AP136:$AZ136,0)","v":2},{"$f":"MATCH(AO$3,Millwall!$AP136:$AZ136,0)","v":{"$error":"#N/A"}},{"$f":"MATCH(AP$3,Millwall!$AP136:$AZ136,0)","v":{"$error":"#N/A"}},{"$f":"MATCH(AQ$3,Millwall!$AP136:$AZ136,0)","v":{"$error":"#N/A"}},{"$f":"MATCH(AR$3,Millwall!$AP136:$AZ136,0)","v":{"$error":"#N/A"}}]
[null,null,null,"3R",null,{"$f":"Millwall!AI137","v":"1930-01-15"},null,{"$f":"Millwall!AK137","v":"Corinthians"},{"$f":"Millwall!AL137","v":"(H)"},{"$f":"Millwall!AO137","v":"D 1-1 "},{"$f":"MATCH(K$3,Millwall!$AP137:$AZ137,0)","v":{"$error":"#N/A"}},{"$f":"MATCH(L$3,Millwall!$AP137:$AZ137,0)","v":{"$error":"#N/A"}},{"$f":"MATCH(M$3,Millwall!$AP137:$AZ137,0)","v":{"$error":"#N/A"}},{"$f":"MATCH(N$3,Millwall!$AP137:$AZ137,0)","v":{"$error":"#N/A"}},{"$f":"MATCH(O$3,Millwall!$AP137:$AZ137,0)","v":{"$error":"#N/A"}},{"$f":"MATCH(P$3,Millwall!$AP137:$AZ137,0)","v":9},{"$f":"MATCH(Q$3,Millwall!$AP137:$AZ137,0)","v":7},{"$f":"MATCH(R$3,Millwall!$AP137:$AZ137,0)","v":10},{"$f":"MATCH(S$3,Millwall!$AP137:$AZ137,0)","v":{"$error":"#N/A"}},{"$f":"MATCH(T$3,Millwall!$AP137:$AZ137,0)","v":5},{"$f":"MATCH(U$3,Millwall!$AP137:$AZ137,0)","v":6},{"$f":"MATCH(V$3,Millwall!$AP137:$AZ137,0)","v":{"$error":"#N/A"}},{"$f":"MATCH(W$3,Millwall!$AP137:$AZ137,0)","v":{"$error":"#N/A"}},{"$f":"MATCH(X$3,Millwall!$AP137:$AZ137,0)","v":{"$error":"#N/A"}},{"$f":"MATCH(Y$3,Millwall!$AP137:$AZ137,0)","v":{"$error":"#N/A"}},{"$f":"MATCH(Z$3,Millwall!$AP137:$AZ137,0)","v":{"$error":"#N/A"}},{"$f":"MATCH(AA$3,Millwall!$AP137:$AZ137,0)","v":8},{"$f":"MATCH(AB$3,Millwall!$AP137:$AZ137,0)","v":1},{"$f":"MATCH(AC$3,Millwall!$AP137:$AZ137,0)","v":4},{"$f":"MATCH(AD$3,Millwall!$AP137:$AZ137,0)","v":{"$error":"#N/A"}},{"$f":"MATCH(AE$3,Millwall!$AP137:$AZ137,0)","v":{"$error":"#N/A"}},{"$f":"MATCH(AF$3,Millwall!$AP137:$AZ137,0)","v":{"$error":"#N/A"}},{"$f":"MATCH(AG$3,Millwall!$AP137:$AZ137,0)","v":{"$error":"#N/A"}},{"$f":"MATCH(AH$3,Millwall!$AP137:$AZ137,0)","v":3},{"$f":"MATCH(AI$3,Millwall!$AP137:$AZ137,0)","v":11},{"$f":"MATCH(AJ$3,Millwall!$AP137:$AZ137,0)","v":{"$error":"#N/A"}},{"$f":"MATCH(AK$3,Millwall!$AP137:$AZ137,0)","v":{"$error":"#N/A"}},{"$f":"MATCH(AL$3,Millwall!$AP137:$AZ137,0)","v":{"$error":"#N/A"}},{"$f":"MATCH(AM$3,Millwall!$AP137:$AZ137,0)","v":2},{"$f":"MATCH(AN$3,Millwall!$AP137:$AZ137,0)","v":{"$error":"#N/A"}},{"$f":"MATCH(AO$3,Millwall!$AP137:$AZ137,0)","v":{"$error":"#N/A"}},{"$f":"MATCH(AP$3,Millwall!$AP137:$AZ137,0)","v":{"$error":"#N/A"}},{"$f":"MATCH(AQ$3,Millwall!$AP137:$AZ137,0)","v":{"$error":"#N/A"}},{"$f":"MATCH(AR$3,Millwall!$AP137:$AZ137,0)","v":{"$error":"#N/A"}}]
[null,null,null,"3R",null,{"$f":"Millwall!AI138","v":"1930-01-20"},null,{"$f":"Millwall!AK138","v":"Corinthians"},{"$f":"Millwall!AL138","v":"(N)"},{"$f":"Millwall!AO138","v":"W 5-1"},{"$f":"MATCH(K$3,Millwall!$AP138:$AZ138,0)","v":{"$error":"#N/A"}},{"$f":"MATCH(L$3,Millwall!$AP138:$AZ138,0)","v":{"$error":"#N/A"}},{"$f":"MATCH(M$3,Millwall!$AP138:$AZ138,0)","v":{"$error":"#N/A"}},{"$f":"MATCH(N$3,Millwall!$AP138:$AZ138,0)","v":{"$error":"#N/A"}},{"$f":"MATCH(O$3,Millwall!$AP138:$AZ138,0)","v":{"$error":"#N/A"}},{"$f":"MATCH(P$3,Millwall!$AP138:$AZ138,0)","v":9},{"$f":"MATCH(Q$3,Millwall!$AP138:$AZ138,0)","v":7},{"$f":"MATCH(R$3,Millwall!$AP138:$AZ138,0)","v":10},{"$f":"MATCH(S$3,Millwall!$AP138:$AZ138,0)","v":{"$error":"#N/A"}},{"$f":"MATCH(T$3,Millwall!$AP138:$AZ138,0)","v":5},{"$f":"MATCH(U$3,Millwall!$AP138:$AZ138,0)","v":6},{"$f":"MATCH(V$3,Millwall!$AP138:$AZ138,0)","v":{"$error":"#N/A"}},{"$f":"MATCH(W$3,Millwall!$AP138:$AZ138,0)","v":11},{"$f":"MATCH(X$3,Millwall!$AP138:$AZ138,0)","v":{"$error":"#N/A"}},{"$f":"MATCH(Y$3,Millwall!$AP138:$AZ138,0)","v":{"$error":"#N/A"}},{"$f":"MATCH(Z$3,Millwall!$AP138:$AZ138,0)","v":{"$error":"#N/A"}},{"$f":"MATCH(AA$3,Millwall!$AP138:$AZ138,0)","v":{"$error":"#N/A"}},{"$f":"MATCH(AB$3,Millwall!$AP138:$AZ138,0)","v":{"$error":"#N/A"}},{"$f":"MATCH(AC$3,Millwall!$AP138:$AZ138,0)","v":4},{"$f":"MATCH(AD$3,Millwall!$AP138:$AZ138,0)","v":{"$error":"#N/A"}},{"$f":"MATCH(AE$3,Millwall!$AP138:$AZ138,0)","v":{"$error":"#N/A"}},{"$f":"MATCH(AF$3,Millwall!$AP138:$AZ138,0)","v":{"$error":"#N/A"}},{"$f":"MATCH(AG$3,Millwall!$AP138:$AZ138,0)","v":{"$error":"#N/A"}},{"$f":"MATCH(AH$3,Millwall!$AP138:$AZ138,0)","v":3},{"$f":"MATCH(AI$3,Millwall!$AP138:$AZ138,0)","v":{"$error":"#N/A"}},{"$f":"MATCH(AJ$3,Millwall!$AP138:$AZ138,0)","v":{"$error":"#N/A"}},{"$f":"MATCH(AK$3,Millwall!$AP138:$AZ138,0)","v":{"$error":"#N/A"}},{"$f":"MATCH(AL$3,Millwall!$AP138:$AZ138,0)","v":{"$error":"#N/A"}},{"$f":"MATCH(AM$3,Millwall!$AP138:$AZ138,0)","v":{"$error":"#N/A"}},{"$f":"MATCH(AN$3,Millwall!$AP138:$AZ138,0)","v":2},{"$f":"MATCH(AO$3,Millwall!$AP138:$AZ138,0)","v":8},{"$f":"MATCH(AP$3,Millwall!$AP138:$AZ138,0)","v":{"$error":"#N/A"}},{"$f":"MATCH(AQ$3,Millwall!$AP138:$AZ138,0)","v":1},{"$f":"MATCH(AR$3,Millwall!$AP138:$AZ138,0)","v":{"$error":"#N/A"}}]
[null,null,null,4,null,{"$f":"Millwall!AI139","v":"1930-01-25"},null,{"$f":"Millwall!AK139","v":"Doncaster Rovers"},{"$f":"Millwall!AL139","v":"(H)"},{"$f":"Millwall!AO139","v":"W 4-0"},{"$f":"MATCH(K$3,Millwall!$AP139:$AZ139,0)","v":{"$error":"#N/A"}},{"$f":"MATCH(L$3,Millwall!$AP139:$AZ139,0)","v":{"$error":"#N/A"}},{"$f":"MATCH(M$3,Millwall!$AP139:$AZ139,0)","v":{"$error":"#N/A"}},{"$f":"MATCH(N$3,Millwall!$AP139:$AZ139,0)","v":{"$error":"#N/A"}},{"$f":"MATCH(O$3,Millwall!$AP139:$AZ139,0)","v":{"$error":"#N/A"}},{"$f":"MATCH(P$3,Millwall!$AP139:$AZ139,0)","v":9},{"$f":"MATCH(Q$3,Millwall!$AP139:$AZ139,0)","v":7},{"$f":"MATCH(R$3,Millwall!$AP139:$AZ139,0)","v":10},{"$f":"MATCH(S$3,Millwall!$AP139:$AZ139,0)","v":{"$error":"#N/A"}},{"$f":"MATCH(T$3,Millwall!$AP139:$AZ139,0)","v":5},{"$f":"MATCH(U$3,Millwall!$AP139:$AZ139,0)","v":6},{"$f":"MATCH(V$3,Millwall!$AP139:$AZ139,0)","v":{"$error":"#N/A"}},{"$f":"MATCH(W$3,Millwall!$AP139:$AZ139,0)","v":8},{"$f":"MATCH(X$3,Millwall!$AP139:$AZ139,0)","v":{"$error":"#N/A"}},{"$f":"MATCH(Y$3,Millwall!$AP139:$AZ139,0)","v":{"$error":"#N/A"}},{"$f":"MATCH(Z$3,Millwall!$AP139:$AZ139,0)","v":{"$error":"#N/A"}},{"$f":"MATCH(AA$3,Millwall!$AP139:$AZ139,0)","v":{"$error":"#N/A"}},{"$f":"MATCH(AB$3,Millwall!$AP139:$AZ139,0)","v":{"$error":"#N/A"}},{"$f":"MATCH(AC$3,Millwall!$AP139:$AZ139,0)","v":4},{"$f":"MATCH(AD$3,Millwall!$AP139:$AZ139,0)","v":{"$error":"#N/A"}},{"$f":"MATCH(AE$3,Millwall!$AP139:$AZ139,0)","v":{"$error":"#N/A"}},{"$f":"MATCH(AF$3,Millwall!$AP139:$AZ139,0)","v":{"$error":"#N/A"}},{"$f":"MATCH(AG$3,Millwall!$AP139:$AZ139,0)","v":{"$error":"#N/A"}},{"$f":"MATCH(AH$3,Millwall!$AP139:$AZ139,0)","v":3},{"$f":"MATCH(AI$3,Millwall!$AP139:$AZ139,0)","v":{"$error":"#N/A"}},{"$f":"MATCH(AJ$3,Millwall!$AP139:$AZ139,0)","v":{"$error":"#N/A"}},{"$f":"MATCH(AK$3,Millwall!$AP139:$AZ139,0)","v":{"$error":"#N/A"}},{"$f":"MATCH(AL$3,Millwall!$AP139:$AZ139,0)","v":{"$error":"#N/A"}},{"$f":"MATCH(AM$3,Millwall!$AP139:$AZ139,0)","v":{"$error":"#N/A"}},{"$f":"MATCH(AN$3,Millwall!$AP139:$AZ139,0)","v":2},{"$f":"MATCH(AO$3,Millwall!$AP139:$AZ139,0)","v":11},{"$f":"MATCH(AP$3,Millwall!$AP139:$AZ139,0)","v":{"$error":"#N/A"}},{"$f":"MATCH(AQ$3,Millwall!$AP139:$AZ139,0)","v":1},{"$f":"MATCH(AR$3,Millwall!$AP139:$AZ139,0)","v":{"$error":"#N/A"}}]
[null,null,null,5,null,{"$f":"Millwall!AI140","v":"1930-02-15"},null,{"$f":"Millwall!AK140","v":"West Ham Utd"},{"$f":"Millwall!AL140","v":"(A)"},{"$f":"Millwall!AO140","v":"L 1-4"},{"$f":"MATCH(K$3,Millwall!$AP140:$AZ140,0)","v":{"$error":"#N/A"}},{"$f":"MATCH(L$3,Millwall!$AP140:$AZ140,0)","v":{"$error":"#N/A"}},{"$f":"MATCH(M$3,Millwall!$AP140:$AZ140,0)","v":{"$error":"#N/A"}},{"$f":"MATCH(N$3,Millwall!$AP140:$AZ140,0)","v":{"$error":"#N/A"}},{"$f":"MATCH(O$3,Millwall!$AP140:$AZ140,0)","v":{"$error":"#N/A"}},{"$f":"MATCH(P$3,Millwall!$AP140:$AZ140,0)","v":9},{"$f":"MATCH(Q$3,Millwall!$AP140:$AZ140,0)","v":7},{"$f":"MATCH(R$3,Millwall!$AP140:$AZ140,0)","v":10},{"$f":"MATCH(S$3,Millwall!$AP140:$AZ140,0)","v":{"$error":"#N/A"}},{"$f":"MATCH(T$3,Millwall!$AP140:$AZ140,0)","v":5},{"$f":"MATCH(U$3,Millwall!$AP140:$AZ140,0)","v":6},{"$f":"MATCH(V$3,Millwall!$AP140:$AZ140,0)","v":{"$error":"#N/A"}},{"$f":"MATCH(W$3,Millwall!$AP140:$AZ140,0)","v":8},{"$f":"MATCH(X$3,Millwall!$AP140:$AZ140,0)","v":{"$error":"#N/A"}},{"$f":"MATCH(Y$3,Millwall!$AP140:$AZ140,0)","v":{"$error":"#N/A"}},{"$f":"MATCH(Z$3,Millwall!$AP140:$AZ140,0)","v":{"$error":"#N/A"}},{"$f":"MATCH(AA$3,Millwall!$AP140:$AZ140,0)","v":{"$error":"#N/A"}},{"$f":"MATCH(AB$3,Millwall!$AP140:$AZ140,0)","v":1},{"$f":"MATCH(AC$3,Millwall!$AP140:$AZ140,0)","v":4},{"$f":"MATCH(AD$3,Millwall!$AP140:$AZ140,0)","v":{"$error":"#N/A"}},{"$f":"MATCH(AE$3,Millwall!$AP140:$AZ140,0)","v":{"$error":"#N/A"}},{"$f":"MATCH(AF$3,Millwall!$AP140:$AZ140,0)","v":{"$error":"#N/A"}},{"$f":"MATCH(AG$3,Millwall!$AP140:$AZ140,0)","v":{"$error":"#N/A"}},{"$f":"MATCH(AH$3,Millwall!$AP140:$AZ140,0)","v":3},{"$f":"MATCH(AI$3,Millwall!$AP140:$AZ140,0)","v":{"$error":"#N/A"}},{"$f":"MATCH(AJ$3,Millwall!$AP140:$AZ140,0)","v":{"$error":"#N/A"}},{"$f":"MATCH(AK$3,Millwall!$AP140:$AZ140,0)","v":{"$error":"#N/A"}},{"$f":"MATCH(AL$3,Millwall!$AP140:$AZ140,0)","v":{"$error":"#N/A"}},{"$f":"MATCH(AM$3,Millwall!$AP140:$AZ140,0)","v":{"$error":"#N/A"}},{"$f":"MATCH(AN$3,Millwall!$AP140:$AZ140,0)","v":2},{"$f":"MATCH(AO$3,Millwall!$AP140:$AZ140,0)","v":11},{"$f":"MATCH(AP$3,Millwall!$AP140:$AZ140,0)","v":{"$error":"#N/A"}},{"$f":"MATCH(AQ$3,Millwall!$AP140:$AZ140,0)","v":{"$error":"#N/A"}},{"$f":"MATCH(AR$3,Millwall!$AP140:$AZ140,0)","v":{"$error":"#N/A"}}]
[]
[null,null,null,null,null,null,null,null,null,"Total FA Cup Apperances",{"$f":"COUNT(K50:K54)","v":0},0,0,0,0,5,5,5,0,5,5,0,3,0,0,0,1,3,5,0,0,0,1,5,2,0,0,0,{"$f":"COUNT(AM50:AM54)","v":1},4,3,0,2,0]
[null,null,null,null,null,null,null,null,null,"Goals",{"$f":"Millwall!$CB$7","v":0},{"$f":"Millwall!$CB$8","v":0},{"$f":"Millwall!$CB$9","v":0},{"$f":"Millwall!$CB$10","v":0},{"$f":"Millwall!$CB$11","v":0},{"$f":"Millwall!$CB$12","v":2},{"$f":"Millwall!$CB$13","v":3},{"$f":"Millwall!$CB$14","v":2},{"$f":"Millwall!$CB$15","v":0},{"$f":"Millwall!$CB$16","v":0},{"$f":"Millwall!$CB$17","v":0},{"$f":"Millwall!$CB$18","v":0},{"$f":"Millwall!$CB$19","v":2},{"$f":"Millwall!$CB$20","v":0},{"$f":"Millwall!$CB$21","v":0},{"$f":"Millwall!$CB$22","v":0},{"$f":"Millwall!$CB$23","v":0},{"$f":"Millwall!$CB$24","v":0},{"$f":"Millwall!$CB$25","v":0},{"$f":"Millwall!$CB$26","v":0},{"$f":"Millwall!$CB$27","v":0},{"$f":"Millwall!$CB$28","v":0},{"$f":"Millwall!$CB$29","v":1},{"$f":"Millwall!$CB$30","v":0},{"$f":"Millwall!$CB$31","v":1},{"$f":"Millwall!$CB$32","v":0},{"$f":"Millwall!$CB$33","v":0},{"$f":"Millwall!$CB$34","v":0},{"$f":"Millwall!$CB$35","v":0},{"$f":"Millwall!$CB$36","v":0},{"$f":"Millwall!$CB$37","v":2},{"$f":"Millwall!$CB$38","v":0},{"$f":"Millwall!$CB$39","v":0},{"$f":"Millwall!$CB$40","v":0}]
[]
[]
[]
[null,null,null,null,null,null,null,"Checks"]
[]
["Manual Input",null,null,null,null,null,null,"Opponents","Venue/Result",null,{"$f":"K3","v":"Amos"},{"$f":"L3","v":"Barrett"},"Black","Bryant","Chance","Cock","Corkindale","Forsyth","Fort","Gomm","Graham","Harris","Hawkins","Hill","Horton","Jones","Landells","Lansdale","Martin","Moran","Munro","Page","Phillips","Pipe","Poxton","Readman","Rounsfull","Smith",{"$f":"AM3","v":"Sweetman"},"Tyler","Wadsworth","Watkins","Wilson","Woodards"]
[null,null,null,1,null,{"$f":"F4","v":"1929-08-31"},null,{"$f":"H4","v":"Blackpool"},{"$f":"I4","v":"(A)"},{"$f":"J4","v":"L 3-4"},null,null,11,null,7,9,null,null,null,5,6,null,null,3,null,4,8,1,null,null,null,null,10,null,null,null,null,null,2]
[null,null,null,2,null,{"$f":"F5","v":"1929-09-02"},null,{"$f":"H5","v":"Tottenham"},"(H)","L 2-5",null,null,11,null,7,9,null,null,null,5,6,null,null,3,null,4,8,1,null,null,null,null,10,null,null,null,null,null,2]
[null,null,null,3,null,"1929-09-07",null,"Bury","(H)","L 2-4",4,null,null,null,7,9,11,null,null,5,6,null,null,3,null,null,8,null,null,null,null,null,10,null,null,null,null,null,2,null,null,null,1]
[null,null,null,4,null,"1929-09-14",null,"Chelsea","(A)","L 0-3",null,null,null,5,7,9,11,null,null,null,6,null,null,2,null,4,8,null,null,null,null,null,10,3,null,null,null,null,null,null,null,null,1]
[null,null,null,5,null,"1929-09-16",null,"Bradford PA","(H)","L 1-2",null,null,null,5,null,9,7,6,null,null,4,null,null,null,null,null,null,null,null,2,null,null,null,null,11,8,null,10,null,3,null,null,1]
[null,null,null,6,null,"1929-09-21",null,"Nottm Forest","(H)","D 2-2",4,null,null,5,7,9,11,6,null,null,null,null,null,null,null,null,8,1,null,null,null,null,null,3,null,10,null,null,null,2]
[null,null,null,7,null,"1929-09-23",null,"Tottenham","(A)","D 1-1",null,null,null,null,7,9,11,6,null,5,null,null,null,null,null,null,8,1,4,null,null,null,null,3,null,10,null,null,null,2]
[null,null,null,8,null,"1929-09-28",null,"Oldham","(A)","D 2-2",null,null,null,null,7,9,11,6,null,5,null,null,null,null,null,null,8,1,4,null,null,null,null,3,null,10,null,null,null,2]
[null,null,null,9,null,"1929-10-05",null,"Charlton","(H)","D 1-1",null,null,null,5,7,9,11,6,null,null,null,null,null,null,null,null,8,1,4,null,null,null,10,3,null,null,null,null,null,2]
[null,null,null,10,null,"1929-10-12",null,"Southampton","(H)","D 1-1",null,null,null,null,7,9,11,6,null,5,null,null,null,null,null,null,8,1,4,null,null,null,10,3,null,null,null,null,null,2]
[null,null,null,11,null,"1929-10-19",null,"Hull","(A)","L 2-3",null,null,null,null,7,null,11,6,null,5,4,null,null,null,null,null,8,1,null,null,null,null,10,3,null,null,null,null,null,2,null,null,null,9]
[null,null,null,12,null,"1929-10-26",null,"Stoke","(H)","W 2-1",null,null,null,null,7,null,11,6,null,5,4,null,null,null,null,null,8,1,null,null,null,null,10,3,null,null,null,null,null,2,null,null,null,9]
[null,null,null,13,null,"1929-11-02",null,"Wolves","(A)","D 1-1",null,null,null,null,7,10,11,null,null,5,6,null,null,null,null,null,8,1,4,null,null,null,null,3,null,null,null,null,null,2,null,null,null,9]
[null,null,null,14,null,"1929-11-09",null,"Bradford City","(H)","D 2-2",null,null,null,null,7,10,11,null,null,5,6,null,null,null,null,null,8,1,4,null,null,null,null,3,null,null,null,null,null,2,null,null,null,9]
[null,null,null,15,null,"1929-11-16",null,"Swansea","(A)","L 1-3",null,null,null,null,7,10,11,null,null,5,6,null,null,null,null,null,8,1,4,null,null,null,null,3,null,null,null,null,2,null,null,null,null,9]
[null,null,null,16,null,"1929-11-23",null,"Cardiff","(H)","W 2-0",null,null,null,null,null,9,null,null,null,5,6,null,null,null,null,null,8,1,4,null,null,null,null,3,11,null,10,null,2,null,7]
[null,null,null,17,null,"1929-11-30",null,"Preston","(A)","L 1-3",null,null,null,null,null,9,null,null,null,5,null,null,null,null,null,null,8,1,4,null,null,6,null,3,11,null,10,null,2,null,7]
[null,null,null,18,null,"1929-12-07",null,{"$f":"H21","v":"Bristol C"},"(H)","D 1-1",null,null,null,null,7,9,null,null,2,5,6,null,null,null,null,null,8,1,4,null,null,null,null,3,11,10]
[null,null,null,19,null,"1929-12-14",null,"Notts Co","(A)","D 1-1",null,null,null,null,7,null,null,9,null,5,6,null,null,null,null,null,8,1,4,null,null,null,10,3,11,null,null,null,2]
[null,null,null,20,null,"1929-12-21",null,"Reading","(H)","W 3-1",null,null,null,8,7,null,null,9,null,5,6,null,null,2,null,null,null,1,4,null,null,null,10,3,11]
[null,null,null,21,null,"1929-12-25",null,"West Brom","(H)","W 2-1",null,null,null,8,7,null,null,9,null,5,6,null,null,2,null,null,null,1,4,null,null,null,10,3,11]
[null,null,null,22,null,"1929-12-26",null,"West Brom","(A)","L 1-6",null,null,null,8,7,null,null,9,null,5,6,null,null,2,null,null,null,1,4,3,null,null,10,null,11]
[null,null,null,23,null,"1929-12-28",null,"Blackpool","(H)","W 3-1",null,null,null,null,null,9,7,null,null,5,6,null,null,2,null,null,null,1,4,null,null,null,10,null,11,8,null,null,null,3]
[null,null,null,24,null,"1930-01-04",null,"Bury","(A)","L 1-5",null,null,null,null,null,9,7,6,null,null,5,null,null,2,null,null,null,1,4,null,null,null,10,null,11,8,null,null,null,3]
[null,null,null,25,null,"1930-01-18",null,"Chelsea","(H)","D 0-0",null,null,null,8,null,9,7,10,null,5,6,null,null,null,null,null,null,1,4,null,null,null,null,3,11,null,null,null,null,2]
[null,null,null,26,null,"1930-02-01",null,"Oldham","(H)","W 2-1",null,null,null,null,null,9,7,10,null,5,6,null,8,null,null,null,null,1,4,null,null,null,null,3,null,null,null,null,null,2,11]
[null,null,null,27,null,"1930-02-05",null,"Nottm Forest","(A)","D 1-1",null,null,null,null,null,9,7,10,null,5,6,null,8,null,null,null,null,1,4,null,null,null,null,3,null,null,null,null,null,2,11]
[null,null,null,28,null,"1930-02-08",null,"Charlton","(A)","D 1-1",null,null,null,null,null,9,7,10,null,5,6,null,8,null,null,null,null,1,4,null,null,null,null,3,null,null,null,null,null,2,11]
[null,null,null,29,null,"1930-02-22",null,"Hull","(H)","D 0-0",null,null,null,null,null,9,7,10,null,5,6,null,8,null,null,null,null,null,4,null,null,null,null,3,null,null,null,null,null,2,11,null,1]
[null,null,null,30,null,"1930-03-01",null,"Stoke","(A)","L 0-1",null,null,null,null,null,9,7,10,null,5,6,null,null,null,null,null,null,null,4,null,null,null,null,3,11,null,null,null,2,null,null,8,1]
[null,null,null,31,null,"1930-03-03",null,"Southampton","(A)","D 0-0",null,null,null,null,null,9,7,6,null,5,null,null,null,null,null,4,null,null,null,null,null,null,null,3,11,10,null,null,2,null,null,8,1]
[null,null,null,32,null,"1930-03-08",null,"Wolves","(H)","W 4-0",null,null,null,null,null,null,7,6,null,5,null,null,null,null,null,4,null,null,null,null,9,null,null,3,11,10,null,null,2,null,null,8,1]
[null,null,null,33,null,"1930-03-15",null,"Bradford City","(A)","D 1-1",null,null,null,null,null,null,7,6,null,5,null,null,null,null,null,4,null,null,null,null,9,null,null,3,11,10,null,null,2,null,null,8,1]
[null,null,null,34,null,"1930-03-22",null,{"$f":"H37","v":"Swansea"},"(H)","L 0-2",null,null,null,null,null,null,null,null,null,5,6,null,null,null,null,4,null,null,null,null,9,null,null,3,11,10,null,null,2,null,7,8,1]
[null,null,null,35,null,"1930-03-29",null,"Cardiff","(A)","L 1-3",null,null,null,null,null,9,null,6,null,5,null,null,null,null,null,null,null,null,4,null,null,null,null,3,11,10,null,null,2,null,7,8,1]
[null,null,null,36,null,"1930-04-05",null,"Preston","(H)","W 2-0",null,null,null,null,null,9,7,10,null,5,6,null,null,null,8,null,null,null,4,null,null,null,null,3,11,null,null,null,2,null,null,null,1]
[null,null,null,37,null,"1930-04-12",null,"Bristol C","(A)","L 0-1",null,null,null,null,null,9,7,10,null,null,6,null,null,null,8,null,null,null,4,null,null,null,null,3,11,5,null,null,2,null,null,null,1]
[null,null,null,38,null,"1930-04-18",null,"Barnsley","(H)","W 2-1",null,null,null,5,null,9,7,10,null,null,6,null,null,null,8,4,null,null,null,null,null,null,null,3,11,null,null,null,2,null,null,null,1]
[null,null,null,39,null,"1930-04-19",null,"Notts Co","(H)","W 2-0",null,null,null,5,null,9,7,10,null,null,6,null,null,null,8,4,null,null,null,null,null,null,null,3,11,null,null,null,2,null,null,null,1]
[null,null,null,40,null,"1930-04-21",null,"Barnsley","(A)","W 2-1",null,null,null,null,null,null,7,6,null,5,null,8,null,null,null,4,null,null,null,null,9,null,null,3,11,10,null,null,2,null,null,null,1]
[null,null,null,41,null,"1930-04-26",null,"Reading","(A)","W 1-0",null,null,null,null,null,9,7,null,null,5,6,null,null,null,null,4,null,null,null,null,10,null,null,null,11,8,null,null,2,3,null,null,1]
[null,null,null,42,null,"1930-05-03",null,"Bradford PA","(A)","L 0-6",null,6,null,null,null,null,7,10,null,5,null,null,null,null,null,4,8,null,null,null,null,null,null,null,11,9,null,null,2,3,null,null,1]
[]
[null,null,null,null,null,null,null,null,null,"Total League Apperances",{"$f":"COUNT(K64:K105)","v":2},1,2,10,19,31,31,29,1,34,30,1,4,9,4,12,19,25,25,2,5,1,14,33,24,16,2,1,{"$f":"COUNT(AM64:AM105)","v":20},19,8,6,17,5]
[null,null,null,null,null,null,null,null,null,"Goals",0,0,0,1,4,15,4,5,0,1,1,0,1,0,2,0,4,0,1,0,2,0,5,0,3,3,1,0,0,0,0,1,0,3]
[]
[null,null,null,3,null,{"$f":"F50","v":"1930-01-11"},null,{"$f":"H50","v":"Corinthians"},"(A)","D 2-2",null,null,null,null,null,9,7,10,null,5,6,null,null,null,null,null,null,1,4,null,null,null,8,3,11,null,null,null,null,2]
[null,null,null,"3R",null,"1930-01-15",null,"Corinthians","(H)","D 1-1 ",null,null,null,null,null,9,7,10,null,5,6,null,null,null,null,null,8,1,4,null,null,null,null,3,11,null,null,null,2]
[null,null,null,"3R",null,"1930-01-20",null,"Corinthians","(N)","W 5-1",null,null,null,null,null,9,7,10,null,5,6,null,11,null,null,null,null,null,4,null,null,null,null,3,null,null,null,null,null,2,8,null,1]
[null,null,null,4,null,"1930-01-25",null,"Doncaster Rovers","(H)","W 4-0",null,null,null,null,null,9,7,10,null,5,6,null,8,null,null,null,null,null,4,null,null,null,null,3,null,null,null,null,null,2,11,null,1]
[null,null,null,5,null,"1930-02-15",null,"West Ham Utd","(A)","L 1-4",null,null,null,null,null,9,7,10,null,5,6,null,8,null,null,null,null,1,4,null,null,null,null,3,null,null,null,null,null,2,11]
[]
[null,null,null,null,null,null,null,null,null,"Total FA Cup Apperances",null,null,null,null,null,{"$f":"COUNT(P110:P114)","v":5},5,5,null,5,5,null,3,null,null,null,1,3,5,null,null,null,1,5,2,null,null,null,1,4,3,null,2]
[null,null,null,null,null,null,null,null,null,"Goals",null,null,null,null,null,2,3,2,null,0,0,null,2,null,null,null,0,0,0,null,null,null,1,0,1,null,null,null,null,null,2]
[]
[]
[]
["Manual Input",null,null,null,null,null,null,"Opponents","Venue/Result",null,{"$f":"K3","v":"Amos"},{"$f":"L3","v":"Barrett"},"Black","Bryant","Chance","Cock","Corkindale","Forsyth","Fort","Gomm","Graham","Harris","Hawkins","Hill","Horton","Jones","Landells","Lansdale","Martin","Moran","Munro","Page","Phillips","Pipe","Poxton","Readman","Rounsfull","Smith",{"$f":"AM3","v":"Sweetman"},"Tyler","Wadsworth","Watkins","Wilson","Woodards"]
[null,null,null,1,null,{"$f":"F4","v":"1929-08-31"},null,{"$f":"H4","v":"Blackpool"},{"$f":"I4","v":"(A)"},{"$f":"J4","v":"L 3-4"},null,null,11,null,7,9,null,null,null,5,6,null,null,3,null,4,8,1,null,null,null,null,10,null,null,null,null,null,2]
[null,null,null,2,null,{"$f":"F5","v":"1929-09-02"},null,{"$f":"H5","v":"Tottenham"},"(H)","L 2-5",null,null,11,null,7,9,null,null,null,5,6,null,null,3,null,4,8,1,null,null,null,null,10,null,null,null,null,null,2]
[null,null,null,3,null,"1929-09-07",null,"Bury","(H)","L 2-4",4,null,null,null,7,9,11,null,null,5,6,null,null,3,null,null,8,null,null,null,null,null,10,null,null,null,null,null,2,null,null,null,1]
[null,null,null,4,null,"1929-09-14",null,"Chelsea","(A)","L 0-3",null,null,null,5,7,9,11,null,null,null,6,null,null,2,null,4,8,null,null,null,null,null,10,3,null,null,null,null,null,null,null,null,1]
[null,null,null,5,null,"1929-09-16",null,"Bradford PA","(H)","L 1-2",null,null,null,5,null,9,7,6,null,null,4,null,null,null,null,null,null,null,null,2,null,null,null,null,11,8,null,10,null,3,null,null,1]
[null,null,null,6,null,"1929-09-21",null,"Nottm Forest","(H)","D 2-2",4,null,null,5,7,9,11,6,null,null,null,null,null,null,null,null,8,1,null,null,null,null,null,3,null,10,null,null,null,2]
[null,null,null,7,null,"1929-09-23",null,"Tottenham","(A)","D 1-1",null,null,null,null,7,9,11,6,null,5,null,null,null,null,null,null,8,1,4,null,null,null,null,3,null,10,null,null,null,2]
[null,null,null,8,null,"1929-09-28",null,"Oldham","(A)","D 2-2",null,null,null,null,7,9,11,6,null,5,null,null,null,null,null,null,8,1,4,null,null,null,null,3,null,10,null,null,null,2]
[null,null,null,9,null,"1929-10-05",null,"Charlton","(H)","D 1-1",null,null,null,5,7,9,11,6,null,null,null,null,null,null,null,null,8,1,4,null,null,null,10,3,null,null,null,null,null,2]
[null,null,null,10,null,"1929-10-12",null,"Southampton","(H)","D 1-1",null,null,null,null,7,9,11,6,null,5,null,null,null,null,null,null,8,1,4,null,null,null,10,3,null,null,null,null,null,2]
[null,null,null,11,null,"1929-10-19",null,"Hull","(A)","L 2-3",null,null,null,null,7,null,11,6,null,5,4,null,null,null,null,null,8,1,null,null,null,null,10,3,null,null,null,null,null,2,null,null,null,9]
[null,null,null,12,null,"1929-10-26",null,"Stoke","(H)","W 2-1",null,null,null,null,7,null,11,6,null,5,4,null,null,null,null,null,8,1,null,null,null,null,10,3,null,null,null,null,null,2,null,null,null,9]
[null,null,null,13,null,"1929-11-02",null,"Wolves","(A)","D 1-1",null,null,null,null,7,10,11,null,null,5,6,null,null,null,null,null,8,1,4,null,null,null,null,3,null,null,null,null,null,2,null,null,null,9]
[null,null,null,14,null,"1929-11-09",null,"Bradford City","(H)","D 2-2",null,null,null,null,7,10,11,null,null,5,6,null,null,null,null,null,8,1,4,null,null,null,null,3,null,null,null,null,null,2,null,null,null,9]
[null,null,null,15,null,"1929-11-16",null,"Swansea","(A)","L 1-3",null,null,null,null,7,10,11,null,null,5,6,null,null,null,null,null,8,1,4,null,null,null,null,3,null,null,null,null,2,null,null,null,null,9]
[null,null,null,16,null,"1929-11-23",null,"Cardiff","(H)","W 2-0",null,null,null,null,null,9,null,null,null,5,6,null,null,null,null,null,8,1,4,null,null,null,null,3,11,null,10,null,2,null,7]
[null,null,null,17,null,"1929-11-30",null,"Preston","(A)","L 1-3",null,null,null,null,null,9,null,null,null,5,null,null,null,null,null,null,8,1,4,null,null,6,null,3,11,null,10,null,2,null,7]
[null,null,null,18,null,"1929-12-07",null,{"$f":"H21","v":"Bristol C"},"(H)","D 1-1",null,null,null,null,7,9,null,null,2,5,6,null,null,null,null,null,8,1,4,null,null,null,null,3,11,10]
[null,null,null,19,null,"1929-12-14",null,"Notts Co","(A)","D 1-1",null,null,null,null,7,null,null,9,null,5,6,null,null,null,null,null,8,1,4,null,null,null,10,3,11,null,null,null,2]
[null,null,null,20,null,"1929-12-21",null,"Reading","(H)","W 3-1",null,null,null,8,7,null,null,9,null,5,6,null,null,2,null,null,null,1,4,null,null,null,10,3,11]
[null,null,null,21,null,"1929-12-25",null,"West Brom","(H)","W 2-1",null,null,null,8,7,null,null,9,null,5,6,null,null,2,null,null,10,1,4,null,null,null,null,3,11]
[null,null,null,22,null,"1929-12-26",null,"West Brom","(A)","L 1-6",null,null,null,8,7,null,null,9,null,5,6,null,null,2,null,null,null,1,4,3,null,null,10,null,11]
[null,null,null,23,null,"1929-12-28",null,"Blackpool","(H)","W 3-1",null,null,null,null,null,9,7,null,null,5,6,null,null,2,null,null,null,1,4,null,null,null,10,null,11,8,null,null,null,3]
[null,null,null,24,null,"1930-01-04",null,"Bury","(A)","L 1-5",null,null,null,null,null,9,7,6,null,null,5,null,null,2,null,null,null,1,4,null,null,null,10,null,11,8,null,null,null,3]
[null,null,null,25,null,"1930-01-18",null,"Chelsea","(H)","D 0-0",null,null,null,8,null,9,7,10,null,5,6,null,null,null,null,null,null,1,4,null,null,null,null,3,11,null,null,null,null,2]
[null,null,null,26,null,"1930-02-01",null,"Oldham","(H)","W 2-1",null,null,null,null,null,9,7,10,null,5,6,null,8,null,null,null,null,1,4,null,null,null,null,3,null,null,null,null,null,2,11]
[null,null,null,27,null,"1930-02-05",null,"Nottm Forest","(A)","D 1-1",null,null,null,null,null,9,7,10,null,5,6,null,8,null,null,null,null,1,4,null,null,null,null,3,null,null,null,null,null,2,11]
[null,null,null,28,null,"1930-02-08",null,"Charlton","(A)","D 1-1",null,null,null,null,null,9,7,10,null,5,6,null,8,null,null,null,null,1,4,null,null,null,null,3,null,null,null,null,null,2,11]
[null,null,null,29,null,"1930-02-22",null,"Hull","(H)","D 0-0",null,null,null,null,null,9,7,10,null,5,6,null,8,null,null,null,null,null,4,null,null,null,null,3,null,null,null,null,null,2,11,null,1]
[null,null,null,30,null,"1930-03-01",null,"Stoke","(A)","L 0-1",null,null,null,null,null,9,7,10,null,5,6,null,null,null,null,null,null,null,4,null,null,null,null,3,11,null,null,null,2,null,null,8,1]
[null,null,null,31,null,"1930-03-03",null,"Southampton","(A)","D 0-0",null,null,null,null,null,9,7,6,null,5,null,null,null,null,null,4,null,null,null,null,null,null,null,3,11,10,null,null,2,null,null,8,1]
[null,null,null,32,null,"1930-03-08",null,"Wolves","(H)","W 4-0",null,null,null,null,null,null,7,6,null,5,null,null,null,null,null,4,null,null,null,null,9,null,null,3,11,10,null,null,2,null,null,8,1]
[null,null,null,33,null,"1930-03-15",null,"Bradford City","(A)","D 1-1",null,null,null,null,null,null,7,6,null,5,null,null,null,null,null,4,null,null,null,null,9,null,null,3,11,10,null,null,2,null,null,8,1]
[null,null,null,34,null,"1930-03-22",null,{"$f":"H37","v":"Swansea"},"(H)","L 0-2",null,null,null,null,null,null,null,null,null,5,6,null,null,null,null,4,null,null,null,null,9,null,null,3,11,10,null,null,2,null,7,8,1]
[null,null,null,35,null,"1930-03-29",null,"Cardiff","(A)","L 1-3",null,null,null,null,null,9,null,6,null,5,null,null,null,null,null,null,null,null,4,null,null,null,null,3,11,10,null,null,2,null,7,8,1]
[null,null,null,36,null,"1930-04-05",null,"Preston","(H)","W 2-0",null,null,null,null,null,9,7,10,null,5,6,null,null,null,8,null,null,null,4,null,null,null,null,3,11,null,null,null,2,null,null,null,1]
[null,null,null,37,null,"1930-04-12",null,"Bristol C","(A)","L 0-1",null,null,null,null,null,9,7,10,null,null,6,null,null,null,8,null,null,null,4,null,null,null,null,3,11,5,null,null,2,null,null,null,1]
[null,null,null,38,null,"1930-04-18",null,"Barnsley","(H)","W 2-1",null,null,null,5,null,9,7,10,null,null,6,null,null,null,8,4,null,null,null,null,null,null,null,3,11,null,null,null,2,null,null,null,1]
[null,null,null,39,null,"1930-04-19",null,"Notts Co","(H)","W 2-0",null,null,null,5,null,9,7,10,null,null,6,null,null,null,8,4,null,null,null,null,null,null,null,3,11,null,null,null,2,null,null,null,1]
[null,null,null,40,null,"1930-04-21",null,"Barnsley","(A)","W 2-1",null,null,null,null,null,null,7,6,null,5,null,8,null,null,null,4,null,null,null,null,9,null,null,3,11,10,null,null,2,null,null,null,1]
[null,null,null,41,null,"1930-04-26",null,"Reading","(A)","W 1-0",null,null,null,null,null,9,7,null,null,5,6,null,null,null,null,4,null,null,null,null,10,null,null,null,11,8,null,null,2,3,null,null,1]
[null,null,null,42,null,"1930-05-03",null,"Bradford PA","(A)","L 0-6",null,6,null,null,null,null,7,10,null,5,null,null,null,null,null,4,8,null,null,null,null,null,null,null,11,9,null,null,2,3,null,null,1]
[]
[null,null,null,null,null,null,null,null,null,"Total League Apperances",{"$f":"COUNT(K122:K163)","v":2},1,2,10,19,31,31,29,1,34,30,1,4,9,4,12,20,25,25,2,5,1,13,33,24,16,2,1,{"$f":"COUNT(AM122:AM163)","v":20},19,8,6,17,5]
[null,null,null,null,null,null,null,null,null,"Goals",0,0,0,1,4,15,4,5,0,1,1,0,1,0,2,0,4,0,1,0,2,0,5,0,3,3,1,0,0,0,0,1,0,3]
[]
[null,null,null,3,null,{"$f":"F50","v":"1930-01-11"},null,{"$f":"H50","v":"Corinthians"},"(A)","D 2-2",null,null,null,null,null,9,7,10,null,5,6,null,null,null,null,null,null,1,4,null,null,null,8,3,11,null,null,null,null,2]
[null,null,null,"3R",null,"1930-01-15",null,"Corinthians","(H)","D 1-1 ",null,null,null,null,null,9,7,10,null,5,6,null,null,null,null,null,8,1,4,null,null,null,null,3,11,null,null,null,2]
[null,null,null,"3R",null,"1930-01-20",null,"Corinthians","(N)","W 5-1",null,null,null,null,null,9,7,10,null,5,6,null,11,null,null,null,null,null,4,null,null,null,null,3,null,null,null,null,null,2,8,null,1]
[null,null,null,4,null,"1930-01-25",null,"Doncaster Rovers","(H)","W 4-0",null,null,null,null,null,9,7,10,null,5,6,null,8,null,null,null,null,null,4,null,null,null,null,3,null,null,null,null,null,2,11,null,1]
[null,null,null,5,null,"1930-02-15",null,"West Ham Utd","(A)","L 1-4",null,null,null,null,null,9,7,10,null,5,6,null,8,null,null,null,null,null,4,null,null,null,null,3,null,null,null,null,null,2,11,null,1]
[]
[null,null,null,null,null,null,null,null,null,"Total FA Cup Apperances",null,null,null,null,null,{"$f":"COUNT(P168:P172)","v":5},5,5,null,5,5,null,3,null,null,null,1,2,5,null,null,null,1,5,2,0,0,0,1,4,3,0,3,0]
[null,null,null,null,null,null,null,null,null,"Goals",null,null,null,null,null,2,3,2,null,0,0,null,2,null,null,null,0,0,0,null,null,null,1,0,1,null,null,null,null,null,2]

{"sheet":"Sheet1","index":2,"n_rows":195,"n_cols":63,"rows_kept":195,"cut":false,"hidden":false,"merged":[[5,1,7,1],[5,52,7,52],[15,1,17,1],[15,52,17,52],[25,1,27,1],[25,52,27,52],[35,1,37,1],[35,52,37,52],[45,1,47,1],[45,52,47,52],[55,1,57,1],[55,52,57,52],[65,1,67,1],[65,52,67,52],[75,1,77,1],[75,52,77,52],[85,1,87,1],[85,52,87,52],[95,1,97,1],[95,52,97,52],[105,1,107,1],[105,52,107,52],[115,1,117,1],[115,52,117,52],[155,1,157,1],[155,52,157,52],[200,13,200,14],[201,13,201,14],[125,1,127,1],[125,52,127,52],[135,1,137,1],[135,52,137,52],[145,1,147,1],[145,52,147,52]]}
[]
[null,null,null,null,null,null,null,null,null,null,null,null,null,null,null,null,null,null,null,null,null,null,null,null,null,null,null,null,null,null,null,null,null,null,null,null,null,null,null,null,null,null,null,null,null,null,null,null,null,null,null,null,null,null,null,null,null,null,null,null,null,null,{"$f":"158-70","v":88}]
[]
[]
[]
[null,75,null,null,null,null,null,null,null,null,null,null,null,null,null,null,null,null,null,null,null,null,null,null,null,null,null,null,null,null,null,null,null,null,null,null,null,null,null,null,null,null,null,null,null,null,null,null,null,null,null,null,75]
[]
[]
[]
[]
[]
[]
[]
[]
[]
[null,70,null,null,null,null,null,null,null,null,null,null,null,null,null,null,null,null,null,null,null,null,null,null,null,null,null,null,null,null,null,null,null,null,null,null,null,null,null,null,null,null,null,null,null,null,null,null,null,null,null,null,70]
[]
[]
[]
[]
[]
[]
[]
[]
[]
[null,65,null,null,null,null,null,null,null,null,null,null,null,null,null,null,null,null,null,null,null,null,null,null,null,null,null,null,null,null,null,null,null,null,null,null,null,null,null,null,null,null,null,null,null,null,null,null,null,null,null,null,65]
[]
[]
[]
[]
[]
[]
[]
[]
[]
[null,60,null,null,null,null,null,null,null,null,null,null,null,null,null,null,null,null,null,null,null,null,null,null,null,null,null,null,null,null,null,null,null,null,null,null,null,null,null,null,null,null,null,null,null,null,null,null,null,null,null,null,60]
[]
[]
[]
[]
[]
[]
[]
[]
[]
[null,55,null,null,null,null,null,null,null,null,null,null,null,null,null,null,null,null,null,null,null,null,null,null,null,null,null,null,null,null,null,null,null,null,null,null,null,null,null,null,null,null,null,null,null,null,null,null,null,null,null,null,55]
[]
[]
[]
[]
[]
[]
[]
[]
[]
[null,50,null,null,null,null,null,null,null,null,null,null,null,null,null,null,null,null,null,null,null,null,null,null,null,null,null,null,null,null,null,null,null,null,null,null,null,null,null,null,null,null,null,null,null,null,null,null,null,null,null,null,50]
[]
[]
[]
[]
[]
[]
[]
[]
[]
[null,45,null,null,null,null,null,null,null,null,null,null,null,null,null,null,null,null,null,null,null,null,null,null,null,null,null,null,null,null,null,null,null,null,null,null,null,null,null,null,null,null,null,null,null,null,null,null,null,null,null,null,45]
[]
[]
[]
[]
[]
[]
[]
[]
[]
[null,40,null,null,null,null,null,null,null,null,null,null,null,null,null,null,null,null,null,null,null,null,null,null,null,null,null,null,null,null,null,null,null,null,null,null,null,null,null,null,null,null,null,null,null,null,null,null,null,null,null,null,40]
[]
[]
[]
[]
[]
[]
[]
[]
[]
[null,35,null,null,null,null,null,null,null,null,null,null,null,null,null,null,null,null,null,null,null,null,null,null,null,null,null,null,null,null,null,null,null,null,null,null,null,null,null,null,null,null,null,null,null,null,null,null,null,null,null,null,35]
[]
[]
[]
[]
[]
[]
[]
[]
[]
[null,30,null,null,null,null,null,null,null,null,null,null,null,null,null,null,null,null,null,null,null,null,null,null,null,null,null,null,null,null,null,null,null,null,null,null,null,null,null,null,null,null,null,null,null,null,null,null,null,null,null,null,30]
[]
[]
[]
[]
[]
[]
[]
[]
[]
[null,25,null,null,null,null,null,null,null,null,null,null,null,null,null,null,null,null,null,null,null,null,null,null,null,null,null,null,null,null,null,null,null,null,null,null,null,null,null,null,null,null,null,null,null,null,null,null,null,null,null,null,25]
[]
[]
[]
[]
[]
[]
[]
[]
[]
[null,20,null,null,null,null,null,null,null,null,null,null,null,null,null,null,null,null,null,null,null,null,null,null,null,null,null,null,null,null,null,null,null,null,null,null,null,null,null,null,null,null,null,null,null,null,null,null,null,null,null,null,20]
[]
[]
[]
[]
[]
[]
[]
[]
[]
[null,15,null,null,null,null,null,null,null,null,null,null,null,null,null,null,null,null,null,null,null,null,null,null,null,null,null,null,null,null,null,null,null,null,null,null,null,null,null,null,null,null,null,null,null,null,null,null,null,null,null,null,15]
[]
[]
[]
[]
[]
[]
[]
[]
[]
[null,10,null,null,null,null,null,null,null,null,null,null,null,null,null,null,null,null,null,null,null,null,null,null,null,null,null,null,null,null,null,null,null,null,null,null,null,null,null,null,null,null,null,null,null,null,null,null,null,null,null,null,10]
[]
[]
[]
[]
[]
[]
[]
[]
[]
[null,5,null,null,null,null,null,null,null,null,null,null,null,null,null,null,null,null,null,null,null,null,null,null,null,null,null,null,null,null,null,null,null,null,null,null,null,null,null,null,null,null,null,null,null,null,null,null,null,null,null,null,5]
[]
[]
[]
[]
[]
[]
[]
[]
[]
[null,0,null,null,null,null,null,null,null,null,null,null,null,null,null,null,null,null,null,null,null,null,null,null,null,null,null,null,null,null,null,null,null,null,null,null,null,null,null,null,null,null,null,null,null,null,null,null,null,null,null,null,0]
[]
[]
[]
[null,null,null,"Blackpool (A) L 3-4","Tottenham (H) L 2-5","Bury (H) L 2-4","Chelsea (A) L 0-3","Bradford PA (H) L 1-2","Nottm Forest (H) D 2-2","Tottenham (A) D 1-1","Oldham (A) D 2-2","Charlton (H) D 1-1","Southampton (H) D 1-1","Hull (A) L 2-3","Stoke (H) W 2-1","Wolves (A) D 1-1","Bradford City (H) D 2-2","Swansea (A) L 1-3","Cardiff (H) W 2-0","Preston (A) L 1-3","Bristol C (H) D 1-1","Notts Co (A) D 1-1","Reading (H) W 3-1","West Brom (H) W 2-1","West Brom (A) L 1-6","Blackpool (H) W 3-1","Bury (A) L 1-5","Chelsea (H) D 0-0","Oldham (H) W 2-1","Nottm Forest (A) D 1-1","Charlton (A) D 1-1","Hull (H) D 0-0","Stoke (A) L 0-1","Southampton (A) D 0-0","Wolves (H) W 4-0","Bradford City (A) D 1-1","Swansea (H) L 0-2","Cardiff (A) L 1-3","Preston (H) W 2-0","Bristol C (A) L 0-1","Barnsley (H) W 2-1","Notts Co (H) W 2-0","Barnsley (A) W 2-1","Reading (A) W 1-0","Bradford PA (A) L 0-6","Final Table"]
[]
[]
[]
[]
[]
[]
[null,null,null,{"$f":"D187-D174","v":0},0,0,1,1,0,0,0,0,0,1,1,2,3,4,3,3,2,3,3,5,4,4,6,5,2,2,2,2,4,4,5,2,2,0,0,2,0,1,1,2,2,0,0,0,0,0]
[null,null,null,4,5,6,7,8,9,10,11,12,13,14,15,16,17,18,19,20,21,22,23,24,25,26,27,28,29,30,31,32,33,34,35,36,37,38,39,40,41,42,43,44,45,46,47,48,49,50]
[null,null,null,{"$f":"D176-D189","v":0},0,1,1,1,1,1,0,0,1,1,1,0,1,0,1,1,0,1,1,3,2,3,0,0,2,1,1,2,0,0,2,1,1,0,0,0,1,1,1,0,0,0,0,0,0,0]
[]
[]
[null,"Top Y",null,{"$f":"Sheet2!$I$6","v":2},{"$f":"Sheet2!$I$7","v":4},{"$f":"Sheet2!$I$8","v":6},{"$f":"Sheet2!$I$9","v":8},{"$f":"Sheet2!$I$10","v":10},{"$f":"Sheet2!$I$11","v":11},{"$f":"Sheet2!$I$12","v":11},{"$f":"Sheet2!$I$13","v":12},{"$f":"Sheet2!$I$14","v":12},{"$f":"Sheet2!$I$15","v":14},{"$f":"Sheet2!$I$16","v":16},{"$f":"Sheet2!$I$17","v":18},{"$f":"Sheet2!$I$18","v":20},{"$f":"Sheet2!$I$19","v":22},{"$f":"Sheet2!$I$20","v":24},{"$f":"Sheet2!$I$21","v":25},{"$f":"Sheet2!$I$22","v":26},{"$f":"Sheet2!$I$23","v":28},{"$f":"Sheet2!$I$24","v":29},{"$f":"Sheet2!$I$25","v":31},{"$f":"Sheet2!$I$26","v":32},{"$f":"Sheet2!$I$27","v":32},{"$f":"Sheet2!$I$28","v":33},{"$f":"Sheet2!$I$29","v":36},{"$f":"Sheet2!$I$30","v":37},{"$f":"Sheet2!$I$31","v":37},{"$f":"Sheet2!$I$32","v":38},{"$f":"Sheet2!$I$33","v":40},{"$f":"Sheet2!$I$34","v":42},{"$f":"Sheet2!$I$35","v":42},{"$f":"Sheet2!$I$36","v":42},{"$f":"Sheet2!$I$37","v":44},{"$f":"Sheet2!$I$38","v":45},{"$f":"Sheet2!$I$39","v":47},{"$f":"Sheet2!$I$40","v":49},{"$f":"Sheet2!$I$41","v":49},{"$f":"Sheet2!$I$42","v":51},{"$f":"Sheet2!$I$43","v":53},{"$f":"Sheet2!$I$44","v":55},{"$f":"Sheet2!$I$45","v":57},{"$f":"Sheet2!$I$46","v":57},{"$f":"Sheet2!$I$47","v":58},{"$f":"Sheet2!$I$48","v":0},{"$f":"Sheet2!$I$49","v":0},{"$f":"Sheet2!$I$50","v":0},{"$f":"Sheet2!$I$51","v":0},{"$f":"Sheet2!$I$52","v":0}]
[]
[null,"3rd a",null,{"$f":"Sheet2!$K$6","v":2},{"$f":"Sheet2!$K$7","v":4},{"$f":"Sheet2!$K$8","v":5},{"$f":"Sheet2!$K$9","v":7},{"$f":"Sheet2!$K$10","v":8},{"$f":"Sheet2!$K$11","v":9},{"$f":"Sheet2!$K$12","v":9},{"$f":"Sheet2!$K$13","v":10},{"$f":"Sheet2!$K$14","v":12},{"$f":"Sheet2!$K$15","v":14},{"$f":"Sheet2!$K$16","v":15},{"$f":"Sheet2!$K$17","v":16},{"$f":"Sheet2!$K$18","v":17},{"$f":"Sheet2!$K$19","v":18},{"$f":"Sheet2!$K$20","v":19},{"$f":"Sheet2!$K$21","v":21},{"$f":"Sheet2!$K$22","v":22},{"$f":"Sheet2!$K$23","v":23},{"$f":"Sheet2!$K$24","v":24},{"$f":"Sheet2!$K$25","v":25},{"$f":"Sheet2!$K$26","v":25},{"$f":"Sheet2!$K$27","v":27},{"$f":"Sheet2!$K$28","v":28},{"$f":"Sheet2!$K$29","v":30},{"$f":"Sheet2!$K$30","v":31},{"$f":"Sheet2!$K$31","v":34},{"$f":"Sheet2!$K$32","v":34},{"$f":"Sheet2!$K$33","v":36},{"$f":"Sheet2!$K$34","v":38},{"$f":"Sheet2!$K$35","v":38},{"$f":"Sheet2!$K$36","v":38},{"$f":"Sheet2!$K$37","v":39},{"$f":"Sheet2!$K$38","v":43},{"$f":"Sheet2!$K$39","v":45},{"$f":"Sheet2!$K$40","v":47},{"$f":"Sheet2!$K$41","v":49},{"$f":"Sheet2!$K$42","v":49},{"$f":"Sheet2!$K$43","v":51},{"$f":"Sheet2!$K$44","v":52},{"$f":"Sheet2!$K$45","v":52},{"$f":"Sheet2!$K$46","v":53},{"$f":"Sheet2!$K$47","v":53},{"$f":"Sheet2!$K$48","v":0},{"$f":"Sheet2!$K$49","v":0},{"$f":"Sheet2!$K$50","v":0},{"$f":"Sheet2!$K$51","v":0},{"$f":"Sheet2!$K$52","v":0}]
[]
[null,"22nd b",null,{"$f":"Sheet2!$M$6","v":0},{"$f":"Sheet2!$M$7","v":0},{"$f":"Sheet2!$M$8","v":1},{"$f":"Sheet2!$M$9","v":1},{"$f":"Sheet2!$M$10","v":1},{"$f":"Sheet2!$M$11","v":3},{"$f":"Sheet2!$M$12","v":3},{"$f":"Sheet2!$M$13","v":3},{"$f":"Sheet2!$M$14","v":4},{"$f":"Sheet2!$M$15","v":5},{"$f":"Sheet2!$M$16","v":6},{"$f":"Sheet2!$M$17","v":7},{"$f":"Sheet2!$M$18","v":7},{"$f":"Sheet2!$M$19","v":8},{"$f":"Sheet2!$M$20","v":9},{"$f":"Sheet2!$M$21","v":11},{"$f":"Sheet2!$M$22","v":11},{"$f":"Sheet2!$M$23","v":12},{"$f":"Sheet2!$M$24","v":13},{"$f":"Sheet2!$M$25","v":15},{"$f":"Sheet2!$M$26","v":17},{"$f":"Sheet2!$M$27","v":17},{"$f":"Sheet2!$M$28","v":18},{"$f":"Sheet2!$M$29","v":18},{"$f":"Sheet2!$M$30","v":18},{"$f":"Sheet2!$M$31","v":22},{"$f":"Sheet2!$M$32","v":22},{"$f":"Sheet2!$M$33","v":22},{"$f":"Sheet2!$M$34","v":24},{"$f":"Sheet2!$M$35","v":24},{"$f":"Sheet2!$M$36","v":24},{"$f":"Sheet2!$M$37","v":26},{"$f":"Sheet2!$M$38","v":26},{"$f":"Sheet2!$M$39","v":28},{"$f":"Sheet2!$M$40","v":28},{"$f":"Sheet2!$M$41","v":29},{"$f":"Sheet2!$M$42","v":30},{"$f":"Sheet2!$M$43","v":31},{"$f":"Sheet2!$M$44","v":32},{"$f":"Sheet2!$M$45","v":32},{"$f":"Sheet2!$M$46","v":33},{"$f":"Sheet2!$M$47","v":35},{"$f":"Sheet2!$M$48","v":0},{"$f":"Sheet2!$M$49","v":0},{"$f":"Sheet2!$M$50","v":0},{"$f":"Sheet2!$M$51","v":0},{"$f":"Sheet2!$M$52","v":0}]
[]
[null,"24th c",null,{"$f":"Sheet2!$O$6","v":0},{"$f":"Sheet2!$O$7","v":0},{"$f":"Sheet2!$O$8","v":0},{"$f":"Sheet2!$O$9","v":0},{"$f":"Sheet2!$O$10","v":0},{"$f":"Sheet2!$O$11","v":1},{"$f":"Sheet2!$O$12","v":2},{"$f":"Sheet2!$O$13","v":2},{"$f":"Sheet2!$O$14","v":4},{"$f":"Sheet2!$O$15","v":4},{"$f":"Sheet2!$O$16","v":4},{"$f":"Sheet2!$O$17","v":5},{"$f":"Sheet2!$O$18","v":7},{"$f":"Sheet2!$O$19","v":7},{"$f":"Sheet2!$O$20","v":8},{"$f":"Sheet2!$O$21","v":9},{"$f":"Sheet2!$O$22","v":10},{"$f":"Sheet2!$O$23","v":10},{"$f":"Sheet2!$O$24","v":10},{"$f":"Sheet2!$O$25","v":10},{"$f":"Sheet2!$O$26","v":12},{"$f":"Sheet2!$O$27","v":13},{"$f":"Sheet2!$O$28","v":15},{"$f":"Sheet2!$O$29","v":17},{"$f":"Sheet2!$O$30","v":18},{"$f":"Sheet2!$O$31","v":18},{"$f":"Sheet2!$O$32","v":18},{"$f":"Sheet2!$O$33","v":20},{"$f":"Sheet2!$O$34","v":22},{"$f":"Sheet2!$O$35","v":22},{"$f":"Sheet2!$O$36","v":22},{"$f":"Sheet2!$O$37","v":22},{"$f":"Sheet2!$O$38","v":23},{"$f":"Sheet2!$O$39","v":23},{"$f":"Sheet2!$O$40","v":25},{"$f":"Sheet2!$O$41","v":25},{"$f":"Sheet2!$O$42","v":27},{"$f":"Sheet2!$O$43","v":27},{"$f":"Sheet2!$O$44","v":28},{"$f":"Sheet2!$O$45","v":30},{"$f":"Sheet2!$O$46","v":32},{"$f":"Sheet2!$O$47","v":33},{"$f":"Sheet2!$O$48","v":0},{"$f":"Sheet2!$O$49","v":0},{"$f":"Sheet2!$O$50","v":0},{"$f":"Sheet2!$O$51","v":0},{"$f":"Sheet2!$O$52","v":0}]
[]
[null,"d"]
[]
[null,"Millwall e",null,{"$f":"Sheet2!$G$6","v":0},{"$f":"Sheet2!$G$7","v":0},{"$f":"Sheet2!$G$8","v":0},{"$f":"Sheet2!$G$9","v":0},{"$f":"Sheet2!$G$10","v":0},{"$f":"Sheet2!$G$11","v":1},{"$f":"Sheet2!$G$12","v":2},{"$f":"Sheet2!$G$13","v":3},{"$f":"Sheet2!$G$14","v":4},{"$f":"Sheet2!$G$15","v":5},{"$f":"Sheet2!$G$16","v":5},{"$f":"Sheet2!$G$17","v":7},{"$f":"Sheet2!$G$18","v":8},{"$f":"Sheet2!$G$19","v":9},{"$f":"Sheet2!$G$20","v":9},{"$f":"Sheet2!$G$21","v":11},{"$f":"Sheet2!$G$22","v":11},{"$f":"Sheet2!$G$23","v":12},{"$f":"Sheet2!$G$24","v":13},{"$f":"Sheet2!$G$25","v":15},{"$f":"Sheet2!$G$26","v":17},{"$f":"Sheet2!$G$27","v":17},{"$f":"Sheet2!$G$28","v":19},{"$f":"Sheet2!$G$29","v":19},{"$f":"Sheet2!$G$30","v":20},{"$f":"Sheet2!$G$31","v":22},{"$f":"Sheet2!$G$32","v":23},{"$f":"Sheet2!$G$33","v":24},{"$f":"Sheet2!$G$34","v":25},{"$f":"Sheet2!$G$35","v":25},{"$f":"Sheet2!$G$36","v":26},{"$f":"Sheet2!$G$37","v":28},{"$f":"Sheet2!$G$38","v":29},{"$f":"Sheet2!$G$39","v":29},{"$f":"Sheet2!$G$40","v":29},{"$f":"Sheet2!$G$41","v":31},{"$f":"Sheet2!$G$42","v":31},{"$f":"Sheet2!$G$43","v":33},{"$f":"Sheet2!$G$44","v":35},{"$f":"Sheet2!$G$45","v":37},{"$f":"Sheet2!$G$46","v":39},{"$f":"Sheet2!$G$47","v":39},{"$f":"Sheet2!$G$48","v":0},{"$f":"Sheet2!$G$49","v":0},{"$f":"Sheet2!$G$50","v":0},{"$f":"Sheet2!$G$51","v":0},{"$f":"Sheet2!$G$52","v":0}]
[]
[]
[]
[]
[null,"2nd f",null,{"$f":"(Sheet2!$T$6)","v":2},{"$f":"(Sheet2!$T$7)","v":4},{"$f":"(Sheet2!$T$8)","v":5},{"$f":"(Sheet2!$T$9)","v":8},{"$f":"(Sheet2!$T$10)","v":9},{"$f":"(Sheet2!$T$11)","v":9},{"$f":"(Sheet2!$T$12)","v":9},{"$f":"(Sheet2!$T$13)","v":10},{"$f":"(Sheet2!$T$14)","v":12},{"$f":"(Sheet2!$T$15)","v":14},{"$f":"(Sheet2!$T$16)","v":16},{"$f":"(Sheet2!$T$17)","v":17},{"$f":"(Sheet2!$T$18)","v":19},{"$f":"(Sheet2!$T$19)","v":21},{"$f":"(Sheet2!$T$20)","v":23},{"$f":"(Sheet2!$T$21)","v":24},{"$f":"(Sheet2!$T$22)","v":25},{"$f":"(Sheet2!$T$23)","v":25},{"$f":"(Sheet2!$T$24)","v":27},{"$f":"(Sheet2!$T$25)","v":28},{"$f":"(Sheet2!$T$26)","v":30},{"$f":"(Sheet2!$T$27)","v":31},{"$f":"(Sheet2!$T$28)","v":32},{"$f":"(Sheet2!$T$29)","v":36},{"$f":"(Sheet2!$T$30)","v":36},{"$f":"(Sheet2!$T$31)","v":36},{"$f":"(Sheet2!$T$32)","v":36},{"$f":"(Sheet2!$T$33)","v":38},{"$f":"(Sheet2!$T$34)","v":40},{"$f":"(Sheet2!$T$35)","v":42},{"$f":"(Sheet2!$T$36)","v":42},{"$f":"(Sheet2!$T$37)","v":44},{"$f":"(Sheet2!$T$38)","v":45},{"$f":"(Sheet2!$T$39)","v":47},{"$f":"(Sheet2!$T$40)","v":47},{"$f":"(Sheet2!$T$41)","v":49},{"$f":"(Sheet2!$T$42)","v":51},{"$f":"(Sheet2!$T$43)","v":51},{"$f":"(Sheet2!$T$44)","v":53},{"$f":"(Sheet2!$T$45)","v":53},{"$f":"(Sheet2!$T$46)","v":55},{"$f":"(Sheet2!$T$47)","v":55},{"$f":"(Sheet2!$T$48)","v":0},{"$f":"(Sheet2!$T$49)","v":0},{"$f":"(Sheet2!$T$50)","v":0},{"$f":"(Sheet2!$T$51)","v":0},{"$f":"(Sheet2!$T$52)","v":0}]
[]
[null,"23rd g",null,{"$f":"(Sheet2!$V$6)","v":0},{"$f":"(Sheet2!$V$7)","v":0},{"$f":"(Sheet2!$V$8)","v":0},{"$f":"(Sheet2!$V$9)","v":0},{"$f":"(Sheet2!$V$10)","v":0},{"$f":"(Sheet2!$V$11)","v":2},{"$f":"(Sheet2!$V$12)","v":2},{"$f":"(Sheet2!$V$13)","v":3},{"$f":"(Sheet2!$V$14)","v":4},{"$f":"(Sheet2!$V$15)","v":4},{"$f":"(Sheet2!$V$16)","v":5},{"$f":"(Sheet2!$V$17)","v":6},{"$f":"(Sheet2!$V$18)","v":7},{"$f":"(Sheet2!$V$19)","v":7},{"$f":"(Sheet2!$V$20)","v":9},{"$f":"(Sheet2!$V$21)","v":10},{"$f":"(Sheet2!$V$22)","v":10},{"$f":"(Sheet2!$V$23)","v":12},{"$f":"(Sheet2!$V$24)","v":12},{"$f":"(Sheet2!$V$25)","v":14},{"$f":"(Sheet2!$V$26)","v":14},{"$f":"(Sheet2!$V$27)","v":15},{"$f":"(Sheet2!$V$28)","v":15},{"$f":"(Sheet2!$V$29)","v":18},{"$f":"(Sheet2!$V$30)","v":18},{"$f":"(Sheet2!$V$31)","v":20},{"$f":"(Sheet2!$V$32)","v":21},{"$f":"(Sheet2!$V$33)","v":21},{"$f":"(Sheet2!$V$34)","v":22},{"$f":"(Sheet2!$V$35)","v":24},{"$f":"(Sheet2!$V$36)","v":24},{"$f":"(Sheet2!$V$37)","v":24},{"$f":"(Sheet2!$V$38)","v":25},{"$f":"(Sheet2!$V$39)","v":27},{"$f":"(Sheet2!$V$40)","v":28},{"$f":"(Sheet2!$V$41)","v":29},{"$f":"(Sheet2!$V$42)","v":30},{"$f":"(Sheet2!$V$43)","v":30},{"$f":"(Sheet2!$V$44)","v":31},{"$f":"(Sheet2!$V$45)","v":31},{"$f":"(Sheet2!$V$46)","v":33},{"$f":"(Sheet2!$V$47)","v":35},{"$f":"(Sheet2!$V$48)","v":0},{"$f":"(Sheet2!$V$49)","v":0},{"$f":"(Sheet2!$V$50)","v":0},{"$f":"(Sheet2!$V$51)","v":0},{"$f":"(Sheet2!$V$52)","v":0}]
[]
[]
[]
[]
[null,null,null,5,6,7,8,9,10,11,12,13,14,15,16,17,18,19,20,21,22,23,24,25,26,27,28,29,30,31,32,33,34,35,36,37,38,39,40,41,42,43,44,45,46,47,48,45,46,46]
[null,null,null,{"$f":"D176-D189","v":0},0,1,1,1,1,1,0,0,1,1,1,0,1,0,1,1,0,1,1,3,2,3,0,0,2,1,1,2,0,0,2,1,1,0,0,0,1,1,1,0,0,0,0,0,0,0]

{"sheet":"Sheet2","index":3,"n_rows":47,"n_cols":26,"rows_kept":47,"cut":false,"hidden":false,"merged":[]}
[null,null,"Millwall 1931/32 results and fixtures ",null,null,null,{"$f":"[5]Summary!$AP$65","v":39},{"$f":"[5]Summary!$Q$22","v":14},{"$f":"[5]Summary!$AP$10","v":58},1,{"$f":"[5]Summary!$AP$12","v":53},2,{"$f":"[5]Summary!$AP$29","v":35},20,{"$f":"[5]Summary!$AP$31","v":33},22,null,null,{"$f":"[5]Summary!$T$5","v":67},{"$f":"[5]Summary!$AP$11","v":55},2,{"$f":"[5]Summary!$AP$30","v":35},21,null,null,{"$f":"[5]Summary!$U$7","v":"Bradford PA (A) L 0-6"}]
[]
[]
[null,null,null,null,null,null,"x"]
[null,"Game","Competition",null,"Pts","Pos","Millwall","Pos","top","Pos","3rd","Pos","20th","Pos","Bottom","Pos","Bottom","Pos","Day","2nd","Pos","21st","Pos",null,null,"Vesus"]
[null,1,"Division 2","Blackpool (A) L 3-4",null,null,0,12,2,1,2,2,0,20,0,22,null,null,1,2,2,0,21,null,null,"Blackpool (A) L 3-4"]
[null,2,"Division 2","Tottenham (H) L 2-5",null,null,0,18,4,1,4,2,0,20,0,22,null,null,2,4,2,0,21,null,null,"Tottenham (H) L 2-5"]
[null,3,"Division 2","Bury (H) L 2-4",null,null,0,21,6,1,5,2,1,20,0,22,null,null,4,5,2,0,21,null,null,"Bury (H) L 2-4"]
[null,4,"Division 2","Chelsea (A) L 0-3",null,null,0,21,8,1,7,2,1,20,0,22,null,null,7,8,2,0,21,null,null,"Chelsea (A) L 0-3"]
[null,5,"Division 2","Bradford PA (H) L 1-2",null,null,0,21,10,1,8,2,1,20,0,22,null,null,8,9,2,0,21,null,null,"Bradford PA (H) L 1-2"]
[null,6,"Division 2","Nottm Forest (H) D 2-2",null,null,1,22,11,1,9,2,3,20,1,22,null,null,10,9,2,2,21,null,null,"Nottm Forest (H) D 2-2"]
[null,7,"Division 2","Tottenham (A) D 1-1",null,null,2,21,11,1,9,2,3,20,2,22,null,null,11,9,2,2,21,null,null,"Tottenham (A) D 1-1"]
[null,8,"Division 2","Oldham (A) D 2-2",null,null,3,20,12,1,10,2,3,20,2,22,null,null,13,10,2,3,21,null,null,"Oldham (A) D 2-2"]
[null,9,"Division 2","Charlton (H) D 1-1",null,null,4,20,12,1,12,2,4,20,4,22,null,null,16,12,2,4,21,null,null,"Charlton (H) D 1-1"]
[null,10,"Division 2","Southampton (H) D 1-1",null,null,5,20,14,1,14,2,5,20,4,22,null,null,18,14,2,4,21,null,null,"Southampton (H) D 1-1"]
[null,11,"Division 2","Hull (A) L 2-3",null,null,5,21,16,1,15,2,6,20,4,22,null,null,19,16,2,5,21,null,null,"Hull (A) L 2-3"]
[null,12,"Division 2","Stoke (H) W 2-1",null,null,7,20,18,1,16,2,7,20,5,22,null,null,20,17,2,6,21,null,null,"Stoke (H) W 2-1"]
[null,13,"Division 2","Wolves (A) D 1-1",null,null,8,18,20,1,17,2,7,20,7,22,null,null,21,19,2,7,21,null,null,"Wolves (A) D 1-1"]
[null,14,"Division 2","Bradford City (H) D 2-2",null,null,9,19,22,1,18,2,8,20,7,22,null,null,22,21,2,7,21,null,null,"Bradford City (H) D 2-2"]
[null,15,"Division 2","Swansea (A) L 1-3",null,null,9,21,24,1,19,2,9,20,8,22,null,null,23,23,2,9,21,null,null,"Swansea (A) L 1-3"]
[null,16,"Division 2","Cardiff (H) W 2-0",null,null,11,19,25,1,21,2,11,20,9,22,null,null,24,24,2,10,21,null,null,"Cardiff (H) W 2-0"]
[null,17,"Division 2","Preston (A) L 1-3",null,null,11,20,26,1,22,2,11,20,10,22,null,null,25,25,2,10,21,null,null,"Preston (A) L 1-3"]
[null,18,"Division 2","Bristol C (H) D 1-1",null,null,12,21,28,1,23,2,12,20,10,22,null,null,26,25,2,12,21,null,null,"Bristol C (H) D 1-1"]
[null,19,"Division 2","Notts Co (A) D 1-1",null,null,13,20,29,1,24,2,13,20,10,22,null,null,27,27,2,12,21,null,null,"Notts Co (A) D 1-1"]
[null,20,"Division 2","Reading (H) W 3-1",null,null,15,18,31,1,25,2,15,20,10,22,null,null,28,28,2,14,21,null,null,"Reading (H) W 3-1"]
[null,21,"Division 2","West Brom (H) W 2-1",null,null,17,17,32,1,25,2,17,20,12,22,null,null,29,30,2,14,21,null,null,"West Brom (H) W 2-1"]
[null,22,"Division 2","West Brom (A) L 1-6",null,null,17,20,32,1,27,2,17,20,13,22,null,null,30,31,2,15,21,null,null,"West Brom (A) L 1-6"]
[null,23,"Division 2","Blackpool (H) W 3-1",null,null,19,18,33,1,28,2,18,20,15,22,null,null,31,32,2,15,21,null,null,"Blackpool (H) W 3-1"]
[null,24,"Division 2","Bury (A) L 1-5",null,null,19,19,36,1,30,2,18,20,17,22,null,null,33,36,2,18,21,null,null,"Bury (A) L 1-5"]
[null,25,"Division 2","Chelsea (H) D 0-0",null,null,20,19,37,1,31,2,18,20,18,22,null,null,34,36,2,18,21,null,null,"Chelsea (H) D 0-0"]
[null,26,"Division 2","Oldham (H) W 2-1",null,null,22,20,37,1,34,2,22,20,18,22,null,null,36,36,2,20,21,null,null,"Oldham (H) W 2-1"]
[null,27,"Division 2","Nottm Forest (A) D 1-1",null,null,23,19,38,1,34,2,22,20,18,22,null,null,37,36,2,21,21,null,null,"Nottm Forest (A) D 1-1"]
[null,28,"Division 2","Charlton (A) D 1-1",null,null,24,18,40,1,36,2,22,20,20,22,null,null,38,38,2,21,21,null,null,"Charlton (A) D 1-1"]
[null,29,"Division 2","Hull (H) D 0-0",null,null,25,18,42,1,38,2,24,20,22,22,null,null,41,40,2,22,21,null,null,"Hull (H) D 0-0"]
[null,30,"Division 2","Stoke (A) L 0-1",null,null,25,19,42,1,38,2,24,20,22,22,null,null,43,42,2,24,21,null,null,"Stoke (A) L 0-1"]
[null,31,"Division 2","Southampton (A) D 0-0",null,null,26,17,42,1,38,2,24,20,22,22,null,null,44,42,2,24,21,null,null,"Southampton (A) D 0-0"]
[null,32,"Division 2","Wolves (H) W 4-0",null,null,28,15,44,1,39,2,26,20,22,22,null,null,46,44,2,24,21,null,null,"Wolves (H) W 4-0"]
[null,33,"Division 2","Bradford City (A) D 1-1",null,null,29,15,45,1,43,2,26,20,23,22,null,null,49,45,2,25,21,null,null,"Bradford City (A) D 1-1"]
[null,34,"Division 2","Swansea (H) L 0-2",null,null,29,15,47,1,45,2,28,20,23,22,null,null,52,47,2,27,21,null,null,"Swansea (H) L 0-2"]
[null,35,"Division 2","Cardiff (A) L 1-3",null,null,29,19,49,1,47,2,28,20,25,22,null,null,53,47,2,28,21,null,null,"Cardiff (A) L 1-3"]
[null,36,"Division 2","Preston (H) W 2-0",null,null,31,15,49,1,49,2,29,20,25,22,null,null,55,49,2,29,21,null,null,"Preston (H) W 2-0"]
[null,37,"Division 2","Bristol C (A) L 0-1",null,null,31,18,51,1,49,2,30,20,27,22,null,null,57,51,2,30,21,null,null,"Bristol C (A) L 0-1"]
[null,38,"Division 2","Barnsley (H) W 2-1",null,null,33,16,53,1,51,2,31,20,27,22,null,null,59,51,2,30,21,null,null,"Barnsley (H) W 2-1"]
[null,39,"Division 2","Notts Co (H) W 2-0",null,null,35,14,55,1,52,2,32,20,28,22,null,null,60,53,2,31,21,null,null,"Notts Co (H) W 2-0"]
[null,40,"Division 2","Barnsley (A) W 2-1",null,null,37,14,57,1,52,2,32,20,30,22,null,null,61,53,2,31,21,null,null,"Barnsley (A) W 2-1"]
[null,41,"Division 2","Reading (A) W 1-0",null,null,39,13,57,1,53,2,33,20,32,22,null,null,64,55,2,33,21,null,null,"Reading (A) W 1-0"]
[null,42,"Division 2","Bradford PA (A) L 0-6",null,null,39,14,58,1,53,2,35,20,33,22,null,null,66,55,2,35,21,null,null,"Bradford PA (A) L 0-6"]

{"sheet":"Sheet3","index":4,"n_rows":154,"n_cols":57,"rows_kept":154,"cut":false,"hidden":false,"merged":[[8,1,10,1],[17,1,19,1],[18,52,20,52],[23,52,25,52],[27,1,29,1],[28,52,30,52],[33,52,35,52],[37,1,39,1],[38,52,40,52],[43,52,45,52],[47,1,49,1],[48,52,50,52],[53,52,55,52],[57,1,59,1],[58,52,60,52],[63,52,65,52],[67,1,69,1],[68,52,70,52],[73,52,75,52],[77,1,79,1],[78,52,80,52],[83,52,85,52],[87,1,89,1],[88,52,90,52],[93,52,95,52],[97,1,99,1],[98,52,100,52],[103,52,105,52],[107,1,109,1],[108,52,110,52],[133,52,135,52],[137,1,139,1],[113,52,115,52],[117,1,119,1],[118,52,120,52],[123,52,125,52],[127,1,129,1],[128,52,130,52]]}
[]
[null,null,null,null,null,null,null,null,null,null,null,null,null,null,null,null,null,null,null,null,null,null,null,null,null,null,null,null,null,null,null,null,null,null,null,null,null,null,null,null,null,null,null,null,null,null,null,null,null,null,null,null,null,null,null,4,45]
[]
[]
[]
[null,null,"Points",null,null,null,null,null,null,null,null,null,null,null,null,null,null,null,null,null,null,null,null,null,null,null,null,null,null,null,null,null,null,null,null,null,null,null,null,null,null,null,null,null,null,null,null,null,null,null,null,"Position"]
[]
[]
[null,65]
[]
[]
[]
[]
[]
[]
[]
[]
[null,60]
[null,null,null,null,null,null,null,null,null,null,null,null,null,null,null,null,null,null,null,null,null,null,null,null,null,null,null,null,null,null,null,null,null,null,null,null,null,null,null,null,null,null,null,null,null,null,null,null,null,null,null,null,1]
[]
[]
[]
[]
[null,null,null,null,null,null,null,null,null,null,null,null,null,null,null,null,null,null,null,null,null,null,null,null,null,null,null,null,null,null,null,null,null,null,null,null,null,null,null,null,null,null,null,null,null,null,null,null,null,null,null,null,2]
[]
[]
[]
[null,55]
[null,null,null,null,null,null,null,null,null,null,null,null,null,null,null,null,null,null,null,null,null,null,null,null,null,null,null,null,null,null,null,null,null,null,null,null,null,null,null,null,null,null,null,null,null,null,null,null,null,null,null,null,3]
[]
[]
[]
[]
[null,null,null,null,null,null,null,null,null,null,null,null,null,null,null,null,null,null,null,null,null,null,null,null,null,null,null,null,null,null,null,null,null,null,null,null,null,null,null,null,null,null,null,null,null,null,null,null,null,null,null,null,4]
[]
[]
[]
[null,50]
[null,null,null,null,null,null,null,null,null,null,null,null,null,null,null,null,null,null,null,null,null,null,null,null,null,null,null,null,null,null,null,null,null,null,null,null,null,null,null,null,null,null,null,null,null,null,null,null,null,null,null,null,5]
[]
[]
[]
[]
[null,null,null,null,null,null,null,null,null,null,null,null,null,null,null,null,null,null,null,null,null,null,null,null,null,null,null,null,null,null,null,null,null,null,null,null,null,null,null,null,null,null,null,null,null,null,null,null,null,null,null,null,6]
[]
[]
[]
[null,45]
[null,null,null,null,null,null,null,null,null,null,null,null,null,null,null,null,null,null,null,null,null,null,null,null,null,null,null,null,null,null,null,null,null,null,null,null,null,null,null,null,null,null,null,null,null,null,null,null,null,null,null,null,7]
[]
[]
[]
[]
[null,null,null,null,null,null,null,null,null,null,null,null,null,null,null,null,null,null,null,null,null,null,null,null,null,null,null,null,null,null,null,null,null,null,null,null,null,null,null,null,null,null,null,null,null,null,null,null,null,null,null,null,8]
[]
[]
[]
[null,40]
[null,null,null,null,null,null,null,null,null,null,null,null,null,null,null,null,null,null,null,null,null,null,null,null,null,null,null,null,null,null,null,null,null,null,null,null,null,null,null,null,null,null,null,null,null,null,null,null,null,null,null,null,9]
[]
[]
[]
[]
[null,null,null,null,null,null,null,null,null,null,null,null,null,null,null,null,null,null,null,null,null,null,null,null,null,null,null,null,null,null,null,null,null,null,null,null,null,null,null,null,null,null,null,null,null,null,null,null,null,null,null,null,10]
[]
[]
[]
[null,35]
[null,null,null,null,null,null,null,null,null,null,null,null,null,null,null,null,null,null,null,null,null,null,null,null,null,null,null,null,null,null,null,null,null,null,null,null,null,null,null,null,null,null,null,null,null,null,null,null,null,null,null,null,11]
[]
[]
[]
[]
[null,null,null,null,null,null,null,null,null,null,null,null,null,null,null,null,null,null,null,null,null,null,null,null,null,null,null,null,null,null,null,null,null,null,null,null,null,null,null,null,null,null,null,null,null,null,null,null,null,null,null,null,12]
[]
[]
[]
[null,30]
[null,null,null,null,null,null,null,null,null,null,null,null,null,null,null,null,null,null,null,null,null,null,null,null,null,null,null,null,null,null,null,null,null,null,null,null,null,null,null,null,null,null,null,null,null,null,null,null,null,null,null,null,13]
[]
[]
[]
[]
[null,null,null,null,null,null,null,null,null,null,null,null,null,null,null,null,null,null,null,null,null,null,null,null,null,null,null,null,null,null,null,null,null,null,null,null,null,null,null,null,null,null,null,null,null,null,null,null,null,null,null,null,14]
[]
[]
[]
[null,25]
[null,null,null,null,null,null,null,null,null,null,null,null,null,null,null,null,null,null,null,null,null,null,null,null,null,null,null,null,null,null,null,null,null,null,null,null,null,null,null,null,null,null,null,null,null,null,null,null,null,null,null,null,15]
[]
[]
[]
[]
[null,null,null,null,null,null,null,null,null,null,null,null,null,null,null,null,null,null,null,null,null,null,null,null,null,null,null,null,null,null,null,null,null,null,null,null,null,null,null,null,null,null,null,null,null,null,null,null,null,null,null,null,16]
[]
[]
[]
[null,20]
[null,null,null,null,null,null,null,null,null,null,null,null,null,null,null,null,null,null,null,null,null,null,null,null,null,null,null,null,null,null,null,null,null,null,null,null,null,null,null,null,null,null,null,null,null,null,null,null,null,null,null,null,17]
[]
[]
[]
[]
[null,null,null,null,null,null,null,null,null,null,null,null,null,null,null,null,null,null,null,null,null,null,null,null,null,null,null,null,null,null,null,null,null,null,null,null,null,null,null,null,null,null,null,null,null,null,null,null,null,null,null,null,18]
[]
[]
[]
[null,15]
[null,null,null,null,null,null,null,null,null,null,null,null,null,null,null,null,null,null,null,null,null,null,null,null,null,null,null,null,null,null,null,null,null,null,null,null,null,null,null,null,null,null,null,null,null,null,null,null,null,null,null,null,19]
[]
[]
[]
[]
[null,null,null,null,null,null,null,null,null,null,null,null,null,null,null,null,null,null,null,null,null,null,null,null,null,null,null,null,null,null,null,null,null,null,null,null,null,null,null,null,null,null,null,null,null,null,null,null,null,null,null,null,20]
[]
[]
[]
[null,10]
[null,null,null,null,null,null,null,null,null,null,null,null,null,null,null,null,null,null,null,null,null,null,null,null,null,null,null,null,null,null,null,null,null,null,null,null,null,null,null,null,null,null,null,null,null,null,null,null,null,null,null,null,21]
[]
[]
[]
[]
[null,null,null,null,null,null,null,null,null,null,null,null,null,null,null,null,null,null,null,null,null,null,null,null,null,null,null,null,null,null,null,null,null,null,null,null,null,null,null,null,null,null,null,null,null,null,null,null,null,null,null,null,22]
[]
[]
[]
[null,5]
[]
[]
[]
[]
[]
[]
[]
[]
[]
[null,0]
[]
[]
[]
[null,null,null,"Blackpool (A) L 3-4","Tottenham (H) L 2-5","Bury (H) L 2-4","Chelsea (A) L 0-3","Bradford PA (H) L 1-2","Nottm Forest (H) D 2-2","Tottenham (A) D 1-1","Oldham (A) D 2-2","Charlton (H) D 1-1","Southampton (H) D 1-1","Hull (A) L 2-3","Stoke (H) W 2-1","Wolves (A) D 1-1","Bradford City (H) D 2-2","Swansea (A) L 1-3","Cardiff (H) W 2-0","Preston (A) L 1-3","Bristol C (H) D 1-1","Notts Co (A) D 1-1","Reading (H) W 3-1","West Brom (H) W 2-1","West Brom (A) L 1-6","Blackpool (H) W 3-1","Bury (A) L 1-5","Chelsea (H) D 0-0","Oldham (H) W 2-1","Nottm Forest (A) D 1-1","Charlton (A) D 1-1","Hull (H) D 0-0","Stoke (A) L 0-1","Southampton (A) D 0-0","Wolves (H) W 4-0","Bradford City (A) D 1-1","Swansea (H) L 0-2","Cardiff (A) L 1-3","Preston (H) W 2-0","Bristol C (A) L 0-1","Barnsley (H) W 2-1","Notts Co (H) W 2-0","Barnsley (A) W 2-1","Reading (A) W 1-0","Bradford PA (A) L 0-6","Final Table"]
[]
[]
[]
[]
[]
[null,"Millwall",null,{"$f":"Sheet2!$G$6","v":0},{"$f":"Sheet2!$G$7","v":0},{"$f":"Sheet2!$G$8","v":0},{"$f":"Sheet2!$G$9","v":0},{"$f":"Sheet2!$G$10","v":0},{"$f":"Sheet2!$G$11","v":1},{"$f":"Sheet2!$G$12","v":2},{"$f":"Sheet2!$G$13","v":3},{"$f":"Sheet2!$G$14","v":4},{"$f":"Sheet2!$G$15","v":5},{"$f":"Sheet2!$G$16","v":5},{"$f":"Sheet2!$G$17","v":7},{"$f":"Sheet2!$G$18","v":8},{"$f":"Sheet2!$G$19","v":9},{"$f":"Sheet2!$G$20","v":9},{"$f":"Sheet2!$G$21","v":11},{"$f":"Sheet2!$G$22","v":11},{"$f":"Sheet2!$G$23","v":12},{"$f":"Sheet2!$G$24","v":13},{"$f":"Sheet2!$G$25","v":15},{"$f":"Sheet2!$G$26","v":17},{"$f":"Sheet2!$G$27","v":17},{"$f":"Sheet2!$G$28","v":19},{"$f":"Sheet2!$G$29","v":19},{"$f":"Sheet2!$G$30","v":20},{"$f":"Sheet2!$G$31","v":22},{"$f":"Sheet2!$G$32","v":23},{"$f":"Sheet2!$G$33","v":24},{"$f":"Sheet2!$G$34","v":25},{"$f":"Sheet2!$G$35","v":25},{"$f":"Sheet2!$G$36","v":26},{"$f":"Sheet2!$G$37","v":28},{"$f":"Sheet2!$G$38","v":29},{"$f":"Sheet2!$G$39","v":29},{"$f":"Sheet2!$G$40","v":29},{"$f":"Sheet2!$G$41","v":31},{"$f":"Sheet2!$G$42","v":31},{"$f":"Sheet2!$G$43","v":33},{"$f":"Sheet2!$G$44","v":35},{"$f":"Sheet2!$G$45","v":37},{"$f":"Sheet2!$G$46","v":39},{"$f":"Sheet2!$G$47","v":39},{"$f":"Sheet2!$G$48","v":0},{"$f":"Sheet2!$G$49","v":0},{"$f":"Sheet2!$G$50","v":0},{"$f":"Sheet2!$G$51","v":0},{"$f":"Sheet2!$G$52","v":0}]
[]
[null,"Position",null,{"$f":"126-(D154*5)","v":66},36,21,21,21,16,21,26,26,26,21,26,36,31,21,31,26,21,26,36,41,26,36,31,31,26,31,36,36,31,41,51,51,51,31,51,36,46,56,56,61,56,126,126,126,126,126]
[]
[]
[]
[null,null,null,{"$f":"Sheet2!$H$6","v":12},{"$f":"Sheet2!$H$7","v":18},{"$f":"Sheet2!$H$8","v":21},{"$f":"Sheet2!$H$9","v":21},{"$f":"Sheet2!$H$10","v":21},{"$f":"Sheet2!$H$11","v":22},{"$f":"Sheet2!$H$12","v":21},{"$f":"Sheet2!$H$13","v":20},{"$f":"Sheet2!$H$14","v":20},{"$f":"Sheet2!$H$15","v":20},{"$f":"Sheet2!$H$16","v":21},{"$f":"Sheet2!$H$17","v":20},{"$f":"Sheet2!$H$18","v":18},{"$f":"Sheet2!$H$19","v":19},{"$f":"Sheet2!$H$20","v":21},{"$f":"Sheet2!$H$21","v":19},{"$f":"Sheet2!$H$22","v":20},{"$f":"Sheet2!$H$23","v":21},{"$f":"Sheet2!$H$24","v":20},{"$f":"Sheet2!$H$25","v":18},{"$f":"Sheet2!$H$26","v":17},{"$f":"Sheet2!$H$27","v":20},{"$f":"Sheet2!$H$28","v":18},{"$f":"Sheet2!$H$29","v":19},{"$f":"Sheet2!$H$30","v":19},{"$f":"Sheet2!$H$31","v":20},{"$f":"Sheet2!$H$32","v":19},{"$f":"Sheet2!$H$33","v":18},{"$f":"Sheet2!$H$34","v":18},{"$f":"Sheet2!$H$35","v":19},{"$f":"Sheet2!$H$36","v":17},{"$f":"Sheet2!$H$37","v":15},{"$f":"Sheet2!$H$38","v":15},{"$f":"Sheet2!$H$39","v":15},{"$f":"Sheet2!$H$40","v":19},{"$f":"Sheet2!$H$41","v":15},{"$f":"Sheet2!$H$42","v":18},{"$f":"Sheet2!$H$43","v":16},{"$f":"Sheet2!$H$44","v":14},{"$f":"Sheet2!$H$45","v":14},{"$f":"Sheet2!$H$46","v":13},{"$f":"Sheet2!$H$47","v":14},{"$f":"Sheet2!$H$48","v":0},{"$f":"Sheet2!$H$49","v":0},{"$f":"Sheet2!$H$50","v":0},{"$f":"Sheet2!$H$51","v":0},{"$f":"Sheet2!$H$52","v":0}]